Workbook

Sheet L07 à L11 L+RS 2000an
A1: L07 à L11
A2: Pour 2000h/AN | B2: PV | N2: evolution du prix 2%/an | P2: 1
B3: prix | C3: année 1 | D3: année 2 | E3: année 3 | F3: année 4 | G3: année 5 | H3: année 6 | J3: Total Année N | L3: Total An 1 | M3: Total An 2 | N3: Total An 3 | O3: Total An 4 | P3: Total An 5 | Q3: Total An 6
A4: COM CK2076-1 | B4: 117.5 | C4: 1 | D4: 1 | E4: 1 | F4: 1 | G4: 1 | H4: 1 | J4: =B4*(C4+D4+E4+F4+G4+H4) -> 705 | L4: =B4*$P$2 -> 117.5 | M4: =L4*$P$2 -> 117.5 | N4: =M4*$P$2 -> 117.5 | O4: =N4*$P$2 -> 117.5 | P4: =O4*$P$2 -> 117.5 | Q4: =P4*$P$2 -> 117.5 | R4: =SUM(L4:Q4) -> 705 | T4: =SUM(C4:E4)*B4 -> 352.5 | V4: =SUM(L18:N18)/3 -> 633.95
A5: COM 10533574 | B5: 210.8 | D5: 1 | F5: 1 | H5: 1 | J5: =B5*(C5+D5+E5+F5+G5+H5) -> 632.4 | L5: =B5*$P$2 -> 210.8 | M5: =L5*$P$2 -> 210.8 | N5: 210.8 | O5: 210.8 | P5: 210.8 | Q5: 210.8 | R5: =M5+O5+Q5 -> 632.4 | T5: =SUM(C5:E5)*B5 -> 210.8
A6: COM CK8076-2 | B6: 245.6 | F6: 1 | J6: 245.6 | L6: 245.6 | M6: 245.6 | N6: 245.6 | O6: 245.6 | P6: 245.6 | Q6: 245.6 | R6: =SUM(O6) -> 245.6 | T6: 0
A7: COM SCWO4000-5 | B7: 77 | C7: 1 | D7: 2 | F7: 1 | H7: 1 | J7: =B7*(C7+D7+F7+H7) -> 385 | L7: =B7*$P$2*C7 -> 77 | M7: =L7*$P$2*2 -> 154 | N7: =M7*$P$2 -> 154 | O7: =N7*$P$2/2 -> 77 | P7: 77 | Q7: 77 | R7: =SUM(L7+M7+O7,Q7) -> 385 | T7: 231
A8: MO+DPL A1 | B8: 332.5 | C8: 1 | J8: 332.5 | L8: 332.5 | M8: 332.5 | N8: 332.5 | O8: 332.5 | P8: 332.5 | Q8: 332.5 | R8: =SUM(L8) -> 332.5 | T8: 332.5
A9: MO+DPL A2 | B9: 379.05 | D9: 1 | J9: 379.05 | L9: 379.05 | M9: 379.05 | N9: 379.05 | O9: 379.05 | P9: 379.05 | Q9: 379.05 | R9: =SUM(M9) -> 379.05 | T9: 379.05
A10: MO+DPL A3 | B10: 332.5 | E10: 1 | J10: 332.5 | L10: 332.5 | M10: 332.5 | N10: 332.5 | O10: 332.5 | P10: 332.5 | Q10: 332.5 | R10: =SUM(N10) -> 332.5 | T10: 332.5
A11: MO+DPL A4 | B11: 379.05 | F11: 1 | J11: 379.05 | L11: 379.05 | M11: 379.05 | N11: 379.05 | O11: 379.05 | P11: 379.05 | Q11: 379.05 | R11: =SUM(O11) -> 379.05 | T11: 0
A12: MO+DPL A5 | B12: 332.5 | G12: 1 | J12: 332.5 | L12: 332.5 | M12: 332.5 | N12: 332.5 | O12: 332.5 | P12: 332.5 | Q12: 332.5 | R12: =SUM(P12) -> 332.5 | T12: 0
A13: MO+DPL A6 | B13: 379.05 | H13: 1 | J13: 379.05 | L13: 379.05 | M13: 379.05 | N13: 379.05 | O13: 379.05 | P13: 379.05 | Q13: 379.05 | R13: =SUM(Q13) -> 379.05 | T13: 0
A14: courroies | B14: 50 | D14: 1 | F14: 1 | H14: 1 | J14: 150 | L14: 50 | M14: 50 | N14: 50 | O14: 50 | P14: 50 | Q14: 50 | R14: =SUM(M14,O14,Q14) -> 150 | T14: 50
A15: recyclage | B15: 4.5 | C15: 1 | D15: 1 | E15: 1 | F15: 1 | G15: 1 | H15: 1 | J15: =SUM(B15)*(C15+D15+E15+F15+G15+H15) -> 27 | L15: 4.5 | M15: 4.5 | N15: 4.5 | O15: 4.5 | P15: 4.5 | Q15: 4.5 | R15: =SUM(L15:Q15) -> 27 | T15: 13.5
J16: =SUM(J4:J15) -> 4279.65 | L16: 0 | R16: =SUM(R4:R15) -> 4279.65 | T16: =SUM(T4:T15) -> 1901.85 | V16: =T16/3 -> 633.95
A17: FORMULE: S=100*((1.02^15)-1)/(1.02-1) | R17: =SUM(L18:P18)/5 -> 688.16 | S17: par maintenance
A18: pourcentage aug | B18: années | L18: =SUM(L4,L7:L8,L15) -> 531.5 | M18: =SUM(M4:M5,M7,M9,M14:M15) -> 915.85 | N18: =SUM(N4,N10,N15) -> 454.5 | O18: =SUM(O4:O7,O11,O14:O15) -> 1084.45 | P18: =SUM(P4,P12,P15) -> 454.5 | Q18: =SUM(Q4:Q5,Q7,Q13:Q15) -> 838.85 | R18: =SUM(L18:Q18) -> 4279.65
A19: 1.03 | B19: 5 | D19: montant de la maintenance
E20: =R20*((A19^B19)-1)/(A19-1)/B19 -> 757.374769 | R20: =SUM(L18:Q18)/6 -> 713.275
A25: L07RS à L11RS
A26: Pour 2000h/AN
B28: PV | N28: evolution du prix 2%/an | P28: 0
B29: prix | C29: année 1 | D29: année 2 | E29: année 3 | F29: année 4 | G29: année 5 | H29: année 6 | J29: Total An 1 | L29: Total An 1 | M29: Total An 2 | N29: Total An 3 | O29: Total An 4 | P29: Total An 5 | Q29: Total An 6
A30: COM CK2076-1 | B30: 117.5 | C30: 1 | D30: 1 | E30: 1 | F30: 1 | G30: 1 | H30: 1 | J30: =B30*(C30+D30+E30+F30+G30+H30) -> 705 | L30: =(B30*P28)+B30 -> 117.5 | M30: =(L30*P28)+L30 -> 117.5 | N30: =(M30*P28)+M30 -> 117.5 | O30: =(N30*P28)+N30 -> 117.5 | P30: =(O30*P28)+O30 -> 117.5 | Q30: =(P30*P28)+P30 -> 117.5 | R30: =SUM(L30:Q30) -> 705
A31: com CK4076-335-RS | B31: 277.3 | D31: 1 | F31: 1 | H31: 1 | J31: =B31*(C31+D31+E31+F31+G31+H31) -> 831.9 | L31: =(B31*P28)+B31 -> 277.3 | M31: =(L31*P28)+L31 -> 277.3 | N31: =(M31*P28)+M31 -> 277.3 | O31: =(N31*P28)+N31 -> 277.3 | P31: =(O31*P28)+O31 -> 277.3 | Q31: =(P31*P28)+P31 -> 277.3 | R31: =M31+O31+Q31 -> 831.9
A32: COM CK8076-2 | B32: 245.6 | F32: 1 | J32: 245.6 | L32: =(B32*P28)+B32 -> 245.6 | M32: =(L32*P28)+L32 -> 245.6 | N32: =(M32*P28)+M32 -> 245.6 | O32: =(N32*P28)+N32 -> 245.6 | P32: =(O32*P28)+O32 -> 245.6 | Q32: =(P32*P28)+P32 -> 245.6 | R32: =SUM(O32) -> 245.6
A33: COM SCWO4000-5 | B33: 77 | C33: 1 | D33: 2 | F33: 1 | H33: 1 | J33: =B33*(C33+D33+F33+H33) -> 385 | L33: =(B33*P28)+B33 -> 77 | M33: =(L33*P28)+L33*D33 -> 154 | N33: =((M33/2)*P28)+M33/2 -> 77 | O33: =(N33*P28)+N33 -> 77 | P33: =(O33*P28)+O33 -> 77 | Q33: =(P33*P28)+P33 -> 77 | R33: =SUM(L33+M33+O33,Q33) -> 385
A34: MO+DPL A1 | B34: 332.5 | C34: 1 | J34: 332.5 | L34: =(B34*P28)+B34 -> 332.5 | M34: =(L34*P28)+L34 -> 332.5 | N34: =(M34*P28)+M34 -> 332.5 | O34: =(N34*P28)+N34 -> 332.5 | P34: =(O34*P28)+O34 -> 332.5 | Q34: =(P34*P28)+P34 -> 332.5 | R34: =SUM(L34) -> 332.5
A35: MO+DPL A2 | B35: 379.05 | D35: 1 | J35: 379.05 | L35: =(B35*P28)+B35 -> 379.05 | M35: =(L35*P28)+L35 -> 379.05 | N35: =(M35*P28)+M35 -> 379.05 | O35: =(N35*P28)+N35 -> 379.05 | P35: =(O35*P28)+O35 -> 379.05 | Q35: =(P35*P28)+P35 -> 379.05 | R35: =SUM(M35) -> 379.05
A36: MO+DPL A3 | B36: 332.5 | E36: 1 | J36: 332.5 | L36: =(B36*P28)+B36 -> 332.5 | M36: =(L36*P28)+L36 -> 332.5 | N36: =(M36*P28)+M36 -> 332.5 | O36: =(N36*P28)+N36 -> 332.5 | P36: =(O36*P28)+O36 -> 332.5 | Q36: =(P36*P28)+P36 -> 332.5 | R36: =SUM(N36) -> 332.5
A37: MO+DPL A4 | B37: 379.05 | F37: 1 | J37: 379.05 | L37: =(B37*P28)+B37 -> 379.05 | M37: =(L37*P28)+L37 -> 379.05 | N37: =(M37*P28)+M37 -> 379.05 | O37: =(N37*P28)+N37 -> 379.05 | P37: =(O37*P28)+O37 -> 379.05 | Q37: =(P37*P28)+P37 -> 379.05 | R37: =SUM(O37) -> 379.05
A38: MO+DPL A5 | B38: 332.5 | G38: 1 | J38: 332.5 | L38: =(B38*P28)+B38 -> 332.5 | M38: =(L38*P28)+L38 -> 332.5 | N38: =(M38*P28)+M38 -> 332.5 | O38: =(N38*P28)+N38 -> 332.5 | P38: =(O38*P28)+O38 -> 332.5 | Q38: =(P38*P28)+P38 -> 332.5 | R38: =SUM(P38) -> 332.5
A39: MO+DPL A6 | B39: 379.05 | H39: 1 | J39: 379.05 | L39: =(B39*P28)+B39 -> 379.05 | M39: =(L39*P28)+L39 -> 379.05 | N39: =(M39*P28)+M39 -> 379.05 | O39: =(N39*P28)+N39 -> 379.05 | P39: =(O39*P28)+O39 -> 379.05 | Q39: =(P39*P28)+P39 -> 379.05 | R39: =SUM(Q39) -> 379.05
A40: courroies | B40: 50 | D40: 1 | F40: 1 | H40: 1 | J40: 150 | L40: =(B40*P28)+B40 -> 50 | M40: =(L40*P28)+L40 -> 50 | N40: =(M40*P28)+M40 -> 50 | O40: =(N40*P28)+N40 -> 50 | P40: =(O40*P28)+O40 -> 50 | Q40: =(P40*P28)+P40 -> 50 | R40: =SUM(M40,O40,Q40) -> 150
A41: recyclage | B41: 4.5 | C41: 1 | D41: 1 | E41: 1 | F41: 1 | G41: 1 | H41: 1 | J41: =SUM(B41)*(C41+D41+E41+F41+G41+H41) -> 27 | L41: =(B41*P28)+B41 -> 4.5 | M41: =(L41*P28)+L41 -> 4.5 | N41: =(M41*P28)+M41 -> 4.5 | O41: =(N41*P28)+N41 -> 4.5 | P41: =(O41*P28)+O41 -> 4.5 | Q41: =(P41*P28)+P41 -> 4.5 | R41: =SUM(L41:Q41) -> 27
J42: =SUM(J30:J41) -> 4479.15 | L42: =J42/6 -> 746.525 | R42: =SUM(R30:R41) -> 4479.15
R43: =R42/6 -> 746.525
L44: =SUM(L30,L33:L34,L41) -> 531.5 | M44: =SUM(M30:M31,M33,M35,M40:M41) -> 982.35 | N44: =SUM(N30,N36,N41) -> 454.5 | O44: =SUM(O30:O33,O37,O40:O41) -> 1150.95 | P44: =SUM(P30,P38,P41) -> 454.5 | Q44: =SUM(Q30:Q31,Q33,Q39:Q41) -> 905.35 | R44: =SUM(L44:Q44) -> 4479.15
A46: FORMULE: S=100*((1.02^15)-1)/(1.02-1) | R46: =SUM(L44:Q44)/6 -> 746.525
A47: pourcentage aug | B47: années
A48: 1.03 | B48: 6 | D48: montant de la maintenance
E49: =R46*((A48^B48)-1)/(A48-1)/B48 -> 804.8049481
A50: L07 à L11
A51: Pour4000h/AN | B51: PV | S51: evolution du prix 2%/an | U51: 0
B52: prix | C52: 6 mois | D52: 12 mois | E52: 18 mois | F52: 24 mois | G52: 30 mois | H52: 36 mois | I52: 42 mois | J52: 48 mois | K52: 54 mois | L52: 60 mois | M52: 66 mois | N52: 72 mois | O52: Total Année N | Q52: Total M6 | R52: Total M12 | S52: Total M18 | T52: Total M24 | U52: Total M30 | V52: Total M36 | W52: Total M42 | X52: Total M48 | Y52: Total M54 | Z52: Total M60 | AA52: Total M66 | AB52: Total M72
A53: COM CK2076-1 | B53: 117.5 | C53: 1 | D53: 1 | E53: 1 | F53: 1 | G53: 1 | H53: 1 | I53: 1 | J53: 1 | K53: 1 | L53: 1 | M53: 1 | N53: 1 | O53: =B53*(C53+D53+E53+F53+G53+H53+I53+J53+K53+L53+M53+N53) -> 1410 | Q53: =(B53*U51)+B53 -> 117.5 | R53: =(B53*U51)+B53 -> 117.5 | S53: =(R53*U51)+R53 -> 117.5 | T53: =(R53*U51)+R53 -> 117.5 | U53: =(T53*U51)+T53 -> 117.5 | V53: =(T53*U51)+T53 -> 117.5 | W53: =(V53*U51)+V53 -> 117.5 | X53: =(V53*U51)+V53 -> 117.5 | Y53: =(X53*U51)+X53 -> 117.5 | Z53: =(X53*U51)+X53 -> 117.5 | AA53: =(Z53*U51)+Z53 -> 117.5 | AB53: =(AA53*AA51)+AA53 -> 117.5 | AC53: =SUM(Q53:AB53) -> 1410
A54: COM 10533574 | B54: 210.8 | D54: 1 | F54: 1 | H54: 1 | J54: 1 | L54: 1 | N54: 1 | O54: =B54*(C54+D54+E54+F54+G54+H54+I54+J54+K54+L54+M54+N54) -> 1264.8 | Q54: =(B54*U51)+B54 -> 210.8 | R54: =(B54*U51)+B54 -> 210.8 | S54: =(R54*U51)+R54 -> 210.8 | T54: =(R54*U51)+R54 -> 210.8 | U54: =(T54*U51)+T54 -> 210.8 | V54: =(T54*U51)+T54 -> 210.8 | W54: =(V54*U51)+V54 -> 210.8 | X54: =(W54*AA51)+W54 -> 210.8 | Y54: =(X54*U51)+X54 -> 210.8 | Z54: =(Y54*AA51)+Y54 -> 210.8 | AA54: =(Z54*U51)+Z54 -> 210.8 | AB54: =(AA54*AA51)+AA54 -> 210.8 | AC54: =SUM(R54,T54,V54,X54,Z54,AB54) -> 1264.8
A55: COM CK8076-2 | B55: 245.6 | F55: 1 | J55: 1 | L55: 0 | N55: 1 | O55: =B55*(C55+D55+E55+F55+G55+H55+I55+J55+K55+L55+M55+N55) -> 736.8 | Q55: =(B55*U51)+B55 -> 245.6 | R55: =(B55*U51)+B55 -> 245.6 | S55: =(R55*U51)+R55 -> 245.6 | T55: =(R55*U51)+R55 -> 245.6 | U55: =(T55*U51)+T55 -> 245.6 | V55: =(T55*U51)+T55 -> 245.6 | W55: =(V55*U51)+V55 -> 245.6 | X55: =(V55*U51)+V55 -> 245.6 | Y55: =(X55*U51)+X55 -> 245.6 | Z55: =(X55*U51)+X55 -> 245.6 | AA55: =(Z55*U51)+Z55 -> 245.6 | AB55: =(AA55*AA51)+AA55 -> 245.6 | AC55: =SUM(T55,X55,AB55) -> 736.8
A56: COM SCWO4000-5 | B56: 77 | C56: 1 | D56: 1 | F56: 2 | H56: 2 | J56: 2 | L56: 2 | N56: 2 | O56: =B56*(C56+D56+F56+H56+J56+L56+N56) -> 924 | Q56: =(B56*U51)+B56 -> 77 | R56: =(B56*U51)+B56 -> 77 | S56: =(R56*U51)+R56 -> 77 | T56: =(R56*U51)+R56 -> 77 | U56: =(T56*U51)+T56 -> 77 | V56: =(T56*U51)+T56 -> 77 | W56: =(V56*U51)+V56 -> 77 | X56: =(V56*U51)+V56 -> 77 | Y56: =(X56*U51)+X56 -> 77 | Z56: =(X56*U51)+X56 -> 77 | AA56: =(Z56*U51)+Z56 -> 77 | AB56: =(Z56*U51)+Z56 -> 77 | AC56: =SUM(Q56,R56,T56,V56,X56,Z56,AB56) -> 539
A57: MO+DPL A1 | B57: 332.5 | C57: 1 | O57: =B57*(C57+D57+E57+F57+G57+H57) -> 332.5 | Q57: =(B57*U51)+B57 -> 332.5 | R57: =(B57*U51)+B57 -> 332.5 | S57: =(R57*U51)+R57 -> 332.5 | T57: =(R57*U51)+R57 -> 332.5 | U57: =(T57*U51)+T57 -> 332.5 | V57: =(T57*U51)+T57 -> 332.5 | W57: =(V57*U51)+V57 -> 332.5 | X57: =(W57*V51)+W57 -> 332.5 | Y57: =(X57*U51)+X57 -> 332.5 | Z57: =(Y57*V51)+Y57 -> 332.5 | AA57: =(Z57*U51)+Z57 -> 332.5 | AB57: =(AA57*V51)+AA57 -> 332.5 | AC57: =SUM(Q57) -> 332.5
A58: MO+DPL A2 | B58: 379.05 | D58: 1 | O58: 379.05 | Q58: =(B58*U51)+B58 -> 379.05 | R58: =(B58*U51)+B58 -> 379.05 | S58: =(R58*U51)+R58 -> 379.05 | T58: =(R58*U51)+R58 -> 379.05 | U58: =(T58*U51)+T58 -> 379.05 | V58: =(T58*U51)+T58 -> 379.05 | W58: =(V58*U51)+V58 -> 379.05 | X58: =(V58*U51)+V58 -> 379.05 | Y58: =(X58*U51)+X58 -> 379.05 | Z58: =(X58*U51)+X58 -> 379.05 | AA58: =(Z58*U51)+Z58 -> 379.05 | AB58: =(Z58*U51)+Z58 -> 379.05 | AC58: =SUM(R58) -> 379.05
A59: MO+DPL A3 | B59: 332.5 | E59: 1 | O59: 332.5 | Q59: =(B59*U51)+B59 -> 332.5 | R59: =(B59*U51)+B59 -> 332.5 | S59: =(R59*U51)+R59 -> 332.5 | T59: =(R59*U51)+R59 -> 332.5 | U59: =(T59*U51)+T59 -> 332.5 | V59: =(T59*U51)+T59 -> 332.5 | W59: =(V59*U51)+V59 -> 332.5 | X59: =(V59*U51)+V59 -> 332.5 | Y59: =(X59*U51)+X59 -> 332.5 | Z59: =(X59*U51)+X59 -> 332.5 | AA59: =(Z59*U51)+Z59 -> 332.5 | AB59: =(Z59*U51)+Z59 -> 332.5 | AC59: =SUM(S59) -> 332.5
A60: MO+DPL A4 | B60: 379.05 | F60: 1 | O60: 379.05 | Q60: =(B60*U51)+B60 -> 379.05 | R60: =(B60*U51)+B60 -> 379.05 | S60: =(R60*U51)+R60 -> 379.05 | T60: =(R60*U51)+R60 -> 379.05 | U60: =(T60*U51)+T60 -> 379.05 | V60: =(T60*U51)+T60 -> 379.05 | W60: =(V60*U51)+V60 -> 379.05 | X60: =(V60*U51)+V60 -> 379.05 | Y60: =(X60*U51)+X60 -> 379.05 | Z60: =(X60*U51)+X60 -> 379.05 | AA60: =(Z60*U51)+Z60 -> 379.05 | AB60: =(Z60*U51)+Z60 -> 379.05 | AC60: =SUM(T60) -> 379.05
A61: MO+DPL A5 | B61: 332.5 | G61: 1 | O61: 332.5 | Q61: =(B61*U51)+B61 -> 332.5 | R61: =(B61*U51)+B61 -> 332.5 | S61: =(R61*U51)+R61 -> 332.5 | T61: =(R61*U51)+R61 -> 332.5 | U61: =(T61*U51)+T61 -> 332.5 | V61: =(T61*U51)+T61 -> 332.5 | W61: =(V61*U51)+V61 -> 332.5 | X61: =(V61*U51)+V61 -> 332.5 | Y61: =(X61*U51)+X61 -> 332.5 | Z61: =(X61*U51)+X61 -> 332.5 | AA61: =(Z61*U51)+Z61 -> 332.5 | AB61: =(Z61*U51)+Z61 -> 332.5 | AC61: =SUM(U61) -> 332.5
A62: MO+DPL A6 | B62: 379.05 | H62: 1 | O62: 379.05 | Q62: =(B62*U51)+B62 -> 379.05 | R62: =(B62*U51)+B62 -> 379.05 | S62: =(R62*U51)+R62 -> 379.05 | T62: =(R62*U51)+R62 -> 379.05 | U62: =(T62*U51)+T62 -> 379.05 | V62: =(T62*U51)+T62 -> 379.05 | W62: =(V62*U51)+V62 -> 379.05 | X62: =(V62*U51)+V62 -> 379.05 | Y62: =(X62*U51)+X62 -> 379.05 | Z62: =(X62*U51)+X62 -> 379.05 | AA62: =(Z62*U51)+Z62 -> 379.05 | AB62: =(Z62*U51)+Z62 -> 379.05 | AC62: =SUM(V62) -> 379.05
A63: MO+DPL A7 | B63: 332.5 | I63: 1 | O63: =B63*(C63+D63+E63+F63+G63+H63+I63) -> 332.5 | Q63: =(B63*U51)+B63 -> 332.5 | R63: =(B63*U51)+B63 -> 332.5 | S63: =(R63*U51)+R63 -> 332.5 | T63: =(R63*U51)+R63 -> 332.5 | U63: =(T63*U51)+T63 -> 332.5 | V63: =(T63*U51)+T63 -> 332.5 | W63: =(V63*U51)+V63 -> 332.5 | X63: =(V63*U51)+V63 -> 332.5 | Y63: =(X63*U51)+X63 -> 332.5 | Z63: =(X63*U51)+X63 -> 332.5 | AA63: =(Z63*U51)+Z63 -> 332.5 | AB63: =(Z63*U51)+Z63 -> 332.5 | AC63: =SUM(W63) -> 332.5
A64: MO+DPL A8 | B64: 379.05 | J64: 1 | O64: =B64*(C64+D64+E64+F64+G64+H64+I64+J64+K64+L64+M64+N64) -> 379.05 | Q64: =(B64*U51)+B64 -> 379.05 | R64: =(B64*U51)+B64 -> 379.05 | S64: =(R64*U51)+R64 -> 379.05 | T64: =(R64*U51)+R64 -> 379.05 | U64: =(T64*U51)+T64 -> 379.05 | V64: =(T64*U51)+T64 -> 379.05 | W64: =(V64*U51)+V64 -> 379.05 | X64: =(V64*U51)+V64 -> 379.05 | Y64: =(X64*U51)+X64 -> 379.05 | Z64: =(X64*U51)+X64 -> 379.05 | AA64: =(Z64*U51)+Z64 -> 379.05 | AB64: =(Z64*U51)+Z64 -> 379.05 | AC64: =SUM(X64) -> 379.05
A65: MO+DPL A9 | B65: 332.5 | K65: 1 | O65: 332.5 | Q65: =(B65*U51)+B65 -> 332.5 | R65: =(B65*U51)+B65 -> 332.5 | S65: =(R65*U51)+R65 -> 332.5 | T65: =(R65*U51)+R65 -> 332.5 | U65: =(T65*U51)+T65 -> 332.5 | V65: =(T65*U51)+T65 -> 332.5 | W65: =(V65*U51)+V65 -> 332.5 | X65: =(V65*U51)+V65 -> 332.5 | Y65: =(X65*U51)+X65 -> 332.5 | Z65: =(X65*U51)+X65 -> 332.5 | AA65: =(Z65*U51)+Z65 -> 332.5 | AB65: =(Z65*U51)+Z65 -> 332.5 | AC65: =SUM(Y65) -> 332.5
A66: MO+DPL A10 | B66: 379.05 | L66: 1 | O66: 379.05 | Q66: =(B66*U51)+B66 -> 379.05 | R66: =(B66*U51)+B66 -> 379.05 | S66: =(R66*U51)+R66 -> 379.05 | T66: =(R66*U51)+R66 -> 379.05 | U66: =(T66*U51)+T66 -> 379.05 | V66: =(T66*U51)+T66 -> 379.05 | W66: =(V66*U51)+V66 -> 379.05 | X66: =(V66*U51)+V66 -> 379.05 | Y66: =(X66*U51)+X66 -> 379.05 | Z66: =(X66*U51)+X66 -> 379.05 | AA66: =(Z66*U51)+Z66 -> 379.05 | AB66: =(Z66*U51)+Z66 -> 379.05 | AC66: =SUM(Z66) -> 379.05
A67: MO+DPL A11 | B67: 332.5 | M67: 1 | O67: 332.5 | Q67: =(B67*U51)+B67 -> 332.5 | R67: =(B67*U51)+B67 -> 332.5 | S67: =(R67*U51)+R67 -> 332.5 | T67: =(R67*U51)+R67 -> 332.5 | U67: =(T67*U51)+T67 -> 332.5 | V67: =(T67*U51)+T67 -> 332.5 | W67: =(V67*U51)+V67 -> 332.5 | X67: =(V67*U51)+V67 -> 332.5 | Y67: =(X67*U51)+X67 -> 332.5 | Z67: =(X67*U51)+X67 -> 332.5 | AA67: =(Z67*U51)+Z67 -> 332.5 | AB67: =(Z67*U51)+Z67 -> 332.5 | AC67: =SUM(AA67) -> 332.5
A68: MO+DPL A12 | B68: 379.05 | N68: 1 | O68: 379.05 | Q68: =(B68*U51)+B68 -> 379.05 | R68: =(B68*U51)+B68 -> 379.05 | S68: =(R68*U51)+R68 -> 379.05 | T68: =(R68*U51)+R68 -> 379.05 | U68: =(T68*U51)+T68 -> 379.05 | V68: =(T68*U51)+T68 -> 379.05 | W68: =(V68*U51)+V68 -> 379.05 | X68: =(V68*U51)+V68 -> 379.05 | Y68: =(X68*U51)+X68 -> 379.05 | Z68: =(X68*U51)+X68 -> 379.05 | AA68: =(Z68*U51)+Z68 -> 379.05 | AB68: =(Z68*U51)+Z68 -> 379.05 | AC68: =SUM(AB68) -> 379.05
A69: courroies | B69: 50 | D69: 1 | F69: 1 | H69: 1 | I69: 0 | J69: 1 | K69: 0 | L69: 1 | M69: 0 | N69: 1 | O69: 300 | Q69: =(B69*U51)+B69 -> 50 | R69: =(B69*U51)+B69 -> 50 | S69: =(R69*U51)+R69 -> 50 | T69: =(R69*U51)+R69 -> 50 | U69: =(T69*U51)+T69 -> 50 | V69: =(T69*U51)+T69 -> 50 | W69: =(V69*U51)+V69 -> 50 | X69: =(V69*U51)+V69 -> 50 | Y69: =(X69*U51)+X69 -> 50 | Z69: =(X69*U51)+X69 -> 50 | AA69: =(Z69*U51)+Z69 -> 50 | AB69: =(Z69*U51)+Z69 -> 50 | AC69: =SUM(AB69,Z69,X69,V69,T69,R69) -> 300
A70: recyclage | B70: 4.5 | C70: 1 | D70: 1 | E70: 1 | F70: 1 | G70: 1 | H70: 1 | I70: 1 | J70: 1 | K70: 1 | L70: 1 | M70: 1 | N70: 1 | O70: =SUM(B70)*(C70+D70+E70+F70+G70+H70+I70+J70+K70+L70+M70+N70) -> 54 | Q70: =(B70*U51)+B70 -> 4.5 | R70: =(B70*U51)+B70 -> 4.5 | S70: =(R70*U51)+R70 -> 4.5 | T70: =(R70*U51)+R70 -> 4.5 | U70: =(T70*U51)+T70 -> 4.5 | V70: =(T70*U51)+T70 -> 4.5 | W70: =(V70*U51)+V70 -> 4.5 | X70: =(V70*U51)+V70 -> 4.5 | Y70: =(X70*U51)+X70 -> 4.5 | Z70: =(X70*U51)+X70 -> 4.5 | AA70: =(Z70*U51)+Z70 -> 4.5 | AB70: =(Z70*U51)+Z70 -> 4.5 | AC70: =SUM(Q70:AB70) -> 54
O71: =SUM(O53:O70) -> 8958.9 | Q71: =O71/6 -> 1493.15 | AC71: =SUM(AC53:AC70) -> 8573.9
AC72: =AC71/12 -> 714.4916667
Q73: =SUM(Q53,Q56,Q57,Q70) -> 531.5 | R73: =SUM(R53:R54,R56,R58,R69:R70) -> 838.85 | S73: =SUM(S53,S59,S70) -> 454.5 | T73: =SUM(T53:T56,T60,T69:T70) -> 1084.45 | U73: =SUM(U53,U61,U70) -> 454.5 | V73: =SUM(V53:V54,V56,V62,V69:V70) -> 838.85 | W73: =SUM(W53,W63,W70) -> 454.5 | X73: =SUM(X53:X56,X64,X69:X70) -> 1084.45 | Y73: =SUM(Y53,Y65,Y70) -> 454.5 | Z73: =SUM(Z53:Z54,Z56,Z66,Z69:Z70) -> 838.85 | AA73: =SUM(AA53,AA67,AA70) -> 454.5 | AB73: =SUM(AB53:AB56,AB68:AB70) -> 1084.45 | AC73: =SUM(Q73:AB73) -> 8573.9
A74: FORMULE: S=100*((1.02^15)-1)/(1.02-1)
A75: pourcentage aug | B75: années | AC75: =SUM(Q73:AB73)/12 -> 714.4916667
A76: 1.03 | B76: 6 | D76: montant de la maintenance
E77: =AC75*((A76^B76)-1)/(A76-1)/B76 -> 770.2708265
A79: L07 à L11 RS
A80: Pour4000h/AN | B80: PV | T80: evolution du prix 2%/an | V80: 1
B81: prix 2016 | C81: prix 2017 | D81: prix 2018 | E81: prix 2019 | F81: prix 2020 | G81: prix 2021 | H81: prix 2022 | I81: 6 mois | J81: 12 mois | K81: 18 mois | L81: 24 mois | M81: 30 mois | N81: 36 mois | O81: 42 mois | P81: 48 mois | Q81: 54 mois | R81: 60 mois | S81: 66 mois | T81: 72 mois | U81: Total Année N | W81: Total M6 | X81: Total M12 | Y81: Total M18 | Z81: Total M24 | AA81: Total M30 | AB81: Total M36 | AC81: Total M42 | AD81: Total M48 | AE81: Total M54 | AF81: Total M60 | AG81: Total M66 | AH81: Total M72
A82: COM CK2076-1 | B82: 117.5 | C82: =B82*$V$80 -> 117.5 | D82: 117.5 | E82: 117.5 | F82: 117.5 | G82: 117.5 | H82: 117.5 | I82: 1 | J82: 1 | K82: 1 | L82: 1 | M82: 1 | N82: 1 | O82: 1 | P82: 1 | Q82: 1 | R82: 1 | S82: 1 | T82: 1 | U82: =B82*(I82+J82+K82+L82+M82+N82+O82+P82+Q82+R82+S82+T82) -> 1410 | W82: =B82 -> 117.5 | X82: =C82 -> 117.5 | Y82: =C82 -> 117.5 | Z82: =D82 -> 117.5 | AA82: =D82 -> 117.5 | AB82: =E82 -> 117.5 | AC82: =E82 -> 117.5 | AD82: =F82 -> 117.5 | AE82: =F82 -> 117.5 | AF82: =G82 -> 117.5 | AG82: =G82 -> 117.5 | AH82: =H82 -> 117.5 | AI82: =SUM(W82:AH82) -> 1410
A83: com CK4076-335-RS | B83: 277.3 | C83: =B83*$V$80 -> 277.3 | D83: 277.3 | E83: 277.3 | F83: 277.3 | G83: 277.3 | H83: 277.3 | J83: 1 | L83: 1 | N83: 1 | P83: 1 | R83: 1 | T83: 1 | U83: =B83*(I83+J83+K83+L83+M83+N83+O83+P83+Q83+R83+S83+T83) -> 1663.8 | X83: =C83 -> 277.3 | Z83: =D83 -> 277.3 | AB83: =E83 -> 277.3 | AD83: =F83 -> 277.3 | AF83: =G83 -> 277.3 | AH83: =H83 -> 277.3 | AI83: =SUM(X83,Z83,AB83,AD83,AF83,AH83) -> 1663.8
A84: COM CK8076-2 | B84: 245.6 | C84: 245.6 | D84: 245.6 | E84: 245.6 | F84: 245.6 | G84: 245.6 | H84: 245.6 | L84: 1 | P84: 1 | R84: 0 | T84: 1 | U84: =B84*(I84+J84+K84+L84+M84+N84+O84+P84+Q84+R84+S84+T84) -> 736.8 | Z84: =D84 -> 245.6 | AD84: =F84 -> 245.6 | AH84: =H84 -> 245.6 | AI84: =SUM(Z84,AD84,AH84) -> 736.8
A85: COM SCWO4000-5 | B85: 77 | C85: 77 | D85: 77 | E85: 77 | F85: 77 | G85: 77 | H85: 77 | I85: 1 | J85: 1 | L85: 2 | N85: 2 | P85: 2 | R85: 2 | T85: 2 | U85: =B85*(I85+J85+L85+N85+P85+R85+T85) -> 924 | X85: =C85 -> 77 | Z85: =D85 -> 77 | AB85: =E85 -> 77 | AD85: =F85 -> 77 | AF85: =G85 -> 77 | AH85: =H85 -> 77 | AI85: =SUM(X85,Z85,AB85,AD85,AF85,AH85) -> 462
A86: MO+DPL A1 | B86: 332.5 | C86: 332.5 | D86: 332.5 | E86: 332.5 | F86: 332.5 | G86: 332.5 | H86: 332.5 | I86: 1 | U86: =B86*(I86+J86+K86+L86+M86+N86) -> 332.5 | W86: =B86 -> 332.5 | AI86: =SUM(W86) -> 332.5
A87: MO+DPL A2 | B87: 379.05 | C87: 379.05 | D87: 379.05 | E87: 379.05 | F87: 379.05 | G87: 379.05 | H87: 379.05 | J87: 1 | U87: 379.05 | X87: =C87 -> 379.05 | AI87: =SUM(X87) -> 379.05
A88: MO+DPL A3 | B88: 332.5 | C88: 332.5 | D88: 332.5 | E88: 332.5 | F88: 332.5 | G88: 332.5 | H88: 332.5 | K88: 1 | U88: 332.5 | Y88: =C88 -> 332.5 | AI88: =SUM(Y88) -> 332.5
A89: MO+DPL A4 | B89: 379.05 | C89: 379.05 | D89: 379.05 | E89: 379.05 | F89: 379.05 | G89: 379.05 | H89: 379.05 | L89: 1 | U89: 379.05 | Z89: =D89 -> 379.05 | AI89: =SUM(Z89) -> 379.05
A90: MO+DPL A5 | B90: 332.5 | C90: 332.5 | D90: 332.5 | E90: 332.5 | F90: 332.5 | G90: 332.5 | H90: 332.5 | M90: 1 | U90: 332.5 | AA90: =D90 -> 332.5 | AI90: =SUM(AA90) -> 332.5
A91: MO+DPL A6 | B91: 379.05 | C91: 379.05 | D91: 379.05 | E91: 379.05 | F91: 379.05 | G91: 379.05 | H91: 379.05 | N91: 1 | U91: 379.05 | AB91: =E91 -> 379.05 | AI91: =SUM(AB91) -> 379.05
A92: MO+DPL A7 | B92: 332.5 | C92: 332.5 | D92: 332.5 | E92: 332.5 | F92: 332.5 | G92: 332.5 | H92: 332.5 | O92: 1 | U92: =B92*(I92+J92+K92+L92+M92+N92+O92) -> 332.5 | AC92: =E92 -> 332.5 | AI92: =SUM(AC92) -> 332.5
A93: MO+DPL A8 | B93: 379.05 | C93: 379.05 | D93: 379.05 | E93: 379.05 | F93: 379.05 | G93: 379.05 | H93: 379.05 | P93: 1 | U93: =B93*(I93+J93+K93+L93+M93+N93+O93+P93+Q93+R93+S93+T93) -> 379.05 | AD93: =F93 -> 379.05 | AI93: =SUM(AD93) -> 379.05
A94: MO+DPL A9 | B94: 332.5 | C94: 332.5 | D94: 332.5 | E94: 332.5 | F94: 332.5 | G94: 332.5 | H94: 332.5 | Q94: 1 | U94: 332.5 | AE94: =F94 -> 332.5 | AI94: =SUM(AE94) -> 332.5
A95: MO+DPL A10 | B95: 379.05 | C95: 379.05 | D95: 379.05 | E95: 379.05 | F95: 379.05 | G95: 379.05 | H95: 379.05 | R95: 1 | U95: 379.05 | AF95: =G95 -> 379.05 | AI95: =SUM(AF95) -> 379.05
A96: MO+DPL A11 | B96: 332.5 | C96: 332.5 | D96: 332.5 | E96: 332.5 | F96: 332.5 | G96: 332.5 | H96: 332.5 | S96: 1 | U96: 332.5 | AG96: =G96 -> 332.5 | AI96: =SUM(AG96) -> 332.5
A97: MO+DPL A12 | B97: 379.05 | C97: 379.05 | D97: 379.05 | E97: 379.05 | F97: 379.05 | G97: 379.05 | H97: 379.05 | T97: 1 | U97: 379.05 | AH97: =H97 -> 379.05 | AI97: =SUM(AH97) -> 379.05
A98: courroies | B98: 50 | C98: 50 | D98: 50 | E98: 50 | F98: 50 | G98: 50 | H98: 50 | J98: 1 | L98: 1 | N98: 1 | O98: 0 | P98: 1 | Q98: 0 | R98: 1 | S98: 0 | T98: 1 | U98: 300 | X98: =C98 -> 50 | Z98: =D98 -> 50 | AB98: =E98 -> 50 | AD98: =F98 -> 50 | AF98: =G98 -> 50 | AG98: =G98 -> 50 | AH98: =H98 -> 50 | AI98: =SUM(AH98,AF98,AD98,AB98,Z98,X98) -> 300
A99: recyclage | B99: 4.5 | C99: 4.5 | D99: 4.5 | E99: 4.5 | F99: 4.5 | G99: 4.5 | H99: 4.5 | I99: 1 | J99: 1 | K99: 1 | L99: 1 | M99: 1 | N99: 1 | O99: 1 | P99: 1 | Q99: 1 | R99: 1 | S99: 1 | T99: 1 | U99: =SUM(B99)*(I99+J99+K99+L99+M99+N99+O99+P99+Q99+R99+S99+T99) -> 54 | W99: =B99 -> 4.5 | X99: =C99 -> 4.5 | Y99: =C99 -> 4.5 | Z99: =D99 -> 4.5 | AA99: =D99 -> 4.5 | AB99: =E99 -> 4.5 | AC99: =E99 -> 4.5 | AD99: =F99 -> 4.5 | AE99: =F99 -> 4.5 | AF99: =G99 -> 4.5 | AG99: =G99 -> 4.5 | AH99: =H99 -> 4.5 | AI99: =SUM(W99:AH99) -> 54
O100: =SUM(U82:U99) -> 9357.9 | Q100: =O100/6 -> 1559.65 | AI100: =SUM(AI82:AI99) -> 8895.9
AI101: =AI100/12 -> 741.325
W102: =SUM(W82,W86,W99) -> 454.5 | X102: =SUM(X82:X83,X85,X87,X98:X99) -> 905.35 | Y102: =SUM(Y82,Y88,Y99) -> 454.5 | Z102: =SUM(Z82:Z85,Z89,Z98:Z99) -> 1150.95 | AA102: =SUM(AA82,AA90,AA99) -> 454.5 | AB102: =SUM(AB82:AB83,AB85,AB91,AB98:AB99) -> 905.35 | AC102: =SUM(AC82,AC92,AC99) -> 454.5 | AD102: =SUM(AD82:AD85,AD93,AD98:AD99) -> 1150.95 | AE102: =SUM(AE82,AE94,AE99) -> 454.5 | AF102: =SUM(AF82:AF83,AF85,AF95,AF98:AF99) -> 905.35 | AG102: =SUM(AG82,AG96,AG99) -> 454.5 | AH102: =SUM(AH82:AH85,AH97:AH99) -> 1150.95 | AI102: =SUM(W102:AH102) -> 8895.9
AI104: =SUM(W102:AH102)/12 -> 741.325
A105: FORMULE: S=100*((1.02^15)-1)/(1.02-1)
A106: pourcentage aug | B106: années
A107: 1.03 | B107: 6 | D107: montant de la maintenance
E108: =AI104*((A107^B107)-1)/(A107-1)/B107 -> 799.1989929
A110: L07 à L11 | B110: PV | T110: evolution du prix 2%/an | V110: 1
A111: Pour6000h/AN | B111: prix2016 | C111: prix2017 | D111: prix2018 | E111: prix2019 | F111: prix2020 | G111: prix2021 | H111: prix2022 | J111: 4 mois | K111: 8 mois | L111: 12 mois | M111: 16 mois | N111: 20 mois | O111: 24 mois | P111: 28 mois | Q111: 32 mois | R111: 36 mois | S111: 40 mois | T111: 44 mois | U111: 48 mois | V111: 52 mois | W111: 56 mois | X111: 60 mois | Y111: 64 mois | Z111: 68 mois | AA111: 72 mois | AB111: Total Année N | AD111: Total M4 | AE111: Total M8 | AF111: Total M12 | AG111: Total M16 | AH111: Total M20 | AI111: Total M24 | AJ111: Total M28 | AK111: Total M32 | AL111: Total M36 | AM111: Total M40 | AN111: Total M44 | AO111: Total M48 | AP111: Total M52 | AQ111: Total M56 | AR111: Total M60 | AS111: Total M64 | AT111: Total M68 | AU111: Total M72
A112: COM CK2076-1 | B112: 117.5 | C112: =B112*$V$110 -> 117.5 | D112: 117.5 | E112: 117.5 | F112: 117.5 | G112: 117.5 | H112: 117.5 | J112: 1 | K112: 1 | L112: 1 | M112: 1 | N112: 1 | O112: 1 | P112: 1 | Q112: 1 | R112: 1 | S112: 1 | T112: 1 | U112: 1 | V112: 1 | W112: 1 | X112: 1 | Y112: 1 | Z112: 1 | AA112: 1 | AB112: =B112*(J112+K112+L112+M112+N112+O112+P112+Q112+R112+S112+T112+U112+V112+W112+X112+Y112+Z112+AA112) -> 2115 | AC112: 114.4 | AD112: =B112 -> 117.5 | AE112: =AD112 -> 117.5 | AF112: =$C$112 -> 117.5 | AG112: =$C$112 -> 117.5 | AH112: =$C$112 -> 117.5 | AI112: =$D$112 -> 117.5 | AJ112: =$D$112 -> 117.5 | AK112: =$D$112 -> 117.5 | AL112: =$E$112 -> 117.5 | AM112: =$E$112 -> 117.5 | AN112: =$E$112 -> 117.5 | AO112: =$F$112 -> 117.5 | AP112: =$F$112 -> 117.5 | AQ112: =$F$112 -> 117.5 | AR112: =$G$112 -> 117.5 | AS112: =$G$112 -> 117.5 | AT112: =$G$112 -> 117.5 | AU112: =H112 -> 117.5 | AV112: =SUM(AD112:AU112) -> 2115
A113: COM 10533574 | B113: 210.8 | C113: =B113*$V$110 -> 210.8 | D113: =C113*$V$110 -> 210.8 | E113: 210.8 | F113: 210.8 | G113: 210.8 | H113: 210.8 | K113: 1 | M113: 1 | O113: 1 | Q113: 1 | S113: 1 | U113: 1 | V113: 0 | W113: 1 | X113: 0 | Y113: 1 | Z113: 0 | AA113: 1 | AB113: 1897.2 | AC113: 270 | AE113: =B113 -> 210.8 | AG113: =C113 -> 210.8 | AI113: =D113 -> 210.8 | AK113: =D113 -> 210.8 | AM113: =E113 -> 210.8 | AO113: =F113 -> 210.8 | AQ113: =F113 -> 210.8 | AS113: =G113 -> 210.8 | AU113: =H113 -> 210.8 | AV113: =SUM(AD113:AU113) -> 1897.2
A114: COM CK8076-2 | B114: 245.6 | C114: 245.6 | D114: 245.6 | E114: 245.6 | F114: 245.6 | G114: 245.6 | H114: 245.6 | M114: 1 | Q114: 1 | S114: 0 | U114: 1 | Y114: 1 | AB114: 982.4 | AC114: 239.1 | AG114: =C114 -> 245.6 | AK114: =D114 -> 245.6 | AO114: =E114 -> 245.6 | AS114: =G114 -> 245.6 | AV114: 982.4
A115: COM SCWO4000-5 | B115: 77 | C115: 77 | D115: 77 | E115: 77 | F115: 77 | G115: 77 | H115: 77 | J115: 1 | K115: 1 | M115: 2 | O115: 2 | Q115: 2 | S115: 2 | U115: 2 | W115: 2 | Y115: 2 | AA115: 2 | AB115: 1386 | AC115: 73.1 | AD115: =B115*J115 -> 77 | AE115: =B115*K115 -> 77 | AG115: =C115*M115 -> 154 | AI115: =D115*O115 -> 154 | AK115: =D115*Q115 -> 154 | AM115: =E115*S115 -> 154 | AO115: =F115*U115 -> 154 | AQ115: =F115*W115 -> 154 | AS115: =G115*Y115 -> 154 | AU115: =H115*AA115 -> 154 | AV115: 1386
A116: MO+DPL A1 | B116: 332.5 | C116: 332.5 | D116: 332.5 | E116: 332.5 | F116: 332.5 | G116: 332.5 | H116: 332.5 | J116: 1 | AB116: 332.5 | AC116: 250 | AD116: =B116 -> 332.5 | AV116: 332.5
A117: MO+DPL A2 | B117: 379.05 | C117: 379.05 | D117: 379.05 | E117: 379.05 | F117: 379.05 | G117: 379.05 | H117: 379.05 | K117: 1 | AB117: 379.05 | AC117: 285 | AE117: =B117 -> 379.05 | AV117: 379.05
A118: MO+DPL A3 | B118: 332.5 | C118: 332.5 | D118: 332.5 | E118: 332.5 | F118: 332.5 | G118: 332.5 | H118: 332.5 | L118: 1 | AB118: 332.5 | AC118: 250 | AF118: =C118 -> 332.5 | AV118: 332.5
A119: MO+DPL A4 | B119: 379.05 | C119: 379.05 | D119: 379.05 | E119: 379.05 | F119: 379.05 | G119: 379.05 | H119: 379.05 | M119: 1 | AB119: 379.05 | AC119: 285 | AG119: =C119 -> 379.05 | AV119: 379.05
A120: MO+DPL A5 | B120: 332.5 | C120: 332.5 | D120: 332.5 | E120: 332.5 | F120: 332.5 | G120: 332.5 | H120: 332.5 | N120: 1 | AB120: 332.5 | AC120: 250 | AH120: =C120 -> 332.5 | AV120: 332.5
A121: MO+DPL A6 | B121: 379.05 | C121: 379.05 | D121: 379.05 | E121: 379.05 | F121: 379.05 | G121: 379.05 | H121: 379.05 | O121: 1 | AB121: 379.05 | AC121: 285 | AI121: =D121 -> 379.05 | AV121: 379.05
A122: MO+DPL A7 | B122: 332.5 | C122: 332.5 | D122: 332.5 | E122: 332.5 | F122: 332.5 | G122: 332.5 | H122: 332.5 | P122: 1 | AB122: 332.5 | AC122: 250 | AJ122: =D122 -> 332.5 | AV122: 332.5
A123: MO+DPL A8 | B123: 379.05 | C123: 379.05 | D123: 379.05 | E123: 379.05 | F123: 379.05 | G123: 379.05 | H123: 379.05 | Q123: 1 | AB123: 379.05 | AC123: 285 | AK123: =D123 -> 379.05 | AV123: 379.05
A124: MO+DPL A9 | B124: 332.5 | C124: 332.5 | D124: 332.5 | E124: 332.5 | F124: 332.5 | G124: 332.5 | H124: 332.5 | R124: 1 | AB124: 332.5 | AC124: 250 | AL124: =E124 -> 332.5 | AV124: 332.5
A125: MO+DPL A10 | B125: 379.05 | C125: 379.05 | D125: 379.05 | E125: 379.05 | F125: 379.05 | G125: 379.05 | H125: 379.05 | S125: 1 | AB125: 379.05 | AC125: 285 | AM125: =E125 -> 379.05 | AV125: 379.05
A126: MO+DPL A11 | B126: 332.5 | C126: 332.5 | D126: 332.5 | E126: 332.5 | F126: 332.5 | G126: 332.5 | H126: 332.5 | T126: 1 | AB126: 332.5 | AC126: 250 | AN126: =E126 -> 332.5 | AV126: 332.5
A127: MO+DPL A12 | B127: 379.05 | C127: 379.05 | D127: 379.05 | E127: 379.05 | F127: 379.05 | G127: 379.05 | H127: 379.05 | U127: 1 | AB127: 379.05 | AC127: 285 | AO127: =F127 -> 379.05 | AV127: 379.05
A128: MO+DPL A13 | B128: 332.5 | C128: 332.5 | D128: 332.5 | E128: 332.5 | F128: 332.5 | G128: 332.5 | H128: 332.5 | V128: 1 | AB128: 332.5 | AC128: 250 | AP128: =F128 -> 332.5 | AV128: 332.5
A129: MO+DPL A14 | B129: 379.05 | C129: 379.05 | D129: 379.05 | E129: 379.05 | F129: 379.05 | G129: 379.05 | H129: 379.05 | W129: 1 | AB129: 379.05 | AC129: 285 | AQ129: =F129 -> 379.05 | AV129: 379.05
A130: MO+DPL A15 | B130: 332.5 | C130: 332.5 | D130: 332.5 | E130: 332.5 | F130: 332.5 | G130: 332.5 | H130: 332.5 | X130: 1 | AB130: 332.5 | AC130: 250 | AR130: =G130 -> 332.5 | AV130: 332.5
A131: MO+DPL A16 | B131: 379.05 | C131: 379.05 | D131: 379.05 | E131: 379.05 | F131: 379.05 | G131: 379.05 | H131: 379.05 | Y131: 1 | AB131: 379.05 | AC131: 285 | AS131: =G131 -> 379.05 | AV131: 379.05
A132: MO+DPL A17 | B132: 332.5 | C132: 332.5 | D132: 332.5 | E132: 332.5 | F132: 332.5 | G132: 332.5 | H132: 332.5 | Z132: 1 | AB132: 332.5 | AC132: 250 | AT132: =G132 -> 332.5 | AV132: 332.5
A133: MO+DPL A18 | B133: 379.05 | C133: 379.05 | D133: 379.05 | E133: 379.05 | F133: 379.05 | G133: 379.05 | H133: 379.05 | AA133: 1 | AB133: 379.05 | AC133: 285 | AU133: =H133 -> 379.05 | AV133: 379.05
A134: courroies | B134: 50 | C134: 50 | D134: 50 | E134: 50 | F134: 50 | G134: 50 | H134: 50 | K134: 1 | M134: 1 | O134: 1 | P134: 0 | Q134: 1 | R134: 0 | S134: 1 | T134: 0 | U134: 1 | V134: 0 | W134: 1 | Y134: 1 | AA134: 1 | AB134: 450 | AC134: 50 | AE134: =B134 -> 50 | AG134: =D134 -> 50 | AI134: =E134 -> 50 | AK134: =E134 -> 50 | AM134: =F134 -> 50 | AO134: =G134 -> 50 | AQ134: =G134 -> 50 | AS134: =H134 -> 50 | AU134: =H134 -> 50 | AV134: 450
A135: recyclage | B135: 4.5 | C135: 4.5 | D135: 4.5 | E135: 4.5 | F135: 4.5 | G135: 4.5 | H135: 4.5 | J135: 1 | K135: 1 | L135: 1 | M135: 1 | N135: 1 | O135: 1 | P135: 1 | Q135: 1 | R135: 1 | S135: 1 | T135: 1 | U135: 1 | V135: 1 | W135: 1 | X135: 1 | Y135: 1 | Z135: 1 | AA135: 1 | AB135: 81 | AC135: 4.5 | AD135: =B135 -> 4.5 | AE135: =B135 -> 4.5 | AF135: =C135 -> 4.5 | AG135: =C135 -> 4.5 | AH135: =C135 -> 4.5 | AI135: =D135 -> 4.5 | AJ135: =D135 -> 4.5 | AK135: =D135 -> 4.5 | AL135: =E135 -> 4.5 | AM135: =E135 -> 4.5 | AN135: =B135 -> 4.5 | AO135: =F135 -> 4.5 | AP135: =F135 -> 4.5 | AQ135: =F135 -> 4.5 | AR135: =G135 -> 4.5 | AS135: =(AR135*$V$31)+AR135 -> 4.5 | AT135: =(AS135*$W$31)+AS135 -> 4.5 | AU135: =H135 -> 4.5 | AV135: =SUM(AD135:AU135) -> 81
U136: =SUM(AB112:AB135) -> 13315.55 | W136: =U136/6 -> 2219.258333 | AV136: =SUM(AV112:AV135) -> 13315.55
AV137: =AV136/18 -> 739.7527778
AD139: =SUM(AD112:AD135) -> 531.5 | AE139: =SUM(AE112:AE135) -> 838.85 | AF139: 454.5 | AG139: 1161.45 | AH139: 454.5 | AI139: 915.85 | AJ139: 454.5 | AK139: 1161.45 | AL139: 454.5 | AM139: 915.85 | AN139: 454.5 | AO139: 1161.45 | AP139: 454.5 | AQ139: 915.85 | AR139: 454.5 | AS139: 1161.45 | AT139: 454.5 | AU139: 915.85 | AV139: =SUM(AD139:AU139) -> 13315.55
AV141: =SUM(AD139:AU139)/18 -> 739.7527778
A142: FORMULE: S=100*((1.02^15)-1)/(1.02-1)
A143: pourcentage aug | B143: années
A144: 1.03 | B144: 6 | D144: montant de la maintenance
E145: =AV141*((A144^B144)-1)/(A144-1)/B144 -> 797.50403
A148: L07RS à L11RS | B148: PV | T148: evolution du prix 2%/an | V148: 1
A149: Pour6000h/AN | B149: prix2016 | C149: prix2017 | D149: prix2018 | E149: prix2019 | F149: prix2020 | G149: prix2021 | H149: prix2022 | J149: 4 mois | K149: 8 mois | L149: 12 mois | M149: 16 mois | N149: 20 mois | O149: 24 mois | P149: 28 mois | Q149: 32 mois | R149: 36 mois | S149: 40 mois | T149: 44 mois | U149: 48 mois | V149: 52 mois | W149: 56 mois | X149: 60 mois | Y149: 64 mois | Z149: 68 mois | AA149: 72 mois | AB149: Total Année N | AD149: Total M4 | AE149: Total M8 | AF149: Total M12 | AG149: Total M16 | AH149: Total M20 | AI149: Total M24 | AJ149: Total M28 | AK149: Total M32 | AL149: Total M36 | AM149: Total M40 | AN149: Total M44 | AO149: Total M48 | AP149: Total M52 | AQ149: Total M56 | AR149: Total M60 | AS149: Total M64 | AT149: Total M68 | AU149: Total M72
A150: COM CK2076-1 | B150: 117.5 | C150: =B150*$V$80 -> 117.5 | D150: =C150*$V$110 -> 117.5 | E150: 117.5 | F150: 117.5 | G150: 117.5 | H150: 117.5 | J150: 1 | K150: 1 | L150: 1 | M150: 1 | N150: 1 | O150: 1 | P150: 1 | Q150: 1 | R150: 1 | S150: 1 | T150: 1 | U150: 1 | V150: 1 | W150: 1 | X150: 1 | Y150: 1 | Z150: 1 | AA150: 1 | AB150: =B150*(J150+K150+L150+M150+N150+O150+P150+Q150+R150+S150+T150+U150+V150+W150+X150+Y150+Z150+AA150) -> 2115 | AC150: 114.4 | AD150: =B150 -> 117.5 | AE150: =AD150 -> 117.5 | AF150: =$C$112 -> 117.5 | AG150: =$C$112 -> 117.5 | AH150: =$C$112 -> 117.5 | AI150: =$D$112 -> 117.5 | AJ150: =$D$112 -> 117.5 | AK150: =$D$112 -> 117.5 | AL150: =$E$112 -> 117.5 | AM150: =$E$112 -> 117.5 | AN150: =$E$112 -> 117.5 | AO150: =$F$112 -> 117.5 | AP150: =$F$112 -> 117.5 | AQ150: =$F$112 -> 117.5 | AR150: =$G$112 -> 117.5 | AS150: =$G$112 -> 117.5 | AT150: =$G$112 -> 117.5 | AU150: =H150 -> 117.5 | AV150: =SUM(AD150:AU150) -> 2115
A151: com CK4076-335-RS | B151: 277.3 | C151: 277.3 | D151: =C151*$V$110 -> 277.3 | E151: 277.3 | F151: 277.3 | G151: 277.3 | H151: 277.3 | K151: 1 | M151: 1 | O151: 1 | Q151: 1 | S151: 1 | U151: 1 | V151: 0 | W151: 1 | X151: 0 | Y151: 1 | Z151: 0 | AA151: 1 | AB151: 2495.7 | AC151: 270 | AE151: =B151 -> 277.3 | AG151: =C151 -> 277.3 | AI151: =D151 -> 277.3 | AK151: =D151 -> 277.3 | AM151: =E151 -> 277.3 | AO151: =F151 -> 277.3 | AQ151: =F151 -> 277.3 | AS151: =G151 -> 277.3 | AU151: =H151 -> 277.3 | AV151: =SUM(AD151:AU151) -> 2495.7
A152: COM CK8076-2 | B152: 245.6 | C152: 245.6 | D152: =C152*$V$110 -> 245.6 | E152: 245.6 | F152: 245.6 | G152: 245.6 | H152: 245.6 | M152: 1 | Q152: 1 | S152: 0 | U152: 1 | Y152: 1 | AB152: 982.4 | AC152: 239.1 | AG152: =C152 -> 245.6 | AK152: =D152 -> 245.6 | AO152: =E152 -> 245.6 | AS152: =G152 -> 245.6 | AV152: 982.4
A153: COM SCWO4000-5 | B153: 77 | C153: 77 | D153: =C153*$V$110 -> 77 | E153: 77 | F153: 77 | G153: 77 | H153: 77 | J153: 1 | K153: 1 | M153: 2 | O153: 2 | Q153: 2 | S153: 2 | U153: 2 | W153: 2 | Y153: 2 | AA153: 2 | AB153: 1386 | AC153: 73.1 | AD153: =B153*J153 -> 77 | AE153: =B153*K153 -> 77 | AG153: =C153*M153 -> 154 | AI153: =D153*O153 -> 154 | AK153: =D153*Q153 -> 154 | AM153: =E153*S153 -> 154 | AO153: =F153*U153 -> 154 | AQ153: =F153*W153 -> 154 | AS153: =G153*Y153 -> 154 | AU153: =H153*AA153 -> 154 | AV153: 1386
A154: MO+DPL A1 | B154: 332.5 | C154: =B154*$V$110 -> 332.5 | D154: 332.5 | E154: 332.5 | F154: 332.5 | G154: 332.5 | H154: 332.5 | J154: 1 | AB154: 332.5 | AC154: 250 | AD154: =B154 -> 332.5 | AV154: 332.5
A155: MO+DPL A2 | B155: 379.05 | C155: =B155*$V$110 -> 379.05 | D155: 379.05 | E155: 379.05 | F155: 379.05 | G155: 379.05 | H155: 379.05 | K155: 1 | AB155: 379.05 | AC155: 285 | AE155: =B155 -> 379.05 | AV155: 379.05
A156: MO+DPL A3 | B156: 332.5 | C156: =B156*$V$110 -> 332.5 | D156: 332.5 | E156: 332.5 | F156: 332.5 | G156: 332.5 | H156: 332.5 | L156: 1 | AB156: 332.5 | AC156: 250 | AF156: =C156 -> 332.5 | AV156: 332.5
A157: MO+DPL A4 | B157: 379.05 | C157: =B157*$V$110 -> 379.05 | D157: 379.05 | E157: 379.05 | F157: 379.05 | G157: 379.05 | H157: 379.05 | M157: 1 | AB157: 379.05 | AC157: 285 | AG157: =C157 -> 379.05 | AV157: 379.05
A158: MO+DPL A5 | B158: 332.5 | C158: =B158*$V$110 -> 332.5 | D158: 332.5 | E158: 332.5 | F158: 332.5 | G158: 332.5 | H158: 332.5 | N158: 1 | AB158: 332.5 | AC158: 250 | AH158: =C158 -> 332.5 | AV158: 332.5
A159: MO+DPL A6 | B159: 379.05 | C159: =B159*$V$110 -> 379.05 | D159: 379.05 | E159: 379.05 | F159: 379.05 | G159: 379.05 | H159: 379.05 | O159: 1 | AB159: 379.05 | AC159: 285 | AI159: =D159 -> 379.05 | AV159: 379.05
A160: MO+DPL A7 | B160: 332.5 | C160: =B160*$V$110 -> 332.5 | D160: 332.5 | E160: 332.5 | F160: 332.5 | G160: 332.5 | H160: 332.5 | P160: 1 | AB160: 332.5 | AC160: 250 | AJ160: =D160 -> 332.5 | AV160: 332.5
A161: MO+DPL A8 | B161: 379.05 | C161: =B161*$V$110 -> 379.05 | D161: 379.05 | E161: 379.05 | F161: 379.05 | G161: 379.05 | H161: 379.05 | Q161: 1 | AB161: 379.05 | AC161: 285 | AK161: =D161 -> 379.05 | AV161: 379.05
A162: MO+DPL A9 | B162: 332.5 | C162: =B162*$V$110 -> 332.5 | D162: 332.5 | E162: 332.5 | F162: 332.5 | G162: 332.5 | H162: 332.5 | R162: 1 | AB162: 332.5 | AC162: 250 | AL162: =E162 -> 332.5 | AV162: 332.5
A163: MO+DPL A10 | B163: 379.05 | C163: =B163*$V$110 -> 379.05 | D163: 379.05 | E163: 379.05 | F163: 379.05 | G163: 379.05 | H163: 379.05 | S163: 1 | AB163: 379.05 | AC163: 285 | AM163: =E163 -> 379.05 | AV163: 379.05
A164: MO+DPL A11 | B164: 332.5 | C164: =B164*$V$110 -> 332.5 | D164: 332.5 | E164: 332.5 | F164: 332.5 | G164: 332.5 | H164: 332.5 | T164: 1 | AB164: 332.5 | AC164: 250 | AN164: =E164 -> 332.5 | AV164: 332.5
A165: MO+DPL A12 | B165: 379.05 | C165: =B165*$V$110 -> 379.05 | D165: 379.05 | E165: 379.05 | F165: 379.05 | G165: 379.05 | H165: 379.05 | U165: 1 | AB165: 379.05 | AC165: 285 | AO165: =F165 -> 379.05 | AV165: 379.05
A166: MO+DPL A13 | B166: 332.5 | C166: =B166*$V$110 -> 332.5 | D166: 332.5 | E166: 332.5 | F166: 332.5 | G166: 332.5 | H166: 332.5 | V166: 1 | AB166: 332.5 | AC166: 250 | AP166: =F166 -> 332.5 | AV166: 332.5
A167: MO+DPL A14 | B167: 379.05 | C167: =B167*$V$110 -> 379.05 | D167: 379.05 | E167: 379.05 | F167: 379.05 | G167: 379.05 | H167: 379.05 | W167: 1 | AB167: 379.05 | AC167: 285 | AQ167: =F167 -> 379.05 | AV167: 379.05
A168: MO+DPL A15 | B168: 332.5 | C168: =B168*$V$110 -> 332.5 | D168: 332.5 | E168: 332.5 | F168: 332.5 | G168: 332.5 | H168: 332.5 | X168: 1 | AB168: 332.5 | AC168: 250 | AR168: =G168 -> 332.5 | AV168: 332.5
A169: MO+DPL A16 | B169: 379.05 | C169: =B169*$V$110 -> 379.05 | D169: 379.05 | E169: 379.05 | F169: 379.05 | G169: 379.05 | H169: 379.05 | Y169: 1 | AB169: 379.05 | AC169: 285 | AS169: =G169 -> 379.05 | AV169: 379.05
A170: MO+DPL A17 | B170: 332.5 | C170: =B170*$V$110 -> 332.5 | D170: 332.5 | E170: 332.5 | F170: 332.5 | G170: 332.5 | H170: 332.5 | Z170: 1 | AB170: 332.5 | AC170: 250 | AT170: =G170 -> 332.5 | AV170: 332.5
A171: MO+DPL A18 | B171: 379.05 | C171: =B171*$V$110 -> 379.05 | D171: 379.05 | E171: 379.05 | F171: 379.05 | G171: 379.05 | H171: 379.05 | AA171: 1 | AB171: 379.05 | AC171: 285 | AU171: =H171 -> 379.05 | AV171: 379.05
A172: courroies | B172: 50 | C172: =B172*$V$110 -> 50 | D172: 50 | E172: 50 | F172: 50 | G172: 50 | H172: 50 | K172: 1 | M172: 1 | O172: 1 | P172: 0 | Q172: 1 | R172: 0 | S172: 1 | T172: 0 | U172: 1 | V172: 0 | W172: 1 | Y172: 1 | AA172: 1 | AB172: 450 | AC172: 50 | AE172: =B172 -> 50 | AG172: =D172 -> 50 | AI172: =E172 -> 50 | AK172: =E172 -> 50 | AM172: =F172 -> 50 | AO172: =G172 -> 50 | AQ172: =G172 -> 50 | AS172: =H172 -> 50 | AU172: =H172 -> 50 | AV172: 450
A173: recyclage | B173: 4.5 | C173: =B173*$V$110 -> 4.5 | D173: 4.5 | E173: 4.5 | F173: 4.5 | G173: 4.5 | H173: 4.5 | J173: 1 | K173: 1 | L173: 1 | M173: 1 | N173: 1 | O173: 1 | P173: 1 | Q173: 1 | R173: 1 | S173: 1 | T173: 1 | U173: 1 | V173: 1 | W173: 1 | X173: 1 | Y173: 1 | Z173: 1 | AA173: 1 | AB173: 81 | AC173: 4.5 | AD173: =B173 -> 4.5 | AE173: =B173 -> 4.5 | AF173: =C173 -> 4.5 | AG173: =C173 -> 4.5 | AH173: =C173 -> 4.5 | AI173: =D173 -> 4.5 | AJ173: =D173 -> 4.5 | AK173: =D173 -> 4.5 | AL173: =E173 -> 4.5 | AM173: =E173 -> 4.5 | AN173: =B173 -> 4.5 | AO173: =F173 -> 4.5 | AP173: =F173 -> 4.5 | AQ173: =F173 -> 4.5 | AR173: =G173 -> 4.5 | AS173: =(AR173*$V$31)+AR173 -> 4.5 | AT173: =(AS173*$W$31)+AS173 -> 4.5 | AU173: =H173 -> 4.5 | AV173: =SUM(AD173:AU173) -> 81
U174: =SUM(AB150:AB173) -> 13914.05 | W174: =U174/6 -> 2319.008333 | AV174: =SUM(AV150:AV173) -> 13914.05
AV175: =AV174/18 -> 773.0027778
AD176: =SUM(AD150:AD173) -> 531.5 | AE176: =SUM(AE150:AE173) -> 905.35 | AF176: 454.5 | AG176: 1227.95 | AH176: 454.5 | AI176: 982.35 | AJ176: 454.5 | AK176: 1227.95 | AL176: 454.5 | AM176: 982.35 | AN176: 454.5 | AO176: 1227.95 | AP176: 454.5 | AQ176: 982.35 | AR176: 454.5 | AS176: 1227.95 | AT176: 454.5 | AU176: 982.35 | AV176: =SUM(AD176:AU176) -> 13914.05
AV178: =SUM(AD176:AU176)/18 -> 773.0027778
A179: FORMULE: S=100*((1.02^15)-1)/(1.02-1)
A180: pourcentage aug | B180: années
A181: 1.03 | B181: 6 | D181: montant de la maintenance
E182: =AV178*((A181^B181)-1)/(A181-1)/B181 -> 833.3498014

Sheet L15 à L22 + RS
A1: L15 à L22
A2: Pour 2000h/AN
B4: PV | N4: evolution du prix 2%/an | P4: 0
B5: prix | C5: année 1 | D5: année 2 | E5: année 3 | F5: année 4 | G5: année 5 | H5: année 6 | J5: Total An 1 | L5: Total An 1 | M5: Total An 2 | N5: Total An 3 | O5: Total An 4 | P5: Total An 5 | Q5: Total An 6 | T5: Maintenace sur 3 ans (garantie 4 ans)
A6: COM CK2100-1 | B6: 79.5 | C6: 1 | D6: 1 | E6: 1 | F6: 1 | G6: 1 | J6: =B6*(C6+D6+E6+F6+G6+H6) -> 397.5 | L6: =(B6*P4)+B6 -> 79.5 | M6: =(L6*P4)+L6 -> 79.5 | N6: =(M6*P4)+M6 -> 79.5 | O6: =(N6*P4)+N6 -> 79.5 | P6: =(O6*P4)+O6 -> 79.5 | Q6: 0 | R6: =SUM(L6:Q6) -> 397.5 | T6: =SUM(L20:N20)/3 -> 986.0666667
A7: COM A10525274 | B7: 267 | D7: 1 | F7: 1 | J7: =B32*(C7+D7+E7+F7+G7+H7) -> 791.4 | L7: =(B32*P4)+B32 -> 395.7 | M7: =(L7*P4)+L7 -> 395.7 | N7: =(M7*P4)+M7 -> 395.7 | O7: =(N7*P4)+N7 -> 395.7 | P7: =(O7*P4)+O7 -> 395.7 | Q7: 0 | R7: =M7+O7+Q7 -> 791.4
A8: COM CK8100-2 | B8: 219 | F8: 1 | J8: =B8*(C8+D8+E8+F8+G8+H8) -> 219 | L8: =(B8*P4)+B8 -> 219 | M8: =(L8*P4)+L8 -> 219 | N8: =(M8*P4)+M8 -> 219 | O8: =(N8*P4)+N8 -> 219 | P8: =(O8*P4)+O8 -> 219 | Q8: 0 | R8: =SUM(O8) -> 219
A9: COM SCWO4000-5 | B9: 70.5 | C9: 1 | D9: 2 | F9: 2 | J9: =B9*(C9+D9+F9+H9) -> 352.5 | L9: =(B9*P4)+B9 -> 70.5 | M9: =(L9*P4)+L9*D9 -> 141 | N9: =(M9*P4)+M9 -> 141 | O9: =(N9*P4)+N9 -> 141 | P9: =(O9*P4)+O9 -> 141 | Q9: 0 | R9: =SUM(L9+M9+O9,Q9) -> 352.5 | T9: Maintenace sur 5 ans (garantie 6 ans)
A10: MO+DPL A1 | B10: 680 | C10: 1 | J10: 680 | L10: =(B10*P4)+B10 -> 680 | M10: =(L10*P4)+L10 -> 680 | N10: =(M10*P4)+M10 -> 680 | O10: =(N10*P4)+N10 -> 680 | P10: =(O10*P4)+O10 -> 680 | Q10: 0 | R10: =SUM(L10) -> 680 | T10: =SUM(L20:P20)/5 -> 1059.58
A11: MO+DPL A2 | B11: 680 | D11: 1 | J11: 680 | L11: =(B11*P4)+B11 -> 680 | M11: =(L11*P4)+L11 -> 680 | N11: =(M11*P4)+M11 -> 680 | O11: =(N11*P4)+N11 -> 680 | P11: =(O11*P4)+O11 -> 680 | Q11: 0 | R11: =SUM(M11) -> 680
A12: MO+DPL A3 | B12: 680 | E12: 1 | J12: 680 | L12: =(B12*P4)+B12 -> 680 | M12: =(L12*P4)+L12 -> 680 | N12: =(M12*P4)+M12 -> 680 | O12: =(N12*P4)+N12 -> 680 | P12: =(O12*P4)+O12 -> 680 | Q12: 0 | R12: =SUM(N12) -> 680
A13: MO+DPL A4 | B13: 680 | F13: 1 | J13: 680 | L13: =(B13*P4)+B13 -> 680 | M13: =(L13*P4)+L13 -> 680 | N13: =(M13*P4)+M13 -> 680 | O13: =(N13*P4)+N13 -> 680 | P13: =(O13*P4)+O13 -> 680 | Q13: 0 | R13: =SUM(O13) -> 680
A14: MO+DPL A5 | B14: 680 | G14: 1 | J14: 680 | L14: =(B14*P4)+B14 -> 680 | M14: =(L14*P4)+L14 -> 680 | N14: =(M14*P4)+M14 -> 680 | O14: =(N14*P4)+N14 -> 680 | P14: =(O14*P4)+O14 -> 680 | Q14: 0 | R14: =SUM(P14) -> 680
A15: MO+DPL A6 | B15: 0 | J15: 0 | L15: =(B15*P4)+B15 -> 0 | M15: =(L15*P4)+L15 -> 0 | N15: =(M15*P4)+M15 -> 0 | O15: =(N15*P4)+N15 -> 0 | P15: =(O15*P4)+O15 -> 0 | Q15: 0 | R15: =SUM(Q15) -> 0
A16: courroies | B16: 50 | D16: 1 | F16: 1 | J16: 100 | L16: =(B16*P4)+B16 -> 50 | M16: =(L16*P4)+L16 -> 50 | N16: =(M16*P4)+M16 -> 50 | O16: =(N16*P4)+N16 -> 50 | P16: =(O16*P4)+O16 -> 50 | Q16: 0 | R16: =SUM(M16,O16,Q16) -> 100
A17: recyclage | B17: 7.5 | C17: 1 | D17: 1 | E17: 1 | F17: 1 | G17: 1 | J17: =SUM(B17)*(C17+D17+E17+F17+G17+H17) -> 37.5 | L17: =(B17*P4)+B17 -> 7.5 | M17: =(L17*P4)+L17 -> 7.5 | N17: =(M17*P4)+M17 -> 7.5 | O17: =(N17*P4)+N17 -> 7.5 | P17: =(O17*P4)+O17 -> 7.5 | Q17: 0 | R17: =SUM(L17:Q17) -> 37.5
J18: =SUM(J6:J17) -> 5297.9 | R18: =SUM(R6:R17) -> 5297.9
R19: =R18/6 -> 882.9833333
J20: =J18/6 -> 882.9833333 | L20: =SUM(L6,L9,L10,L17) -> 837.5 | M20: =SUM(M6:M7,M9,M11,M16,M17) -> 1353.7 | N20: =SUM(N6,N12,N17) -> 767 | O20: =SUM(O6:O9,O13,O16:O17) -> 1572.7 | P20: =SUM(P6,P14,P17) -> 767 | Q20: =SUM(Q6:Q7,Q9,Q15:Q17) -> 0 | R20: =SUM(L20:Q20) -> 5297.9
R22: =SUM(L20:Q20)/5 -> 1059.58
A23: FORMULE: S=100*((1.02^15)-1)/(1.02-1)
A24: pourcentage aug | B24: années
A25: 1.03 | B25: 5 | D25: montant de la maintenance
E26: =R22*((A25^B25)-1)/(A25-1)/B25 -> 1125.090824
A28: L15 à L22
A29: Pour4000h/AN | B29: PV | C29: 1 Année | E29: 2 Année | G29: 3 Année | I29: 4 Année | K29: 5 Année | M29: 6 Année | S29: evolution du prix 2%/an | U29: 0.02
B30: prix | C30: 6 mois | D30: 12 mois | E30: 18 mois | F30: 24 mois | G30: 30 mois | H30: 36 mois | I30: 42 mois | J30: 48 mois | K30: 54 mois | L30: 60 mois | M30: 66 mois | N30: 72 mois | O30: Total Année N | Q30: Total M6 | R30: Total M12 | S30: Total M18 | T30: Total M24 | U30: Total M30 | V30: Total M36 | W30: Total M42 | X30: Total M48 | Y30: Total M54 | Z30: Total M60 | AA30: Total M66 | AB30: Total M72
A31: COM CK2100-1 | B31: 117.7 | C31: 1 | D31: 1 | E31: 1 | F31: 1 | G31: 1 | H31: 1 | I31: 1 | J31: 1 | K31: 1 | L31: 1 | M31: 1 | N31: 1 | O31: =B31*(C31+D31+E31+F31+G31+H31+I31+J31+K31+L31+M31+N31) -> 1412.4 | Q31: =(B31*U29)+B31 -> 120.054 | R31: =(B31*U29)+B31 -> 120.054 | S31: =(R31*U29)+R31 -> 122.45508 | T31: =(R31*U29)+R31 -> 122.45508 | U31: =(T31*U29)+T31 -> 124.9041816 | V31: =(T31*U29)+T31 -> 124.9041816 | W31: =(V31*U29)+V31 -> 127.4022652 | X31: =(V31*U29)+V31 -> 127.4022652 | Y31: =(X31*U29)+X31 -> 129.9503105 | Z31: =(X31*U29)+X31 -> 129.9503105 | AA31: =(Z31*U29)+Z31 -> 132.5493167 | AB31: =(AA31*AA29)+AA31 -> 132.5493167 | AC31: =SUM(Q31:AB31) -> 1514.630308
A32: COM A10525274 | B32: 395.7 | D32: 1 | F32: 1 | H32: 1 | J32: 1 | L32: 1 | N32: 1 | O32: =B7*(C32+D32+E32+F32+G32+H32+I32+J32+K32+L32+M32+N32) -> 1602 | Q32: =(B7*U29)+B7 -> 272.34 | R32: =(B7*U29)+B7 -> 272.34 | S32: =(R32*U29)+R32 -> 277.7868 | T32: =(R32*U29)+R32 -> 277.7868 | U32: =(T32*U29)+T32 -> 283.342536 | V32: =(T32*U29)+T32 -> 283.342536 | W32: =(V32*U29)+V32 -> 289.0093867 | X32: =(W32*AA29)+W32 -> 289.0093867 | Y32: =(X32*U29)+X32 -> 294.7895745 | Z32: =(Y32*AA29)+Y32 -> 294.7895745 | AA32: =(Z32*U29)+Z32 -> 300.6853659 | AB32: =(AA32*AA29)+AA32 -> 300.6853659 | AC32: =SUM(R32,T32,V32,X32,Z32,AB32) -> 1717.953663 | AE32: 5 Maintenances sur 2ans1/2 ans (garantie 3ans)
A33: COM CK8100-2 | B33: 265.7 | F33: 1 | J33: 1 | L33: 0 | N33: 1 | O33: =B33*(C33+D33+E33+F33+G33+H33+I33+J33+K33+L33+M33+N33) -> 797.1 | Q33: =(B33*U29)+B33 -> 271.014 | R33: =(B33*U29)+B33 -> 271.014 | S33: =(R33*U29)+R33 -> 276.43428 | T33: =(R33*U29)+R33 -> 276.43428 | U33: =(T33*U29)+T33 -> 281.9629656 | V33: =(T33*U29)+T33 -> 281.9629656 | W33: =(V33*U29)+V33 -> 287.6022249 | X33: =(V33*U29)+V33 -> 287.6022249 | Y33: =(X33*U29)+X33 -> 293.3542694 | Z33: =(X33*U29)+X33 -> 293.3542694 | AA33: =(Z33*U29)+Z33 -> 299.2213548 | AB33: =(AA33*AA29)+AA33 -> 299.2213548 | AC33: =SUM(T33,X33,AB33) -> 863.2578597 | AD33: 5 | AE33: =SUM(Q51:U51)/5 -> 740.1311107
A34: COM SCWO4000-5 | B34: 77 | C34: 1 | D34: 1 | F34: 2 | H34: 2 | J34: 2 | L34: 2 | N34: 2 | O34: =B34*(C34+D34+F34+H34+J34+L34+N34) -> 924 | Q34: =(B34*U29)+B34 -> 78.54 | R34: =(B34*U29)+B34 -> 78.54 | S34: =(R34*U29)+R34 -> 80.1108 | T34: =(S34*U29)+S34*F34 -> 161.823816 | U34: =T34/2 -> 80.911908 | V34: =(T34*U29)+T34 -> 165.0602923 | W34: =(V34*U29)+V34 -> 168.3614982 | X34: =(V34*U29)+V34 -> 168.3614982 | Y34: =(X34*U29)+X34 -> 171.7287281 | Z34: =(X34*U29)+X34 -> 171.7287281 | AA34: =(Z34*U29)+Z34 -> 175.1633027 | AB34: =(Z34*U29)+Z34 -> 175.1633027 | AC34: =SUM(Q34:R34,T34,V34,X34,Z34,AB34) -> 999.2176373 | AD34: 7 | AE34: =SUM(Q51:W51)/7 -> 746.6044564
A35: MO+DPL A1 | B35: 332.5 | C35: 1 | O35: =B35*(C35+D35+E35+F35+G35+H35) -> 332.5 | Q35: =(B35*U29)+B35 -> 339.15 | R35: =(B35*U29)+B35 -> 339.15 | S35: =(R35*U29)+R35 -> 345.933 | T35: =(R35*U29)+R35 -> 345.933 | U35: =(T35*U29)+T35 -> 352.85166 | V35: =(T35*U29)+T35 -> 352.85166 | W35: =(V35*U29)+V35 -> 359.9086932 | X35: =(W35*V29)+W35 -> 359.9086932 | Y35: =(X35*U29)+X35 -> 367.1068671 | Z35: =(Y35*V29)+Y35 -> 367.1068671 | AA35: =(Z35*U29)+Z35 -> 374.4490044 | AB35: =(AA35*V29)+AA35 -> 374.4490044 | AC35: =SUM(Q35) -> 339.15 | AE35: 11 Maintenances sur 5ans1/2 ans (garantie6 ans)
A36: MO+DPL A2 | B36: 379.05 | D36: 1 | O36: 379.05 | Q36: =(B36*U29)+B36 -> 386.631 | R36: =(B36*U29)+B36 -> 386.631 | S36: =(R36*U29)+R36 -> 394.36362 | T36: =(R36*U29)+R36 -> 394.36362 | U36: =(T36*U29)+T36 -> 402.2508924 | V36: =(T36*U29)+T36 -> 402.2508924 | W36: =(V36*U29)+V36 -> 410.2959102 | X36: =(V36*U29)+V36 -> 410.2959102 | Y36: =(X36*U29)+X36 -> 418.5018285 | Z36: =(X36*U29)+X36 -> 418.5018285 | AA36: =(Z36*U29)+Z36 -> 426.871865 | AB36: =(Z36*U29)+Z36 -> 426.871865 | AC36: =SUM(R36) -> 386.631
A37: MO+DPL A3 | B37: 332.5 | E37: 1 | O37: 332.5 | Q37: =(B37*U29)+B37 -> 339.15 | R37: =(B37*U29)+B37 -> 339.15 | S37: =(R37*U29)+R37 -> 345.933 | T37: =(R37*U29)+R37 -> 345.933 | U37: =(T37*U29)+T37 -> 352.85166 | V37: =(T37*U29)+T37 -> 352.85166 | W37: =(V37*U29)+V37 -> 359.9086932 | X37: =(V37*U29)+V37 -> 359.9086932 | Y37: =(X37*U29)+X37 -> 367.1068671 | Z37: =(X37*U29)+X37 -> 367.1068671 | AA37: =(Z37*U29)+Z37 -> 374.4490044 | AB37: =(Z37*U29)+Z37 -> 374.4490044 | AC37: =SUM(S37) -> 345.933 | AE37: =SUM(Q51:AA51)/11 -> 787.0117702
A38: MO+DPL A4 | B38: 379.05 | F38: 1 | O38: 379.05 | Q38: =(B38*U29)+B38 -> 386.631 | R38: =(B38*U29)+B38 -> 386.631 | S38: =(R38*U29)+R38 -> 394.36362 | T38: =(R38*U29)+R38 -> 394.36362 | U38: =(T38*U29)+T38 -> 402.2508924 | V38: =(T38*U29)+T38 -> 402.2508924 | W38: =(V38*U29)+V38 -> 410.2959102 | X38: =(V38*U29)+V38 -> 410.2959102 | Y38: =(X38*U29)+X38 -> 418.5018285 | Z38: =(X38*U29)+X38 -> 418.5018285 | AA38: =(Z38*U29)+Z38 -> 426.871865 | AB38: =(Z38*U29)+Z38 -> 426.871865 | AC38: =SUM(T38) -> 394.36362
A39: MO+DPL A5 | B39: 332.5 | G39: 1 | O39: 332.5 | Q39: =(B39*U29)+B39 -> 339.15 | R39: =(B39*U29)+B39 -> 339.15 | S39: =(R39*U29)+R39 -> 345.933 | T39: =(R39*U29)+R39 -> 345.933 | U39: =(T39*U29)+T39 -> 352.85166 | V39: =(T39*U29)+T39 -> 352.85166 | W39: =(V39*U29)+V39 -> 359.9086932 | X39: =(V39*U29)+V39 -> 359.9086932 | Y39: =(X39*U29)+X39 -> 367.1068671 | Z39: =(X39*U29)+X39 -> 367.1068671 | AA39: =(Z39*U29)+Z39 -> 374.4490044 | AB39: =(Z39*U29)+Z39 -> 374.4490044 | AC39: =SUM(U39) -> 352.85166
A40: MO+DPL A6 | B40: 379.05 | H40: 1 | O40: 379.05 | Q40: =(B40*U29)+B40 -> 386.631 | R40: =(B40*U29)+B40 -> 386.631 | S40: =(R40*U29)+R40 -> 394.36362 | T40: =(R40*U29)+R40 -> 394.36362 | U40: =(T40*U29)+T40 -> 402.2508924 | V40: =(T40*U29)+T40 -> 402.2508924 | W40: =(V40*U29)+V40 -> 410.2959102 | X40: =(V40*U29)+V40 -> 410.2959102 | Y40: =(X40*U29)+X40 -> 418.5018285 | Z40: =(X40*U29)+X40 -> 418.5018285 | AA40: =(Z40*U29)+Z40 -> 426.871865 | AB40: =(Z40*U29)+Z40 -> 426.871865 | AC40: =SUM(V40) -> 402.2508924
A41: MO+DPL A7 | B41: 332.5 | I41: 1 | O41: =B41*(C41+D41+E41+F41+G41+H41+I41) -> 332.5 | Q41: =(B41*U29)+B41 -> 339.15 | R41: =(B41*U29)+B41 -> 339.15 | S41: =(R41*U29)+R41 -> 345.933 | T41: =(R41*U29)+R41 -> 345.933 | U41: =(T41*U29)+T41 -> 352.85166 | V41: =(T41*U29)+T41 -> 352.85166 | W41: =(V41*U29)+V41 -> 359.9086932 | X41: =(V41*U29)+V41 -> 359.9086932 | Y41: =(X41*U29)+X41 -> 367.1068671 | Z41: =(X41*U29)+X41 -> 367.1068671 | AA41: =(Z41*U29)+Z41 -> 374.4490044 | AB41: =(Z41*U29)+Z41 -> 374.4490044 | AC41: =SUM(W41) -> 359.9086932
A42: MO+DPL A8 | B42: 379.05 | J42: 1 | O42: =B42*(C42+D42+E42+F42+G42+H42+I42+J42+K42+L42+M42+N42) -> 379.05 | Q42: =(B42*U29)+B42 -> 386.631 | R42: =(B42*U29)+B42 -> 386.631 | S42: =(R42*U29)+R42 -> 394.36362 | T42: =(R42*U29)+R42 -> 394.36362 | U42: =(T42*U29)+T42 -> 402.2508924 | V42: =(T42*U29)+T42 -> 402.2508924 | W42: =(V42*U29)+V42 -> 410.2959102 | X42: =(V42*U29)+V42 -> 410.2959102 | Y42: =(X42*U29)+X42 -> 418.5018285 | Z42: =(X42*U29)+X42 -> 418.5018285 | AA42: =(Z42*U29)+Z42 -> 426.871865 | AB42: =(Z42*U29)+Z42 -> 426.871865 | AC42: =SUM(X42) -> 410.2959102
A43: MO+DPL A9 | B43: 332.5 | K43: 1 | O43: 332.5 | Q43: =(B43*U29)+B43 -> 339.15 | R43: =(B43*U29)+B43 -> 339.15 | S43: =(R43*U29)+R43 -> 345.933 | T43: =(R43*U29)+R43 -> 345.933 | U43: =(T43*U29)+T43 -> 352.85166 | V43: =(T43*U29)+T43 -> 352.85166 | W43: =(V43*U29)+V43 -> 359.9086932 | X43: =(V43*U29)+V43 -> 359.9086932 | Y43: =(X43*U29)+X43 -> 367.1068671 | Z43: =(X43*U29)+X43 -> 367.1068671 | AA43: =(Z43*U29)+Z43 -> 374.4490044 | AB43: =(Z43*U29)+Z43 -> 374.4490044 | AC43: =SUM(Y43) -> 367.1068671
A44: MO+DPL A10 | B44: 379.05 | L44: 1 | O44: 379.05 | Q44: =(B44*U29)+B44 -> 386.631 | R44: =(B44*U29)+B44 -> 386.631 | S44: =(R44*U29)+R44 -> 394.36362 | T44: =(R44*U29)+R44 -> 394.36362 | U44: =(T44*U29)+T44 -> 402.2508924 | V44: =(T44*U29)+T44 -> 402.2508924 | W44: =(V44*U29)+V44 -> 410.2959102 | X44: =(V44*U29)+V44 -> 410.2959102 | Y44: =(X44*U29)+X44 -> 418.5018285 | Z44: =(X44*U29)+X44 -> 418.5018285 | AA44: =(Z44*U29)+Z44 -> 426.871865 | AB44: =(Z44*U29)+Z44 -> 426.871865 | AC44: =SUM(Z44) -> 418.5018285
A45: MO+DPL A11 | B45: 332.5 | M45: 1 | O45: 332.5 | Q45: =(B45*U29)+B45 -> 339.15 | R45: =(B45*U29)+B45 -> 339.15 | S45: =(R45*U29)+R45 -> 345.933 | T45: =(R45*U29)+R45 -> 345.933 | U45: =(T45*U29)+T45 -> 352.85166 | V45: =(T45*U29)+T45 -> 352.85166 | W45: =(V45*U29)+V45 -> 359.9086932 | X45: =(V45*U29)+V45 -> 359.9086932 | Y45: =(X45*U29)+X45 -> 367.1068671 | Z45: =(X45*U29)+X45 -> 367.1068671 | AA45: =(Z45*U29)+Z45 -> 374.4490044 | AB45: =(Z45*U29)+Z45 -> 374.4490044 | AC45: =SUM(AA45) -> 374.4490044
A46: MO+DPL A12 | B46: 379.05 | N46: 1 | O46: 379.05 | Q46: =(B46*U29)+B46 -> 386.631 | R46: =(B46*U29)+B46 -> 386.631 | S46: =(R46*U29)+R46 -> 394.36362 | T46: =(R46*U29)+R46 -> 394.36362 | U46: =(T46*U29)+T46 -> 402.2508924 | V46: =(T46*U29)+T46 -> 402.2508924 | W46: =(V46*U29)+V46 -> 410.2959102 | X46: =(V46*U29)+V46 -> 410.2959102 | Y46: =(X46*U29)+X46 -> 418.5018285 | Z46: =(X46*U29)+X46 -> 418.5018285 | AA46: =(Z46*U29)+Z46 -> 426.871865 | AB46: =(Z46*U29)+Z46 -> 426.871865 | AC46: =SUM(AB46) -> 426.871865
A47: courroies | B47: 50 | D47: 1 | F47: 1 | H47: 1 | I47: 0 | J47: 1 | K47: 0 | L47: 1 | M47: 0 | N47: 1 | O47: 300 | Q47: =(B47*U29)+B47 -> 51 | R47: =(B47*U29)+B47 -> 51 | S47: =(R47*U29)+R47 -> 52.02 | T47: =(R47*U29)+R47 -> 52.02 | U47: =(T47*U29)+T47 -> 53.0604 | V47: =(T47*U29)+T47 -> 53.0604 | W47: =(V47*U29)+V47 -> 54.121608 | X47: =(V47*U29)+V47 -> 54.121608 | Y47: =(X47*U29)+X47 -> 55.20404016 | Z47: =(X47*U29)+X47 -> 55.20404016 | AA47: =(Z47*U29)+Z47 -> 56.30812096 | AB47: =(Z47*U29)+Z47 -> 56.30812096 | AC47: =SUM(AB47,Z47,X47,V47,T47,R47) -> 321.7141691
A48: recyclage | B48: 4.5 | C48: 1 | D48: 1 | E48: 1 | F48: 1 | G48: 1 | H48: 1 | I48: 1 | J48: 1 | K48: 1 | L48: 1 | M48: 1 | N48: 1 | O48: =SUM(B48)*(C48+D48+E48+F48+G48+H48+I48+J48+K48+L48+M48+N48) -> 54 | Q48: =(B48*U29)+B48 -> 4.59 | R48: =(B48*U29)+B48 -> 4.59 | S48: =(R48*U29)+R48 -> 4.6818 | T48: =(R48*U29)+R48 -> 4.6818 | U48: =(T48*U29)+T48 -> 4.775436 | V48: =(T48*U29)+T48 -> 4.775436 | W48: =(V48*U29)+V48 -> 4.87094472 | X48: =(V48*U29)+V48 -> 4.87094472 | Y48: =(X48*U29)+X48 -> 4.968363614 | Z48: =(X48*U29)+X48 -> 4.968363614 | AA48: =(Z48*U29)+Z48 -> 5.067730887 | AB48: =(Z48*U29)+Z48 -> 5.067730887 | AC48: =SUM(Q48:AB48) -> 57.90855044
O49: =SUM(O31:O48) -> 9358.8 | AC49: =SUM(AC31:AC48) -> 10052.99653
AC50: =AC49/12 -> 837.7497107
O51: =O49/12 -> 779.9 | Q51: =SUM(Q31,Q34:Q35,Q48) -> 542.334 | R51: =SUM(R31:R32,R34,R36,R47:R48) -> 913.155 | S51: =SUM(S31,S37,S48) -> 473.06988 | T51: =SUM(T31:T34,T38,T47:T48) -> 1289.565396 | U51: =SUM(U31,U39,U48) -> 482.5312776 | V51: =SUM(V31:V32,V34,V40,V47:V48) -> 1033.393738 | W51: =SUM(W31,W41,W48) -> 492.1819032 | X51: =SUM(X31:X34,X42,X47:X48) -> 1341.663838 | Y51: =SUM(Y31,Y43,Y48) -> 502.0255412 | Z51: =SUM(Z31:Z32,Z34,Z44,Z47:Z48) -> 1075.142845 | AA51: =SUM(AA31,AA45,AA48) -> 512.066052 | AB51: =SUM(AB31:AB34,AB46:AB48) -> 1395.867057 | AC51: =SUM(Q51:AB51) -> 10052.99653
A53: FORMULE: S=100*((1.02^15)-1)/(1.02-1) | AC53: =SUM(Q51:AB51)/12 -> 837.7497107
A54: pourcentage aug | B54: années
A55: 1.03 | B55: 6 | D55: montant de la maintenance
E56: =AC53*((A55^B55)-1)/(A55-1)/B55 -> 903.1514182
A58: L15 à L22 RS
A59: Pour 2000h/AN
B61: PV | N61: evolution du prix 2%/an | P61: 0
B62: prix | C62: année 1 | D62: année 2 | E62: année 3 | F62: année 4 | G62: année 5 | H62: année 6 | J62: Total An 1 | L62: Total An 1 | M62: Total An 2 | N62: Total An 3 | O62: Total An 4 | P62: Total An 5 | Q62: Total An 6
A63: COM CK2100-1 | B63: 114.8 | C63: 1 | D63: 1 | E63: 1 | F63: 1 | G63: 1 | H63: 1 | J63: =B63*(C63+D63+E63+F63+G63+H63) -> 688.8 | L63: =(B63*P61)+B63 -> 114.8 | M63: =(L63*P61)+L63 -> 114.8 | N63: =(M63*P61)+M63 -> 114.8 | O63: =(N63*P61)+N63 -> 114.8 | P63: =(O63*P61)+O63 -> 114.8 | Q63: =(P63*P61)+P63 -> 114.8 | R63: =SUM(L63:Q63) -> 688.8 | T63: 3 Maintenances (garantie 4 ans)
A64: com CK4100-252-RS | B64: 450.5 | D64: 1 | F64: 1 | H64: 1 | J64: =B64*(C64+D64+E64+F64+G64+H64) -> 1351.5 | L64: =(B64*P61)+B64 -> 450.5 | M64: =(L64*P61)+L64 -> 450.5 | N64: =(M64*P61)+M64 -> 450.5 | O64: =(N64*P61)+N64 -> 450.5 | P64: =(O64*P61)+O64 -> 450.5 | Q64: =(P64*P61)+P64 -> 450.5 | R64: =M64+O64+Q64 -> 1351.5
A65: COM CK8100-2 | B65: 259.2 | F65: 1 | J65: =B65*(C65+D65+E65+F65+G65+H65) -> 259.2 | L65: =(B65*P61)+B65 -> 259.2 | M65: =(L65*P61)+L65 -> 259.2 | N65: =(M65*P61)+M65 -> 259.2 | O65: =(N65*P61)+N65 -> 259.2 | P65: =(O65*P61)+O65 -> 259.2 | Q65: =(P65*P61)+P65 -> 259.2 | R65: =SUM(O65) -> 259.2 | T65: =SUM(L77:N77)/3 -> 711.15
A66: COM SCWO4000-5 | B66: 77 | C66: 1 | D66: 2 | F66: 2 | H66: 2 | J66: =B66*(C66+D66+F66+H66) -> 539 | L66: =(B66*P61)+B66 -> 77 | M66: =(L66*P61)+L66*D66 -> 154 | N66: =(M66*P61)+M66 -> 154 | O66: =(N66*P61)+N66 -> 154 | P66: =(O66*P61)+O66 -> 154 | Q66: =(P66*P61)+P66 -> 154 | R66: =SUM(L66+M66+O66,Q66) -> 539
A67: MO+DPL A1 | B67: 332.5 | C67: 1 | J67: =B67*(C67+D67+E67+F67+G67+H67) -> 332.5 | L67: =(B67*P61)+B67 -> 332.5 | M67: =(L67*P61)+L67 -> 332.5 | N67: =(M67*P61)+M67 -> 332.5 | O67: =(N67*P61)+N67 -> 332.5 | P67: =(O67*P61)+O67 -> 332.5 | Q67: =(P67*P61)+P67 -> 332.5 | R67: =SUM(L67) -> 332.5 | T67: 5 Maintenances (garantie6 ans)
A68: MO+DPL A2 | B68: 379.05 | D68: 1 | J68: 379.05 | L68: =(B68*P61)+B68 -> 379.05 | M68: =(L68*P61)+L68 -> 379.05 | N68: =(M68*P61)+M68 -> 379.05 | O68: =(N68*P61)+N68 -> 379.05 | P68: =(O68*P61)+O68 -> 379.05 | Q68: =(P68*P61)+P68 -> 379.05 | R68: =SUM(M68) -> 379.05
A69: MO+DPL A3 | B69: 332.5 | E69: 1 | J69: 332.5 | L69: =(B69*P61)+B69 -> 332.5 | M69: =(L69*P61)+L69 -> 332.5 | N69: =(M69*P61)+M69 -> 332.5 | O69: =(N69*P61)+N69 -> 332.5 | P69: =(O69*P61)+O69 -> 332.5 | Q69: =(P69*P61)+P69 -> 332.5 | R69: =SUM(N69) -> 332.5 | T69: =SUM(L77:P77)/5 -> 799.46
A70: MO+DPL A4 | B70: 379.05 | F70: 1 | J70: 379.05 | L70: =(B70*P61)+B70 -> 379.05 | M70: =(L70*P61)+L70 -> 379.05 | N70: =(M70*P61)+M70 -> 379.05 | O70: =(N70*P61)+N70 -> 379.05 | P70: =(O70*P61)+O70 -> 379.05 | Q70: =(P70*P61)+P70 -> 379.05 | R70: =SUM(O70) -> 379.05
A71: MO+DPL A5 | B71: 332.5 | G71: 1 | J71: 332.5 | L71: =(B71*P61)+B71 -> 332.5 | M71: =(L71*P61)+L71 -> 332.5 | N71: =(M71*P61)+M71 -> 332.5 | O71: =(N71*P61)+N71 -> 332.5 | P71: =(O71*P61)+O71 -> 332.5 | Q71: =(P71*P61)+P71 -> 332.5 | R71: =SUM(P71) -> 332.5
A72: MO+DPL A6 | B72: 379.05 | H72: 1 | J72: 379.05 | L72: =(B72*P61)+B72 -> 379.05 | M72: =(L72*P61)+L72 -> 379.05 | N72: =(M72*P61)+M72 -> 379.05 | O72: =(N72*P61)+N72 -> 379.05 | P72: =(O72*P61)+O72 -> 379.05 | Q72: =(P72*P61)+P72 -> 379.05 | R72: =SUM(Q72) -> 379.05
A73: courroies | B73: 50 | D73: 1 | F73: 1 | H73: 1 | J73: 150 | L73: =(B73*P61)+B73 -> 50 | M73: =(L73*P61)+L73 -> 50 | N73: =(M73*P61)+M73 -> 50 | O73: =(N73*P61)+N73 -> 50 | P73: =(O73*P61)+O73 -> 50 | Q73: =(P73*P61)+P73 -> 50 | R73: =SUM(M73,O73,Q73) -> 150
A74: recyclage | B74: 4.5 | C74: 1 | D74: 1 | E74: 1 | F74: 1 | G74: 1 | H74: 1 | J74: =SUM(B74)*(C74+D74+E74+F74+G74+H74) -> 27 | L74: =(B74*P61)+B74 -> 4.5 | M74: =(L74*P61)+L74 -> 4.5 | N74: =(M74*P61)+M74 -> 4.5 | O74: =(N74*P61)+N74 -> 4.5 | P74: =(O74*P61)+O74 -> 4.5 | Q74: =(P74*P61)+P74 -> 4.5 | R74: =SUM(L74:Q74) -> 27
J75: =SUM(J63:J74) -> 5150.15 | L75: =J75/6 -> 858.3583333 | R75: =SUM(R63:R74) -> 5150.15
R76: =R75/6 -> 858.3583333
L77: =SUM(L63,L66,L67,L74) -> 528.8 | M77: =SUM(M63:M64,M66,M68,M73,M74) -> 1152.85 | N77: =SUM(N63,N69,N74) -> 451.8 | O77: =SUM(O63:O66,O70,O73:O74) -> 1412.05 | P77: =SUM(P63,P71,P74) -> 451.8 | Q77: =SUM(Q63:Q64,Q66,Q72:Q74) -> 1152.85 | R77: =SUM(L77:Q77) -> 5150.15
R79: =SUM(L77:Q77)/6 -> 858.3583333
A80: FORMULE: S=100*((1.02^15)-1)/(1.02-1)
A81: pourcentage aug | B81: années
A82: 1.03 | B82: 6 | D82: montant de la maintenance
E83: =R79*((A82^B82)-1)/(A82-1)/B82 -> 925.3689213
A85: L15 à L22 RS
A86: Pour4000h/AN | B86: PV | C86: 1 année | E86: 2 année | G86: 3 année | I86: 4 année | K86: 5 année | M86: 6 année | S86: evolution du prix 2%/an | U86: 0
B87: prix | C87: 6 mois | D87: 12 mois | E87: 18 mois | F87: 24 mois | G87: 30 mois | H87: 36 mois | I87: 42 mois | J87: 48 mois | K87: 54 mois | L87: 60 mois | M87: 66 mois | N87: 72 mois | O87: Total Année N | Q87: Total M6 | R87: Total M12 | S87: Total M18 | T87: Total M24 | U87: Total M30 | V87: Total M36 | W87: Total M42 | X87: Total M48 | Y87: Total M54 | Z87: Total M60 | AA87: Total M66 | AB87: Total M72
A88: COM CK2100-1 | B88: 117.7 | C88: 1 | D88: 1 | E88: 1 | F88: 1 | G88: 1 | H88: 1 | I88: 1 | J88: 1 | K88: 1 | L88: 1 | M88: 1 | N88: 1 | O88: =B88*(C88+D88+E88+F88+G88+H88+I88+J88+K88+L88+M88+N88) -> 1412.4 | P88: COM CK2076-1 | Q88: =(B88*U86)+B88 -> 117.7 | R88: =(B88*U86)+B88 -> 117.7 | S88: =(R88*U86)+R88 -> 117.7 | T88: =(R88*U86)+R88 -> 117.7 | U88: =(T88*U86)+T88 -> 117.7 | V88: =(T88*U86)+T88 -> 117.7 | W88: =(V88*U86)+V88 -> 117.7 | X88: =(V88*U86)+V88 -> 117.7 | Y88: =(X88*U86)+X88 -> 117.7 | Z88: =(X88*U86)+X88 -> 117.7 | AA88: =(Z88*U86)+Z88 -> 117.7 | AB88: =(AA88*AA86)+AA88 -> 117.7 | AC88: =SUM(Q88:AB88) -> 1412.4 | AE88: 5 Maintenances sur 2ans1/2 ans (garantie 3ans)
A89: com CK4100-252-RS | B89: 450.5 | D89: 1 | F89: 1 | H89: 1 | J89: 1 | L89: 1 | N89: 1 | O89: =B89*(C89+D89+E89+F89+G89+H89+I89+J89+K89+L89+M89+N89) -> 2703 | P89: com CK4076-335-RS | Q89: =(B89*U86)+B89 -> 450.5 | R89: =(B89*U86)+B89 -> 450.5 | S89: =(R89*U86)+R89 -> 450.5 | T89: =(R89*U86)+R89 -> 450.5 | U89: =(T89*U86)+T89 -> 450.5 | V89: =(T89*U86)+T89 -> 450.5 | W89: =(V89*U86)+V89 -> 450.5 | X89: =(W89*AA86)+W89 -> 450.5 | Y89: =(X89*U86)+X89 -> 450.5 | Z89: =(Y89*AA86)+Y89 -> 450.5 | AA89: =(Z89*U86)+Z89 -> 450.5 | AB89: =(AA89*AA86)+AA89 -> 450.5 | AC89: =SUM(R89,T89,V89,X89,Z89,AB89) -> 2703 | AE89: =SUM(Q108:U108)/5 -> 756.16
A90: COM CK8100-2 | B90: 259.2 | F90: 1 | J90: 1 | L90: 0 | N90: 1 | O90: =B90*(C90+D90+E90+F90+G90+H90+I90+J90+K90+L90+M90+N90) -> 777.6 | P90: COM CK8076-2 | Q90: =(B90*U86)+B90 -> 259.2 | R90: =(B90*U86)+B90 -> 259.2 | S90: =(R90*U86)+R90 -> 259.2 | T90: =(R90*U86)+R90 -> 259.2 | U90: =(T90*U86)+T90 -> 259.2 | V90: =(T90*U86)+T90 -> 259.2 | W90: =(V90*U86)+V90 -> 259.2 | X90: =(V90*U86)+V90 -> 259.2 | Y90: =(X90*U86)+X90 -> 259.2 | Z90: =(X90*U86)+X90 -> 259.2 | AA90: =(Z90*U86)+Z90 -> 259.2 | AB90: =(AA90*AA86)+AA90 -> 259.2 | AC90: =SUM(T90,X90,AB90) -> 777.6
A91: COM SCWO4000-5 | B91: 77 | C91: 0 | D91: 2 | F91: 2 | H91: 2 | J91: 2 | L91: 2 | N91: 2 | O91: =B91*(C91+D91+F91+H91+J91+L91+N91) -> 924 | P91: COM SCWO4000-5 | Q91: =(B91*U86)+B91 -> 77 | R91: =(B91*U86)+B91 -> 77 | S91: =(R91*U86)+R91 -> 77 | T91: =(R91*U86)+R91 -> 77 | U91: =(T91*U86)+T91 -> 77 | V91: =(T91*U86)+T91 -> 77 | W91: =(V91*U86)+V91 -> 77 | X91: =(V91*U86)+V91 -> 77 | Y91: =(X91*U86)+X91 -> 77 | Z91: =(X91*U86)+X91 -> 77 | AA91: =(Z91*U86)+Z91 -> 77 | AB91: =(Z91*U86)+Z91 -> 77 | AC91: =SUM(R91,T91,V91,X91,Z91,AB91) -> 462
A92: MO+DPL A1 | B92: 332.5 | C92: 1 | O92: =B92*(C92+D92+E92+F92+G92+H92) -> 332.5 | P92: MO+DPL A1 | Q92: =(B92*U86)+B92 -> 332.5 | R92: =(B92*U86)+B92 -> 332.5 | S92: =(R92*U86)+R92 -> 332.5 | T92: =(R92*U86)+R92 -> 332.5 | U92: =(T92*U86)+T92 -> 332.5 | V92: =(T92*U86)+T92 -> 332.5 | W92: =(V92*U86)+V92 -> 332.5 | X92: =(W92*V86)+W92 -> 332.5 | Y92: =(X92*U86)+X92 -> 332.5 | Z92: =(Y92*V86)+Y92 -> 332.5 | AA92: =(Z92*U86)+Z92 -> 332.5 | AB92: =(AA92*V86)+AA92 -> 332.5 | AC92: =SUM(Q92) -> 332.5 | AE92: 11 Maintenances sur 5ans1/2 ans (garantie6 ans)
A93: MO+DPL A2 | B93: 379.05 | D93: 1 | O93: 379.05 | P93: MO+DPL A2 | Q93: =(B93*U86)+B93 -> 379.05 | R93: =(B93*U86)+B93 -> 379.05 | S93: =(R93*U86)+R93 -> 379.05 | T93: =(R93*U86)+R93 -> 379.05 | U93: =(T93*U86)+T93 -> 379.05 | V93: =(T93*U86)+T93 -> 379.05 | W93: =(V93*U86)+V93 -> 379.05 | X93: =(V93*U86)+V93 -> 379.05 | Y93: =(X93*U86)+X93 -> 379.05 | Z93: =(X93*U86)+X93 -> 379.05 | AA93: =(Z93*U86)+Z93 -> 379.05 | AB93: =(Z93*U86)+Z93 -> 379.05 | AC93: =SUM(R93) -> 379.05
A94: MO+DPL A3 | B94: 332.5 | E94: 1 | O94: 332.5 | P94: MO+DPL A3 | Q94: =(B94*U86)+B94 -> 332.5 | R94: =(B94*U86)+B94 -> 332.5 | S94: =(R94*U86)+R94 -> 332.5 | T94: =(R94*U86)+R94 -> 332.5 | U94: =(T94*U86)+T94 -> 332.5 | V94: =(T94*U86)+T94 -> 332.5 | W94: =(V94*U86)+V94 -> 332.5 | X94: =(V94*U86)+V94 -> 332.5 | Y94: =(X94*U86)+X94 -> 332.5 | Z94: =(X94*U86)+X94 -> 332.5 | AA94: =(Z94*U86)+Z94 -> 332.5 | AB94: =(Z94*U86)+Z94 -> 332.5 | AC94: =SUM(S94) -> 332.5 | AE94: =SUM(Q108:AA108)/11 -> 785.4454545
A95: MO+DPL A4 | B95: 379.05 | F95: 1 | O95: 379.05 | P95: MO+DPL A4 | Q95: =(B95*U86)+B95 -> 379.05 | R95: =(B95*U86)+B95 -> 379.05 | S95: =(R95*U86)+R95 -> 379.05 | T95: =(R95*U86)+R95 -> 379.05 | U95: =(T95*U86)+T95 -> 379.05 | V95: =(T95*U86)+T95 -> 379.05 | W95: =(V95*U86)+V95 -> 379.05 | X95: =(V95*U86)+V95 -> 379.05 | Y95: =(X95*U86)+X95 -> 379.05 | Z95: =(X95*U86)+X95 -> 379.05 | AA95: =(Z95*U86)+Z95 -> 379.05 | AB95: =(Z95*U86)+Z95 -> 379.05 | AC95: =SUM(T95) -> 379.05
A96: MO+DPL A5 | B96: 332.5 | G96: 1 | O96: 332.5 | P96: MO+DPL A5 | Q96: =(B96*U86)+B96 -> 332.5 | R96: =(B96*U86)+B96 -> 332.5 | S96: =(R96*U86)+R96 -> 332.5 | T96: =(R96*U86)+R96 -> 332.5 | U96: =(T96*U86)+T96 -> 332.5 | V96: =(T96*U86)+T96 -> 332.5 | W96: =(V96*U86)+V96 -> 332.5 | X96: =(V96*U86)+V96 -> 332.5 | Y96: =(X96*U86)+X96 -> 332.5 | Z96: =(X96*U86)+X96 -> 332.5 | AA96: =(Z96*U86)+Z96 -> 332.5 | AB96: =(Z96*U86)+Z96 -> 332.5 | AC96: =SUM(U96) -> 332.5
A97: MO+DPL A6 | B97: 379.05 | H97: 1 | O97: 379.05 | P97: MO+DPL A6 | Q97: =(B97*U86)+B97 -> 379.05 | R97: =(B97*U86)+B97 -> 379.05 | S97: =(R97*U86)+R97 -> 379.05 | T97: =(R97*U86)+R97 -> 379.05 | U97: =(T97*U86)+T97 -> 379.05 | V97: =(T97*U86)+T97 -> 379.05 | W97: =(V97*U86)+V97 -> 379.05 | X97: =(V97*U86)+V97 -> 379.05 | Y97: =(X97*U86)+X97 -> 379.05 | Z97: =(X97*U86)+X97 -> 379.05 | AA97: =(Z97*U86)+Z97 -> 379.05 | AB97: =(Z97*U86)+Z97 -> 379.05 | AC97: =SUM(V97) -> 379.05
A98: MO+DPL A7 | B98: 332.5 | I98: 1 | O98: =B98*(C98+D98+E98+F98+G98+H98+I98) -> 332.5 | P98: MO+DPL A7 | Q98: =(B98*U86)+B98 -> 332.5 | R98: =(B98*U86)+B98 -> 332.5 | S98: =(R98*U86)+R98 -> 332.5 | T98: =(R98*U86)+R98 -> 332.5 | U98: =(T98*U86)+T98 -> 332.5 | V98: =(T98*U86)+T98 -> 332.5 | W98: =(V98*U86)+V98 -> 332.5 | X98: =(V98*U86)+V98 -> 332.5 | Y98: =(X98*U86)+X98 -> 332.5 | Z98: =(X98*U86)+X98 -> 332.5 | AA98: =(Z98*U86)+Z98 -> 332.5 | AB98: =(Z98*U86)+Z98 -> 332.5 | AC98: =SUM(W98) -> 332.5
A99: MO+DPL A8 | B99: 379.05 | J99: 1 | O99: =B99*(C99+D99+E99+F99+G99+H99+I99+J99+K99+L99+M99+N99) -> 379.05 | P99: MO+DPL A8 | Q99: =(B99*U86)+B99 -> 379.05 | R99: =(B99*U86)+B99 -> 379.05 | S99: =(R99*U86)+R99 -> 379.05 | T99: =(R99*U86)+R99 -> 379.05 | U99: =(T99*U86)+T99 -> 379.05 | V99: =(T99*U86)+T99 -> 379.05 | W99: =(V99*U86)+V99 -> 379.05 | X99: =(V99*U86)+V99 -> 379.05 | Y99: =(X99*U86)+X99 -> 379.05 | Z99: =(X99*U86)+X99 -> 379.05 | AA99: =(Z99*U86)+Z99 -> 379.05 | AB99: =(Z99*U86)+Z99 -> 379.05 | AC99: =SUM(X99) -> 379.05
A100: MO+DPL A9 | B100: 332.05 | K100: 1 | O100: 332.05 | P100: MO+DPL A9 | Q100: =(B100*U86)+B100 -> 332.05 | R100: =(B100*U86)+B100 -> 332.05 | S100: =(R100*U86)+R100 -> 332.05 | T100: =(R100*U86)+R100 -> 332.05 | U100: =(T100*U86)+T100 -> 332.05 | V100: =(T100*U86)+T100 -> 332.05 | W100: =(V100*U86)+V100 -> 332.05 | X100: =(V100*U86)+V100 -> 332.05 | Y100: =(X100*U86)+X100 -> 332.05 | Z100: =(X100*U86)+X100 -> 332.05 | AA100: =(Z100*U86)+Z100 -> 332.05 | AB100: =(Z100*U86)+Z100 -> 332.05 | AC100: =SUM(Y100) -> 332.05
A101: MO+DPL A10 | B101: 379.05 | L101: 1 | O101: 379.05 | P101: MO+DPL A10 | Q101: =(B101*U86)+B101 -> 379.05 | R101: =(B101*U86)+B101 -> 379.05 | S101: =(R101*U86)+R101 -> 379.05 | T101: =(R101*U86)+R101 -> 379.05 | U101: =(T101*U86)+T101 -> 379.05 | V101: =(T101*U86)+T101 -> 379.05 | W101: =(V101*U86)+V101 -> 379.05 | X101: =(V101*U86)+V101 -> 379.05 | Y101: =(X101*U86)+X101 -> 379.05 | Z101: =(X101*U86)+X101 -> 379.05 | AA101: =(Z101*U86)+Z101 -> 379.05 | AB101: =(Z101*U86)+Z101 -> 379.05 | AC101: =SUM(Z101) -> 379.05
A102: MO+DPL A11 | B102: 332.5 | M102: 1 | O102: 332.5 | P102: MO+DPL A11 | Q102: =(B102*U86)+B102 -> 332.5 | R102: =(B102*U86)+B102 -> 332.5 | S102: =(R102*U86)+R102 -> 332.5 | T102: =(R102*U86)+R102 -> 332.5 | U102: =(T102*U86)+T102 -> 332.5 | V102: =(T102*U86)+T102 -> 332.5 | W102: =(V102*U86)+V102 -> 332.5 | X102: =(V102*U86)+V102 -> 332.5 | Y102: =(X102*U86)+X102 -> 332.5 | Z102: =(X102*U86)+X102 -> 332.5 | AA102: =(Z102*U86)+Z102 -> 332.5 | AB102: =(Z102*U86)+Z102 -> 332.5 | AC102: =SUM(AA102) -> 332.5
A103: MO+DPL A12 | B103: 379.05 | N103: 1 | O103: 379.05 | P103: MO+DPL A12 | Q103: =(B103*U86)+B103 -> 379.05 | R103: =(B103*U86)+B103 -> 379.05 | S103: =(R103*U86)+R103 -> 379.05 | T103: =(R103*U86)+R103 -> 379.05 | U103: =(T103*U86)+T103 -> 379.05 | V103: =(T103*U86)+T103 -> 379.05 | W103: =(V103*U86)+V103 -> 379.05 | X103: =(V103*U86)+V103 -> 379.05 | Y103: =(X103*U86)+X103 -> 379.05 | Z103: =(X103*U86)+X103 -> 379.05 | AA103: =(Z103*U86)+Z103 -> 379.05 | AB103: =(Z103*U86)+Z103 -> 379.05 | AC103: =SUM(AB103) -> 379.05
A104: courroies | B104: 50 | D104: 1 | F104: 1 | H104: 1 | I104: 0 | J104: 1 | K104: 0 | L104: 1 | M104: 0 | N104: 1 | O104: 300 | P104: courroies | Q104: =(B104*U86)+B104 -> 50 | R104: =(B104*U86)+B104 -> 50 | S104: =(R104*U86)+R104 -> 50 | T104: =(R104*U86)+R104 -> 50 | U104: =(T104*U86)+T104 -> 50 | V104: =(T104*U86)+T104 -> 50 | W104: =(V104*U86)+V104 -> 50 | X104: =(V104*U86)+V104 -> 50 | Y104: =(X104*U86)+X104 -> 50 | Z104: =(X104*U86)+X104 -> 50 | AA104: =(Z104*U86)+Z104 -> 50 | AB104: =(Z104*U86)+Z104 -> 50 | AC104: =SUM(R104,T104,V104,X104,Z104,AB104) -> 300
A105: recyclage | B105: 4.5 | C105: 1 | D105: 1 | E105: 1 | F105: 1 | G105: 1 | H105: 1 | I105: 1 | J105: 1 | K105: 1 | L105: 1 | M105: 1 | N105: 1 | O105: =SUM(B105)*(C105+D105+E105+F105+G105+H105+I105+J105+K105+L105+M105+N105) -> 54 | P105: recyclage | Q105: =(B105*U86)+B105 -> 4.5 | R105: =(B105*U86)+B105 -> 4.5 | S105: =(R105*U86)+R105 -> 4.5 | T105: =(R105*U86)+R105 -> 4.5 | U105: =(T105*U86)+T105 -> 4.5 | V105: =(T105*U86)+T105 -> 4.5 | W105: =(V105*U86)+V105 -> 4.5 | X105: =(V105*U86)+V105 -> 4.5 | Y105: =(X105*U86)+X105 -> 4.5 | Z105: =(X105*U86)+X105 -> 4.5 | AA105: =(Z105*U86)+Z105 -> 4.5 | AB105: =(Z105*U86)+Z105 -> 4.5 | AC105: =SUM(Q105:AB105) -> 54
O106: =SUM(O88:O105) -> 10439.85 | Q106: =O106/6 -> 1739.975 | AC106: =SUM(AC88:AC105) -> 9977.85
AC107: =AC106/12 -> 831.4875
O108: =O106/12 -> 869.9875 | Q108: =SUM(Q88,Q92,Q105) -> 454.7 | R108: =SUM(R88:R89,R91,R93,R104:R105) -> 1078.75 | S108: =SUM(S88,S94,S105) -> 454.7 | T108: =SUM(T88:T91,T95,T104:T105) -> 1337.95 | U108: =SUM(U88,U96,U105) -> 454.7 | V108: =SUM(V88:V89,V91,V97,V104:V105) -> 1078.75 | W108: =SUM(W88,W98,W105) -> 454.7 | X108: =SUM(X88:X91,X99,X104:X105) -> 1337.95 | Y108: =SUM(Y88,Y100,Y105) -> 454.25 | Z108: =SUM(Z88:Z89,Z91,Z101,Z104:Z105) -> 1078.75 | AA108: =SUM(AA88,AA102,AA105) -> 454.7 | AB108: =SUM(AB88:AB91,AB103:AB105) -> 1337.95 | AC108: =SUM(Q108:AB108) -> 9977.85
A109: FORMULE: S=100*((1.02^15)-1)/(1.02-1)
A110: pourcentage aug | B110: années | AC110: =SUM(Q108:AB108)/12 -> 831.4875
A111: 1.03 | B111: 6 | D111: montant de la maintenance
E112: =AC110*((A111^B111)-1)/(A111-1)/B111 -> 896.4003273
A114: L15 à L22
A115: Pour6000h/AN | B115: PV | S115: evolution du prix 2%/an | U115: 0
B116: prix | C116: 4 mois | D116: 8 mois | E116: 12 mois | F116: 16 mois | G116: 20 mois | H116: 24 mois | I116: 28 mois | J116: 32 mois | K116: 36 mois | L116: 40 mois | M116: 44 mois | N116: 48 mois | O116: 52 mois | P116: 56 mois | Q116: 60 mois | R116: 64 mois | S116: 68 mois | T116: 72 mois | U116: Total Année N | W116: Total M4 | X116: Total M8 | Y116: Total M12 | Z116: Total M16 | AA116: Total M20 | AB116: Total M24 | AC116: Total M28 | AD116: Total M32 | AE116: Total M36 | AF116: Total M40 | AG116: Total M44 | AH116: Total M48 | AI116: Total M52 | AJ116: Total M56 | AK116: Total M60 | AL116: Total M64 | AM116: Total M68 | AN116: Total M72
A117: COM CK2100-1 | B117: 114.8 | C117: 1 | D117: 1 | E117: 1 | F117: 1 | G117: 1 | H117: 1 | I117: 1 | J117: 1 | K117: 1 | L117: 1 | M117: 1 | N117: 1 | O117: 1 | P117: 1 | Q117: 1 | R117: 1 | S117: 1 | T117: 1 | U117: =B117*(C117+D117+E117+F117+G117+H117+I117+J117+K117+L117+M117+N117+O117+P117+Q117+R117+S117+T117) -> 2066.4 | W117: =(B117*$U$115)+B117 -> 114.8 | X117: =(B117*$U$115)+B117 -> 114.8 | Y117: =(X117*$U$115)+X117 -> 114.8 | Z117: =(X117*$U$115)+X117 -> 114.8 | AA117: =(X117*$U$115)+X117 -> 114.8 | AB117: =(AA117*U$115)+AA117 -> 114.8 | AC117: =(AB117*$V$115)+AB117 -> 114.8 | AD117: =(AC117*W$115)+AC117 -> 114.8 | AE117: =(AD117*$U$115)+AD117 -> 114.8 | AF117: =(AD117*$U$115)+AD117 -> 114.8 | AG117: =(AD117*$U$115)+AD117 -> 114.8 | AH117: =(AG117*$U$115)+AG117 -> 114.8 | AI117: =(AG117*$U$115)+AG117 -> 114.8 | AJ117: =(AG117*$U$115)+AG117 -> 114.8 | AK117: =(AJ117*$U$115)+AJ117 -> 114.8 | AL117: =(AJ117*$U$115)+AJ117 -> 114.8 | AM117: =(AJ117*$U$115)+AJ117 -> 114.8 | AN117: =(AM117*$U$115)+AM117 -> 114.8 | AO117: =SUM(W117:AN117) -> 2066.4
A118: COM A10525274 | B118: 386 | D118: 1 | F118: 1 | H118: 1 | J118: 1 | L118: 1 | N118: 1 | O118: 0 | P118: 1 | Q118: 0 | R118: 1 | S118: 0 | T118: 1 | U118: 3474 | W118: =(B118*$U$115)+B118 -> 386 | X118: =(B118*$U$115)+B118 -> 386 | Y118: =(X118*$U$115)+X118 -> 386 | Z118: =(X118*$U$115)+X118 -> 386 | AA118: =(Y118*V116)+Y118 -> 386 | AB118: =(AA118*U$115)+AA118 -> 386 | AC118: =(AB118*$V$115)+AB118 -> 386 | AD118: 386 | AE118: =(AD118*$U$115)+AD118 -> 386 | AF118: =(AD118*$U$115)+AD118 -> 386 | AG118: =(AE118*$U$115)+AE118 -> 386 | AH118: =(AG118*$U$115)+AG118 -> 386 | AI118: 386 | AJ118: 386 | AK118: 386 | AL118: =(AJ118*$U$115)+AJ118 -> 386 | AM118: =(AJ118*$U$115)+AJ118 -> 386 | AN118: =(AM118*$U$115)+AM118 -> 386 | AO118: =SUM(X118,Z118,AB118,AD118,AF118,AH118,AJ118,AL118,AN118) -> 3474 | AQ118: 5 Maintenances sur 2ans1/2 ans (garantie 3ans)
A119: COM CK8100-2 | B119: 259.2 | F119: 1 | J119: 1 | L119: 0 | N119: 1 | R119: 1 | U119: 1036.8 | W119: 259.2 | X119: 259.2 | Y119: 259.2 | Z119: 259.2 | AA119: 259.2 | AB119: 259.2 | AC119: 259.2 | AD119: 259.2 | AE119: 259.2 | AF119: 259.2 | AG119: 259.2 | AH119: 259.2 | AI119: 259.2 | AJ119: 259.2 | AK119: 259.2 | AL119: 259.2 | AM119: 259.2 | AN119: 259.2 | AO119: =SUM(Z119,AD119,AH119,AL119) -> 1036.8
A120: COM SCWO4000-5 | B120: 77 | C120: 1 | D120: 1 | F120: 2 | H120: 2 | J120: 2 | L120: 2 | N120: 2 | P120: 2 | R120: 2 | T120: 2 | U120: 1386 | W120: 77 | X120: 77 | Y120: 77 | Z120: =(X120*$U$115)+X120*2 -> 154 | AA120: 77 | AB120: =(AA120*U$115)+AA120*2 -> 154 | AC120: 154 | AD120: =(AC120*W$115)+AC120 -> 154 | AE120: 154 | AF120: =(AD120*$U$115)+AD120 -> 154 | AG120: 154 | AH120: =(AG120*$U$115)+AG120 -> 154 | AI120: 154 | AJ120: =(AI120*$U$115)+AI120 -> 154 | AK120: 154 | AL120: 154 | AM120: 154 | AN120: 154 | AO120: =SUM(W120,X120,Z120,AB120,AD120,AF120,AH120,AJ120,AL120,AN120) -> 1386
A121: MO+DPL A1 | B121: 332.5 | C121: 1 | U121: 332.5 | W121: 332.5 | X121: 332.5 | Y121: 332.5 | Z121: 332.5 | AA121: 332.5 | AB121: 332.5 | AC121: 332.5 | AD121: 332.5 | AE121: 332.5 | AF121: 332.5 | AG121: 332.5 | AH121: 332.5 | AI121: 332.5 | AJ121: 332.5 | AK121: 332.5 | AL121: 332.5 | AM121: 332.5 | AN121: 332.5 | AO121: =SUM(W121) -> 332.5
A122: MO+DPL A2 | B122: 379.05 | D122: 1 | U122: 379.05 | W122: 379.05 | X122: 379.05 | Y122: 379.05 | Z122: 379.05 | AA122: 379.05 | AB122: 379.05 | AC122: 379.05 | AD122: 379.05 | AE122: 379.05 | AF122: 379.05 | AG122: 379.05 | AH122: 379.05 | AI122: 379.05 | AJ122: 379.05 | AK122: 379.05 | AL122: 379.05 | AM122: 379.05 | AN122: 379.05 | AO122: =SUM(X122) -> 379.05
A123: MO+DPL A3 | B123: 332.5 | E123: 1 | U123: 332.5 | W123: 332.5 | X123: 332.5 | Y123: 332.5 | Z123: 332.5 | AA123: 332.5 | AB123: 332.5 | AC123: 332.5 | AD123: 332.5 | AE123: 332.5 | AF123: 332.5 | AG123: 332.5 | AH123: 332.5 | AI123: 332.5 | AJ123: 332.5 | AK123: 332.5 | AL123: 332.5 | AM123: 332.5 | AN123: 332.5 | AO123: =SUM(Y123) -> 332.5
A124: MO+DPL A4 | B124: 379.05 | F124: 1 | U124: 379.05 | W124: 379.05 | X124: 379.05 | Y124: 379.05 | Z124: 379.05 | AA124: 379.05 | AB124: 379.05 | AC124: 379.05 | AD124: 379.05 | AE124: 379.05 | AF124: 379.05 | AG124: 379.05 | AH124: 379.05 | AI124: 379.05 | AJ124: 379.05 | AK124: 379.05 | AL124: 379.05 | AM124: 379.05 | AN124: 379.05 | AO124: =SUM(Z124) -> 379.05
A125: MO+DPL A5 | B125: 332.5 | G125: 1 | U125: 332.5 | W125: 332.5 | X125: 332.5 | Y125: 332.5 | Z125: 332.5 | AA125: 332.5 | AB125: 332.5 | AC125: 332.5 | AD125: 332.5 | AE125: 332.5 | AF125: 332.5 | AG125: 332.5 | AH125: 332.5 | AI125: 332.5 | AJ125: 332.5 | AK125: 332.5 | AL125: 332.5 | AM125: 332.5 | AN125: 332.5 | AO125: =SUM(AA125) -> 332.5
A126: MO+DPL A6 | B126: 379.05 | H126: 1 | U126: 379.05 | W126: 379.05 | X126: 379.05 | Y126: 379.05 | Z126: 379.05 | AA126: 379.05 | AB126: 379.05 | AC126: 379.05 | AD126: 379.05 | AE126: 379.05 | AF126: 379.05 | AG126: 379.05 | AH126: 379.05 | AI126: 379.05 | AJ126: 379.05 | AK126: 379.05 | AL126: 379.05 | AM126: 379.05 | AN126: 379.05 | AO126: =SUM(AB126) -> 379.05
A127: MO+DPL A7 | B127: 332.5 | I127: 1 | U127: 332.5 | W127: 332.5 | X127: 332.5 | Y127: 332.5 | Z127: 332.5 | AA127: 332.5 | AB127: 332.5 | AC127: 332.5 | AD127: 332.5 | AE127: 332.5 | AF127: 332.5 | AG127: 332.5 | AH127: 332.5 | AI127: 332.5 | AJ127: 332.5 | AK127: 332.5 | AL127: 332.5 | AM127: 332.5 | AN127: 332.5 | AO127: =SUM(AC127) -> 332.5
A128: MO+DPL A8 | B128: 379.05 | J128: 1 | U128: 379.05 | W128: 379.05 | X128: 379.05 | Y128: 379.05 | Z128: 379.05 | AA128: 379.05 | AB128: 379.05 | AC128: 379.05 | AD128: 379.05 | AE128: 379.05 | AF128: 379.05 | AG128: 379.05 | AH128: 379.05 | AI128: 379.05 | AJ128: 379.05 | AK128: 379.05 | AL128: 379.05 | AM128: 379.05 | AN128: 379.05 | AO128: =SUM(AD128) -> 379.05
A129: MO+DPL A9 | B129: 332.5 | K129: 1 | U129: 332.5 | W129: 332.5 | X129: 332.5 | Y129: 332.5 | Z129: 332.5 | AA129: 332.5 | AB129: 332.5 | AC129: 332.5 | AD129: 332.5 | AE129: 332.5 | AF129: 332.5 | AG129: 332.5 | AH129: 332.5 | AI129: 332.5 | AJ129: 332.5 | AK129: 332.5 | AL129: 332.5 | AM129: 332.5 | AN129: 332.5 | AO129: =SUM(AE129) -> 332.5
A130: MO+DPL A10 | B130: 379.05 | L130: 1 | U130: 379.05 | W130: 379.05 | X130: 379.05 | Y130: 379.05 | Z130: 379.05 | AA130: 379.05 | AB130: 379.05 | AC130: 379.05 | AD130: 379.05 | AE130: 379.05 | AF130: 379.05 | AG130: 379.05 | AH130: 379.05 | AI130: 379.05 | AJ130: 379.05 | AK130: 379.05 | AL130: 379.05 | AM130: 379.05 | AN130: 379.05 | AO130: =SUM(AF130) -> 379.05
A131: MO+DPL A11 | B131: 332.5 | M131: 1 | U131: 332.5 | W131: 332.5 | X131: 332.5 | Y131: 332.5 | Z131: 332.5 | AA131: 332.5 | AB131: 332.5 | AC131: 332.5 | AD131: 332.5 | AE131: 332.5 | AF131: 332.5 | AG131: 332.5 | AH131: 332.5 | AI131: 332.5 | AJ131: 332.5 | AK131: 332.5 | AL131: 332.5 | AM131: 332.5 | AN131: 332.5 | AO131: =SUM(AG131) -> 332.5
A132: MO+DPL A12 | B132: 379.05 | N132: 1 | U132: 379.05 | W132: 379.05 | X132: 379.05 | Y132: 379.05 | Z132: 379.05 | AA132: 379.05 | AB132: 379.05 | AC132: 379.05 | AD132: 379.05 | AE132: 379.05 | AF132: 379.05 | AG132: 379.05 | AH132: 379.05 | AI132: 379.05 | AJ132: 379.05 | AK132: 379.05 | AL132: 379.05 | AM132: 379.05 | AN132: 379.05 | AO132: =SUM(AH132) -> 379.05
A133: MO+DPL A13 | B133: 332.5 | O133: 1 | U133: 332.5 | W133: 332.5 | X133: 332.5 | Y133: 332.5 | Z133: 332.5 | AA133: 332.5 | AB133: 332.5 | AC133: 332.5 | AD133: =(AC133*W$115)+AC133 -> 332.5 | AE133: 332.5 | AF133: 332.5 | AG133: 332.5 | AH133: 332.5 | AI133: 332.5 | AJ133: 332.5 | AK133: 332.5 | AL133: 332.5 | AM133: 332.5 | AN133: 332.5 | AO133: =SUM(AI133) -> 332.5
A134: MO+DPL A14 | B134: 379.05 | P134: 1 | U134: 379.05 | W134: 379.05 | X134: 379.05 | Y134: 379.05 | Z134: 379.05 | AA134: 379.05 | AB134: 379.05 | AC134: 379.05 | AD134: 379.05 | AE134: 379.05 | AF134: 379.05 | AG134: 379.05 | AH134: 379.05 | AI134: 379.05 | AJ134: 379.05 | AK134: 379.05 | AL134: 379.05 | AM134: 379.05 | AN134: 379.05 | AO134: =SUM(AJ134) -> 379.05
A135: MO+DPL A15 | B135: 332.5 | Q135: 1 | U135: 332.5 | W135: 332.5 | X135: 332.5 | Y135: 332.5 | Z135: 332.5 | AA135: 332.5 | AB135: 332.5 | AC135: 332.5 | AD135: 332.5 | AE135: 332.5 | AF135: 332.5 | AG135: 332.5 | AH135: 332.5 | AI135: 332.5 | AJ135: 332.5 | AK135: 332.5 | AL135: 332.5 | AM135: 332.5 | AN135: 332.5 | AO135: =SUM(AK135) -> 332.5
A136: MO+DPL A16 | B136: 379.05 | R136: 1 | U136: 379.05 | W136: 379.05 | X136: 379.05 | Y136: 379.05 | Z136: 379.05 | AA136: 379.05 | AB136: 379.05 | AC136: 379.05 | AD136: 379.05 | AE136: 379.05 | AF136: 379.05 | AG136: 379.05 | AH136: 379.05 | AI136: 379.05 | AJ136: 379.05 | AK136: 379.05 | AL136: 379.05 | AM136: 379.05 | AN136: 379.05 | AO136: =SUM(AL136) -> 379.05
A137: MO+DPL A17 | B137: 332.5 | S137: 1 | U137: 332.5 | W137: 332.5 | X137: 332.5 | Y137: 332.5 | Z137: 332.5 | AA137: 332.5 | AB137: 332.5 | AC137: 332.5 | AD137: 332.5 | AE137: 332.5 | AF137: 332.5 | AG137: 332.5 | AH137: 332.5 | AI137: 332.5 | AJ137: 332.5 | AK137: 332.5 | AL137: 332.5 | AM137: 332.5 | AN137: 332.5 | AO137: =SUM(AM137) -> 332.5
A138: MO+DPL A18 | B138: 379.05 | T138: 1 | U138: 379.05 | W138: 379.05 | X138: 379.05 | Y138: 379.05 | Z138: 379.05 | AA138: 379.05 | AB138: 379.05 | AC138: 379.05 | AD138: 379.05 | AE138: 379.05 | AF138: 379.05 | AG138: 379.05 | AH138: 379.05 | AI138: 379.05 | AJ138: 379.05 | AK138: 379.05 | AL138: 379.05 | AM138: 379.05 | AN138: 379.05 | AO138: =SUM(AN138) -> 379.05
A139: courroies | B139: 50 | D139: 1 | F139: 1 | H139: 1 | I139: 0 | J139: 1 | K139: 0 | L139: 1 | M139: 0 | N139: 1 | O139: 0 | P139: 1 | R139: 1 | T139: 1 | U139: 450 | W139: 50 | X139: 50 | Y139: 50 | Z139: 50 | AA139: 50 | AB139: 50 | AC139: 50 | AD139: 50 | AE139: 50 | AF139: 50 | AG139: 50 | AH139: 50 | AI139: 50 | AJ139: 50 | AK139: 50 | AL139: 50 | AM139: 50 | AN139: 50 | AO139: =SUM(AN139,AL139,AJ139,AH139,AF139,AD139,AB139,Z139,X139) -> 450
A140: recyclage | B140: 4.5 | C140: 1 | D140: 1 | E140: 1 | F140: 1 | G140: 1 | H140: 1 | I140: 1 | J140: 1 | K140: 1 | L140: 1 | M140: 1 | N140: 1 | O140: 1 | P140: 1 | Q140: 1 | R140: 1 | S140: 1 | T140: 1 | U140: 81 | W140: 4.5 | X140: 4.5 | Y140: 4.5 | Z140: 4.5 | AA140: 4.5 | AB140: 4.5 | AC140: 4.5 | AD140: 4.5 | AE140: 4.5 | AF140: 4.5 | AG140: 4.5 | AH140: 4.5 | AI140: 4.5 | AJ140: 4.5 | AK140: 4.5 | AL140: 4.5 | AM140: 4.5 | AN140: 4.5 | AO140: =SUM(W140:AN140) -> 81
U141: =SUM(U117:U140) -> 14898.15 | W141: 0 | AO141: =SUM(AO117:AO140) -> 14898.15
AO142: =AO141/18 -> 827.675
W143: =SUM(W117,W120,W121,W140) -> 528.8 | X143: =SUM(X117:X118,X120,X122,X139:X140) -> 1011.35 | Y143: =SUM(Y117,Y123,Y140) -> 451.8 | Z143: =SUM(Z117:Z120,Z124,Z139:Z140) -> 1347.55 | AA143: =SUM(AA117,AA125,AA140) -> 451.8 | AB143: =SUM(AB117:AB118,AB120,AB126,AB139:AB140) -> 1088.35 | AC143: =SUM(AC117,AC127,AC140) -> 451.8 | AD143: =SUM(AD117:AD120,AD128,AD139:AD140) -> 1347.55 | AE143: =SUM(AE117,AE129,AE140) -> 451.8 | AF143: =SUM(AF117:AF118,AF120,AF130,AF139:AF140) -> 1088.35 | AG143: =SUM(AG117,AG131,AG140) -> 451.8 | AH143: =SUM(AH117:AH120,AH132,AH139:AH140) -> 1347.55 | AI143: =SUM(AI117,AI133,AI140) -> 451.8 | AJ143: =SUM(AJ117:AJ118,AJ120,AJ134,AJ139:AJ140) -> 1088.35 | AK143: =SUM(AK117,AK135,AK140) -> 451.8 | AL143: =SUM(AL117:AL120,AL136,AL139:AL140) -> 1347.55 | AM143: =SUM(AM117,AM137,AM140) -> 451.8 | AN143: =SUM(AN117:AN118,AN120,AN138:AN140) -> 1088.35 | AO143: =SUM(W143:AN143) -> 14898.15
A144: FORMULE: S=100*((1.02^15)-1)/(1.02-1)
A145: pourcentage aug | B145: années | AO145: =SUM(W143:AN143)/18 -> 827.675
A146: 1.03 | B146: 6 | D146: montant de la maintenance
E147: =AO145*((A146^B146)-1)/(A146-1)/B146 -> 892.2901918
A150: L15RS à L22RS | B150: PV | T150: evolution du prix 2%/an | V150: 1.02
A151: Pour6000h/AN | B151: prix2016 | C151: prix2017 | D151: prix2018 | E151: prix2019 | F151: prix2020 | G151: prix2021 | H151: prix2022 | J151: 4 mois | K151: 8 mois | L151: 12 mois | M151: 16 mois | N151: 20 mois | O151: 24 mois | P151: 28 mois | Q151: 32 mois | R151: 36 mois | S151: 40 mois | T151: 44 mois | U151: 48 mois | V151: 52 mois | W151: 56 mois | X151: 60 mois | Y151: 64 mois | Z151: 68 mois | AA151: 72 mois | AB151: Total Année N | AD151: Total M4 | AE151: Total M8 | AF151: Total M12 | AG151: Total M16 | AH151: Total M20 | AI151: Total M24 | AJ151: Total M28 | AK151: Total M32 | AL151: Total M36 | AM151: Total M40 | AN151: Total M44 | AO151: Total M48 | AP151: Total M52 | AQ151: Total M56 | AR151: Total M60 | AS151: Total M64 | AT151: Total M68 | AU151: Total M72
A152: COM CK2100-1 | B152: 111.7 | C152: =B152*$V$150 -> 113.934 | D152: 116.21268 | E152: 118.5369336 | F152: 120.9076723 | G152: =F152*$V$150 -> 123.3258257 | H152: 125.7923422 | J152: 1 | K152: 1 | L152: 1 | M152: 1 | N152: 1 | O152: 1 | P152: 1 | Q152: 1 | R152: 1 | S152: 1 | T152: 1 | U152: 1 | V152: 1 | W152: 1 | X152: 1 | Y152: 1 | Z152: 1 | AA152: 1 | AB152: =B152*(J152+K152+L152+M152+N152+O152+P152+Q152+R152+S152+T152+U152+V152+W152+X152+Y152+Z152+AA152) -> 2010.6 | AC152: 114.4 | AD152: =B152 -> 111.7 | AE152: =AD152 -> 111.7 | AF152: =C152 -> 113.934 | AG152: =C152 -> 113.934 | AH152: =C152 -> 113.934 | AI152: =D152 -> 116.21268 | AJ152: =D152 -> 116.21268 | AK152: =D152 -> 116.21268 | AL152: =E152 -> 118.5369336 | AM152: =E152 -> 118.5369336 | AN152: =E152 -> 118.5369336 | AO152: =F152 -> 120.9076723 | AP152: =F152 -> 120.9076723 | AQ152: =F152 -> 120.9076723 | AR152: =G152 -> 123.3258257 | AS152: =G152 -> 123.3258257 | AT152: =G152 -> 123.3258257 | AU152: =H152 -> 125.7923422 | AV152: =SUM(AD152:AU152) -> 2127.943677
A153: com CK4100-252-RS | B153: 438.6 | C153: =B153*$V$150 -> 447.372 | D153: 456.31944 | E153: 465.4458288 | F153: 474.7547454 | G153: 484.2498403 | H153: 493.9348371 | K153: 1 | M153: 1 | O153: 1 | Q153: 1 | S153: 1 | U153: 1 | V153: 0 | W153: 1 | X153: 0 | Y153: 1 | Z153: 0 | AA153: 1 | AB153: 3947.4 | AC153: 270 | AE153: =B153 -> 438.6 | AG153: =C153 -> 447.372 | AI153: =D153 -> 456.31944 | AK153: =D153 -> 456.31944 | AM153: =E153 -> 465.4458288 | AO153: =F153 -> 474.7547454 | AQ153: =F153 -> 474.7547454 | AS153: =G153 -> 484.2498403 | AU153: =H153 -> 493.9348371 | AV153: =SUM(AD153:AU153) -> 4191.750877
A154: COM CK8100-2 | B154: 252.3 | C154: 257.346 | D154: 262.49292 | E154: 267.7427784 | F154: 273.097634 | G154: 278.5595866 | H154: 284.1307784 | M154: 1 | Q154: 1 | S154: 0 | U154: 1 | Y154: 1 | AB154: 1009.2 | AC154: 239.1 | AG154: =C154 -> 257.346 | AK154: =D154 -> 262.49292 | AO154: =E154 -> 267.7427784 | AS154: =G154 -> 278.5595866 | AV154: 1066.141285
A155: COM SCWO4000-5 | B155: 73.1 | C155: 74.562 | D155: 76.05324 | E155: 77.5743048 | F155: 79.1257909 | G155: 80.70830671 | H155: 82.32247285 | J155: 1 | K155: 1 | M155: 2 | O155: 2 | Q155: 2 | S155: 2 | U155: 2 | W155: 2 | Y155: 2 | AA155: 2 | AB155: 1315.8 | AC155: 73.1 | AD155: =B155*J155 -> 73.1 | AE155: =B155*K155 -> 73.1 | AG155: =C155*M155 -> 149.124 | AI155: =D155*O155 -> 152.10648 | AK155: =D155*Q155 -> 152.10648 | AM155: =E155*S155 -> 155.1486096 | AO155: =F155*U155 -> 158.2515818 | AQ155: =F155*W155 -> 158.2515818 | AS155: =G155*Y155 -> 161.4166134 | AU155: =H155*AA155 -> 164.6449457 | AV155: 1397.250292
A156: MO+DPL A1 | B156: 332.5 | C156: 339.15 | D156: 345.933 | E156: 352.85166 | F156: 359.9086932 | G156: 367.1068671 | H156: 374.4490044 | J156: 1 | AB156: 332.5 | AC156: 250 | AD156: =B156 -> 332.5 | AV156: 332.5
A157: MO+DPL A2 | B157: 379.05 | C157: 386.631 | D157: 394.36362 | E157: 402.2508924 | F157: 410.2959102 | G157: 418.5018285 | H157: 426.871865 | K157: 1 | AB157: 379.05 | AC157: 285 | AE157: =B157 -> 379.05 | AV157: 379.05
A158: MO+DPL A3 | B158: 332.5 | C158: 339.15 | D158: 345.933 | E158: 352.85166 | F158: 359.9086932 | G158: 367.1068671 | H158: 374.4490044 | L158: 1 | AB158: 332.5 | AC158: 250 | AF158: =C158 -> 339.15 | AV158: 339.15
A159: MO+DPL A4 | B159: 379.05 | C159: 386.631 | D159: 394.36362 | E159: 402.2508924 | F159: 410.2959102 | G159: 418.5018285 | H159: 426.871865 | M159: 1 | AB159: 379.05 | AC159: 285 | AG159: =C159 -> 386.631 | AV159: 386.631
A160: MO+DPL A5 | B160: 332.5 | C160: 339.15 | D160: 345.933 | E160: 352.85166 | F160: 359.9086932 | G160: 367.1068671 | H160: 374.4490044 | N160: 1 | AB160: 332.5 | AC160: 250 | AH160: =C160 -> 339.15 | AV160: 339.15
A161: MO+DPL A6 | B161: 379.05 | C161: 386.631 | D161: 394.36362 | E161: 402.2508924 | F161: 410.2959102 | G161: 418.5018285 | H161: 426.871865 | O161: 1 | AB161: 379.05 | AC161: 285 | AI161: =D161 -> 394.36362 | AV161: 394.36362
A162: MO+DPL A7 | B162: 332.5 | C162: 339.15 | D162: 345.933 | E162: 352.85166 | F162: 359.9086932 | G162: 367.1068671 | H162: 374.4490044 | P162: 1 | AB162: 332.5 | AC162: 250 | AJ162: =D162 -> 345.933 | AV162: 345.933
A163: MO+DPL A8 | B163: 379.05 | C163: 386.631 | D163: 394.36362 | E163: 402.2508924 | F163: 410.2959102 | G163: 418.5018285 | H163: 426.871865 | Q163: 1 | AB163: 379.05 | AC163: 285 | AK163: =D163 -> 394.36362 | AV163: 394.36362
A164: MO+DPL A9 | B164: 332.5 | C164: 339.15 | D164: 345.933 | E164: 352.85166 | F164: 359.9086932 | G164: 367.1068671 | H164: 374.4490044 | R164: 1 | AB164: 332.5 | AC164: 250 | AL164: =E164 -> 352.85166 | AV164: 352.85166
A165: MO+DPL A10 | B165: 379.05 | C165: 386.631 | D165: 394.36362 | E165: 402.2508924 | F165: 410.2959102 | G165: 418.5018285 | H165: 426.871865 | S165: 1 | AB165: 379.05 | AC165: 285 | AM165: =E165 -> 402.2508924 | AV165: 402.2508924
A166: MO+DPL A11 | B166: 332.5 | C166: 339.15 | D166: 345.933 | E166: 352.85166 | F166: 359.9086932 | G166: 367.1068671 | H166: 374.4490044 | T166: 1 | AB166: 332.5 | AC166: 250 | AN166: =E166 -> 352.85166 | AV166: 352.85166
A167: MO+DPL A12 | B167: 379.05 | C167: 386.631 | D167: 394.36362 | E167: 402.2508924 | F167: 410.2959102 | G167: 418.5018285 | H167: 426.871865 | U167: 1 | AB167: 379.05 | AC167: 285 | AO167: =F167 -> 410.2959102 | AV167: 410.2959102
A168: MO+DPL A13 | B168: 332.5 | C168: 339.15 | D168: 345.933 | E168: 352.85166 | F168: 359.9086932 | G168: 367.1068671 | H168: 374.4490044 | V168: 1 | AB168: 332.5 | AC168: 250 | AP168: =F168 -> 359.9086932 | AV168: 359.9086932
A169: MO+DPL A14 | B169: 379.05 | C169: 386.631 | D169: 394.36362 | E169: 402.2508924 | F169: 410.2959102 | G169: 418.5018285 | H169: 426.871865 | W169: 1 | AB169: 379.05 | AC169: 285 | AQ169: =F169 -> 410.2959102 | AV169: 410.2959102
A170: MO+DPL A15 | B170: 332.5 | C170: 339.15 | D170: 345.933 | E170: 352.85166 | F170: 359.9086932 | G170: 367.1068671 | H170: 374.4490044 | X170: 1 | AB170: 332.5 | AC170: 250 | AR170: =G170 -> 367.1068671 | AV170: 367.1068671
A171: MO+DPL A16 | B171: 379.05 | C171: 386.631 | D171: 394.36362 | E171: 402.2508924 | F171: 410.2959102 | G171: 418.5018285 | H171: 426.871865 | Y171: 1 | AB171: 379.05 | AC171: 285 | AS171: =G171 -> 418.5018285 | AV171: 418.5018285
A172: MO+DPL A17 | B172: 332.5 | C172: 339.15 | D172: 345.933 | E172: 352.85166 | F172: 359.9086932 | G172: 367.1068671 | H172: 374.4490044 | Z172: 1 | AB172: 332.5 | AC172: 250 | AT172: =G172 -> 367.1068671 | AV172: 367.1068671
A173: MO+DPL A18 | B173: 379.05 | C173: 386.631 | D173: 394.36362 | E173: 402.2508924 | F173: 410.2959102 | G173: 418.5018285 | H173: 426.871865 | AA173: 1 | AB173: 379.05 | AC173: 285 | AU173: =H173 -> 426.871865 | AV173: 426.871865
A174: courroies | B174: 50 | C174: 51 | D174: 52.02 | E174: 53.0604 | F174: 54.121608 | G174: 55.20404016 | H174: 56.30812096 | K174: 1 | M174: 1 | O174: 1 | P174: 0 | Q174: 1 | R174: 0 | S174: 1 | T174: 0 | U174: 1 | V174: 0 | W174: 1 | Y174: 1 | AA174: 1 | AB174: 450 | AC174: 50 | AE174: =B174 -> 50 | AG174: =D174 -> 52.02 | AI174: =E174 -> 53.0604 | AK174: =E174 -> 53.0604 | AM174: =F174 -> 54.121608 | AO174: =G174 -> 55.20404016 | AQ174: =G174 -> 55.20404016 | AS174: =H174 -> 56.30812096 | AU174: =H174 -> 56.30812096 | AV174: 485.2867302
A175: recyclage | B175: 4.5 | C175: 4.59 | D175: 4.6818 | E175: 4.775436 | F175: 4.87094472 | G175: 4.968363614 | H175: 5.067730887 | J175: 1 | K175: 1 | L175: 1 | M175: 1 | N175: 1 | O175: 1 | P175: 1 | Q175: 1 | R175: 1 | S175: 1 | T175: 1 | U175: 1 | V175: 1 | W175: 1 | X175: 1 | Y175: 1 | Z175: 1 | AA175: 1 | AB175: 81 | AC175: 4.5 | AD175: =B175 -> 4.5 | AE175: =B175 -> 4.5 | AF175: =C175 -> 4.59 | AG175: =C175 -> 4.59 | AH175: =C175 -> 4.59 | AI175: =D175 -> 4.6818 | AJ175: =D175 -> 4.6818 | AK175: =D175 -> 4.6818 | AL175: =E175 -> 4.775436 | AM175: =E175 -> 4.775436 | AN175: =B175 -> 4.5 | AO175: =F175 -> 4.87094472 | AP175: =F175 -> 4.87094472 | AQ175: =F175 -> 4.87094472 | AR175: =G175 -> 4.968363614 | AS175: =G175 -> 4.968363614 | AT175: =G175 -> 4.968363614 | AU175: =H175 -> 5.067730887 | AV175: 85.45192789
U176: =SUM(AB152:AB175) -> 15217.95 | W176: =U176/6 -> 2536.325 | AV176: =SUM(AV152:AV175) -> 16133.00818
AV177: =AV176/18 -> 896.2782324
AD178: =SUM(AD152:AD175) -> 521.8 | AE178: =SUM(AE152:AE175) -> 1056.95 | AF178: 457.674 | AG178: 1411.017 | AH178: 457.674 | AI178: 1176.74442 | AJ178: 466.82748 | AK178: 1439.23734 | AL178: 476.1640296 | AM178: 1200.279308 | AN178: 475.8885936 | AO178: 1492.027673 | AP178: =SUM(AP152:AP175) -> 485.6873102 | AQ178: 1224.284895 | AR178: 495.4010564 | AS178: 1527.330179 | AT178: 495.4010564 | AU178: 1272.619842 | AV178: =SUM(AD178:AU178) -> 16133.00818
A182: L15RS à L22RS | B182: PV | T182: evolution du prix 2%/an | V182: 1.02
A183: Pour6000h/AN | B183: prix2016 | C183: prix2017 | D183: prix2018 | E183: prix2019 | F183: prix2020 | G183: prix2021 | H183: prix2022 | J183: 4 mois | K183: 8 mois | L183: 12 mois | M183: 16 mois | N183: 20 mois | O183: 24 mois | P183: 28 mois | Q183: 32 mois | R183: 36 mois | S183: 40 mois | T183: 44 mois | U183: 48 mois | V183: 52 mois | W183: 56 mois | X183: 60 mois | Y183: 64 mois | Z183: 68 mois | AA183: 72 mois | AB183: Total Année N
A184: COM CK2100-1 | B184: 111.7 | C184: =B184*$V$150 -> 113.934 | D184: =C184*$V$150 -> 116.21268 | E184: =D184*$V$150 -> 118.5369336 | F184: =E184*$V$150 -> 120.9076723 | G184: =F184*$V$150 -> 123.3258257 | H184: =G184*$V$150 -> 125.7923422 | J184: 1 | K184: 1 | L184: 1 | M184: 1 | N184: 1 | O184: 1 | P184: 1 | Q184: 1 | R184: 1 | S184: 1 | T184: 1 | U184: 1 | V184: 1 | W184: 1 | X184: 1 | Y184: 1 | Z184: 1 | AA184: 1 | AB184: =B184*(J184+K184+L184+M184+N184+O184+P184+Q184+R184+S184+T184+U184+V184+W184+X184+Y184+Z184+AA184) -> 2010.6 | AC184: 114.4
A185: com CK4100-252-RS | B185: 438.6 | C185: =B185*$V$150 -> 447.372 | D185: 456.31944 | E185: 465.4458288 | F185: 474.7547454 | G185: 484.2498403 | H185: 493.9348371 | K185: 1 | M185: 1 | O185: 1 | Q185: 1 | S185: 1 | U185: 1 | V185: 0 | W185: 1 | X185: 0 | Y185: 1 | Z185: 0 | AA185: 1 | AB185: 3947.4 | AC185: 270
A186: COM CK8100-2 | B186: 252.3 | C186: 257.346 | D186: 262.49292 | E186: 267.7427784 | F186: 273.097634 | G186: 278.5595866 | H186: 284.1307784 | M186: 1 | Q186: 1 | S186: 0 | U186: 1 | Y186: 1 | AB186: 1009.2 | AC186: 239.1
A187: COM SCWO4000-5 | B187: 73.1 | C187: 74.562 | D187: 76.05324 | E187: 77.5743048 | F187: 79.1257909 | G187: 80.70830671 | H187: 82.32247285 | J187: 1 | K187: 1 | M187: 2 | O187: 2 | Q187: 2 | S187: 2 | U187: 2 | W187: 2 | Y187: 2 | AA187: 2 | AB187: 1315.8 | AC187: 73.1
A188: MO+DPL A1 | B188: 332.5 | C188: 339.15 | D188: 345.933 | E188: 352.85166 | F188: 359.9086932 | G188: 367.1068671 | H188: 374.4490044 | J188: 1 | AB188: 332.5 | AC188: 250
A189: MO+DPL A2 | B189: 379.05 | C189: 386.631 | D189: 394.36362 | E189: 402.2508924 | F189: 410.2959102 | G189: 418.5018285 | H189: 426.871865 | K189: 1 | AB189: 379.05 | AC189: 285
A190: MO+DPL A3 | B190: 332.5 | C190: 339.15 | D190: 345.933 | E190: 352.85166 | F190: 359.9086932 | G190: 367.1068671 | H190: 374.4490044 | L190: 1 | AB190: 332.5 | AC190: 250
A191: MO+DPL A4 | B191: 379.05 | C191: 386.631 | D191: 394.36362 | E191: 402.2508924 | F191: 410.2959102 | G191: 418.5018285 | H191: 426.871865 | M191: 1 | AB191: 379.05 | AC191: 285
A192: MO+DPL A5 | B192: 332.5 | C192: 339.15 | D192: 345.933 | E192: 352.85166 | F192: 359.9086932 | G192: 367.1068671 | H192: 374.4490044 | N192: 1 | AB192: 332.5 | AC192: 250
A193: MO+DPL A6 | B193: 379.05 | C193: 386.631 | D193: 394.36362 | E193: 402.2508924 | F193: 410.2959102 | G193: 418.5018285 | H193: 426.871865 | O193: 1 | AB193: 379.05 | AC193: 285
A194: MO+DPL A7 | B194: 332.5 | C194: 339.15 | D194: 345.933 | E194: 352.85166 | F194: 359.9086932 | G194: 367.1068671 | H194: 374.4490044 | P194: 1 | AB194: 332.5 | AC194: 250
A195: MO+DPL A8 | B195: 379.05 | C195: 386.631 | D195: 394.36362 | E195: 402.2508924 | F195: 410.2959102 | G195: 418.5018285 | H195: 426.871865 | Q195: 1 | AB195: 379.05 | AC195: 285
A196: MO+DPL A9 | B196: 332.5 | C196: 339.15 | D196: 345.933 | E196: 352.85166 | F196: 359.9086932 | G196: 367.1068671 | H196: 374.4490044 | R196: 1 | AB196: 332.5 | AC196: 250
A197: MO+DPL A10 | B197: 379.05 | C197: 386.631 | D197: 394.36362 | E197: 402.2508924 | F197: 410.2959102 | G197: 418.5018285 | H197: 426.871865 | S197: 1 | AB197: 379.05 | AC197: 285
A198: MO+DPL A11 | B198: 332.5 | C198: 339.15 | D198: 345.933 | E198: 352.85166 | F198: 359.9086932 | G198: 367.1068671 | H198: 374.4490044 | T198: 1 | AB198: 332.5 | AC198: 250
A199: MO+DPL A12 | B199: 379.05 | C199: 386.631 | D199: 394.36362 | E199: 402.2508924 | F199: 410.2959102 | G199: 418.5018285 | H199: 426.871865 | U199: 1 | AB199: 379.05 | AC199: 285
A200: MO+DPL A13 | B200: 332.5 | C200: 339.15 | D200: 345.933 | E200: 352.85166 | F200: 359.9086932 | G200: 367.1068671 | H200: 374.4490044 | V200: 1 | AB200: 332.5 | AC200: 250
A201: MO+DPL A14 | B201: 379.05 | C201: 386.631 | D201: 394.36362 | E201: 402.2508924 | F201: 410.2959102 | G201: 418.5018285 | H201: 426.871865 | W201: 1 | AB201: 379.05 | AC201: 285
A202: MO+DPL A15 | B202: 332.5 | C202: 339.15 | D202: 345.933 | E202: 352.85166 | F202: 359.9086932 | G202: 367.1068671 | H202: 374.4490044 | X202: 1 | AB202: 332.5 | AC202: 250
A203: MO+DPL A16 | B203: 379.05 | C203: 386.631 | D203: 394.36362 | E203: 402.2508924 | F203: 410.2959102 | G203: 418.5018285 | H203: 426.871865 | Y203: 1 | AB203: 379.05 | AC203: 285
A204: MO+DPL A17 | B204: 332.5 | C204: 339.15 | D204: 345.933 | E204: 352.85166 | F204: 359.9086932 | G204: 367.1068671 | H204: 374.4490044 | Z204: 1 | AB204: 332.5 | AC204: 250
A205: MO+DPL A18 | B205: 379.05 | C205: 386.631 | D205: 394.36362 | E205: 402.2508924 | F205: 410.2959102 | G205: 418.5018285 | H205: 426.871865 | AA205: 1 | AB205: 379.05 | AC205: 285
A206: courroies | B206: 50 | C206: 51 | D206: 52.02 | E206: 53.0604 | F206: 54.121608 | G206: 55.20404016 | H206: 56.30812096 | K206: 1 | M206: 1 | O206: 1 | P206: 0 | Q206: 1 | R206: 0 | S206: 1 | T206: 0 | U206: 1 | V206: 0 | W206: 1 | Y206: 1 | AA206: 1 | AB206: 450 | AC206: 50
A207: recyclage | B207: 4.5 | C207: 4.59 | D207: 4.6818 | E207: 4.775436 | F207: 4.87094472 | G207: 4.968363614 | H207: 5.067730887 | J207: 1 | K207: 1 | L207: 1 | M207: 1 | N207: 1 | O207: 1 | P207: 1 | Q207: 1 | R207: 1 | S207: 1 | T207: 1 | U207: 1 | V207: 1 | W207: 1 | X207: 1 | Y207: 1 | Z207: 1 | AA207: 1 | AB207: 81 | AC207: 4.5
U208: =SUM(AB184:AB207) -> 15217.95 | W208: =U208/6 -> 2536.325
J211: =J184*C184 -> 113.934 | K211: =K184*C184 -> 113.934 | L211: =L184*C184 -> 113.934 | M211: =M184*D184 -> 116.21268 | N211: =N184*D184 -> 116.21268 | O211: =O184*D184 -> 116.21268 | P211: =P184*E184 -> 118.5369336 | Q211: =Q184*E184 -> 118.5369336 | R211: =R184*E184 -> 118.5369336 | S211: =S184*F184 -> 120.9076723 | T211: =T184*F184 -> 120.9076723 | U211: =U184*F184 -> 120.9076723 | V211: =V184*G184 -> 123.3258257 | W211: =W184*G184 -> 123.3258257 | X211: =X184*G184 -> 123.3258257 | Y211: =Y184*H184 -> 125.7923422 | Z211: =Z184*H184 -> 125.7923422 | AA211: =AA184*H184 -> 125.7923422
J212: 0 | K212: 447.372 | L212: 0 | M212: 456.31944 | N212: 0 | O212: 456.31944 | P212: 0 | Q212: 465.4458288 | R212: 0 | S212: 474.7547454 | T212: 0 | U212: 474.7547454 | V212: 0 | W212: =W185*G185 -> 484.2498403 | X212: =X185*G185 -> 0 | Y212: 493.9348371 | Z212: =Z185*H185 -> 0 | AA212: =AA185*H185 -> 493.9348371
J213: 0 | K213: 0 | L213: 0 | M213: 262.49292 | N213: 0 | O213: 0 | P213: 0 | Q213: 267.7427784 | R213: 0 | S213: 0 | T213: 0 | U213: 273.097634 | V213: 0 | W213: 0 | X213: 0 | Y213: 284.1307784 | Z213: 0 | AA213: 0
J214: 74.562 | K214: 74.562 | L214: 0 | M214: 152.10648 | N214: 0 | O214: 152.10648 | P214: 0 | Q214: 155.1486096 | R214: 0 | S214: 158.2515818 | T214: 0 | U214: 158.2515818 | V214: 0 | W214: 161.4166134 | X214: 0 | Y214: 164.6449457 | Z214: 0 | AA214: 164.6449457
J215: 339.15 | K215: 0 | L215: 0 | M215: 0 | N215: 0 | O215: 0 | P215: 0 | Q215: 0 | R215: 0 | S215: 0 | T215: 0 | U215: 0 | V215: 0 | W215: 0 | X215: 0 | Y215: 0 | Z215: 0 | AA215: 0
J216: 0 | K216: 386.631 | L216: 0 | M216: 0 | N216: 0 | O216: 0 | P216: 0 | Q216: 0 | R216: 0 | S216: 0 | T216: 0 | U216: 0 | V216: 0 | W216: 0 | X216: 0 | Y216: 0 | Z216: 0 | AA216: 0
... 26 more rows

Sheet L23 à 29
A1: L23 à L29
A2: Pour 2000h/AN
J3: 0
B4: PV | N4: evolution du prix 2%/an | P4: 0.04
B5: prix | C5: année 1 | D5: année 2 | E5: année 3 | F5: année 4 | G5: année 5 | H5: année 6 | J5: Total An 1 | L5: Total An 1 | M5: Total An 2 | N5: Total An 3 | O5: Total An 4 | P5: Total An 5 | Q5: Total An 6
A7: COM CK4122-2 | B7: 953.3 | C7: 1 | D7: 1 | E7: 1 | F7: 1 | G7: 1 | H7: 1 | J7: =B7*(C7+D7+E7+F7+G7+H7) -> 5719.8 | L7: =(B7*P4)+B7 -> 991.432 | M7: =(L7*P4)+L7 -> 1031.08928 | N7: =(M7*P4)+M7 -> 1072.332851 | O7: =(N7*P4)+N7 -> 1115.226165 | P7: =(O7*P4)+O7 -> 1159.835212 | Q7: =(P7*P4)+P7 -> 1206.22862 | R7: =SUM(L7:Q7) -> 6576.144129 | T7: Maintenace sur 3 ans (garantie 4 ans)
A8: com CK8122-1 | B8: 468.4 | D8: 1 | F8: 1 | H8: 1 | J8: 1405.2 | L8: =(B8*P4)+B8 -> 487.136 | M8: =(L8*P4)+L8 -> 506.62144 | N8: =(M8*P4)+M8 -> 526.8862976 | O8: =(N8*P4)+N8 -> 547.9617495 | P8: =(O8*P4)+O8 -> 569.8802195 | Q8: =(P8*P4)+P8 -> 592.6754283 | R8: =SUM(M8,O8,Q8) -> 1647.258618 | T8: =SUM(L20:N20)/3 -> 2069.462054
A9: COM SCWO4000-20 | B9: 277 | C9: 1 | D9: 1 | E9: 1 | F9: 1 | G9: 1 | H9: 1 | J9: =B9*(C9+D9+F9+H9) -> 1108 | L9: =(B9*P4)+B9 -> 288.08 | M9: =(L9*P4)+L9*D9 -> 299.6032 | N9: =(M9*P4)*E9+M9 -> 311.587328 | O9: =(N9*P4)*F9+N9 -> 324.0508211 | P9: =(O9*P4)*G9+O9 -> 337.012854 | Q9: =((P9*P4)*H9)+P9 -> 350.4933681 | R9: =SUM(L9:Q9) -> 1910.827571
A10: MO+DPL A1 | B10: 379 | C10: 1 | J10: 379 | L10: =(B10*P4)+B10 -> 394.16 | M10: =(L10*P4)+L10 -> 409.9264 | N10: =(M10*P4)+M10 -> 426.323456 | O10: =(N10*P4)+N10 -> 443.3763942 | P10: =(O10*P4)+O10 -> 461.11145 | Q10: =(P10*P4)+P10 -> 479.555908 | R10: =SUM(L10) -> 394.16
A11: MO+DPL A2 | B11: 379 | D11: 1 | J11: 379 | L11: =(B11*P4)+B11 -> 394.16 | M11: =(L11*P4)+L11 -> 409.9264 | N11: =(M11*P4)+M11 -> 426.323456 | O11: =(N11*P4)+N11 -> 443.3763942 | P11: =(O11*P4)+O11 -> 461.11145 | Q11: =(P11*P4)+P11 -> 479.555908 | R11: =SUM(M11) -> 409.9264 | T11: Maintenace sur 5ans (garantie 6 ans)
A12: MO+DPL A3 | B12: 379 | E12: 1 | J12: 379 | L12: =(B12*P4)+B12 -> 394.16 | M12: =(L12*P4)+L12 -> 409.9264 | N12: =(M12*P4)+M12 -> 426.323456 | O12: =(N12*P4)+N12 -> 443.3763942 | P12: =(O12*P4)+O12 -> 461.11145 | Q12: =(P12*P4)+P12 -> 479.555908 | R12: =SUM(N12) -> 426.323456
A13: MO+DPL A4 | B13: 379 | F13: 1 | J13: 379 | L13: =(B13*P4)+B13 -> 394.16 | M13: =(L13*P4)+L13 -> 409.9264 | N13: =(M13*P4)+M13 -> 426.323456 | O13: =(N13*P4)+N13 -> 443.3763942 | P13: =(O13*P4)+O13 -> 461.11145 | Q13: =(P13*P4)+P13 -> 479.555908 | R13: =SUM(O13) -> 443.3763942 | T13: =SUM(L20:P20)/5 -> 2189.555599
A14: MO+DPL A5 | B14: 379 | G14: 1 | J14: 379 | L14: =(B14*P4)+B14 -> 394.16 | M14: =(L14*P4)+L14 -> 409.9264 | N14: =(M14*P4)+M14 -> 426.323456 | O14: =(N14*P4)+N14 -> 443.3763942 | P14: =(O14*P4)+O14 -> 461.11145 | Q14: =(P14*P4)+P14 -> 479.555908 | R14: =SUM(P14) -> 461.11145
A15: MO+DPL A6 | B15: 379 | H15: 1 | J15: 379 | L15: =(B15*P4)+B15 -> 394.16 | M15: =(L15*P4)+L15 -> 409.9264 | N15: =(M15*P4)+M15 -> 426.323456 | O15: =(N15*P4)+N15 -> 443.3763942 | P15: =(O15*P4)+O15 -> 461.11145 | Q15: =(P15*P4)+P15 -> 479.555908 | R15: =SUM(Q15) -> 479.555908
A16: XVKT 12 | B16: 140 | C16: 1 | D16: 1 | E16: 1 | F16: 1 | G16: 1 | H16: 1 | J16: 840 | L16: =(B16*P4)+B16 -> 145.6 | M16: =(L16*P4)+L16 -> 151.424 | N16: =(M16*P4)+M16 -> 157.48096 | O16: =(N16*P4)+N16 -> 163.7801984 | P16: =(O16*P4)+O16 -> 170.3314063 | Q16: =(P16*P4)+P16 -> 177.1446626 | R16: =SUM(L16:Q16) -> 965.7612273
A17: recyclage | B17: 7 | C17: 1 | D17: 1 | E17: 1 | F17: 1 | G17: 1 | H17: 1 | J17: =SUM(B17)*(C17+D17+E17+F17+G17+H17) -> 42 | L17: =(B17*P4)+B17 -> 7.28 | M17: =(L17*P4)+L17 -> 7.5712 | N17: =(M17*P4)+M17 -> 7.874048 | O17: =(N17*P4)+N17 -> 8.18900992 | P17: =(O17*P4)+O17 -> 8.516570317 | Q17: =(P17*P4)+P17 -> 8.857233129 | R17: =SUM(L17:Q17) -> 48.28806137
J18: =SUM(J6:J17) -> 11389 | L18: =J18/6 -> 1898.166667 | R18: =SUM(R7:R17) -> 13762.73321
R19: =R18/6 -> 2293.788869
L20: =SUM(L7,L9:L10,L16,L17) -> 1826.552 | M20: =SUM(M7:M9,M11,M16,M17) -> 2406.23552 | N20: =SUM(N7,N9,N12,N16,N17) -> 1975.598643 | O20: =SUM(O7:O9,O13,O16,O17) -> 2602.584338 | P20: =SUM(P7,P9,P14,P16,P17) -> 2136.807492 | Q20: =SUM(Q7:Q9,Q15,Q16,Q17) -> 2814.95522 | R20: =SUM(L20:Q20) -> 13762.73321
A24: L23 à L29
A25: Pour4000h/AN | B25: PV | C25: 1 Année | E25: 2 Année | G25: 3 Année | I25: 4 Année | K25: 5 Année | M25: 6 Année | S25: evolution du prix 2%/an | U25: 0.02
B26: prix | C26: 6 mois | D26: 12 mois | E26: 18 mois | F26: 24 mois | G26: 30 mois | H26: 36 mois | I26: 42 mois | J26: 48 mois | K26: 54 mois | L26: 60 mois | M26: 66 mois | N26: 72 mois | O26: Total Année N | Q26: Total M6 | R26: Total M12 | S26: Total M18 | T26: Total M24 | U26: Total M30 | V26: Total M36 | W26: Total M42 | X26: Total M48 | Y26: Total M54 | Z26: Total M60 | AA26: Total M66 | AB26: Total M72
A27: COM CK4122-2 | B27: 905.5 | C27: 0 | D27: 1 | E27: 0 | F27: 1 | G27: 0 | H27: 1 | I27: 0 | J27: 1 | K27: 0 | L27: 1 | M27: 0 | N27: 1 | O27: =B27*(C27+D27+E27+F27+G27+H27+I27+J27+K27+L27+M27+N27) -> 5433 | Q27: =(B27*U25)+B27 -> 923.61 | R27: =(B27*U25)+B27 -> 923.61 | S27: =(R27*U25)+R27 -> 942.0822 | T27: =(R27*U25)+R27 -> 942.0822 | U27: =(T27*U25)+T27 -> 960.923844 | V27: =(T27*U25)+T27 -> 960.923844 | W27: =(V27*U25)+V27 -> 980.1423209 | X27: =(V27*U25)+V27 -> 980.1423209 | Y27: =(X27*U25)+X27 -> 999.7451673 | Z27: =(X27*U25)+X27 -> 999.7451673 | AA27: =(Z27*U25)+Z27 -> 1019.740071 | AB27: =(AA27*AA25)+AA27 -> 1019.740071 | AC27: =SUM(R27,T27,V27,X27,Z27,AB27) -> 5826.243603
A28: com CK8122-1 | B28: 444.9 | D28: 0 | F28: 1 | H28: 0 | J28: 1 | L28: 0 | N28: 1 | O28: =B28*(C28+D28+E28+F28+G28+H28+I28+J28+K28+L28+M28+N28) -> 1334.7 | Q28: =(B28*U25)+B28 -> 453.798 | R28: =(B28*U25)+B28 -> 453.798 | S28: =(R28*U25)+R28 -> 462.87396 | T28: =(R28*U25)+R28 -> 462.87396 | U28: =(T28*U25)+T28 -> 472.1314392 | V28: =(T28*U25)+T28 -> 472.1314392 | W28: =(V28*U25)+V28 -> 481.574068 | X28: =(W28*AA25)+W28 -> 481.574068 | Y28: =(X28*U25)+X28 -> 491.2055493 | Z28: =(Y28*AA25)+Y28 -> 491.2055493 | AA28: =(Z28*U25)+Z28 -> 501.0296603 | AB28: =(AA28*AA25)+AA28 -> 501.0296603 | AC28: =SUM(T28,X28,AB28) -> 1445.477688
A29: COM SCWO4000-20 | B29: 277 | D29: 1 | F29: 1 | H29: 1 | J29: 1 | L29: 1 | N29: 1 | O29: =B29*(C29+D29+E29+F29+G29+H29+I29+J29+K29+L29+M29+N29) -> 1662 | Q29: =(B29*U25)+B29 -> 282.54 | R29: =(B29*U25)+B29*D29 -> 282.54 | S29: =(R29*U25)+R29 -> 288.1908 | T29: =(R29*U25)+R29 -> 288.1908 | U29: =(T29*U25)+T29 -> 293.954616 | V29: =(T29*U25)+T29 -> 293.954616 | W29: =(V29*U25)+V29 -> 299.8337083 | X29: =(V29*U25)+V29 -> 299.8337083 | Y29: =(X29*U25)+X29 -> 305.8303825 | Z29: =(X29*U25)+X29 -> 305.8303825 | AA29: =(Z29*U25)+Z29 -> 311.9469901 | AB29: =(AA29*AA25)+AA29 -> 311.9469901 | AC29: =SUM(R29,T29,V29,X29,Z29,AB29) -> 1782.296497
A31: MO+DPL A1 | B31: 379 | C31: 0 | O31: =B31*(C31+D31+E31+F31+G31+H31) -> 0 | Q31: =(B31*U25)+B31 -> 386.58 | R31: =(B31*U25)+B31 -> 386.58 | S31: =(R31*U25)+R31 -> 394.3116 | T31: =(R31*U25)+R31 -> 394.3116 | U31: =(T31*U25)+T31 -> 402.197832 | V31: =(T31*U25)+T31 -> 402.197832 | W31: =(V31*U25)+V31 -> 410.2417886 | X31: =(W31*V25)+W31 -> 410.2417886 | Y31: =(X31*U25)+X31 -> 418.4466244 | Z31: =(Y31*V25)+Y31 -> 418.4466244 | AA31: =(Z31*U25)+Z31 -> 426.8155569 | AB31: =(AA31*V25)+AA31 -> 426.8155569
A32: MO+DPL A2 | B32: 379 | D32: 1 | O32: 379 | Q32: =(B32*U25)+B32 -> 386.58 | R32: =(B32*U25)+B32 -> 386.58 | S32: =(R32*U25)+R32 -> 394.3116 | T32: =(R32*U25)+R32 -> 394.3116 | U32: =(T32*U25)+T32 -> 402.197832 | V32: =(T32*U25)+T32 -> 402.197832 | W32: =(V32*U25)+V32 -> 410.2417886 | X32: =(V32*U25)+V32 -> 410.2417886 | Y32: =(X32*U25)+X32 -> 418.4466244 | Z32: =(X32*U25)+X32 -> 418.4466244 | AA32: =(Z32*U25)+Z32 -> 426.8155569 | AB32: =(Z32*U25)+Z32 -> 426.8155569 | AC32: =SUM(R32) -> 386.58
A33: MO+DPL A3 | B33: 379 | E33: 0 | O33: 0 | Q33: =(B33*U25)+B33 -> 386.58 | R33: =(B33*U25)+B33 -> 386.58 | S33: =(R33*U25)+R33 -> 394.3116 | T33: =(R33*U25)+R33 -> 394.3116 | U33: =(T33*U25)+T33 -> 402.197832 | V33: =(T33*U25)+T33 -> 402.197832 | W33: =(V33*U25)+V33 -> 410.2417886 | X33: =(V33*U25)+V33 -> 410.2417886 | Y33: =(X33*U25)+X33 -> 418.4466244 | Z33: =(X33*U25)+X33 -> 418.4466244 | AA33: =(Z33*U25)+Z33 -> 426.8155569 | AB33: =(Z33*U25)+Z33 -> 426.8155569
A34: MO+DPL A4 | B34: 379 | F34: 1 | O34: 379 | Q34: =(B34*U25)+B34 -> 386.58 | R34: =(B34*U25)+B34 -> 386.58 | S34: =(R34*U25)+R34 -> 394.3116 | T34: =(R34*U25)+R34 -> 394.3116 | U34: =(T34*U25)+T34 -> 402.197832 | V34: =(T34*U25)+T34 -> 402.197832 | W34: =(V34*U25)+V34 -> 410.2417886 | X34: =(V34*U25)+V34 -> 410.2417886 | Y34: =(X34*U25)+X34 -> 418.4466244 | Z34: =(X34*U25)+X34 -> 418.4466244 | AA34: =(Z34*U25)+Z34 -> 426.8155569 | AB34: =(Z34*U25)+Z34 -> 426.8155569 | AC34: =SUM(T34) -> 394.3116
A35: MO+DPL A5 | B35: 379 | G35: 0 | O35: 0 | Q35: =(B35*U25)+B35 -> 386.58 | R35: =(B35*U25)+B35 -> 386.58 | S35: =(R35*U25)+R35 -> 394.3116 | T35: =(R35*U25)+R35 -> 394.3116 | U35: =(T35*U25)+T35 -> 402.197832 | V35: =(T35*U25)+T35 -> 402.197832 | W35: =(V35*U25)+V35 -> 410.2417886 | X35: =(V35*U25)+V35 -> 410.2417886 | Y35: =(X35*U25)+X35 -> 418.4466244 | Z35: =(X35*U25)+X35 -> 418.4466244 | AA35: =(Z35*U25)+Z35 -> 426.8155569 | AB35: =(Z35*U25)+Z35 -> 426.8155569
A36: MO+DPL A6 | B36: 379 | H36: 1 | O36: 379 | Q36: =(B36*U25)+B36 -> 386.58 | R36: =(B36*U25)+B36 -> 386.58 | S36: =(R36*U25)+R36 -> 394.3116 | T36: =(R36*U25)+R36 -> 394.3116 | U36: =(T36*U25)+T36 -> 402.197832 | V36: =(T36*U25)+T36 -> 402.197832 | W36: =(V36*U25)+V36 -> 410.2417886 | X36: =(V36*U25)+V36 -> 410.2417886 | Y36: =(X36*U25)+X36 -> 418.4466244 | Z36: =(X36*U25)+X36 -> 418.4466244 | AA36: =(Z36*U25)+Z36 -> 426.8155569 | AB36: =(Z36*U25)+Z36 -> 426.8155569 | AC36: =SUM(V36) -> 402.197832
A37: MO+DPL A7 | B37: 379 | I37: 0 | O37: =B37*(C37+D37+E37+F37+G37+H37+I37) -> 0 | Q37: =(B37*U25)+B37 -> 386.58 | R37: =(B37*U25)+B37 -> 386.58 | S37: =(R37*U25)+R37 -> 394.3116 | T37: =(R37*U25)+R37 -> 394.3116 | U37: =(T37*U25)+T37 -> 402.197832 | V37: =(T37*U25)+T37 -> 402.197832 | W37: =(V37*U25)+V37 -> 410.2417886 | X37: =(V37*U25)+V37 -> 410.2417886 | Y37: =(X37*U25)+X37 -> 418.4466244 | Z37: =(X37*U25)+X37 -> 418.4466244 | AA37: =(Z37*U25)+Z37 -> 426.8155569 | AB37: =(Z37*U25)+Z37 -> 426.8155569
A38: MO+DPL A8 | B38: 379 | J38: 1 | O38: =B38*(C38+D38+E38+F38+G38+H38+I38+J38+K38+L38+M38+N38) -> 379 | Q38: =(B38*U25)+B38 -> 386.58 | R38: =(B38*U25)+B38 -> 386.58 | S38: =(R38*U25)+R38 -> 394.3116 | T38: =(R38*U25)+R38 -> 394.3116 | U38: =(T38*U25)+T38 -> 402.197832 | V38: =(T38*U25)+T38 -> 402.197832 | W38: =(V38*U25)+V38 -> 410.2417886 | X38: =(V38*U25)+V38 -> 410.2417886 | Y38: =(X38*U25)+X38 -> 418.4466244 | Z38: =(X38*U25)+X38 -> 418.4466244 | AA38: =(Z38*U25)+Z38 -> 426.8155569 | AB38: =(Z38*U25)+Z38 -> 426.8155569 | AC38: =SUM(X38) -> 410.2417886
A39: MO+DPL A9 | B39: 379 | K39: 0 | O39: =B39*(C39+D39+E39+F39+G39+H39+I39+J39+K39+L39+M39+N39) -> 0 | Q39: =(B39*U25)+B39 -> 386.58 | R39: =(B39*U25)+B39 -> 386.58 | S39: =(R39*U25)+R39 -> 394.3116 | T39: =(R39*U25)+R39 -> 394.3116 | U39: =(T39*U25)+T39 -> 402.197832 | V39: =(T39*U25)+T39 -> 402.197832 | W39: =(V39*U25)+V39 -> 410.2417886 | X39: =(V39*U25)+V39 -> 410.2417886 | Y39: =(X39*U25)+X39 -> 418.4466244 | Z39: =(X39*U25)+X39 -> 418.4466244 | AA39: =(Z39*U25)+Z39 -> 426.8155569 | AB39: =(Z39*U25)+Z39 -> 426.8155569
A40: MO+DPL A10 | B40: 379 | L40: 1 | O40: =B40*(C40+D40+E40+F40+G40+H40+I40+J40+K40+L40+M40+N40) -> 379 | Q40: =(B40*U25)+B40 -> 386.58 | R40: =(B40*U25)+B40 -> 386.58 | S40: =(R40*U25)+R40 -> 394.3116 | T40: =(R40*U25)+R40 -> 394.3116 | U40: =(T40*U25)+T40 -> 402.197832 | V40: =(T40*U25)+T40 -> 402.197832 | W40: =(V40*U25)+V40 -> 410.2417886 | X40: =(V40*U25)+V40 -> 410.2417886 | Y40: =(X40*U25)+X40 -> 418.4466244 | Z40: =(X40*U25)+X40 -> 418.4466244 | AA40: =(Z40*U25)+Z40 -> 426.8155569 | AB40: =(Z40*U25)+Z40 -> 426.8155569 | AC40: =SUM(Z40) -> 418.4466244
A41: MO+DPL A11 | B41: 379 | M41: 0 | O41: =B41*(C41+D41+E41+F41+G41+H41+I41+J41+K41+L41+M41+N41) -> 0 | Q41: =(B41*U25)+B41 -> 386.58 | R41: =(B41*U25)+B41 -> 386.58 | S41: =(R41*U25)+R41 -> 394.3116 | T41: =(R41*U25)+R41 -> 394.3116 | U41: =(T41*U25)+T41 -> 402.197832 | V41: =(T41*U25)+T41 -> 402.197832 | W41: =(V41*U25)+V41 -> 410.2417886 | X41: =(V41*U25)+V41 -> 410.2417886 | Y41: =(X41*U25)+X41 -> 418.4466244 | Z41: =(X41*U25)+X41 -> 418.4466244 | AA41: =(Z41*U25)+Z41 -> 426.8155569 | AB41: =(Z41*U25)+Z41 -> 426.8155569
A42: MO+DPL A12 | B42: 379 | N42: 1 | O42: =B42*(C42+D42+E42+F42+G42+H42+I42+J42+K42+L42+M42+N42) -> 379 | Q42: =(B42*U25)+B42 -> 386.58 | R42: =(B42*U25)+B42 -> 386.58 | S42: =(R42*U25)+R42 -> 394.3116 | T42: =(R42*U25)+R42 -> 394.3116 | U42: =(T42*U25)+T42 -> 402.197832 | V42: =(T42*U25)+T42 -> 402.197832 | W42: =(V42*U25)+V42 -> 410.2417886 | X42: =(V42*U25)+V42 -> 410.2417886 | Y42: =(X42*U25)+X42 -> 418.4466244 | Z42: =(X42*U25)+X42 -> 418.4466244 | AA42: =(Z42*U25)+Z42 -> 426.8155569 | AB42: =(Z42*U25)+Z42 -> 426.8155569 | AC42: =SUM(AB42) -> 426.8155569
A44: recyclage | B44: 4.5 | C44: 1 | D44: 1 | E44: 1 | F44: 1 | G44: 1 | H44: 1 | I44: 1 | J44: 1 | K44: 1 | L44: 1 | M44: 1 | N44: 1 | O44: =SUM(B44)*(C44+D44+E44+F44+G44+H44+I44+J44+K44+L44+M44+N44) -> 54 | Q44: =(B44*U25)+B44 -> 4.59 | R44: =(B44*U25)+B44 -> 4.59 | S44: =(R44*U25)+R44 -> 4.6818 | T44: =(R44*U25)+R44 -> 4.6818 | U44: =(T44*U25)+T44 -> 4.775436 | V44: =(T44*U25)+T44 -> 4.775436 | W44: =(V44*U25)+V44 -> 4.87094472 | X44: =(V44*U25)+V44 -> 4.87094472 | Y44: =(X44*U25)+X44 -> 4.968363614 | Z44: =(X44*U25)+X44 -> 4.968363614 | AA44: =(Z44*U25)+Z44 -> 5.067730887 | AB44: =(Z44*U25)+Z44 -> 5.067730887 | AC44: =SUM(R44,T44,V44,X44,Z44,AB44) -> 28.95427522
O45: =SUM(O27:O44) -> 10757.7 | AC45: =SUM(AC27:AC29,AC32,AC34,AC36,AC38,AC40,AC42:AC44) -> 11521.56547
AC46: =AC45/6 -> 1920.260911 | AE46: =SUM(R47:Z47)/5 -> 1851.393091
O47: =O45/12 -> 896.475 | R47: =SUM(R27,R29,R32,R44) -> 1597.32 | S47: 0 | T47: =SUM(T27:T30,T34,T43:T44) -> 2092.14036 | U47: 0 | V47: =SUM(V27,V29,V36,V44) -> 1661.851728 | W47: 0 | X47: =SUM(X27:X30,X38,X43:X44) -> 2176.662831 | Y47: 0 | Z47: =SUM(Z27,Z29,Z40,Z44) -> 1728.990538 | AA47: 0 | AB47: =SUM(AB27:AB30,AB42:AB44) -> 2264.600009 | AC47: =SUM(Q47:AB47) -> 11521.56547
A52: L23-L29 | B52: PV | T52: evolution du prix 2%/an | V52: 1.02
A53: Pour6000h/AN | B53: prix2016 | C53: prix2017 | D53: prix2018 | E53: prix2019 | F53: prix2020 | G53: prix2021 | H53: prix2022 | J53: 4 mois | K53: 8 mois | L53: 12 mois | M53: 16 mois | N53: 20 mois | O53: 24 mois | P53: 28 mois | Q53: 32 mois | R53: 36 mois | S53: 40 mois | T53: 44 mois | U53: 48 mois | V53: 52 mois | W53: 56 mois | X53: 60 mois | Y53: 64 mois | Z53: 68 mois | AA53: 72 mois | AB53: Total Année N | AD53: Total M4 | AE53: Total M8 | AF53: Total M12 | AG53: Total M16 | AH53: Total M20 | AI53: Total M24 | AJ53: Total M28 | AK53: Total M32 | AL53: Total M36 | AM53: Total M40 | AN53: Total M44 | AO53: Total M48 | AP53: Total M52 | AQ53: Total M56 | AR53: Total M60 | AS53: Total M64 | AT53: Total M68 | AU53: Total M72
J54: 1 | K54: 1 | L54: 1 | M54: 1 | N54: 1 | O54: 1 | P54: 1 | Q54: 1 | R54: 1 | S54: 1 | T54: 1 | U54: 1 | V54: 1 | W54: 1 | X54: 1 | Y54: 1 | Z54: 1 | AA54: 1 | AB54: =B54*(J54+K54+L54+M54+N54+O54+P54+Q54+R54+S54+T54+U54+V54+W54+X54+Y54+Z54+AA54) -> 0 | AC54: 114.4 | AD54: =B54 -> 0 | AE54: =AD54 -> 0 | AF54: =C54 -> 0 | AG54: =C54 -> 0 | AH54: =C54 -> 0 | AI54: =D54 -> 0 | AJ54: =D54 -> 0 | AK54: =D54 -> 0 | AL54: =E54 -> 0 | AM54: =E54 -> 0 | AN54: =E54 -> 0 | AO54: =F54 -> 0 | AP54: =F54 -> 0 | AQ54: =F54 -> 0 | AR54: =G54 -> 0 | AS54: =G54 -> 0 | AT54: =G54 -> 0 | AU54: =H54 -> 0 | AV54: =SUM(AD54:AU54) -> 0
A55: COM CK4122-2 | B55: 905.5 | C55: =B55*$V$52 -> 923.61 | D55: 942.0822 | E55: 960.923844 | F55: 980.1423209 | G55: 999.7451673 | H55: 1019.740071 | K55: 1 | M55: 1 | O55: 1 | Q55: 1 | S55: 1 | U55: 1 | V55: 0 | W55: 1 | X55: 0 | Y55: 1 | Z55: 0 | AA55: 1 | AB55: =B55*(J55+K55+L55+M55+N55+O55+P55+Q55+R55+S55+T55+U55+V55+W55+X55+Y55+Z55+AA55) -> 8149.5 | AC55: 270 | AE55: =B55 -> 905.5 | AG55: =C55 -> 923.61 | AI55: =D55 -> 942.0822 | AK55: =D55 -> 942.0822 | AM55: =E55 -> 960.923844 | AO55: =F55 -> 980.1423209 | AQ55: =F55 -> 980.1423209 | AS55: =G55 -> 999.7451673 | AU55: =H55 -> 1019.740071 | AV55: =SUM(AD55:AU55) -> 8653.968124
A56: com CK8122-1 | B56: 444.9 | C56: =B56*$V$52 -> 453.798 | D56: 462.87396 | E56: 472.1314392 | F56: 481.574068 | G56: 491.2055493 | H56: 501.0296603 | M56: 1 | Q56: 1 | S56: 0 | U56: 1 | Y56: 1 | AB56: =B56*(J56+K56+L56+M56+N56+O56+P56+Q56+R56+S56+T56+U56+V56+W56+X56+Y56+Z56+AA56) -> 1779.6 | AC56: 239.1 | AG56: =C56 -> 453.798 | AK56: =D56 -> 462.87396 | AO56: =E56 -> 472.1314392 | AS56: =G56 -> 491.2055493 | AV56: 1880.008949
A57: COM SCWO4000-20 | B57: 277 | C57: 282.54 | D57: 288.1908 | E57: 293.954616 | F57: 299.8337083 | G57: 305.8303825 | H57: 311.9469901 | J57: 1 | K57: 1 | M57: 2 | O57: 2 | Q57: 2 | S57: 2 | U57: 2 | W57: 2 | Y57: 2 | AA57: 2 | AB57: =B57*(J57+K57+L57+M57+N57+O57+P57+Q57+R57+S57+T57+U57+V57+W57+X57+Y57+Z57+AA57) -> 4986 | AC57: 73.1 | AD57: 0 | AE57: =B57*K57 -> 277 | AG57: =C57*M57 -> 565.08 | AI57: =D57*O57 -> 576.3816 | AK57: =D57*Q57 -> 576.3816 | AM57: =E57*S57 -> 587.909232 | AO57: =F57*U57 -> 599.6674166 | AQ57: =F57*W57 -> 599.6674166 | AS57: =G57*Y57 -> 611.660765 | AU57: =H57*AA57 -> 623.8939803 | AV57: 5017.642011
A58: MO+DPL A1 | B58: 332.5 | C58: 339.15 | D58: 345.933 | E58: 352.85166 | F58: 359.9086932 | G58: 367.1068671 | H58: 374.4490044 | J58: 1 | AB58: =B58*(J58+K58+L58+M58+N58+O58+P58+Q58+R58+S58+T58+U58+V58+W58+X58+Y58+Z58+AA58) -> 332.5 | AC58: 250 | AD58: 0 | AV58: 0
A59: MO+DPL A2 | B59: 379.05 | C59: 386.631 | D59: 394.36362 | E59: 402.2508924 | F59: 410.2959102 | G59: 418.5018285 | H59: 426.871865 | K59: 1 | AB59: 379.05 | AC59: 285 | AE59: =B59 -> 379.05 | AV59: 379.05
A60: MO+DPL A3 | B60: 332.5 | C60: 339.15 | D60: 345.933 | E60: 352.85166 | F60: 359.9086932 | G60: 367.1068671 | H60: 374.4490044 | L60: 1 | AB60: 332.5 | AC60: 250 | AF60: 0 | AV60: 0
A61: MO+DPL A4 | B61: 379.05 | C61: 386.631 | D61: 394.36362 | E61: 402.2508924 | F61: 410.2959102 | G61: 418.5018285 | H61: 426.871865 | M61: 1 | AB61: 379.05 | AC61: 285 | AG61: =C61 -> 386.631 | AV61: 386.631
A62: MO+DPL A5 | B62: 332.5 | C62: 339.15 | D62: 345.933 | E62: 352.85166 | F62: 359.9086932 | G62: 367.1068671 | H62: 374.4490044 | N62: 1 | AB62: 332.5 | AC62: 250 | AH62: 0 | AV62: 0
A63: MO+DPL A6 | B63: 379.05 | C63: 386.631 | D63: 394.36362 | E63: 402.2508924 | F63: 410.2959102 | G63: 418.5018285 | H63: 426.871865 | O63: 1 | AB63: 379.05 | AC63: 285 | AI63: =D63 -> 394.36362 | AV63: 394.36362
A64: MO+DPL A7 | B64: 332.5 | C64: 339.15 | D64: 345.933 | E64: 352.85166 | F64: 359.9086932 | G64: 367.1068671 | H64: 374.4490044 | P64: 1 | AB64: 332.5 | AC64: 250 | AJ64: 0 | AV64: 0
A65: MO+DPL A8 | B65: 379.05 | C65: 386.631 | D65: 394.36362 | E65: 402.2508924 | F65: 410.2959102 | G65: 418.5018285 | H65: 426.871865 | Q65: 1 | AB65: 379.05 | AC65: 285 | AK65: =D65 -> 394.36362 | AV65: 394.36362
A66: MO+DPL A9 | B66: 332.5 | C66: 339.15 | D66: 345.933 | E66: 352.85166 | F66: 359.9086932 | G66: 367.1068671 | H66: 374.4490044 | R66: 1 | AB66: 332.5 | AC66: 250 | AL66: 0 | AV66: 0
A67: MO+DPL A10 | B67: 379.05 | C67: 386.631 | D67: 394.36362 | E67: 402.2508924 | F67: 410.2959102 | G67: 418.5018285 | H67: 426.871865 | S67: 1 | AB67: 379.05 | AC67: 285 | AM67: =E67 -> 402.2508924 | AV67: 402.2508924
A68: MO+DPL A11 | B68: 332.5 | C68: 339.15 | D68: 345.933 | E68: 352.85166 | F68: 359.9086932 | G68: 367.1068671 | H68: 374.4490044 | T68: 1 | AB68: 332.5 | AC68: 250 | AN68: 0 | AV68: 0
A69: MO+DPL A12 | B69: 379.05 | C69: 386.631 | D69: 394.36362 | E69: 402.2508924 | F69: 410.2959102 | G69: 418.5018285 | H69: 426.871865 | U69: 1 | AB69: 379.05 | AC69: 285 | AO69: =F69 -> 410.2959102 | AV69: 410.2959102
A70: MO+DPL A13 | B70: 332.5 | C70: 339.15 | D70: 345.933 | E70: 352.85166 | F70: 359.9086932 | G70: 367.1068671 | H70: 374.4490044 | V70: 1 | AB70: 332.5 | AC70: 250 | AP70: 0 | AV70: 0
A71: MO+DPL A14 | B71: 379.05 | C71: 386.631 | D71: 394.36362 | E71: 402.2508924 | F71: 410.2959102 | G71: 418.5018285 | H71: 426.871865 | W71: 1 | AB71: 379.05 | AC71: 285 | AQ71: =F71 -> 410.2959102 | AV71: 410.2959102
A72: MO+DPL A15 | B72: 332.5 | C72: 339.15 | D72: 345.933 | E72: 352.85166 | F72: 359.9086932 | G72: 367.1068671 | H72: 374.4490044 | X72: 1 | AB72: 332.5 | AC72: 250 | AR72: 0 | AV72: 0
A73: MO+DPL A16 | B73: 379.05 | C73: 386.631 | D73: 394.36362 | E73: 402.2508924 | F73: 410.2959102 | G73: 418.5018285 | H73: 426.871865 | Y73: 1 | AB73: 379.05 | AC73: 285 | AS73: =G73 -> 418.5018285 | AV73: 418.5018285
A74: MO+DPL A17 | B74: 332.5 | C74: 339.15 | D74: 345.933 | E74: 352.85166 | F74: 359.9086932 | G74: 367.1068671 | H74: 374.4490044 | Z74: 1 | AB74: 332.5 | AC74: 250 | AT74: 0 | AV74: 0
A75: MO+DPL A18 | B75: 379.05 | C75: 386.631 | D75: 394.36362 | E75: 402.2508924 | F75: 410.2959102 | G75: 418.5018285 | H75: 426.871865 | AA75: 1 | AB75: 379.05 | AC75: 285 | AU75: =H75 -> 426.871865 | AV75: 426.871865
C76: 0 | D76: 0 | E76: 0 | F76: =E76*$V$52 -> 0 | G76: =F76*$V$52 -> 0 | H76: 0
A77: recyclage | B77: 4.5 | C77: 4.59 | D77: 4.6818 | E77: 4.775436 | F77: =E77*$V$52 -> 4.87094472 | G77: =F77*$V$52 -> 4.968363614 | H77: 5.067730887 | J77: 1 | K77: 1 | L77: 1 | M77: 1 | N77: 1 | O77: 1 | P77: 1 | Q77: 1 | R77: 1 | S77: 1 | T77: 1 | U77: 1 | V77: 1 | W77: 1 | X77: 1 | Y77: 1 | Z77: 1 | AA77: 1 | AB77: =B77*(J77+K77+L77+M77+N77+O77+P77+Q77+R77+S77+T77+U77+V77+W77+X77+Y77+Z77+AA77) -> 81 | AC77: 4.5 | AE77: =B77 -> 4.5 | AG77: =C77 -> 4.59 | AI77: =D77 -> 4.6818 | AK77: =D77 -> 4.6818 | AM77: =E77 -> 4.775436 | AO77: =F77 -> 4.87094472 | AQ77: =F77 -> 4.87094472 | AS77: =F77 -> 4.87094472 | AU77: =H77 -> 5.067730887 | AV77: =SUM(AD77:AU77) -> 42.90960105
U78: =SUM(AB54:AB77) -> 21400.05 | W78: =U78/6 -> 3566.675 | AV78: =SUM(AV54:AV77) -> 19217.15333
AV79: =AV78/9 -> 2135.239259
AD80: =SUM(AD54:AD77) -> 0 | AE80: =SUM(AE54:AE77) -> 1566.05 | AF80: 0 | AG80: 2333.709 | AH80: 0 | AI80: 1917.50922 | AJ80: 0 | AK80: 2380.38318 | AL80: 0 | AM80: 1955.859404 | AN80: 0 | AO80: 2467.108032 | AP80: 0 | AQ80: 1994.976592 | AR80: 0 | AS80: 2525.984255 | AT80: 0 | AU80: 2075.573647 | AV80: =SUM(AD80:AU80) -> 19217.15333

Sheet L23-L29RS
A1: L23 à L29RS
A2: Pour 2000h/AN
B4: PV | N4: evolution du prix 2%/an | P4: 0.02
B5: prix | C5: année 1 | D5: année 2 | E5: année 3 | F5: année 4 | G5: année 5 | H5: année 6 | J5: Total An 1 | L5: Total An 1 | M5: Total An 2 | N5: Total An 3 | O5: Total An 4 | P5: Total An 5 | Q5: Total An 6
A7: COM CK4122-2-RS | B7: 943.5 | D7: 1 | F7: 1 | H7: 1 | J7: =B7*(C7+D7+E7+F7+G7+H7) -> 2830.5 | L7: =(B7*P4)+B7 -> 962.37 | M7: =(L7*P4)+L7 -> 981.6174 | N7: =(M7*P4)+M7 -> 1001.249748 | O7: =(N7*P4)+N7 -> 1021.274743 | P7: =(O7*P4)+O7 -> 1041.700238 | Q7: =(P7*P4)+P7 -> 1062.534243 | R7: =SUM(L7:Q7) -> 6070.746371 | T7: Maintenace sur 3 ans (garantie 4 ans)
A8: com CK8122-1 | B8: 444.9 | D8: 1 | F8: 1 | H8: 1 | J8: 1334.7 | L8: =(B8*P4)+B8 -> 453.798 | M8: =(L8*P4)+L8 -> 462.87396 | N8: =(M8*P4)+M8 -> 472.1314392 | O8: =(N8*P4)+N8 -> 481.574068 | P8: =(O8*P4)+O8 -> 491.2055493 | Q8: =(P8*P4)+P8 -> 501.0296603 | R8: =SUM(M8,O8,Q8) -> 1445.477688
A9: COM SCWO4000-20 | B9: 277 | C9: 0 | D9: 1 | F9: 1 | H9: 1 | J9: =B9*(C9+D9+F9+H9) -> 831 | L9: =(B9*$P$4)+B9 -> 282.54 | M9: =L9*P4+L9 -> 288.1908 | N9: =M9*P4+M9 -> 293.954616 | O9: =N9*P4+N9 -> 299.8337083 | P9: =O9*P4+O9 -> 305.8303825 | Q9: =P9*P4+P9 -> 311.9469901 | R9: =SUM(L9:Q9) -> 1782.296497 | T9: =SUM(L20:N20)/3 -> 1791.06968
A10: MO+DPL A1 | B10: 332.5 | C10: 1 | J10: 332.5 | L10: =(B10*P4)+B10 -> 339.15 | M10: =(L10*P4)+L10 -> 345.933 | N10: =(M10*P4)+M10 -> 352.85166 | O10: =(N10*P4)+N10 -> 359.9086932 | P10: =(O10*P4)+O10 -> 367.1068671 | Q10: =(P10*P4)+P10 -> 374.4490044 | R10: =SUM(L10) -> 339.15
A11: MO+DPL A2 | B11: 379.05 | D11: 1 | J11: 379.05 | L11: =(B11*P4)+B11 -> 386.631 | M11: =(L11*P4)+L11 -> 394.36362 | N11: =(M11*P4)+M11 -> 402.2508924 | O11: =(N11*P4)+N11 -> 410.2959102 | P11: =(O11*P4)+O11 -> 418.5018285 | Q11: =(P11*P4)+P11 -> 426.871865 | R11: =SUM(M11) -> 394.36362 | T11: Maintenace sur 5 ans (garantie 6 ans)
A12: MO+DPL A3 | B12: 332.5 | E12: 1 | J12: 332.5 | L12: =(B12*P4)+B12 -> 339.15 | M12: =(L12*P4)+L12 -> 345.933 | N12: =(M12*P4)+M12 -> 352.85166 | O12: =(N12*P4)+N12 -> 359.9086932 | P12: =(O12*P4)+O12 -> 367.1068671 | Q12: =(P12*P4)+P12 -> 374.4490044 | R12: =SUM(N12) -> 352.85166
A13: MO+DPL A4 | B13: 379.05 | F13: 1 | J13: 379.05 | L13: =(B13*P4)+B13 -> 386.631 | M13: =(L13*P4)+L13 -> 394.36362 | N13: =(M13*P4)+M13 -> 402.2508924 | O13: =(N13*P4)+N13 -> 410.2959102 | P13: =(O13*P4)+O13 -> 418.5018285 | Q13: =(P13*P4)+P13 -> 426.871865 | R13: =SUM(O13) -> 410.2959102 | T13: =SUM(L20:P20)/5 -> 1862.132853
A14: MO+DPL A5 | B14: 332.5 | G14: 1 | J14: 332.5 | L14: =(B14*P4)+B14 -> 339.15 | M14: =(L14*P4)+L14 -> 345.933 | N14: =(M14*P4)+M14 -> 352.85166 | O14: =(N14*P4)+N14 -> 359.9086932 | P14: =(O14*P4)+O14 -> 367.1068671 | Q14: =(P14*P4)+P14 -> 374.4490044 | R14: =SUM(P14) -> 367.1068671
A15: MO+DPL A6 | B15: 379 | H15: 1 | J15: 379 | L15: =(B15*P4)+B15 -> 386.58 | M15: =(L15*P4)+L15 -> 394.3116 | N15: =(M15*P4)+M15 -> 402.197832 | O15: =(N15*P4)+N15 -> 410.2417886 | P15: =(O15*P4)+O15 -> 418.4466244 | Q15: =(P15*P4)+P15 -> 426.8155569 | R15: =SUM(Q15) -> 426.8155569
A16: courroies | B16: 0 | D16: 0 | F16: 0 | H16: 0 | J16: 0 | L16: =(B16*P4)+B16 -> 0 | M16: =(L16*P4)+L16 -> 0 | N16: =(M16*P4)+M16 -> 0 | O16: =(N16*P4)+N16 -> 0 | P16: =(O16*P4)+O16 -> 0 | Q16: =(P16*P4)+P16 -> 0 | R16: =SUM(O16) -> 0
A17: recyclage | B17: 4.5 | C17: 1 | D17: 1 | E17: 1 | F17: 1 | G17: 1 | H17: 1 | J17: =SUM(B17)*(C17+D17+E17+F17+G17+H17) -> 27 | L17: =(B17*P4)+B17 -> 4.59 | M17: =(L17*P4)+L17 -> 4.6818 | N17: =(M17*P4)+M17 -> 4.775436 | O17: =(N17*P4)+N17 -> 4.87094472 | P17: =(O17*P4)+O17 -> 4.968363614 | Q17: =(P17*P4)+P17 -> 5.067730887 | R17: =SUM(L17:Q17) -> 28.95427522
J18: =SUM(J6:J17) -> 7157.8 | L18: =J18/6 -> 1192.966667 | R18: =SUM(R7:R17) -> 11618.05845
R19: =R18/6 -> 1936.343074
L20: =SUM(L7,L9:L10,L17) -> 1588.65 | M20: =SUM(M7:M9,M11,M17) -> 2131.72758 | N20: =SUM(N7,N9,N12,N17) -> 1652.83146 | O20: =SUM(O7:O9,O13,O17) -> 2217.849374 | P20: =SUM(P7,P9,P14,P17) -> 1719.605851 | Q20: =SUM(Q7:Q9,Q15,Q17) -> 2307.394181 | R20: =SUM(L20:Q20) -> 11618.05845
A23: L23 à L29 RS
A24: Pour4000h/AN | B24: PV | C24: 1 Année | E24: 2 Année | G24: 3 Année | I24: 4 Année | K24: 5 Année | M24: 6 Année | S24: evolution du prix 2%/an | U24: 0.02
B25: prix | C25: 6 mois | D25: 12 mois | E25: 18 mois | F25: 24 mois | G25: 30 mois | H25: 36 mois | I25: 42 mois | J25: 48 mois | K25: 54 mois | L25: 60 mois | M25: 66 mois | N25: 72 mois | O25: Total Année N | Q25: Total M6 | R25: Total M12 | S25: Total M18 | T25: Total M24 | U25: Total M30 | V25: Total M36 | W25: Total M42 | X25: Total M48 | Y25: Total M54 | Z25: Total M60 | AA25: Total M66 | AB25: Total M72
A26: COM CK4122-2-RS | B26: 943.5 | C26: 0 | D26: 1 | E26: 0 | F26: 1 | G26: 0 | H26: 1 | I26: 0 | J26: 1 | K26: 0 | L26: 1 | M26: 0 | N26: 1 | O26: =B26*(C26+D26+E26+F26+G26+H26+I26+J26+K26+L26+M26+N26) -> 5661 | Q26: =(B26*U24)+B26 -> 962.37 | R26: =(B26*U24)+B26 -> 962.37 | S26: =(R26*U24)+R26 -> 981.6174 | T26: =(R26*U24)+R26 -> 981.6174 | U26: =(T26*U24)+T26 -> 1001.249748 | V26: =(T26*U24)+T26 -> 1001.249748 | W26: =(V26*U24)+V26 -> 1021.274743 | X26: =(V26*U24)+V26 -> 1021.274743 | Y26: =(X26*U24)+X26 -> 1041.700238 | Z26: =(X26*U24)+X26 -> 1041.700238 | AA26: =(Z26*U24)+Z26 -> 1062.534243 | AB26: =(AA26*AA24)+AA26 -> 1062.534243 | AC26: =SUM(R26,T26,V26,X26,Z26,AB26) -> 6070.746371
A27: com CK8122-1 | B27: 444.9 | D27: 0 | F27: 1 | H27: 0 | J27: 1 | L27: 0 | N27: 1 | O27: =B27*(C27+D27+E27+F27+G27+H27+I27+J27+K27+L27+M27+N27) -> 1334.7 | Q27: =(B27*U24)+B27 -> 453.798 | R27: =(B27*U24)+B27 -> 453.798 | S27: =(R27*U24)+R27 -> 462.87396 | T27: =(R27*U24)+R27 -> 462.87396 | U27: =(T27*U24)+T27 -> 472.1314392 | V27: =(T27*U24)+T27 -> 472.1314392 | W27: =(V27*U24)+V27 -> 481.574068 | X27: =(W27*AA24)+W27 -> 481.574068 | Y27: =(X27*U24)+X27 -> 491.2055493 | Z27: =(Y27*AA24)+Y27 -> 491.2055493 | AA27: =(Z27*U24)+Z27 -> 501.0296603 | AB27: =(AA27*AA24)+AA27 -> 501.0296603 | AC27: =SUM(T27,X27,AB27) -> 1445.477688
A28: COM SCWO4000-20 | B28: 277 | D28: 1 | F28: 1 | H28: 1 | J28: 1 | L28: 1 | N28: 1 | O28: =B28*(C28+D28+E28+F28+G28+H28+I28+J28+K28+L28+M28+N28) -> 1662 | Q28: =(B28*U24)+B28 -> 282.54 | R28: =(B28*U24)+B28*D28 -> 282.54 | S28: =(R28*U24)+R28 -> 288.1908 | T28: =(R28*U24)+R28 -> 288.1908 | U28: =(T28*U24)+T28 -> 293.954616 | V28: =(T28*U24)+T28 -> 293.954616 | W28: =(V28*U24)+V28 -> 299.8337083 | X28: =(V28*U24)+V28 -> 299.8337083 | Y28: =(X28*U24)+X28 -> 305.8303825 | Z28: =(X28*U24)+X28 -> 305.8303825 | AA28: =(Z28*U24)+Z28 -> 311.9469901 | AB28: =(AA28*AA24)+AA28 -> 311.9469901 | AC28: =SUM(R28,T28,V28,X28,Z28,AB28) -> 1782.296497
A30: MO+DPL A1 | B30: 332.5 | C30: 1 | O30: =B30*(C30+D30+E30+F30+G30+H30) -> 332.5 | Q30: =(B30*U24)+B30 -> 339.15 | R30: =(B30*U24)+B30 -> 339.15 | S30: =(R30*U24)+R30 -> 345.933 | T30: =(R30*U24)+R30 -> 345.933 | U30: =(T30*U24)+T30 -> 352.85166 | V30: =(T30*U24)+T30 -> 352.85166 | W30: =(V30*U24)+V30 -> 359.9086932 | X30: =(W30*V24)+W30 -> 359.9086932 | Y30: =(X30*U24)+X30 -> 367.1068671 | Z30: =(Y30*V24)+Y30 -> 367.1068671 | AA30: =(Z30*U24)+Z30 -> 374.4490044 | AB30: =(AA30*V24)+AA30 -> 374.4490044 | AC30: =SUM(Q30) -> 339.15
A31: MO+DPL A2 | B31: 379.05 | D31: 1 | O31: 379.05 | Q31: =(B31*U24)+B31 -> 386.631 | R31: =(B31*U24)+B31 -> 386.631 | S31: =(R31*U24)+R31 -> 394.36362 | T31: =(R31*U24)+R31 -> 394.36362 | U31: =(T31*U24)+T31 -> 402.2508924 | V31: =(T31*U24)+T31 -> 402.2508924 | W31: =(V31*U24)+V31 -> 410.2959102 | X31: =(V31*U24)+V31 -> 410.2959102 | Y31: =(X31*U24)+X31 -> 418.5018285 | Z31: =(X31*U24)+X31 -> 418.5018285 | AA31: =(Z31*U24)+Z31 -> 426.871865 | AB31: =(Z31*U24)+Z31 -> 426.871865 | AC31: =SUM(R31) -> 386.631
A32: MO+DPL A3 | B32: 332.5 | E32: 1 | O32: 332.5 | Q32: =(B32*U24)+B32 -> 339.15 | R32: =(B32*U24)+B32 -> 339.15 | S32: =(R32*U24)+R32 -> 345.933 | T32: =(R32*U24)+R32 -> 345.933 | U32: =(T32*U24)+T32 -> 352.85166 | V32: =(T32*U24)+T32 -> 352.85166 | W32: =(V32*U24)+V32 -> 359.9086932 | X32: =(V32*U24)+V32 -> 359.9086932 | Y32: =(X32*U24)+X32 -> 367.1068671 | Z32: =(X32*U24)+X32 -> 367.1068671 | AA32: =(Z32*U24)+Z32 -> 374.4490044 | AB32: =(Z32*U24)+Z32 -> 374.4490044 | AC32: =SUM(S32) -> 345.933
A33: MO+DPL A4 | B33: 379.05 | F33: 1 | O33: 379.05 | Q33: =(B33*U24)+B33 -> 386.631 | R33: =(B33*U24)+B33 -> 386.631 | S33: =(R33*U24)+R33 -> 394.36362 | T33: =(R33*U24)+R33 -> 394.36362 | U33: =(T33*U24)+T33 -> 402.2508924 | V33: =(T33*U24)+T33 -> 402.2508924 | W33: =(V33*U24)+V33 -> 410.2959102 | X33: =(V33*U24)+V33 -> 410.2959102 | Y33: =(X33*U24)+X33 -> 418.5018285 | Z33: =(X33*U24)+X33 -> 418.5018285 | AA33: =(Z33*U24)+Z33 -> 426.871865 | AB33: =(Z33*U24)+Z33 -> 426.871865 | AC33: =SUM(T33) -> 394.36362
A34: MO+DPL A5 | B34: 332.5 | G34: 1 | O34: 332.5 | Q34: =(B34*U24)+B34 -> 339.15 | R34: =(B34*U24)+B34 -> 339.15 | S34: =(R34*U24)+R34 -> 345.933 | T34: =(R34*U24)+R34 -> 345.933 | U34: =(T34*U24)+T34 -> 352.85166 | V34: =(T34*U24)+T34 -> 352.85166 | W34: =(V34*U24)+V34 -> 359.9086932 | X34: =(V34*U24)+V34 -> 359.9086932 | Y34: =(X34*U24)+X34 -> 367.1068671 | Z34: =(X34*U24)+X34 -> 367.1068671 | AA34: =(Z34*U24)+Z34 -> 374.4490044 | AB34: =(Z34*U24)+Z34 -> 374.4490044 | AC34: =SUM(U34) -> 352.85166
A35: MO+DPL A6 | B35: 379.05 | H35: 1 | O35: 379.05 | Q35: =(B35*U24)+B35 -> 386.631 | R35: =(B35*U24)+B35 -> 386.631 | S35: =(R35*U24)+R35 -> 394.36362 | T35: =(R35*U24)+R35 -> 394.36362 | U35: =(T35*U24)+T35 -> 402.2508924 | V35: =(T35*U24)+T35 -> 402.2508924 | W35: =(V35*U24)+V35 -> 410.2959102 | X35: =(V35*U24)+V35 -> 410.2959102 | Y35: =(X35*U24)+X35 -> 418.5018285 | Z35: =(X35*U24)+X35 -> 418.5018285 | AA35: =(Z35*U24)+Z35 -> 426.871865 | AB35: =(Z35*U24)+Z35 -> 426.871865 | AC35: =SUM(V35) -> 402.2508924
A36: MO+DPL A7 | B36: 332.5 | I36: 1 | O36: =B36*(C36+D36+E36+F36+G36+H36+I36) -> 332.5 | Q36: =(B36*U24)+B36 -> 339.15 | R36: =(B36*U24)+B36 -> 339.15 | S36: =(R36*U24)+R36 -> 345.933 | T36: =(R36*U24)+R36 -> 345.933 | U36: =(T36*U24)+T36 -> 352.85166 | V36: =(T36*U24)+T36 -> 352.85166 | W36: =(V36*U24)+V36 -> 359.9086932 | X36: =(V36*U24)+V36 -> 359.9086932 | Y36: =(X36*U24)+X36 -> 367.1068671 | Z36: =(X36*U24)+X36 -> 367.1068671 | AA36: =(Z36*U24)+Z36 -> 374.4490044 | AB36: =(Z36*U24)+Z36 -> 374.4490044 | AC36: =SUM(W36) -> 359.9086932
A37: MO+DPL A8 | B37: 379.05 | J37: 1 | O37: =B37*(C37+D37+E37+F37+G37+H37+I37+J37+K37+L37+M37+N37) -> 379.05 | Q37: =(B37*U24)+B37 -> 386.631 | R37: =(B37*U24)+B37 -> 386.631 | S37: =(R37*U24)+R37 -> 394.36362 | T37: =(R37*U24)+R37 -> 394.36362 | U37: =(T37*U24)+T37 -> 402.2508924 | V37: =(T37*U24)+T37 -> 402.2508924 | W37: =(V37*U24)+V37 -> 410.2959102 | X37: =(V37*U24)+V37 -> 410.2959102 | Y37: =(X37*U24)+X37 -> 418.5018285 | Z37: =(X37*U24)+X37 -> 418.5018285 | AA37: =(Z37*U24)+Z37 -> 426.871865 | AB37: =(Z37*U24)+Z37 -> 426.871865 | AC37: =SUM(X37) -> 410.2959102
A38: MO+DPL A9 | B38: 332.5 | K38: 1 | O38: 332.5 | Q38: =(B38*U24)+B38 -> 339.15 | R38: =(B38*U24)+B38 -> 339.15 | S38: =(R38*U24)+R38 -> 345.933 | T38: =(R38*U24)+R38 -> 345.933 | U38: =(T38*U24)+T38 -> 352.85166 | V38: =(T38*U24)+T38 -> 352.85166 | W38: =(V38*U24)+V38 -> 359.9086932 | X38: =(V38*U24)+V38 -> 359.9086932 | Y38: =(X38*U24)+X38 -> 367.1068671 | Z38: =(X38*U24)+X38 -> 367.1068671 | AA38: =(Z38*U24)+Z38 -> 374.4490044 | AB38: =(Z38*U24)+Z38 -> 374.4490044 | AC38: =SUM(Y38) -> 367.1068671
A39: MO+DPL A10 | B39: 379.05 | L39: 1 | O39: 379.05 | Q39: =(B39*U24)+B39 -> 386.631 | R39: =(B39*U24)+B39 -> 386.631 | S39: =(R39*U24)+R39 -> 394.36362 | T39: =(R39*U24)+R39 -> 394.36362 | U39: =(T39*U24)+T39 -> 402.2508924 | V39: =(T39*U24)+T39 -> 402.2508924 | W39: =(V39*U24)+V39 -> 410.2959102 | X39: =(V39*U24)+V39 -> 410.2959102 | Y39: =(X39*U24)+X39 -> 418.5018285 | Z39: =(X39*U24)+X39 -> 418.5018285 | AA39: =(Z39*U24)+Z39 -> 426.871865 | AB39: =(Z39*U24)+Z39 -> 426.871865 | AC39: =SUM(Z39) -> 418.5018285
A40: MO+DPL A11 | B40: 333 | M40: 1 | O40: 333 | Q40: =(B40*U24)+B40 -> 339.66 | R40: =(B40*U24)+B40 -> 339.66 | S40: =(R40*U24)+R40 -> 346.4532 | T40: =(R40*U24)+R40 -> 346.4532 | U40: =(T40*U24)+T40 -> 353.382264 | V40: =(T40*U24)+T40 -> 353.382264 | W40: =(V40*U24)+V40 -> 360.4499093 | X40: =(V40*U24)+V40 -> 360.4499093 | Y40: =(X40*U24)+X40 -> 367.6589075 | Z40: =(X40*U24)+X40 -> 367.6589075 | AA40: =(Z40*U24)+Z40 -> 375.0120856 | AB40: =(Z40*U24)+Z40 -> 375.0120856 | AC40: =SUM(AA40) -> 375.0120856
A41: MO+DPL A12 | B41: 379 | N41: 1 | O41: 379 | Q41: =(B41*U24)+B41 -> 386.58 | R41: =(B41*U24)+B41 -> 386.58 | S41: =(R41*U24)+R41 -> 394.3116 | T41: =(R41*U24)+R41 -> 394.3116 | U41: =(T41*U24)+T41 -> 402.197832 | V41: =(T41*U24)+T41 -> 402.197832 | W41: =(V41*U24)+V41 -> 410.2417886 | X41: =(V41*U24)+V41 -> 410.2417886 | Y41: =(X41*U24)+X41 -> 418.4466244 | Z41: =(X41*U24)+X41 -> 418.4466244 | AA41: =(Z41*U24)+Z41 -> 426.8155569 | AB41: =(Z41*U24)+Z41 -> 426.8155569 | AC41: =SUM(AB41) -> 426.8155569
A42: courroies | B42: 50 | D42: 1 | F42: 1 | H42: 1 | I42: 0 | J42: 1 | K42: 0 | L42: 1 | M42: 0 | N42: 1 | O42: 300 | Q42: =(B42*U24)+B42 -> 51 | R42: =(B42*U24)+B42 -> 51 | S42: =(R42*U24)+R42 -> 52.02 | T42: =(R42*U24)+R42 -> 52.02 | U42: =(T42*U24)+T42 -> 53.0604 | V42: =(T42*U24)+T42 -> 53.0604 | W42: =(V42*U24)+V42 -> 54.121608 | X42: =(V42*U24)+V42 -> 54.121608 | Y42: =(X42*U24)+X42 -> 55.20404016 | Z42: =(X42*U24)+X42 -> 55.20404016 | AA42: =(Z42*U24)+Z42 -> 56.30812096 | AB42: =(Z42*U24)+Z42 -> 56.30812096 | AC42: =SUM(R42,T42,V42,X42,Z42,AB42) -> 321.7141691
A43: recyclage | B43: 4.5 | C43: 1 | D43: 1 | E43: 1 | F43: 1 | G43: 1 | H43: 1 | I43: 1 | J43: 1 | K43: 1 | L43: 1 | M43: 1 | N43: 1 | O43: =SUM(B43)*(C43+D43+E43+F43+G43+H43+I43+J43+K43+L43+M43+N43) -> 54 | Q43: =(B43*U24)+B43 -> 4.59 | R43: =(B43*U24)+B43 -> 4.59 | S43: =(R43*U24)+R43 -> 4.6818 | T43: =(R43*U24)+R43 -> 4.6818 | U43: =(T43*U24)+T43 -> 4.775436 | V43: =(T43*U24)+T43 -> 4.775436 | W43: =(V43*U24)+V43 -> 4.87094472 | X43: =(V43*U24)+V43 -> 4.87094472 | Y43: =(X43*U24)+X43 -> 4.968363614 | Z43: =(X43*U24)+X43 -> 4.968363614 | AA43: =(Z43*U24)+Z43 -> 5.067730887 | AB43: =(Z43*U24)+Z43 -> 5.067730887 | AC43: =SUM(R43,T43,V43,X43,Z43,AB43) -> 28.95427522
O44: =SUM(O26:O43) -> 13281.45 | AC44: =SUM(AC26:AC28,AC31,AC33,AC35,AC37,AC39,AC41:AC43) -> 12088.04781
Q45: =(B45*U26)+B45 -> 0 | AC45: =AC44/6 -> 2014.674635
O46: =O44/12 -> 1106.7875 | Q46: 0 | R46: =SUM(R26,R28,R31,R42:R43) -> 1687.131 | S46: 0 | T46: =SUM(T26:T28,T33,T42:T43) -> 2183.74758 | U46: 0 | V46: =SUM(V26,V28,V35,V42:V43) -> 1755.291092 | W46: 0 | X46: =SUM(X26:X28,X37,X42:X43) -> 2271.970982 | Y46: 0 | Z46: =SUM(Z26,Z28,Z39,Z42:Z43) -> 1826.204853 | AA46: 0 | AB46: =SUM(AB26:AB28,AB41:AB43) -> 2363.702302 | AC46: =SUM(Q46:AB46) -> 12088.04781
A49: L23-L29RS | B49: PV | T49: evolution du prix 2%/an | V49: 1.03
A50: Pour6000h/AN | B50: prix2020 | C50: prix2021 | D50: prix2022 | E50: prix2023 | F50: prix2024 | G50: prix2025 | H50: prix2026 | J50: 6 mois | K50: 12 mois | L50: 18 mois | M50: 24 mois | N50: 30 mois | O50: 36 mois | P50: 42 mois | Q50: 48 mois | R50: 54 mois | S50: 60 mois | T50: 66 mois | U50: 72 mois | V50: 78 mois | W50: 84 mois | X50: 90 mois | Y50: 96 mois | Z50: 102 mois | AA50: 108 mois | AB50: Total Année N | AD50: Total M 6 | AE50: Total M 12 | AF50: Total M 18 | AG50: Total M 24 | AH50: Total M 30 | AI50: Total M 36 | AJ50: Total M 42 | AK50: Total M 48 | AL50: Total M 54 | AM50: Total M 60 | AN50: Total M 66 | AO50: Total M 72 | AP50: Total M 78 | AQ50: Total M56 | AR50: Total M60 | AS50: Total M64 | AT50: Total M68 | AU50: Total M72
J51: 0 | K51: 0 | L51: 0 | M51: 0 | N51: 0 | O51: 0 | P51: 0 | Q51: 0 | R51: 0 | S51: 0 | T51: 0 | U51: 0 | V51: 0 | W51: 0 | X51: 0 | Y51: 0 | Z51: 0 | AA51: 0 | AB51: =B51*(J51+K51+L51+M51+N51+O51+P51+Q51+R51+S51+T51+U51+V51+W51+X51+Y51+Z51+AA51) -> 0 | AC51: 114.4 | AD51: =B51 -> 0 | AE51: =AD51 -> 0 | AF51: =C51 -> 0 | AG51: =C51 -> 0 | AH51: =C51 -> 0 | AI51: =D51 -> 0 | AJ51: =D51 -> 0 | AK51: =D51 -> 0 | AL51: =E51 -> 0 | AM51: =E51 -> 0 | AN51: =E51 -> 0 | AO51: =F51 -> 0 | AP51: 0 | AQ51: =F51 -> 0 | AR51: =G51 -> 0 | AS51: =G51 -> 0 | AT51: =G51 -> 0 | AU51: =H51 -> 0 | AV51: =SUM(AD51:AU51) -> 0
A52: COM CK4122-2 | B52: 719 | C52: =B52*$V$49 -> 740.57 | D52: =C52*$V$49 -> 762.7871 | E52: 785.670713 | F52: 809.2408344 | G52: 833.5180594 | H52: 858.5236012 | J52: 1 | K52: 1 | L52: 1 | M52: 1 | N52: 1 | O52: 1 | P52: 1 | Q52: 1 | R52: 1 | S52: 1 | T52: 1 | U52: 1 | V52: 0 | W52: 0 | X52: 0 | Y52: 0 | Z52: 0 | AA52: 0 | AB52: =B52*(J52+K52+L52+M52+N52+O52+P52+Q52+R52+S52+T52+U52+V52+W52+X52+Y52+Z52+AA52) -> 8628 | AC52: 270 | AD52: =B52 -> 719 | AE52: =B52 -> 719 | AF52: =C52 -> 740.57 | AG52: =C52 -> 740.57 | AH52: =D52 -> 762.7871 | AI52: =D52 -> 762.7871 | AJ52: =E52 -> 785.670713 | AK52: =E52 -> 785.670713 | AL52: =F52 -> 809.2408344 | AM52: =F52 -> 809.2408344 | AN52: =G52 -> 833.5180594 | AO52: =G52 -> 833.5180594 | AP52: 0 | AQ52: 0 | AR52: 0 | AS52: 0 | AT52: 0 | AU52: 0 | AV52: =SUM(AD52:AU52) -> 9301.573414 | AX52: =AB52 -> 8628
A53: com CK8122-1 | B53: 250 | C53: =B53*$V$49 -> 257.5 | D53: 265.225 | E53: 273.18175 | F53: 281.3772025 | G53: 289.8185186 | H53: 298.5130741 | J53: 0 | K53: 1 | M53: 1 | O53: 1 | Q53: 1 | S53: 1 | U53: 1 | W53: 0 | X53: 0 | Y53: 0 | AA53: 0 | AB53: =B53*(J53+K53+L53+M53+N53+O53+P53+Q53+R53+S53+T53+U53+V53+W53+X53+Y53+Z53+AA53) -> 1500 | AC53: 239.1 | AE53: =B53 -> 250 | AG53: =C53 -> 257.5 | AI53: =D53 -> 265.225 | AK53: =E53 -> 273.18175 | AM53: =F53 -> 281.3772025 | AO53: =G53 -> 289.8185186 | AS53: 0 | AV53: 1617.102471 | AX53: =AB53 -> 1500
A54: COM SCWOBG2-20 | B54: 220 | C54: =B54*$V$49 -> 226.6 | D54: 233.398 | E54: 240.39994 | F54: 247.6119382 | G54: 255.0402963 | H54: 262.6915052 | J54: 1 | K54: 1 | L54: 1 | M54: 1 | N54: 1 | O54: 1 | P54: 1 | Q54: 1 | R54: 1 | S54: 1 | T54: 1 | U54: 1 | V54: 0 | W54: 0 | X54: 0 | Y54: 0 | Z54: 0 | AA54: 0 | AB54: =B54*(J54+K54+L54+M54+N54+O54+P54+Q54+R54+S54+T54+U54+V54+W54+X54+Y54+Z54+AA54) -> 2640 | AC54: 73.1 | AD54: =B54*J54 -> 220 | AE54: =B54*K54 -> 220 | AF54: =C54*L54 -> 226.6 | AG54: =C54*M54 -> 226.6 | AH54: =D54*N54 -> 233.398 | AI54: =D54*O54 -> 233.398 | AJ54: =E54*P54 -> 240.39994 | AK54: =E54*Q54 -> 240.39994 | AL54: =F54*R54 -> 247.6119382 | AM54: =F54*S54 -> 247.6119382 | AN54: =G54*T54 -> 255.0402963 | AO54: =G54*U54 -> 255.0402963 | AP54: 0 | AQ54: 0 | AR54: 0 | AS54: 0 | AT54: 0 | AU54: 0 | AV54: 2846.100349 | AW54: =SUM(AV52:AV54) -> 13764.77623 | AX54: 2640
A55: MO+DPL A1 | B55: 380 | C55: 391.4 | D55: 403.142 | E55: 415.23626 | F55: 427.6933478 | G55: 440.5241482 | H55: 453.7398727 | J55: 1 | AB55: =B55*(J55+K55+L55+M55+N55+O55+P55+Q55+R55+S55+T55+U55+V55+W55+X55+Y55+Z55+AA55) -> 380 | AC55: 250 | AD55: =B55 -> 380 | AV55: 380 | AX55: 380
A56: MO+DPL A2 | B56: 380 | C56: 391.4 | D56: 403.142 | E56: 415.23626 | F56: 427.6933478 | G56: 440.5241482 | H56: 453.7398727 | K56: 1 | AB56: 380 | AC56: 285 | AE56: =B56 -> 380 | AV56: 380 | AX56: 380
A57: MO+DPL A3 | B57: 380 | C57: 391.4 | D57: 403.142 | E57: 415.23626 | F57: 427.6933478 | G57: 440.5241482 | H57: 453.7398727 | L57: 1 | AB57: 380 | AC57: 250 | AF57: =C57 -> 391.4 | AV57: 391.4 | AX57: 380
A58: MO+DPL A4 | B58: 380 | C58: 391.4 | D58: 403.142 | E58: 415.23626 | F58: 427.6933478 | G58: 440.5241482 | H58: 453.7398727 | M58: 1 | AB58: 380 | AC58: 285 | AG58: =C58 -> 391.4 | AV58: 391.4 | AX58: 380
A59: MO+DPL A5 | B59: 380 | C59: 391.4 | D59: 403.142 | E59: 415.23626 | F59: 427.6933478 | G59: 440.5241482 | H59: 453.7398727 | N59: 1 | AB59: 380 | AC59: 250 | AH59: =D59 -> 403.142 | AV59: 403.142 | AX59: 380
A60: MO+DPL A6 | B60: 380 | C60: 391.4 | D60: 403.142 | E60: 415.23626 | F60: 427.6933478 | G60: 440.5241482 | H60: 453.7398727 | O60: 1 | AB60: 380 | AC60: 285 | AI60: =D60 -> 403.142 | AV60: 403.142 | AX60: 380
A61: MO+DPL A7 | B61: 380 | C61: 391.4 | D61: 403.142 | E61: 415.23626 | F61: 427.6933478 | G61: 440.5241482 | H61: 453.7398727 | P61: 1 | AB61: 380 | AC61: 250 | AJ61: =E61 -> 415.23626 | AV61: 415.23626 | AX61: 380
A62: MO+DPL A8 | B62: 380 | C62: 391.4 | D62: 403.142 | E62: 415.23626 | F62: 427.6933478 | G62: 440.5241482 | H62: 453.7398727 | Q62: 1 | AB62: 380 | AC62: 285 | AK62: =E62 -> 415.23626 | AV62: 415.23626 | AX62: 380
A63: MO+DPL A9 | B63: 380 | C63: 391.4 | D63: 403.142 | E63: 415.23626 | F63: 427.6933478 | G63: 440.5241482 | H63: 453.7398727 | R63: 1 | AB63: 380 | AC63: 250 | AL63: =F63 -> 427.6933478 | AV63: 427.6933478 | AX63: 380
A64: MO+DPL A10 | B64: 380 | C64: 391.4 | D64: 403.142 | E64: 415.23626 | F64: 427.6933478 | G64: 440.5241482 | H64: 453.7398727 | S64: 1 | AB64: 380 | AC64: 285 | AM64: =F64 -> 427.6933478 | AV64: 427.6933478 | AX64: 380
A65: MO+DPL A11 | B65: 380 | C65: 391.4 | D65: 403.142 | E65: 415.23626 | F65: 427.6933478 | G65: 440.5241482 | H65: 453.7398727 | T65: 1 | AB65: 380 | AC65: 250 | AN65: =G65 -> 440.5241482 | AV65: 440.5241482 | AX65: 380
A66: MO+DPL A12 | B66: 380 | C66: 391.4 | D66: 403.142 | E66: 415.23626 | F66: 427.6933478 | G66: 440.5241482 | H66: 453.7398727 | U66: 1 | AB66: 380 | AC66: 285 | AO66: =G66 -> 440.5241482 | AV66: 440.5241482 | AW66: =SUM(AV55:AV66) -> 4915.991512 | AX66: 380
A67: MO+DPL A13 | B67: 380 | C67: 391.4 | D67: 403.142 | E67: 415.23626 | F67: 427.6933478 | G67: 440.5241482 | H67: 453.7398727 | V67: 0 | AB67: 0 | AC67: 250 | AP67: 0 | AV67: 0 | AX67: 0
A68: MO+DPL A14 | B68: 380 | C68: =B68*$V$49 -> 391.4 | D68: 403.142 | E68: 415.23626 | F68: 427.6933478 | G68: 440.5241482 | H68: 453.7398727 | W68: 0 | AB68: 0 | AC68: 285 | AQ68: 0 | AV68: 0 | AX68: 0
A69: MO+DPL A15 | B69: 380 | C69: 391.4 | D69: 403.142 | E69: 415.23626 | F69: 427.6933478 | G69: 440.5241482 | H69: 453.7398727 | X69: 0 | AB69: 0 | AC69: 250 | AR69: 0 | AV69: 0 | AX69: 0
A70: MO+DPL A16 | B70: 380 | C70: 391.4 | D70: 403.142 | E70: 415.23626 | F70: 427.6933478 | G70: 440.5241482 | H70: 453.7398727 | Y70: 0 | AB70: 0 | AC70: 285 | AS70: 0 | AV70: 0 | AX70: 0
A71: MO+DPL A17 | B71: 380 | C71: 391.4 | D71: 403.142 | E71: 415.23626 | F71: 427.6933478 | G71: 440.5241482 | H71: 453.7398727 | Z71: 0 | AB71: 0 | AC71: 250 | AT71: 0 | AV71: 0 | AX71: 0
A72: MO+DPL A18 | B72: 380 | C72: 391.4 | D72: 403.142 | E72: 415.23626 | F72: 427.6933478 | G72: 440.5241482 | H72: 453.7398727 | AA72: 0 | AB72: 0 | AC72: 285 | AU72: 0 | AV72: 0 | AX72: 0
A73: Bea 460 RA | B73: 156 | C73: 160.68 | D73: 165.5004 | E73: 170.465412 | F73: 175.5793744 | G73: 180.8467556 | H73: 186.2721583 | J73: 1 | K73: 1 | L73: 1 | M73: 1 | N73: 1 | O73: 1 | P73: 1 | Q73: 1 | R73: 1 | S73: 1 | T73: 1 | U73: 1 | W73: 0 | X73: 0 | Y73: 0 | AA73: 0 | AB73: 1872 | AD73: =B73 -> 156 | AE73: =B73 -> 156 | AF73: =C73 -> 160.68 | AG73: =C73 -> 160.68 | AH73: =D73 -> 165.5004 | AI73: =D73 -> 165.5004 | AJ73: =E73 -> 170.465412 | AK73: =E73 -> 170.465412 | AL73: =F73 -> 175.5793744 | AM73: =F73 -> 175.5793744 | AN73: =G73 -> 180.8467556 | AO73: =G73 -> 180.8467556 | AQ73: 0 | AS73: 0 | AU73: 0 | AV73: =SUM(AD73:AU73) -> 2018.143884 | AX73: 1872
A74: BEA 700 RB | B74: 0 | C74: =B74*$V$49 -> 0 | D74: 0 | E74: 0 | F74: 0 | G74: 0 | H74: 0 | K74: 1 | M74: 1 | O74: 1 | Q74: 1 | S74: 1 | U74: 1 | W74: 0 | X74: 0 | Y74: 0 | AA74: 0 | AB74: 0 | AE74: =B74 -> 0 | AG74: =C74 -> 0 | AI74: =D74 -> 0 | AK74: =D74 -> 0 | AM74: =E74 -> 0 | AO74: =F74 -> 0 | AQ74: =F74 -> 0 | AS74: 0 | AU74: =H74 -> 0 | AV74: 0 | AX74: 0
A75: imprev | B75: 450 | C75: 463.5 | D75: 477.405 | E75: 491.72715 | F75: 506.4789645 | G75: 521.6733334 | H75: 537.3235334 | K75: 1 | M75: 0 | O75: 1 | Q75: 0 | S75: 1 | U75: 0 | W75: 0 | Y75: 0 | AA75: 0 | AB75: 1350 | AE75: 450 | AG75: 463.5 | AI75: 477.405 | AK75: =E75 -> 491.72715 | AM75: =F75 -> 506.4789645 | AO75: =G75 -> 521.6733334 | AQ75: 0 | AS75: 0 | AU75: 0 | AV75: 2910.784448 | AX75: 1350
A76: Owa 12 | B76: 282.22 | C76: 290.6866 | D76: 299.407198 | E76: 308.3894139 | F76: 317.6410964 | G76: 327.1703292 | H76: 336.9854391 | J76: 1 | K76: 1 | L76: 1 | M76: 1 | N76: 1 | O76: 1 | P76: 1 | Q76: 1 | R76: 1 | S76: 1 | T76: 1 | U76: 1 | W76: 0 | X76: 0 | Y76: 0 | AA76: 0 | AB76: 3386.64 | AD76: =B76 -> 282.22 | AE76: 282.22 | AF76: =C76 -> 290.6866 | AG76: 290.6866 | AH76: =D76 -> 299.407198 | AI76: 299.407198 | AJ76: =E76 -> 308.3894139 | AK76: =E76 -> 308.3894139 | AL76: =F76 -> 317.6410964 | AM76: =F76 -> 317.6410964 | AN76: =G76 -> 327.1703292 | AO76: =G76 -> 327.1703292 | AQ76: 0 | AS76: 0 | AU76: 0 | AV76: 3651.029275 | AX76: 3386.64
A77: recyclage | B77: 8 | C77: 8.24 | D77: 8.4872 | E77: 8.741816 | F77: 9.00407048 | G77: 9.274192594 | H77: 9.552418372 | J77: 1 | K77: 1 | L77: 1 | M77: 1 | N77: 1 | O77: 1 | P77: 1 | Q77: 1 | R77: 1 | S77: 1 | T77: 1 | U77: 1 | V77: 0 | W77: 0 | X77: 0 | Y77: 0 | Z77: 0 | AA77: 0 | AB77: =B77*(J77+K77+L77+M77+N77+O77+P77+Q77+R77+S77+T77+U77+V77+W77+X77+Y77+Z77+AA77) -> 96 | AC77: 4.5 | AD77: =B77 -> 8 | AE77: =B77 -> 8 | AF77: =C77 -> 8.24 | AG77: =C77 -> 8.24 | AH77: =D77 -> 8.4872 | AI77: =D77 -> 8.4872 | AJ77: =E77 -> 8.741816 | AK77: =E77 -> 8.741816 | AL77: =F77 -> 9.00407048 | AM77: =F77 -> 9.00407048 | AN77: =G77 -> 9.274192594 | AO77: =G77 -> 9.274192594 | AP77: 0 | AQ77: 0 | AR77: 0 | AS77: 0 | AT77: 0 | AU77: 0 | AV77: =SUM(AD77:AU77) -> 103.4945581 | AX77: 96
U78: =SUM(AB51:AB77) -> 24032.64 | W78: =U78/6 -> 4005.44 | AV78: =SUM(AV51:AV77) -> 27364.21991 | AX78: 0
AV79: =AV78/12 -> 2280.351659
AB80: =SUM(AB51:AB79) -> 24032.64 | AD80: =SUM(AD51:AD77) -> 1765.22 | AE80: =SUM(AE51:AE77) -> 2465.22 | AF80: 1818.1766 | AG80: 2539.1766 | AH80: 1872.721898 | AI80: 2615.351898 | AJ80: 1928.903555 | AK80: 2693.812455 | AL80: 1986.770662 | AM80: 2774.626829 | AN80: 2046.373781 | AO80: 2857.865633 | AP80: 0 | AQ80: 0 | AR80: 0 | AS80: 0 | AT80: 0 | AU80: 0 | AV80: =SUM(AD80:AU80) -> 27364.21991 | AX80: =SUM(AX52:AX79) -> 24032.64

Sheet L30-L50
A1: L30-L50
A2: Pour 2000h/AN
B4: PV | N4: evolution du prix 2%/an | P4: 0.02
B5: prix | C5: année 1 | D5: année 2 | E5: année 3 | F5: année 4 | G5: année 5 | H5: année 6 | J5: Total An 1 | L5: Total An 1 | M5: Total An 2 | N5: Total An 3 | O5: Total An 4 | P5: Total An 5 | Q5: Total An 6
A6: COM CK2140-1 | B6: 358.6 | C6: 1 | D6: 1 | E6: 1 | F6: 1 | G6: 1 | H6: 1 | J6: =B6*(C6+D6+E6+F6+G6+H6) -> 2151.6 | L6: =(B6*P4)+B6 -> 365.772 | M6: =(L6*P4)+L6 -> 373.08744 | N6: =(M6*P4)+M6 -> 380.5491888 | O6: =(N6*P4)+N6 -> 388.1601726 | P6: =(O6*P4)+O6 -> 395.923376 | Q6: =(P6*P4)+P6 -> 403.8418435 | R6: =SUM(L6:Q6) -> 2307.334021
A7: COM CK4140-1 | B7: 545.9 | D7: 1 | F7: 1 | H7: 1 | J7: =B7*(C7+D7+E7+F7+G7+H7) -> 1637.7 | L7: =(B7*P4)+B7 -> 556.818 | M7: =(L7*P4)+L7 -> 567.95436 | N7: =(M7*P4)+M7 -> 579.3134472 | O7: =(N7*P4)+N7 -> 590.8997161 | P7: =(O7*P4)+O7 -> 602.7177105 | Q7: =(P7*P4)+P7 -> 614.7720647 | R7: =M7+O7+Q7 -> 1773.626141
A8: COM CK8140-2 | B8: 733.6 | F8: 1 | J8: 733.6 | L8: =(B8*P4)+B8 -> 748.272 | M8: =(L8*P4)+L8 -> 763.23744 | N8: =(M8*P4)+M8 -> 778.5021888 | O8: =(N8*P4)+N8 -> 794.0722326 | P8: =(O8*P4)+O8 -> 809.9536772 | Q8: =(P8*P4)+P8 -> 826.1527508 | R8: =SUM(O8) -> 794.0722326
A9: COM SCWO4000-20 | B9: 277 | C9: 2 | D9: 1 | E9: 1 | F9: 1 | G9: 1 | H9: 1 | J9: =B9*(C9+D9+F9+H9) -> 1385 | L9: =(B9*P4)+B9*C9 -> 559.54 | M9: =(L9*P4)+L9*D9/2 -> 290.9608 | N9: =(M9*P4)+M9 -> 296.780016 | O9: =(N9*P4)+N9 -> 302.7156163 | P9: =(O9*P4)+O9 -> 308.7699286 | Q9: =(P9*P4)+P9 -> 314.9453272 | R9: =SUM(L9,M9,O9,Q9) -> 1468.161744
A10: MO+DPL A1 | B10: 332.5 | C10: 1 | J10: 332.5 | L10: =(B10*P4)+B10 -> 339.15 | M10: =(L10*P4)+L10 -> 345.933 | N10: =(M10*P4)+M10 -> 352.85166 | O10: =(N10*P4)+N10 -> 359.9086932 | P10: =(O10*P4)+O10 -> 367.1068671 | Q10: =(P10*P4)+P10 -> 374.4490044 | R10: =SUM(L10) -> 339.15
A11: MO+DPL A2 | B11: 379.05 | D11: 1 | J11: 379.05 | L11: =(B11*P4)+B11 -> 386.631 | M11: =(L11*P4)+L11 -> 394.36362 | N11: =(M11*P4)+M11 -> 402.2508924 | O11: =(N11*P4)+N11 -> 410.2959102 | P11: =(O11*P4)+O11 -> 418.5018285 | Q11: =(P11*P4)+P11 -> 426.871865 | R11: =SUM(M11) -> 394.36362
A12: MO+DPL A3 | B12: 332.5 | E12: 1 | J12: 332.5 | L12: =(B12*P4)+B12 -> 339.15 | M12: =(L12*P4)+L12 -> 345.933 | N12: =(M12*P4)+M12 -> 352.85166 | O12: =(N12*P4)+N12 -> 359.9086932 | P12: =(O12*P4)+O12 -> 367.1068671 | Q12: =(P12*P4)+P12 -> 374.4490044 | R12: =SUM(N12) -> 352.85166
A13: MO+DPL A4 | B13: 379.05 | F13: 1 | J13: 379.05 | L13: =(B13*P4)+B13 -> 386.631 | M13: =(L13*P4)+L13 -> 394.36362 | N13: =(M13*P4)+M13 -> 402.2508924 | O13: =(N13*P4)+N13 -> 410.2959102 | P13: =(O13*P4)+O13 -> 418.5018285 | Q13: =(P13*P4)+P13 -> 426.871865 | R13: =SUM(O13) -> 410.2959102
A14: MO+DPL A5 | B14: 332.5 | G14: 1 | J14: 332.5 | L14: =(B14*P4)+B14 -> 339.15 | M14: =(L14*P4)+L14 -> 345.933 | N14: =(M14*P4)+M14 -> 352.85166 | O14: =(N14*P4)+N14 -> 359.9086932 | P14: =(O14*P4)+O14 -> 367.1068671 | Q14: =(P14*P4)+P14 -> 374.4490044 | R14: =SUM(P14) -> 367.1068671
A15: MO+DPL A6 | B15: 379.05 | H15: 1 | J15: 379.05 | L15: =(B15*P4)+B15 -> 386.631 | M15: =(L15*P4)+L15 -> 394.36362 | N15: =(M15*P4)+M15 -> 402.2508924 | O15: =(N15*P4)+N15 -> 410.2959102 | P15: =(O15*P4)+O15 -> 418.5018285 | Q15: =(P15*P4)+P15 -> 426.871865 | R15: =SUM(Q15) -> 426.871865
L16: =(B16*P4)+B16 -> 0 | M16: =(L16*P4)+L16 -> 0 | N16: =(M16*P4)+M16 -> 0 | O16: =(N16*P4)+N16 -> 0 | P16: =(O16*P4)+O16 -> 0 | Q16: =(P16*P4)+P16 -> 0 | R16: =SUM(M16,O16,Q16) -> 0
A17: recyclage | B17: 4.5 | C17: 1 | D17: 1 | E17: 1 | F17: 1 | G17: 1 | H17: 1 | J17: =SUM(B17)*(C17+D17+E17+F17+G17+H17) -> 27 | L17: =(B17*P4)+B17 -> 4.59 | M17: =(L17*P4)+L17 -> 4.6818 | N17: =(M17*P4)+M17 -> 4.775436 | O17: =(N17*P4)+N17 -> 4.87094472 | P17: =(O17*P4)+O17 -> 4.968363614 | Q17: =(P17*P4)+P17 -> 5.067730887 | R17: =SUM(L17:Q17) -> 28.95427522
J18: =SUM(J6:J17) -> 8069.55 | R18: =SUM(R6:R17) -> 8662.788335
R19: =R18/6 -> 1443.798056
J20: =J18/6 -> 1344.925 | L20: =SUM(L6,L9,L10,L17) -> 1269.052 | M20: =SUM(M6:M7,M9,M11,M17) -> 1631.04802 | N20: =SUM(N6,N12,N17) -> 738.1762848 | O20: =SUM(O6:O9,O13,O17) -> 2491.014593 | P20: =SUM(P6,P14,P17) -> 767.9986067 | Q20: =SUM(Q6:Q7,Q9,Q15,Q17) -> 1765.498831 | R20: =SUM(L20:Q20) -> 8662.788335
A24: L30-L50
A25: Pour4000h/AN | B25: PV | I25: 1 année | K25: 2 année | M25: 3 année | O25: 4 année | Q25: 5 année | S25: 6 année | Y25: evolution du prix 2%/an | AA25: 1.02
B26: prix | C26: prix2017 | D26: prix2018 | E26: prix2019 | F26: prix2020 | G26: prix2021 | H26: prix2022 | I26: 6 mois | J26: 12 mois | K26: 18 mois | L26: 24 mois | M26: 30 mois | N26: 36 mois | O26: 42 mois | P26: 48 mois | Q26: 54 mois | R26: 60 mois | S26: 66 mois | T26: 72 mois | U26: Total Année N | W26: Total M6 | X26: Total M12 | Y26: Total M18 | Z26: Total M24 | AA26: Total M30 | AB26: Total M36 | AC26: Total M42 | AD26: Total M48 | AE26: Total M54 | AF26: Total M60 | AG26: Total M66 | AH26: Total M72
A27: COM CK2140-1 | B27: 358.6 | C27: =B27*$AA$25 -> 365.772 | D27: 373.08744 | E27: 380.5491888 | F27: 388.1601726 | G27: 395.923376 | H27: 403.8418435 | I27: 1 | J27: 1 | K27: 1 | L27: 1 | M27: 1 | N27: 1 | O27: 1 | P27: 1 | Q27: 1 | R27: 1 | S27: 1 | T27: 1 | U27: =B27*(I27+J27+K27+L27+M27+N27+O27+P27+Q27+R27+S27+T27) -> 4303.2 | V27: COM CK2140-1 | W27: =B27 -> 358.6 | X27: =C27 -> 365.772 | Y27: =C27 -> 365.772 | Z27: =D27 -> 373.08744 | AA27: =D27 -> 373.08744 | AB27: =E27 -> 380.5491888 | AC27: =E27 -> 380.5491888 | AD27: =F27 -> 388.1601726 | AE27: =F27 -> 388.1601726 | AF27: =G27 -> 395.923376 | AG27: =G27 -> 395.923376 | AH27: =H27 -> 403.8418435 | AI27: =SUM(W27:AH27) -> 4569.426198
A28: COM CK4140-1 | B28: 545.9 | C28: 556.818 | D28: 567.95436 | E28: 579.3134472 | F28: 590.8997161 | G28: 602.7177105 | H28: 614.7720647 | J28: 1 | L28: 1 | N28: 1 | P28: 1 | R28: 1 | T28: 1 | U28: =B28*(I28+J28+K28+L28+M28+N28+O28+P28+Q28+R28+S28+T28) -> 3275.4 | V28: COM CK4140-1 | W28: 0 | X28: =C28 -> 556.818 | Y28: 0 | Z28: =D28 -> 567.95436 | AA28: 0 | AB28: =E28 -> 579.3134472 | AC28: 0 | AD28: =F28 -> 590.8997161 | AE28: 0 | AF28: =G28 -> 602.7177105 | AG28: 0 | AH28: =H28 -> 614.7720647 | AI28: =SUM(X28,Z28,AB28,AD28,AF28,AH28) -> 3512.475298
A29: COM CK8140-2 | B29: 733.6 | C29: 748.272 | D29: 763.23744 | E29: 778.5021888 | F29: 794.0722326 | G29: 809.9536772 | H29: 826.1527508 | L29: 1 | P29: 1 | R29: 0 | T29: 1 | U29: =B29*(I29+J29+K29+L29+M29+N29+O29+P29+Q29+R29+S29+T29) -> 2200.8 | V29: COM CK8140-2 | W29: 0 | X29: 0 | Y29: 0 | Z29: =D29 -> 763.23744 | AA29: 0 | AB29: 0 | AC29: 0 | AD29: =F29 -> 794.0722326 | AE29: 0 | AF29: 0 | AG29: 0 | AH29: =H29 -> 826.1527508 | AI29: =SUM(Z29,AD29,AH29) -> 2383.462423
A30: COM SCWO4000-20 | B30: 277 | C30: 282.54 | D30: 288.1908 | E30: 293.954616 | F30: 299.8337083 | G30: 305.8303825 | H30: 311.9469901 | I30: 1 | J30: 1 | K30: 1 | L30: 1 | M30: 1 | N30: 1 | O30: 1 | P30: 1 | Q30: 1 | R30: 1 | S30: 1 | T30: 1 | U30: =B30*(I30+J30+L30+N30+P30+R30+T30) -> 1939 | V30: COM SCWO4000-20 | W30: =B30*I30 -> 277 | X30: =C30*J30 -> 282.54 | Y30: =C30 -> 282.54 | Z30: =D30 -> 288.1908 | AA30: =D30*M30 -> 288.1908 | AB30: =E30 -> 293.954616 | AC30: =E30 -> 293.954616 | AD30: =F30 -> 299.8337083 | AE30: =F30*Q30 -> 299.8337083 | AF30: =G30 -> 305.8303825 | AG30: =G30 -> 305.8303825 | AH30: =H30 -> 311.9469901 | AI30: =SUM(W30:AH30) -> 3529.646004
A31: MO+DPL A1 | B31: 332.5 | C31: 339.15 | D31: 345.933 | E31: 352.85166 | F31: 359.9086932 | G31: 367.1068671 | H31: 374.4490044 | I31: 1 | U31: =B31*(I31+J31+K31+L31+M31+N31) -> 332.5 | V31: MO+DPL A1 | W31: =B31 -> 332.5 | X31: 0 | Y31: 0 | AI31: =SUM(W31) -> 332.5
A32: MO+DPL A2 | B32: 379.05 | C32: 386.631 | D32: 394.36362 | E32: 402.2508924 | F32: 410.2959102 | G32: 418.5018285 | H32: 426.871865 | J32: 1 | U32: 379.05 | V32: MO+DPL A2 | X32: =C32 -> 386.631 | Y32: 0 | AI32: =SUM(X32) -> 386.631
A33: MO+DPL A3 | B33: 332.5 | C33: 339.15 | D33: 345.933 | E33: 352.85166 | F33: 359.9086932 | G33: 367.1068671 | H33: 374.4490044 | K33: 1 | U33: 332.5 | V33: MO+DPL A3 | Y33: =C33 -> 339.15 | AI33: =SUM(Y33) -> 339.15
A34: MO+DPL A4 | B34: 379.05 | C34: 386.631 | D34: 394.36362 | E34: 402.2508924 | F34: 410.2959102 | G34: 418.5018285 | H34: 426.871865 | L34: 1 | U34: 379.05 | V34: MO+DPL A4 | Z34: =D34 -> 394.36362 | AI34: =SUM(Z34) -> 394.36362
A35: MO+DPL A5 | B35: 332.5 | C35: 339.15 | D35: 345.933 | E35: 352.85166 | F35: 359.9086932 | G35: 367.1068671 | H35: 374.4490044 | M35: 1 | U35: 332.5 | V35: MO+DPL A5 | AA35: =D35 -> 345.933 | AI35: =SUM(AA35) -> 345.933
A36: MO+DPL A6 | B36: 379.05 | C36: 386.631 | D36: 394.36362 | E36: 402.2508924 | F36: 410.2959102 | G36: 418.5018285 | H36: 426.871865 | N36: 1 | U36: 379.05 | V36: MO+DPL A6 | AB36: =E36 -> 402.2508924 | AI36: =SUM(AB36) -> 402.2508924
A37: MO+DPL A7 | B37: 332.5 | C37: =B37*$AA$25 -> 339.15 | D37: 345.933 | E37: 352.85166 | F37: 359.9086932 | G37: 367.1068671 | H37: 374.4490044 | O37: 1 | U37: =B37*(I37+J37+K37+L37+M37+N37+O37) -> 332.5 | V37: MO+DPL A7 | AC37: =E37 -> 352.85166 | AI37: =SUM(AC37) -> 352.85166
A38: MO+DPL A8 | B38: 379.05 | C38: 386.631 | D38: 394.36362 | E38: 402.2508924 | F38: 410.2959102 | G38: 418.5018285 | H38: 426.871865 | P38: 1 | U38: =B38*(I38+J38+K38+L38+M38+N38+O38+P38+Q38+R38+S38+T38) -> 379.05 | V38: MO+DPL A8 | AD38: =F38 -> 410.2959102 | AI38: =SUM(AD38) -> 410.2959102
A39: MO+DPL A9 | B39: 332.5 | C39: 339.15 | D39: 345.933 | E39: 352.85166 | F39: 359.9086932 | G39: 367.1068671 | H39: 374.4490044 | Q39: 1 | U39: =B39*(I39+J39+K39+L39+M39+N39+O39+P39+Q39+R39+S39+T39) -> 332.5 | V39: MO+DPL A9 | AE39: =F39 -> 359.9086932 | AI39: =SUM(AE39) -> 359.9086932
A40: MO+DPL A10 | B40: 379.05 | C40: 386.631 | D40: 394.36362 | E40: 402.2508924 | F40: 410.2959102 | G40: 418.5018285 | H40: 426.871865 | R40: 1 | U40: =B40*(I40+J40+K40+L40+M40+N40+O40+P40+Q40+R40+S40+T40) -> 379.05 | V40: MO+DPL A10 | AF40: =G40 -> 418.5018285 | AI40: =SUM(AF40) -> 418.5018285
A41: MO+DPL A11 | B41: 332.5 | C41: 339.15 | D41: 345.933 | E41: 352.85166 | F41: 359.9086932 | G41: 367.1068671 | H41: 374.4490044 | S41: 1 | U41: =B41*(I41+J41+K41+L41+M41+N41+O41+P41+Q41+R41+S41+T41) -> 332.5 | V41: MO+DPL A11 | AG41: =G41 -> 367.1068671 | AI41: =SUM(AG41) -> 367.1068671
A42: MO+DPL A12 | B42: 379.05 | C42: 386.631 | D42: 394.36362 | E42: 402.2508924 | F42: 410.2959102 | G42: 418.5018285 | H42: 426.871865 | T42: 1 | U42: =B42*(I42+J42+K42+L42+M42+N42+O42+P42+Q42+R42+S42+T42) -> 379.05 | V42: MO+DPL A12 | AH42: =H42 -> 426.871865 | AI42: =SUM(AH42) -> 426.871865
W43: =B43 -> 0 | X43: =C43 -> 0 | Y43: =C43 -> 0 | Z43: =D43 -> 0 | AA43: =D43 -> 0 | AB43: =E43 -> 0 | AC43: =E43 -> 0 | AD43: =F43 -> 0 | AE43: 0 | AF43: =G43 -> 0 | AG43: =G43 -> 0 | AH43: =H43 -> 0
A44: recyclage | B44: 4.5 | C44: =B44*$AA$25 -> 4.59 | D44: 4.6818 | E44: 4.775436 | F44: 4.87094472 | G44: 4.968363614 | H44: 5.067730887 | I44: 1 | J44: 1 | K44: 1 | L44: 1 | M44: 1 | N44: 1 | O44: 1 | P44: 1 | Q44: 1 | R44: 1 | S44: 1 | T44: 1 | U44: =SUM(B44)*(I44+J44+K44+L44+M44+N44+O44+P44+Q44+R44+S44+T44) -> 54 | V44: recyclage | W44: =B44 -> 4.5 | X44: =C44 -> 4.59 | Y44: =C44 -> 4.59 | Z44: =D44 -> 4.6818 | AA44: =D44 -> 4.6818 | AB44: =E44 -> 4.775436 | AC44: =E44 -> 4.775436 | AD44: =F44 -> 4.87094472 | AE44: 4.87094472 | AF44: =G44 -> 4.968363614 | AG44: =G44 -> 4.968363614 | AH44: =H44 -> 5.067730887 | AI44: =SUM(W44:AH44) -> 57.34081956
U45: =SUM(O27:O44) -> 4 | AI45: =SUM(AI27:AI44) -> 18588.71608
AI46: =AI45/12 -> 1549.059673
U47: =U45/12 -> 0.3333333333 | W47: =SUM(W27,W30:W31,W44) -> 972.6 | X47: =SUM(X27:X28,X30,X32,X44) -> 1596.351 | Y47: =SUM(Y27,Y30,Y33,Y44) -> 992.052 | Z47: =SUM(Z27:Z30,Z34,Z44) -> 2391.51546 | AA47: =SUM(AA27,AA30,AA35,AA44) -> 1011.89304 | AB47: =SUM(AB27:AB28,AB30,AB36,AB44) -> 1660.84358 | AC47: =SUM(AC27,AC30,AC37,AC44) -> 1032.130901 | AD47: =SUM(AD27:AD30,AD38,AD44) -> 2488.132685 | AE47: =SUM(AE27,AE30,AE39,AE44) -> 1052.773519 | AF47: =SUM(AF27:AF28,AF30,AF40,AF44) -> 1727.941661 | AG47: =SUM(AG27,AG30,AG41,AG44) -> 1073.828989 | AH47: =SUM(AH27:AH30,AH42,AH44) -> 2588.653245 | AI47: =SUM(W47:AH47) -> 18588.71608
A53: L30 à L50 | B53: PV | T53: evolution du prix 2%/an | V53: 1.02
A54: Pour6000h/AN | B54: prix2016 | C54: prix2017 | D54: prix2018 | E54: prix2019 | F54: prix2020 | G54: prix2021 | H54: prix2022 | J54: 4 mois | K54: 8 mois | L54: 12 mois | M54: 16 mois | N54: 20 mois | O54: 24 mois | P54: 28 mois | Q54: 32 mois | R54: 36 mois | S54: 40 mois | T54: 44 mois | U54: 48 mois | V54: 52 mois | W54: 56 mois | X54: 60 mois | Y54: 64 mois | Z54: 68 mois | AA54: 72 mois | AB54: Total Année N | AD54: Total M4 | AE54: Total M8 | AF54: Total M12 | AG54: Total M16 | AH54: Total M20 | AI54: Total M24 | AJ54: Total M28 | AK54: Total M32 | AL54: Total M36 | AM54: Total M40 | AN54: Total M44 | AO54: Total M48 | AP54: Total M52 | AQ54: Total M56 | AR54: Total M60 | AS54: Total M64 | AT54: Total M68 | AU54: Total M72
A55: COM CK2140-1 | B55: 358.6 | C55: =B55*$V$53 -> 365.772 | D55: 373.08744 | E55: 380.5491888 | F55: 388.1601726 | G55: 395.923376 | H55: 403.8418435 | J55: 1 | K55: 1 | L55: 1 | M55: 1 | N55: 1 | O55: 1 | P55: 1 | Q55: 1 | R55: 1 | S55: 1 | T55: 1 | U55: 1 | V55: 1 | W55: 1 | X55: 1 | Y55: 1 | Z55: 1 | AA55: 1 | AB55: =B55*(J55+K55+L55+M55+N55+O55+P55+Q55+R55+S55+T55+U55+V55+W55+X55+Y55+Z55+AA55) -> 6454.8 | AC55: 114.4 | AD55: =B55 -> 358.6 | AE55: =AD55 -> 358.6 | AF55: =C55 -> 365.772 | AG55: =C55 -> 365.772 | AH55: =C55 -> 365.772 | AI55: =D55 -> 373.08744 | AJ55: =D55 -> 373.08744 | AK55: =D55 -> 373.08744 | AL55: =E55 -> 380.5491888 | AM55: =E55 -> 380.5491888 | AN55: =E55 -> 380.5491888 | AO55: =F55 -> 388.1601726 | AP55: =F55 -> 388.1601726 | AQ55: =F55 -> 388.1601726 | AR55: =G55 -> 395.923376 | AS55: =G55 -> 395.923376 | AT55: =G55 -> 395.923376 | AU55: =H55 -> 403.8418435 | AV55: =SUM(AD55:AU55) -> 6831.518376
A56: COM CK4140-1 | B56: 545.9 | C56: =B56*$V$53 -> 556.818 | D56: 567.95436 | E56: 579.3134472 | F56: 590.8997161 | G56: 602.7177105 | H56: 614.7720647 | K56: 1 | M56: 1 | O56: 1 | Q56: 1 | S56: 1 | U56: 1 | V56: 0 | W56: 1 | X56: 0 | Y56: 1 | Z56: 0 | AA56: 1 | AB56: 4913.1 | AC56: 270 | AE56: =B56 -> 545.9 | AG56: =C56 -> 556.818 | AI56: =D56 -> 567.95436 | AK56: =D56 -> 567.95436 | AM56: =E56 -> 579.3134472 | AO56: =F56 -> 590.8997161 | AQ56: =F56 -> 590.8997161 | AS56: =G56 -> 602.7177105 | AU56: =H56 -> 614.7720647 | AV56: =SUM(AD56:AU56) -> 5217.229375
A57: COM CK8140-2 | B57: 733.6 | C57: 748.272 | D57: 763.23744 | E57: 778.5021888 | F57: 794.0722326 | G57: 809.9536772 | H57: 826.1527508 | M57: 1 | Q57: 1 | S57: 0 | U57: 1 | Y57: 1 | AB57: 2934.4 | AC57: 239.1 | AG57: =C57 -> 748.272 | AK57: =D57 -> 763.23744 | AO57: =E57 -> 778.5021888 | AS57: =G57 -> 809.9536772 | AV57: 3099.965306
A58: COM SCWO4000-20 | B58: 277 | C58: 282.54 | D58: 288.1908 | E58: 293.954616 | F58: 299.8337083 | G58: 305.8303825 | H58: 311.9469901 | J58: 1 | K58: 1 | M58: 2 | O58: 2 | Q58: 2 | S58: 2 | U58: 2 | W58: 2 | Y58: 2 | AA58: 2 | AB58: 4986 | AC58: 73.1 | AD58: =B58*J58 -> 277 | AE58: =B58*K58 -> 277 | AG58: =C58*M58 -> 565.08 | AI58: =D58*O58 -> 576.3816 | AK58: =D58*Q58 -> 576.3816 | AM58: =E58*S58 -> 587.909232 | AO58: =F58*U58 -> 599.6674166 | AQ58: =F58*W58 -> 599.6674166 | AS58: =G58*Y58 -> 611.660765 | AU58: =H58*AA58 -> 623.8939803 | AV58: 5294.642011
A59: MO+DPL A1 | B59: 332.5 | C59: 339.15 | D59: 345.933 | E59: 352.85166 | F59: 359.9086932 | G59: 367.1068671 | H59: 374.4490044 | J59: 1 | AB59: 332.5 | AC59: 250 | AD59: =B59 -> 332.5 | AV59: 332.5
A60: MO+DPL A2 | B60: 379.05 | C60: 386.631 | D60: 394.36362 | E60: 402.2508924 | F60: 410.2959102 | G60: 418.5018285 | H60: 426.871865 | K60: 1 | AB60: 379.05 | AC60: 285 | AE60: =B60 -> 379.05 | AV60: 379.05
A61: MO+DPL A3 | B61: 332.5 | C61: 339.15 | D61: 345.933 | E61: 352.85166 | F61: 359.9086932 | G61: 367.1068671 | H61: 374.4490044 | L61: 1 | AB61: 332.5 | AC61: 250 | AF61: =C61 -> 339.15 | AV61: 339.15
A62: MO+DPL A4 | B62: 379.05 | C62: 386.631 | D62: 394.36362 | E62: 402.2508924 | F62: 410.2959102 | G62: 418.5018285 | H62: 426.871865 | M62: 1 | AB62: 379.05 | AC62: 285 | AG62: =C62 -> 386.631 | AV62: 386.631
A63: MO+DPL A5 | B63: 332.5 | C63: 339.15 | D63: 345.933 | E63: 352.85166 | F63: 359.9086932 | G63: 367.1068671 | H63: 374.4490044 | N63: 1 | AB63: 332.5 | AC63: 250 | AH63: =C63 -> 339.15 | AV63: 339.15
A64: MO+DPL A6 | B64: 379.05 | C64: 386.631 | D64: 394.36362 | E64: 402.2508924 | F64: 410.2959102 | G64: 418.5018285 | H64: 426.871865 | O64: 1 | AB64: 379.05 | AC64: 285 | AI64: =D64 -> 394.36362 | AV64: 394.36362
A65: MO+DPL A7 | B65: 332.5 | C65: 339.15 | D65: 345.933 | E65: 352.85166 | F65: 359.9086932 | G65: 367.1068671 | H65: 374.4490044 | P65: 1 | AB65: 332.5 | AC65: 250 | AJ65: =D65 -> 345.933 | AV65: 345.933
A66: MO+DPL A8 | B66: 379.05 | C66: 386.631 | D66: 394.36362 | E66: 402.2508924 | F66: 410.2959102 | G66: 418.5018285 | H66: 426.871865 | Q66: 1 | AB66: 379.05 | AC66: 285 | AK66: =D66 -> 394.36362 | AV66: 394.36362
A67: MO+DPL A9 | B67: 332.5 | C67: 339.15 | D67: 345.933 | E67: 352.85166 | F67: 359.9086932 | G67: 367.1068671 | H67: 374.4490044 | R67: 1 | AB67: 332.5 | AC67: 250 | AL67: =E67 -> 352.85166 | AV67: 352.85166
A68: MO+DPL A10 | B68: 379.05 | C68: 386.631 | D68: 394.36362 | E68: 402.2508924 | F68: 410.2959102 | G68: 418.5018285 | H68: 426.871865 | S68: 1 | AB68: 379.05 | AC68: 285 | AM68: =E68 -> 402.2508924 | AV68: 402.2508924
A69: MO+DPL A11 | B69: 332.5 | C69: 339.15 | D69: 345.933 | E69: 352.85166 | F69: 359.9086932 | G69: 367.1068671 | H69: 374.4490044 | T69: 1 | AB69: 332.5 | AC69: 250 | AN69: =E69 -> 352.85166 | AV69: 352.85166
A70: MO+DPL A12 | B70: 379.05 | C70: 386.631 | D70: 394.36362 | E70: 402.2508924 | F70: 410.2959102 | G70: 418.5018285 | H70: 426.871865 | U70: 1 | AB70: 379.05 | AC70: 285 | AO70: =F70 -> 410.2959102 | AV70: 410.2959102
A71: MO+DPL A13 | B71: 332.5 | C71: 339.15 | D71: 345.933 | E71: 352.85166 | F71: 359.9086932 | G71: 367.1068671 | H71: 374.4490044 | V71: 1 | AB71: 332.5 | AC71: 250 | AP71: =F71 -> 359.9086932 | AV71: 359.9086932
A72: MO+DPL A14 | B72: 379.05 | C72: 386.631 | D72: 394.36362 | E72: 402.2508924 | F72: 410.2959102 | G72: 418.5018285 | H72: 426.871865 | W72: 1 | AB72: 379.05 | AC72: 285 | AQ72: =F72 -> 410.2959102 | AV72: 410.2959102
A73: MO+DPL A15 | B73: 332.5 | C73: 339.15 | D73: 345.933 | E73: 352.85166 | F73: 359.9086932 | G73: 367.1068671 | H73: 374.4490044 | X73: 1 | AB73: 332.5 | AC73: 250 | AR73: =G73 -> 367.1068671 | AV73: 367.1068671
A74: MO+DPL A16 | B74: 379.05 | C74: 386.631 | D74: 394.36362 | E74: 402.2508924 | F74: 410.2959102 | G74: 418.5018285 | H74: 426.871865 | Y74: 1 | AB74: 379.05 | AC74: 285 | AS74: =G74 -> 418.5018285 | AV74: 418.5018285
A75: MO+DPL A17 | B75: 332.5 | C75: 339.15 | D75: 345.933 | E75: 352.85166 | F75: 359.9086932 | G75: 367.1068671 | H75: 374.4490044 | Z75: 1 | AB75: 332.5 | AC75: 250 | AT75: =G75 -> 367.1068671 | AV75: 367.1068671
A76: MO+DPL A18 | B76: 379.05 | C76: 386.631 | D76: 394.36362 | E76: 402.2508924 | F76: 410.2959102 | G76: 418.5018285 | H76: 426.871865 | AA76: 1 | AB76: 379.05 | AC76: 285 | AU76: =H76 -> 426.871865 | AV76: 426.871865
C77: 0 | D77: 0 | E77: 0 | F77: 0 | G77: 0 | H77: 0
A78: recyclage | B78: 4.5 | C78: =B78*$V$53 -> 4.59 | D78: 4.6818 | E78: 4.775436 | F78: 4.87094472 | G78: 4.968363614 | H78: 5.067730887 | J78: 1 | K78: 1 | L78: 1 | M78: 1 | N78: 1 | O78: 1 | P78: 1 | Q78: 1 | R78: 1 | S78: 1 | T78: 1 | U78: 1 | V78: 1 | W78: 1 | X78: 1 | Y78: 1 | Z78: 1 | AA78: 1 | AB78: 81 | AC78: 4.5 | AD78: =B78 -> 4.5 | AE78: =B78 -> 4.5 | AF78: =C78 -> 4.59 | AG78: =C78 -> 4.59 | AH78: =C78 -> 4.59 | AI78: =D78 -> 4.6818 | AJ78: =D78 -> 4.6818 | AK78: =D78 -> 4.6818 | AL78: =E78 -> 4.775436 | AM78: =E78 -> 4.775436 | AN78: =B78 -> 4.5 | AO78: =F78 -> 4.87094472 | AP78: =F78 -> 4.87094472 | AQ78: =F78 -> 4.87094472 | AR78: =G78 -> 4.968363614 | AS78: =G78 -> 4.968363614 | AT78: =G78 -> 4.968363614 | AU78: =H78 -> 5.067730887 | AV78: =SUM(AD78:AU78) -> 85.45192789
U79: =SUM(AB55:AB78) -> 25773.25 | W79: =U79/6 -> 4295.541667 | AV79: =SUM(AV55:AV78) -> 27307.99039
AV80: =AV79/18 -> 1517.110577
AD81: =SUM(AD55:AD78) -> 972.6 | AE81: =SUM(AE55:AE78) -> 1565.05 | AF81: 709.512 | AG81: 2627.163 | AH81: 709.512 | AI81: 1916.46882 | AJ81: 723.70224 | AK81: 2679.70626 | AL81: 738.1762848 | AM81: 1954.798196 | AN81: 737.9008488 | AO81: 2772.396349 | AP81: 752.9398105 | AQ81: 1993.89416 | AR81: 767.9986067 | AS81: 2843.725721 | AT81: 767.9986067 | AU81: 2074.447484 | AV81: =SUM(AD81:AU81) -> 27307.99039
A83: L30RS | B83: PV | T83: evolution du prix 2%/an | V83: 1.02
A84: Pour6000h/AN | B84: prix2016 | C84: prix2017 | D84: prix2018 | E84: prix2019 | F84: prix2020 | G84: prix2021 | H84: prix2022 | J84: 4 mois | K84: 8 mois | L84: 12 mois | M84: 16 mois | N84: 20 mois | O84: 24 mois | P84: 28 mois | Q84: 32 mois | R84: 36 mois | S84: 40 mois | T84: 44 mois | U84: 48 mois | V84: 52 mois | W84: 56 mois | X84: 60 mois | Y84: 64 mois | Z84: 68 mois | AA84: 72 mois | AB84: Total Année N | AD84: Total M4 | AE84: Total M8 | AF84: Total M12 | AG84: Total M16 | AH84: Total M20 | AI84: Total M24 | AJ84: Total M28 | AK84: Total M32 | AL84: Total M36 | AM84: Total M40 | AN84: Total M44 | AO84: Total M48 | AP84: Total M52 | AQ84: Total M56 | AR84: Total M60 | AS84: Total M64 | AT84: Total M68 | AU84: Total M72
A85: COM CK2140-1 | B85: 358.6 | C85: =B85*$V$53 -> 365.772 | D85: 373.08744 | E85: 380.5491888 | F85: 388.1601726 | G85: 395.923376 | H85: 403.8418435 | J85: 1 | K85: 1 | L85: 1 | M85: 1 | N85: 1 | O85: 1 | P85: 1 | Q85: 1 | R85: 1 | S85: 1 | T85: 1 | U85: 1 | V85: 1 | W85: 1 | X85: 1 | Y85: 1 | Z85: 1 | AA85: 1 | AB85: =B85*(J85+K85+L85+M85+N85+O85+P85+Q85+R85+S85+T85+U85+V85+W85+X85+Y85+Z85+AA85) -> 6454.8 | AC85: 114.4 | AD85: =B85 -> 358.6 | AE85: =AD85 -> 358.6 | AF85: =C85 -> 365.772 | AG85: =C85 -> 365.772 | AH85: =C85 -> 365.772 | AI85: =D85 -> 373.08744 | AJ85: =D85 -> 373.08744 | AK85: =D85 -> 373.08744 | AL85: =E85 -> 380.5491888 | AM85: =E85 -> 380.5491888 | AN85: =E85 -> 380.5491888 | AO85: =F85 -> 388.1601726 | AP85: =F85 -> 388.1601726 | AQ85: =F85 -> 388.1601726 | AR85: =G85 -> 395.923376 | AS85: =G85 -> 395.923376 | AT85: =G85 -> 395.923376 | AU85: =H85 -> 403.8418435 | AV85: =SUM(AD85:AU85) -> 6831.518376
A86: COM CK4140-1-RS | B86: 565.6 | C86: =B86*$V$53 -> 576.912 | D86: 588.45024 | E86: 600.2192448 | F86: 612.2236297 | G86: 624.4681023 | H86: 636.9574643 | K86: 1 | M86: 1 | O86: 1 | Q86: 1 | S86: 1 | U86: 1 | V86: 0 | W86: 1 | X86: 0 | Y86: 1 | Z86: 0 | AA86: 1 | AB86: 5090.4 | AC86: 270 | AE86: =B86 -> 565.6 | AG86: =C86 -> 576.912 | AI86: =D86 -> 588.45024 | AK86: =D86 -> 588.45024 | AM86: =E86 -> 600.2192448 | AO86: =F86 -> 612.2236297 | AQ86: =F86 -> 612.2236297 | AS86: =G86 -> 624.4681023 | AU86: =H86 -> 636.9574643 | AV86: =SUM(AD86:AU86) -> 5405.504551
A87: COM CK8140-2 | B87: 733.6 | C87: =B87*$V$53 -> 748.272 | D87: 763.23744 | E87: 778.5021888 | F87: 794.0722326 | G87: 809.9536772 | H87: 826.1527508 | M87: 1 | Q87: 1 | S87: 0 | U87: 1 | Y87: 1 | AB87: 2934.4 | AC87: 239.1 | AG87: =C87 -> 748.272 | AK87: =D87 -> 763.23744 | AO87: =E87 -> 778.5021888 | AS87: =G87 -> 809.9536772 | AV87: 3099.965306
A88: COM SCWO4000-20 | B88: 277 | C88: =B88*$V$53 -> 282.54 | D88: 288.1908 | E88: 293.954616 | F88: 299.8337083 | G88: 305.8303825 | H88: 311.9469901 | J88: 1 | K88: 1 | M88: 2 | O88: 2 | Q88: 2 | S88: 2 | U88: 2 | W88: 2 | Y88: 2 | AA88: 2 | AB88: 4986 | AC88: 73.1 | AD88: =B88*J88 -> 277 | AE88: =B88*K88 -> 277 | AG88: =C88*M88 -> 565.08 | AI88: =D88*O88 -> 576.3816 | AK88: =D88*Q88 -> 576.3816 | AM88: =E88*S88 -> 587.909232 | AO88: =F88*U88 -> 599.6674166 | AQ88: =F88*W88 -> 599.6674166 | AS88: =G88*Y88 -> 611.660765 | AU88: =H88*AA88 -> 623.8939803 | AV88: 5294.642011
A89: MO+DPL A1 | B89: 332.5 | C89: =B89*$V$53 -> 339.15 | D89: 345.933 | E89: 352.85166 | F89: 359.9086932 | G89: 367.1068671 | H89: 374.4490044 | J89: 1 | AB89: 332.5 | AC89: 250 | AD89: =B89 -> 332.5 | AV89: 332.5
A90: MO+DPL A2 | B90: 379.05 | C90: =B90*$V$53 -> 386.631 | D90: 394.36362 | E90: 402.2508924 | F90: 410.2959102 | G90: 418.5018285 | H90: 426.871865 | K90: 1 | AB90: 379.05 | AC90: 285 | AE90: =B90 -> 379.05 | AV90: 379.05
A91: MO+DPL A3 | B91: 332.5 | C91: =B91*$V$53 -> 339.15 | D91: 345.933 | E91: 352.85166 | F91: 359.9086932 | G91: 367.1068671 | H91: 374.4490044 | L91: 1 | AB91: 332.5 | AC91: 250 | AF91: =C91 -> 339.15 | AV91: 339.15
A92: MO+DPL A4 | B92: 379.05 | C92: =B92*$V$53 -> 386.631 | D92: 394.36362 | E92: 402.2508924 | F92: 410.2959102 | G92: 418.5018285 | H92: 426.871865 | M92: 1 | AB92: 379.05 | AC92: 285 | AG92: =C92 -> 386.631 | AV92: 386.631
A93: MO+DPL A5 | B93: 332.5 | C93: =B93*$V$53 -> 339.15 | D93: 345.933 | E93: 352.85166 | F93: 359.9086932 | G93: 367.1068671 | H93: 374.4490044 | N93: 1 | AB93: 332.5 | AC93: 250 | AH93: =C93 -> 339.15 | AV93: 339.15
A94: MO+DPL A6 | B94: 379.05 | C94: =B94*$V$53 -> 386.631 | D94: 394.36362 | E94: 402.2508924 | F94: 410.2959102 | G94: 418.5018285 | H94: 426.871865 | O94: 1 | AB94: 379.05 | AC94: 285 | AI94: =D94 -> 394.36362 | AV94: 394.36362
A95: MO+DPL A7 | B95: 332.5 | C95: =B95*$V$53 -> 339.15 | D95: 345.933 | E95: 352.85166 | F95: 359.9086932 | G95: 367.1068671 | H95: 374.4490044 | P95: 1 | AB95: 332.5 | AC95: 250 | AJ95: =D95 -> 345.933 | AV95: 345.933
A96: MO+DPL A8 | B96: 379.05 | C96: =B96*$V$53 -> 386.631 | D96: 394.36362 | E96: 402.2508924 | F96: 410.2959102 | G96: 418.5018285 | H96: 426.871865 | Q96: 1 | AB96: 379.05 | AC96: 285 | AK96: =D96 -> 394.36362 | AV96: 394.36362
A97: MO+DPL A9 | B97: 332.5 | C97: =B97*$V$53 -> 339.15 | D97: 345.933 | E97: 352.85166 | F97: 359.9086932 | G97: 367.1068671 | H97: 374.4490044 | R97: 1 | AB97: 332.5 | AC97: 250 | AL97: =E97 -> 352.85166 | AV97: 352.85166
A98: MO+DPL A10 | B98: 379.05 | C98: =B98*$V$53 -> 386.631 | D98: 394.36362 | E98: 402.2508924 | F98: 410.2959102 | G98: 418.5018285 | H98: 426.871865 | S98: 1 | AB98: 379.05 | AC98: 285 | AM98: =E98 -> 402.2508924 | AV98: 402.2508924
A99: MO+DPL A11 | B99: 332.5 | C99: =B99*$V$53 -> 339.15 | D99: 345.933 | E99: 352.85166 | F99: 359.9086932 | G99: 367.1068671 | H99: 374.4490044 | T99: 1 | AB99: 332.5 | AC99: 250 | AN99: =E99 -> 352.85166 | AV99: 352.85166
A100: MO+DPL A12 | B100: 379.05 | C100: =B100*$V$53 -> 386.631 | D100: 394.36362 | E100: 402.2508924 | F100: 410.2959102 | G100: 418.5018285 | H100: 426.871865 | U100: 1 | AB100: 379.05 | AC100: 285 | AO100: =F100 -> 410.2959102 | AV100: 410.2959102
A101: MO+DPL A13 | B101: 332.5 | C101: =B101*$V$53 -> 339.15 | D101: 345.933 | E101: 352.85166 | F101: 359.9086932 | G101: 367.1068671 | H101: 374.4490044 | V101: 1 | AB101: 332.5 | AC101: 250 | AP101: =F101 -> 359.9086932 | AV101: 359.9086932
A102: MO+DPL A14 | B102: 379.05 | C102: =B102*$V$53 -> 386.631 | D102: 394.36362 | E102: 402.2508924 | F102: 410.2959102 | G102: 418.5018285 | H102: 426.871865 | W102: 1 | AB102: 379.05 | AC102: 285 | AQ102: =F102 -> 410.2959102 | AV102: 410.2959102
A103: MO+DPL A15 | B103: 332.5 | C103: =B103*$V$53 -> 339.15 | D103: 345.933 | E103: 352.85166 | F103: 359.9086932 | G103: 367.1068671 | H103: 374.4490044 | X103: 1 | AB103: 332.5 | AC103: 250 | AR103: =G103 -> 367.1068671 | AV103: 367.1068671
A104: MO+DPL A16 | B104: 379.05 | C104: =B104*$V$53 -> 386.631 | D104: 394.36362 | E104: 402.2508924 | F104: 410.2959102 | G104: 418.5018285 | H104: 426.871865 | Y104: 1 | AB104: 379.05 | AC104: 285 | AS104: =G104 -> 418.5018285 | AV104: 418.5018285
A105: MO+DPL A17 | B105: 332.5 | C105: =B105*$V$53 -> 339.15 | D105: 345.933 | E105: 352.85166 | F105: 359.9086932 | G105: 367.1068671 | H105: 374.4490044 | Z105: 1 | AB105: 332.5 | AC105: 250 | AT105: =G105 -> 367.1068671 | AV105: 367.1068671
A106: MO+DPL A18 | B106: 379.05 | C106: =B106*$V$53 -> 386.631 | D106: 394.36362 | E106: 402.2508924 | F106: 410.2959102 | G106: 418.5018285 | H106: 426.871865 | AA106: 1 | AB106: 379.05 | AC106: 285 | AU106: =H106 -> 426.871865 | AV106: 426.871865
C107: 0 | D107: 0 | E107: 0 | F107: 0 | G107: 0 | H107: 0
A108: recyclage | B108: 4.5 | C108: 4.59 | D108: 4.6818 | E108: 4.775436 | F108: 4.87094472 | G108: 4.968363614 | H108: 5.067730887 | J108: 1 | K108: 1 | L108: 1 | M108: 1 | N108: 1 | O108: 1 | P108: 1 | Q108: 1 | R108: 1 | S108: 1 | T108: 1 | U108: 1 | V108: 1 | W108: 1 | X108: 1 | Y108: 1 | Z108: 1 | AA108: 1 | AB108: =B108*(J108+K108+L108+M108+N108+O108+P108+Q108+R108+S108+T108+U108+V108+W108+X108+Y108+Z108+AA108) -> 81 | AC108: 4.5 | AD108: =B108 -> 4.5 | AE108: =B108 -> 4.5 | AF108: =C108 -> 4.59 | AG108: =C108 -> 4.59 | AH108: =C108 -> 4.59 | AI108: =D108 -> 4.6818 | AJ108: =D108 -> 4.6818 | AK108: =D108 -> 4.6818 | AL108: =E108 -> 4.775436 | AM108: =E108 -> 4.775436 | AN108: =B108 -> 4.5 | AO108: =F108 -> 4.87094472 | AP108: =F108 -> 4.87094472 | AQ108: =F108 -> 4.87094472 | AR108: =G108 -> 4.968363614 | AS108: =G108 -> 4.968363614 | AT108: =G108 -> 4.968363614 | AU108: =H108 -> 5.067730887 | AV108: =SUM(AD108:AU108) -> 85.45192789
U109: =SUM(AB85:AB108) -> 25950.55 | W109: =U109/6 -> 4325.091667 | AV109: =SUM(AV85:AV108) -> 27496.26556
AV110: =AV109/18 -> 1527.570309
AD111: =SUM(AD85:AD108) -> 972.6 | AE111: =SUM(AE85:AE108) -> 1584.75 | AF111: 709.512 | AG111: 2647.257 | AH111: 709.512 | AI111: 1936.9647 | AJ111: 723.70224 | AK111: 2700.20214 | AL111: 738.1762848 | AM111: 1975.703994 | AN111: 737.9008488 | AO111: 2793.720263 | AP111: 752.9398105 | AQ111: 2015.218074 | AR111: 767.9986067 | AS111: 2865.476113 | AT111: 767.9986067 | AU111: 2096.632884 | AV111: =SUM(AD111:AU111) -> 27496.26556

Sheet L37-L45 RS
A1: L37-L45 RS
A2: Pour 2000h/AN
B4: PV | O4: evolution du prix 2%/an | Q4: 0.03
B5: prix | C5: année 1 | D5: année 2 | E5: année 3 | F5: année 4 | G5: année 5 | H5: année 6 | K5: Total Année N | M5: Total An 1 | N5: Total An 2 | O5: Total An 3 | P5: Total An 4 | Q5: Total An 5 | R5: Total An 6
A6: COM CK2140-1 | B6: 368.3 | C6: 1 | D6: 1 | E6: 1 | F6: 1 | G6: 1 | H6: 1 | K6: =B6*(C6+D6+E6+F6+G6+H6) -> 2209.8 | M6: =(B6*Q4)+B6 -> 379.349 | N6: =(M6*Q4)+M6 -> 390.72947 | O6: =(N6*Q4)+N6 -> 402.4513541 | P6: =(O6*Q4)+O6 -> 414.5248947 | Q6: =(P6*Q4)+P6 -> 426.9606416 | R6: =(Q6*Q4)+Q6 -> 439.7694608 | S6: =SUM(M6:R6) -> 2453.784821
A7: COM CK4140-1-RS | B7: 598.4 | D7: 1 | F7: 1 | H7: 1 | K7: =B7*(C7+D7+E7+F7+G7+H7) -> 1795.2 | M7: =(B7*Q4)+B7 -> 616.352 | N7: =(M7*Q4)+M7 -> 634.84256 | O7: =(N7*Q4)+N7 -> 653.8878368 | P7: =(O7*Q4)+O7 -> 673.5044719 | Q7: =(P7*Q4)+P7 -> 693.7096061 | R7: =(Q7*Q4)+Q7 -> 714.5208942 | S7: =N7+P7+R7 -> 2022.867926
A8: COM CK8140-1 | B8: 753.5 | F8: 1 | K8: 753.5 | M8: =(B8*Q4)+B8 -> 776.105 | N8: =(M8*Q4)+M8 -> 799.38815 | O8: =(N8*Q4)+N8 -> 823.3697945 | P8: =(O8*Q4)+O8 -> 848.0708883 | Q8: =(P8*Q4)+P8 -> 873.513015 | R8: =(Q8*Q4)+Q8 -> 899.7184054 | S8: =SUM(P8) -> 848.0708883
A9: COM SCWO4000-20 | B9: 277 | C9: 1 | D9: 1 | E9: 0 | F9: 1 | G9: 0 | H9: 1 | K9: =B9*(C9+D9+F9+H9) -> 1108 | M9: =(B9*Q4)+B9 -> 285.31 | N9: =(M9*Q4)+M9*D9 -> 293.8693 | O9: =(N9*Q4)+N9 -> 302.685379 | P9: =(O9*Q4)+O9 -> 311.7659404 | Q9: =(P9*Q4)+P9 -> 321.1189186 | R9: =(Q9*Q4)+Q9 -> 330.7524861 | S9: =SUM(N9,P9,R9) -> 936.3877265
A10: MO+DPL A1 | B10: 332.5 | C10: 1 | K10: 332.5 | M10: =(B10*Q4)+B10 -> 342.475 | N10: =(M10*Q4)+M10 -> 352.74925 | O10: =(N10*Q4)+N10 -> 363.3317275 | P10: =(O10*Q4)+O10 -> 374.2316793 | Q10: =(P10*Q4)+P10 -> 385.4586297 | R10: =(Q10*Q4)+Q10 -> 397.0223886 | S10: =SUM(M10) -> 342.475
A11: MO+DPL A2 | B11: 379.05 | D11: 1 | K11: 379.05 | M11: =(B11*Q4)+B11 -> 390.4215 | N11: =(M11*Q4)+M11 -> 402.134145 | O11: =(N11*Q4)+N11 -> 414.1981694 | P11: =(O11*Q4)+O11 -> 426.6241144 | Q11: =(P11*Q4)+P11 -> 439.4228379 | R11: =(Q11*Q4)+Q11 -> 452.605523 | S11: =SUM(N11) -> 402.134145
A12: MO+DPL A3 | B12: 332.5 | E12: 1 | K12: 332.5 | M12: =(B12*Q4)+B12 -> 342.475 | N12: =(M12*Q4)+M12 -> 352.74925 | O12: =(N12*Q4)+N12 -> 363.3317275 | P12: =(O12*Q4)+O12 -> 374.2316793 | Q12: =(P12*Q4)+P12 -> 385.4586297 | R12: =(Q12*Q4)+Q12 -> 397.0223886 | S12: =SUM(O12) -> 363.3317275
A13: MO+DPL A4 | B13: 379.05 | F13: 1 | K13: 379.05 | M13: =(B13*Q4)+B13 -> 390.4215 | N13: =(M13*Q4)+M13 -> 402.134145 | O13: =(N13*Q4)+N13 -> 414.1981694 | P13: =(O13*Q4)+O13 -> 426.6241144 | Q13: =(P13*Q4)+P13 -> 439.4228379 | R13: =(Q13*Q4)+Q13 -> 452.605523 | S13: =SUM(P13) -> 426.6241144
A14: MO+DPL A5 | B14: 332.5 | G14: 1 | K14: 332.5 | M14: =(B14*Q4)+B14 -> 342.475 | N14: =(M14*Q4)+M14 -> 352.74925 | O14: =(N14*Q4)+N14 -> 363.3317275 | P14: =(O14*Q4)+O14 -> 374.2316793 | Q14: =(P14*Q4)+P14 -> 385.4586297 | R14: =(Q14*Q4)+Q14 -> 397.0223886 | S14: =SUM(Q14) -> 385.4586297
A15: MO+DPL A6 | B15: 379.05 | H15: 1 | K15: 379.05 | M15: =(B15*Q4)+B15 -> 390.4215 | N15: =(M15*Q4)+M15 -> 402.134145 | O15: =(N15*Q4)+N15 -> 414.1981694 | P15: =(O15*Q4)+O15 -> 426.6241144 | Q15: =(P15*Q4)+P15 -> 439.4228379 | R15: =(Q15*Q4)+Q15 -> 452.605523 | S15: =SUM(R15) -> 452.605523
M16: =(B16*Q4)+B16 -> 0 | N16: =(M16*Q4)+M16 -> 0 | O16: =(N16*Q4)+N16 -> 0 | P16: =(O16*Q4)+O16 -> 0 | Q16: =(P16*Q4)+P16 -> 0 | R16: =(Q16*Q4)+Q16 -> 0 | S16: =SUM(N16,P16,R16) -> 0
A17: recyclage | B17: 4.5 | C17: 1 | D17: 1 | E17: 1 | F17: 1 | G17: 1 | H17: 1 | K17: =SUM(B17)*(C17+D17+E17+F17+G17+H17) -> 27 | M17: =(B17*Q4)+B17 -> 4.635 | N17: =(M17*Q4)+M17 -> 4.77405 | O17: =(N17*Q4)+N17 -> 4.9172715 | P17: =(O17*Q4)+O17 -> 5.064789645 | Q17: =(P17*Q4)+P17 -> 5.216733334 | R17: =(Q17*Q4)+Q17 -> 5.373235334 | S17: =SUM(M17:R17) -> 29.98107981
K18: =SUM(K6:K17) -> 8028.15 | S18: =SUM(S6:S17) -> 8663.721582
S19: =S18/6 -> 1443.953597 | T19: =SUM(M20:Q20)/5 -> 1344.139996
K20: =K18/6 -> 1338.025 | M20: =SUM(M6,M10,M17) -> 726.459 | N20: =SUM(N6:N7,N9,N11,N17) -> 1726.349525 | O20: =SUM(O6,O12,O17) -> 770.7003531 | P20: =SUM(P6:P9,P13,P17) -> 2679.555099 | Q20: =SUM(Q6,Q14,Q17) -> 817.6360046 | R20: =SUM(R6:R7,R9,R15,R17) -> 1943.0216 | S20: =SUM(M20:R20) -> 8663.721582
A23: L37-L45 RS
A24: Pour4000h/AN | B24: PV | C24: 1 année | E24: 2 année | G24: 3 année | J24: 4 année | L24: 5 année | N24: 6 année | T24: evolution du prix 2%/an | V24: 0.02
B25: prix | C25: 6 mois | D25: 12 mois | E25: 18 mois | F25: 24 mois | G25: 30 mois | H25: 36 mois | J25: 42 mois | K25: 48 mois | L25: 54 mois | M25: 60 mois | N25: 66 mois | O25: 72 mois | P25: Total Année N | R25: Total M6 | S25: Total M12 | T25: Total M18 | U25: Total M24 | V25: Total M30 | W25: Total M36 | X25: Total M42 | Y25: Total M48 | Z25: Total M54 | AA25: Total M60 | AB25: Total M66 | AI25: Total M72
A26: COM CK2140-1 | B26: 368.3 | C26: 1 | D26: 1 | E26: 1 | F26: 1 | G26: 1 | H26: 1 | J26: 1 | K26: 1 | L26: 1 | M26: 1 | N26: 1 | O26: 1 | P26: =B26*(C26+D26+E26+F26+G26+H26+J26+K26+L26+M26+N26+O26) -> 4419.6 | Q26: COM CK2140-1 | R26: =(B26*V24)+B26 -> 375.666 | S26: =(B26*V24)+B26 -> 375.666 | T26: =(S26*V24)+S26 -> 383.17932 | U26: =(S26*V24)+S26 -> 383.17932 | V26: =(U26*V24)+U26 -> 390.8429064 | W26: =(U26*V24)+U26 -> 390.8429064 | X26: =(W26*V24)+W26 -> 398.6597645 | Y26: =(W26*V24)+W26 -> 398.6597645 | Z26: =(Y26*V24)+Y26 -> 406.6329598 | AA26: =(Y26*V24)+Y26 -> 406.6329598 | AB26: =(AA26*V24)+AA26 -> 414.765619 | AI26: =(AB26*AB24)+AB26 -> 414.765619 | AJ26: =SUM(R26:AI26) -> 4739.49314
A27: COM CK4140-1-RS | B27: 598.4 | D27: 1 | F27: 1 | H27: 1 | K27: 1 | M27: 1 | O27: 1 | P27: =B27*(C27+D27+E27+F27+G27+H27+J27+K27+L27+M27+N27+O27) -> 3590.4 | Q27: COM CK4140-1 | R27: =(B27*V24)+B27 -> 610.368 | S27: =(B27*V24)+B27 -> 610.368 | T27: =(S27*V24)+S27 -> 622.57536 | U27: =(S27*V24)+S27 -> 622.57536 | V27: =(U27*V24)+U27 -> 635.0268672 | W27: =(U27*V24)+U27 -> 635.0268672 | X27: =(W27*V24)+W27 -> 647.7274045 | Y27: =(X27*AB24)+X27 -> 647.7274045 | Z27: =(Y27*V24)+Y27 -> 660.6819526 | AA27: =(Z27*AB24)+Z27 -> 660.6819526 | AB27: =(AA27*V24)+AA27 -> 673.8955917 | AI27: =(AB27*AB24)+AB27 -> 673.8955917 | AJ27: =SUM(S27,U27,W27,Y27,AA27,AI27) -> 3850.275176
A28: COM CK8140-1 | B28: 753.5 | F28: 1 | K28: 1 | M28: 0 | O28: 1 | P28: =B28*(C28+D28+E28+F28+G28+H28+J28+K28+L28+M28+N28+O28) -> 2260.5 | Q28: COM CK8140-2 | R28: =(B28*V24)+B28 -> 768.57 | S28: =(B28*V24)+B28 -> 768.57 | T28: =(S28*V24)+S28 -> 783.9414 | U28: =(S28*V24)+S28 -> 783.9414 | V28: =(U28*V24)+U28 -> 799.620228 | W28: =(U28*V24)+U28 -> 799.620228 | X28: =(W28*V24)+W28 -> 815.6126326 | Y28: =(W28*V24)+W28 -> 815.6126326 | Z28: =(Y28*V24)+Y28 -> 831.9248852 | AA28: =(Y28*V24)+Y28 -> 831.9248852 | AB28: =(AA28*V24)+AA28 -> 848.5633829 | AI28: =(AB28*AB24)+AB28 -> 848.5633829 | AJ28: =SUM(U28,Y28,AI28) -> 2448.117415
A29: COM SCWO4000-20 | B29: 277 | C29: 1 | D29: 1 | E29: 1 | F29: 1 | G29: 2 | H29: 1 | J29: 1 | K29: 1 | L29: 2 | M29: 1 | N29: 1 | O29: 1 | P29: =B29*(C29+D29+F29+H29+K29+M29+O29) -> 1939 | Q29: COM SCWO4000-20 | R29: =B29 -> 277 | S29: =((B29*C29)*V24)+(B29*C29) -> 282.54 | T29: =S29 -> 282.54 | U29: =(T29*V24)+T29 -> 288.1908 | V29: =U29*G29 -> 576.3816 | W29: =(U29*V24)+U29 -> 293.954616 | X29: =(U29*V24)+U29 -> 293.954616 | Y29: =(X29*V24)+X29 -> 299.8337083 | Z29: =Y29*L29 -> 599.6674166 | AA29: =Z29/2 -> 299.8337083 | AB29: =(AA29*V24)+AA29 -> 305.8303825 | AI29: =(AA29*V24)+AA29 -> 305.8303825 | AJ29: =SUM(R29:AI29) -> 4105.55723
A30: MO+DPL A1 | B30: 332.5 | C30: 1 | P30: =B30*(C30+D30+E30+F30+G30+H30) -> 332.5 | Q30: MO+DPL A1 | R30: 285 | S30: =(B30*V24)+B30 -> 339.15 | T30: =(S30*V24)+S30 -> 345.933 | U30: =(S30*V24)+S30 -> 345.933 | V30: =(U30*V24)+U30 -> 352.85166 | W30: =(U30*V24)+U30 -> 352.85166 | X30: =(W30*V24)+W30 -> 359.9086932 | Y30: =(X30*W24)+X30 -> 359.9086932 | Z30: =(Y30*V24)+Y30 -> 367.1068671 | AA30: =(Z30*W24)+Z30 -> 367.1068671 | AB30: =(AA30*V24)+AA30 -> 374.4490044 | AI30: =(AB30*W24)+AB30 -> 374.4490044 | AJ30: =SUM(R30) -> 285
A31: MO+DPL A2 | B31: 379.05 | D31: 1 | P31: 379.05 | Q31: MO+DPL A2 | R31: 325 | S31: =(B31*V24)+B31 -> 386.631 | T31: =(S31*V24)+S31 -> 394.36362 | U31: =(S31*V24)+S31 -> 394.36362 | V31: =(U31*V24)+U31 -> 402.2508924 | W31: =(U31*V24)+U31 -> 402.2508924 | X31: =(W31*V24)+W31 -> 410.2959102 | Y31: =(W31*V24)+W31 -> 410.2959102 | Z31: =(Y31*V24)+Y31 -> 418.5018285 | AA31: =(Y31*V24)+Y31 -> 418.5018285 | AB31: =(AA31*V24)+AA31 -> 426.871865 | AI31: =(AA31*V24)+AA31 -> 426.871865 | AJ31: =SUM(S31) -> 386.631
A32: MO+DPL A3 | B32: 332.5 | E32: 1 | P32: 332.5 | Q32: MO+DPL A3 | R32: 285 | S32: =(B32*V24)+B32 -> 339.15 | T32: =(S32*V24)+S32 -> 345.933 | U32: =(S32*V24)+S32 -> 345.933 | V32: =(U32*V24)+U32 -> 352.85166 | W32: =(U32*V24)+U32 -> 352.85166 | X32: =(W32*V24)+W32 -> 359.9086932 | Y32: =(W32*V24)+W32 -> 359.9086932 | Z32: =(Y32*V24)+Y32 -> 367.1068671 | AA32: =(Y32*V24)+Y32 -> 367.1068671 | AB32: =(AA32*V24)+AA32 -> 374.4490044 | AI32: =(AA32*V24)+AA32 -> 374.4490044 | AJ32: =SUM(T32) -> 345.933
A33: MO+DPL A4 | B33: 379.05 | F33: 1 | P33: 379.05 | Q33: MO+DPL A4 | R33: 325 | S33: =(B33*V24)+B33 -> 386.631 | T33: =(S33*V24)+S33 -> 394.36362 | U33: =(S33*V24)+S33 -> 394.36362 | V33: =(U33*V24)+U33 -> 402.2508924 | W33: =(U33*V24)+U33 -> 402.2508924 | X33: =(W33*V24)+W33 -> 410.2959102 | Y33: =(W33*V24)+W33 -> 410.2959102 | Z33: =(Y33*V24)+Y33 -> 418.5018285 | AA33: =(Y33*V24)+Y33 -> 418.5018285 | AB33: =(AA33*V24)+AA33 -> 426.871865 | AI33: =(AA33*V24)+AA33 -> 426.871865 | AJ33: =SUM(U33) -> 394.36362
A34: MO+DPL A5 | B34: 332.5 | G34: 1 | P34: 332.5 | Q34: MO+DPL A5 | R34: 285 | S34: =(B34*V24)+B34 -> 339.15 | T34: =(S34*V24)+S34 -> 345.933 | U34: =(S34*V24)+S34 -> 345.933 | V34: =(U34*V24)+U34 -> 352.85166 | W34: =(U34*V24)+U34 -> 352.85166 | X34: =(W34*V24)+W34 -> 359.9086932 | Y34: =(W34*V24)+W34 -> 359.9086932 | Z34: =(Y34*V24)+Y34 -> 367.1068671 | AA34: =(Y34*V24)+Y34 -> 367.1068671 | AB34: =(AA34*V24)+AA34 -> 374.4490044 | AI34: =(AA34*V24)+AA34 -> 374.4490044 | AJ34: =SUM(V34) -> 352.85166
A35: MO+DPL A6 | B35: 379.05 | H35: 1 | P35: 379.05 | Q35: MO+DPL A6 | R35: 325 | S35: =(B35*V24)+B35 -> 386.631 | T35: =(S35*V24)+S35 -> 394.36362 | U35: =(S35*V24)+S35 -> 394.36362 | V35: =(U35*V24)+U35 -> 402.2508924 | W35: =(U35*V24)+U35 -> 402.2508924 | X35: =(W35*V24)+W35 -> 410.2959102 | Y35: =(W35*V24)+W35 -> 410.2959102 | Z35: =(Y35*V24)+Y35 -> 418.5018285 | AA35: =(Y35*V24)+Y35 -> 418.5018285 | AB35: =(AA35*V24)+AA35 -> 426.871865 | AI35: =(AA35*V24)+AA35 -> 426.871865 | AJ35: =SUM(W35) -> 402.2508924
A36: MO+DPL A7 | B36: 332.5 | J36: 1 | P36: =B36*(C36+D36+E36+F36+G36+H36+J36) -> 332.5 | Q36: MO+DPL A7 | R36: 285 | S36: =(B36*V24)+B36 -> 339.15 | T36: =(S36*V24)+S36 -> 345.933 | U36: =(S36*V24)+S36 -> 345.933 | V36: =(U36*V24)+U36 -> 352.85166 | W36: =(U36*V24)+U36 -> 352.85166 | X36: =(W36*V24)+W36 -> 359.9086932 | Y36: =(W36*V24)+W36 -> 359.9086932 | Z36: =(Y36*V24)+Y36 -> 367.1068671 | AA36: =(Y36*V24)+Y36 -> 367.1068671 | AB36: =(AA36*V24)+AA36 -> 374.4490044 | AI36: =(AA36*V24)+AA36 -> 374.4490044 | AJ36: =SUM(X36) -> 359.9086932
A37: MO+DPL A8 | B37: 379.05 | K37: 1 | P37: =B37*(C37+D37+E37+F37+G37+H37+J37+K37+L37+M37+N37+O37) -> 379.05 | Q37: MO+DPL A8 | R37: 325 | S37: =(B37*V24)+B37 -> 386.631 | T37: =(S37*V24)+S37 -> 394.36362 | U37: =(S37*V24)+S37 -> 394.36362 | V37: =(U37*V24)+U37 -> 402.2508924 | W37: =(U37*V24)+U37 -> 402.2508924 | X37: =(W37*V24)+W37 -> 410.2959102 | Y37: =(W37*V24)+W37 -> 410.2959102 | Z37: =(Y37*V24)+Y37 -> 418.5018285 | AA37: =(Y37*V24)+Y37 -> 418.5018285 | AB37: =(AA37*V24)+AA37 -> 426.871865 | AI37: =(AA37*V24)+AA37 -> 426.871865 | AJ37: =SUM(Y37) -> 410.2959102
A38: MO+DPL A9 | B38: 332.5 | L38: 1 | P38: =B38*(C38+D38+E38+F38+G38+H38+J38+K38+L38+M38+N38+O38) -> 332.5 | Q38: MO+DPL A9 | R38: 285 | S38: =(B38*V24)+B38 -> 339.15 | T38: =(S38*V24)+S38 -> 345.933 | U38: =(S38*V24)+S38 -> 345.933 | V38: =(U38*V24)+U38 -> 352.85166 | W38: =(U38*V24)+U38 -> 352.85166 | X38: =(W38*V24)+W38 -> 359.9086932 | Y38: =(W38*V24)+W38 -> 359.9086932 | Z38: =(Y38*V24)+Y38 -> 367.1068671 | AA38: =(Y38*V24)+Y38 -> 367.1068671 | AB38: =(AA38*V24)+AA38 -> 374.4490044 | AI38: =(AA38*V24)+AA38 -> 374.4490044 | AJ38: =SUM(Z38) -> 367.1068671
A39: MO+DPL A10 | B39: 379.05 | M39: 1 | P39: =B39*(C39+D39+E39+F39+G39+H39+J39+K39+L39+M39+N39+O39) -> 379.05 | Q39: MO+DPL A10 | R39: 325 | S39: =(B39*V24)+B39 -> 386.631 | T39: =(S39*V24)+S39 -> 394.36362 | U39: =(S39*V24)+S39 -> 394.36362 | V39: =(U39*V24)+U39 -> 402.2508924 | W39: =(U39*V24)+U39 -> 402.2508924 | X39: =(W39*V24)+W39 -> 410.2959102 | Y39: =(W39*V24)+W39 -> 410.2959102 | Z39: =(Y39*V24)+Y39 -> 418.5018285 | AA39: =(Y39*V24)+Y39 -> 418.5018285 | AB39: =(AA39*V24)+AA39 -> 426.871865 | AI39: =(AA39*V24)+AA39 -> 426.871865 | AJ39: =SUM(AA39) -> 418.5018285
A40: MO+DPL A11 | B40: 332.5 | N40: 1 | P40: =B40*(C40+D40+E40+F40+G40+H40+J40+K40+L40+M40+N40+O40) -> 332.5 | Q40: MO+DPL A11 | R40: 285 | S40: =(B40*V24)+B40 -> 339.15 | T40: =(S40*V24)+S40 -> 345.933 | U40: =(S40*V24)+S40 -> 345.933 | V40: =(U40*V24)+U40 -> 352.85166 | W40: =(U40*V24)+U40 -> 352.85166 | X40: =(W40*V24)+W40 -> 359.9086932 | Y40: =(W40*V24)+W40 -> 359.9086932 | Z40: =(Y40*V24)+Y40 -> 367.1068671 | AA40: =(Y40*V24)+Y40 -> 367.1068671 | AB40: =(AA40*V24)+AA40 -> 374.4490044 | AI40: =(AA40*V24)+AA40 -> 374.4490044 | AJ40: =SUM(AB40) -> 374.4490044
A41: MO+DPL A12 | B41: 379.05 | O41: 1 | P41: =B41*(C41+D41+E41+F41+G41+H41+J41+K41+L41+M41+N41+O41) -> 379.05 | Q41: MO+DPL A12 | R41: 325 | S41: =(B41*V24)+B41 -> 386.631 | T41: =(S41*V24)+S41 -> 394.36362 | U41: =(S41*V24)+S41 -> 394.36362 | V41: =(U41*V24)+U41 -> 402.2508924 | W41: =(U41*V24)+U41 -> 402.2508924 | X41: =(W41*V24)+W41 -> 410.2959102 | Y41: =(W41*V24)+W41 -> 410.2959102 | Z41: =(Y41*V24)+Y41 -> 418.5018285 | AA41: =(Y41*V24)+Y41 -> 418.5018285 | AB41: =(AA41*V24)+AA41 -> 426.871865 | AI41: =(AA41*V24)+AA41 -> 426.871865 | AJ41: =SUM(AI41) -> 426.871865
A43: recyclage | B43: 4.5 | C43: 1 | D43: 1 | E43: 1 | F43: 1 | G43: 1 | H43: 1 | J43: 1 | K43: 1 | L43: 1 | M43: 1 | N43: 1 | O43: 1 | P43: =SUM(B43)*(C43+D43+E43+F43+G43+H43+J43+K43+L43+M43+N43+O43) -> 54 | Q43: recyclage | R43: =(B43*V24)+B43 -> 4.59 | S43: =(B43*V24)+B43 -> 4.59 | T43: =(S43*V24)+S43 -> 4.6818 | U43: =(S43*V24)+S43 -> 4.6818 | V43: =(U43*V24)+U43 -> 4.775436 | W43: =(U43*V24)+U43 -> 4.775436 | X43: =(W43*V24)+W43 -> 4.87094472 | Y43: =(W43*V24)+W43 -> 4.87094472 | Z43: =(Y43*V24)+Y43 -> 4.968363614 | AA43: =(Y43*V24)+Y43 -> 4.968363614 | AB43: =(AA43*V24)+AA43 -> 5.067730887 | AI43: =(AA43*V24)+AA43 -> 5.067730887 | AJ43: =SUM(R43:AI43) -> 57.90855044
P44: =SUM(P26:P43) -> 16532.8 | R44: =P44/6 -> 2755.466667 | AJ44: =SUM(AJ26:AJ43) -> 19725.51585
AJ45: =AJ44/12 -> 1643.792988
P46: =P44/12 -> 1377.733333 | R46: =SUM(R26,R29:R30,R43) -> 942.256 | S46: =SUM(S26:S27,S29,S31,S42:S43) -> 1659.795 | T46: =SUM(T26,T29,T32,T43) -> 1016.33412 | U46: =SUM(U26:U29,U33,U43) -> 2476.9323 | V46: =SUM(V26,V29,V34,V43) -> 1324.851602 | W46: =SUM(W26:W27,W29,W35,W43) -> 1726.850718 | X46: =SUM(X26,X29,X36,X43) -> 1057.394018 | Y46: =SUM(Y26:Y29,Y37,Y42:Y43) -> 2577.000365 | Z46: =SUM(Z26,Z29,Z38,Z43) -> 1378.375607 | AA46: =SUM(AA26:AA27,AA29,AA39,AA43) -> 1790.618813 | AB46: =SUM(AB26,AB29,AB40,AB43) -> 1100.112737 | AI46: =SUM(AI26:AI29,AI41,AI43) -> 2674.994572 | AJ46: =SUM(R46:AI46) -> 19725.51585
A49: L37-L45RS | B49: PV | U49: evolution du prix 2%/an | W49: 1.02
A50: Pour6000h/AN | B50: prix2016 | C50: prix2017 | D50: prix2018 | E50: prix2019 | F50: prix2020 | G50: prix2021 | H50: prix2022 | J50: 4 mois | K50: 8 mois | L50: 12 mois | M50: 16 mois | N50: 20 mois | O50: 24 mois | P50: 28 mois | Q50: 32 mois | R50: 36 mois | S50: 40 mois | T50: 44 mois | U50: 48 mois | V50: 52 mois | W50: 56 mois | X50: 60 mois | Y50: 64 mois | Z50: 68 mois | AA50: 72 mois | AH50: Total Année N | AJ50: Total M4 | AK50: Total M8 | AL50: Total M12 | AM50: Total M16 | AN50: Total M20 | AO50: Total M24 | AP50: Total M28 | AQ50: Total M32 | AR50: Total M36 | AS50: Total M40 | AT50: Total M44 | AU50: Total M48 | AV50: Total M52 | AW50: Total M56 | AX50: Total M60 | AY50: Total M64 | AZ50: Total M68 | BA50: Total M72
A51: COM CK2140-1 | B51: 358.6 | C51: =B51*$W$49 -> 365.772 | D51: 373.08744 | E51: 380.5491888 | F51: 388.1601726 | G51: 395.923376 | H51: 403.8418435 | J51: 1 | K51: 1 | L51: 1 | M51: 1 | N51: 1 | O51: 1 | P51: 1 | Q51: 1 | R51: 1 | S51: 1 | T51: 1 | U51: 1 | V51: 1 | W51: 1 | X51: 1 | Y51: 1 | Z51: 1 | AA51: 1 | AH51: =B51*(J51+K51+L51+M51+N51+O51+P51+Q51+R51+S51+T51+U51+V51+W51+X51+Y51+Z51+AA51) -> 6454.8 | AI51: 114.4 | AJ51: =B51 -> 358.6 | AK51: =AJ51 -> 358.6 | AL51: =C51 -> 365.772 | AM51: =C51 -> 365.772 | AN51: =C51 -> 365.772 | AO51: =D51 -> 373.08744 | AP51: =D51 -> 373.08744 | AQ51: =D51 -> 373.08744 | AR51: =E51 -> 380.5491888 | AS51: =E51 -> 380.5491888 | AT51: =E51 -> 380.5491888 | AU51: =F51 -> 388.1601726 | AV51: =F51 -> 388.1601726 | AW51: =F51 -> 388.1601726 | AX51: =G51 -> 395.923376 | AY51: =G51 -> 395.923376 | AZ51: =G51 -> 395.923376 | BA51: =H51 -> 403.8418435 | BB51: =SUM(AJ51:BA51) -> 6831.518376
A52: COM CK4140-1-RS | B52: 565.6 | C52: =B52*$W$49 -> 576.912 | D52: 588.45024 | E52: 600.2192448 | F52: 612.2236297 | G52: 624.4681023 | H52: 636.9574643 | K52: 1 | M52: 1 | O52: 1 | Q52: 1 | S52: 1 | U52: 1 | V52: 0 | W52: 1 | X52: 0 | Y52: 1 | Z52: 0 | AA52: 1 | AH52: 5090.4 | AI52: 270 | AK52: =B52 -> 565.6 | AM52: =C52 -> 576.912 | AO52: =D52 -> 588.45024 | AQ52: =D52 -> 588.45024 | AS52: =E52 -> 600.2192448 | AU52: =F52 -> 612.2236297 | AW52: =F52 -> 612.2236297 | AY52: =G52 -> 624.4681023 | BA52: =H52 -> 636.9574643 | BB52: =SUM(AJ52:BA52) -> 5405.504551
A53: COM CK8140-1 | B53: 753.4 | C53: 768.468 | D53: 783.83736 | E53: 799.5141072 | F53: 815.5043893 | G53: 831.8144771 | H53: 848.4507667 | M53: 1 | Q53: 1 | S53: 0 | U53: 1 | Y53: 1 | AH53: 3013.6 | AI53: 239.1 | AM53: =C53 -> 768.468 | AQ53: =D53 -> 783.83736 | AU53: =E53 -> 799.5141072 | AY53: =G53 -> 831.8144771 | BB53: 3183.633944
A54: COM SCWO4000-20 | B54: 277 | C54: 282.54 | D54: 288.1908 | E54: 293.954616 | F54: 299.8337083 | G54: 305.8303825 | H54: 311.9469901 | J54: 1 | K54: 1 | M54: 2 | O54: 2 | Q54: 2 | S54: 2 | U54: 2 | W54: 2 | Y54: 2 | AA54: 2 | AH54: 4986 | AI54: 73.1 | AJ54: =B54*J54 -> 277 | AK54: =B54*K54 -> 277 | AM54: =C54*M54 -> 565.08 | AO54: =D54*O54 -> 576.3816 | AQ54: =D54*Q54 -> 576.3816 | AS54: =E54*S54 -> 587.909232 | AU54: =F54*U54 -> 599.6674166 | AW54: =F54*W54 -> 599.6674166 | AY54: =G54*Y54 -> 611.660765 | BA54: =H54*AA54 -> 623.8939803 | BB54: 5294.642011
A55: MO+DPL A1 | B55: 332.5 | C55: 339.15 | D55: 345.933 | E55: 352.85166 | F55: 359.9086932 | G55: 367.1068671 | H55: 374.4490044 | J55: 1 | AH55: 332.5 | AI55: 250 | AJ55: =B55 -> 332.5 | BB55: 332.5
A56: MO+DPL A2 | B56: 379.05 | C56: 386.631 | D56: 394.36362 | E56: 402.2508924 | F56: 410.2959102 | G56: 418.5018285 | H56: 426.871865 | K56: 1 | AH56: 379.05 | AI56: 285 | AK56: =B56 -> 379.05 | BB56: 379.05
A57: MO+DPL A3 | B57: 332.5 | C57: 339.15 | D57: 345.933 | E57: 352.85166 | F57: 359.9086932 | G57: 367.1068671 | H57: 374.4490044 | L57: 1 | AH57: 332.5 | AI57: 250 | AL57: =C57 -> 339.15 | BB57: 339.15
A58: MO+DPL A4 | B58: 379.05 | C58: 386.631 | D58: 394.36362 | E58: 402.2508924 | F58: 410.2959102 | G58: 418.5018285 | H58: 426.871865 | M58: 1 | AH58: 379.05 | AI58: 285 | AM58: =C58 -> 386.631 | BB58: 386.631
A59: MO+DPL A5 | B59: 332.5 | C59: 339.15 | D59: 345.933 | E59: 352.85166 | F59: 359.9086932 | G59: 367.1068671 | H59: 374.4490044 | N59: 1 | AH59: 332.5 | AI59: 250 | AN59: =C59 -> 339.15 | BB59: 339.15
A60: MO+DPL A6 | B60: 379.05 | C60: 386.631 | D60: 394.36362 | E60: 402.2508924 | F60: 410.2959102 | G60: 418.5018285 | H60: 426.871865 | O60: 1 | AH60: 379.05 | AI60: 285 | AO60: =D60 -> 394.36362 | BB60: 394.36362
A61: MO+DPL A7 | B61: 332.5 | C61: 339.15 | D61: 345.933 | E61: 352.85166 | F61: 359.9086932 | G61: 367.1068671 | H61: 374.4490044 | P61: 1 | AH61: 332.5 | AI61: 250 | AP61: =D61 -> 345.933 | BB61: 345.933
A62: MO+DPL A8 | B62: 379.05 | C62: 386.631 | D62: 394.36362 | E62: 402.2508924 | F62: 410.2959102 | G62: 418.5018285 | H62: 426.871865 | Q62: 1 | AH62: 379.05 | AI62: 285 | AQ62: =D62 -> 394.36362 | BB62: 394.36362
A63: MO+DPL A9 | B63: 332.5 | C63: 339.15 | D63: 345.933 | E63: 352.85166 | F63: 359.9086932 | G63: 367.1068671 | H63: 374.4490044 | R63: 1 | AH63: 332.5 | AI63: 250 | AR63: =E63 -> 352.85166 | BB63: 352.85166
A64: MO+DPL A10 | B64: 379.05 | C64: 386.631 | D64: 394.36362 | E64: 402.2508924 | F64: 410.2959102 | G64: 418.5018285 | H64: 426.871865 | S64: 1 | AH64: 379.05 | AI64: 285 | AS64: =E64 -> 402.2508924 | BB64: 402.2508924
A65: MO+DPL A11 | B65: 332.5 | C65: 339.15 | D65: 345.933 | E65: 352.85166 | F65: 359.9086932 | G65: 367.1068671 | H65: 374.4490044 | T65: 1 | AH65: 332.5 | AI65: 250 | AT65: =E65 -> 352.85166 | BB65: 352.85166
A66: MO+DPL A12 | B66: 379.05 | C66: 386.631 | D66: 394.36362 | E66: 402.2508924 | F66: 410.2959102 | G66: 418.5018285 | H66: 426.871865 | U66: 1 | AH66: 379.05 | AI66: 285 | AU66: =F66 -> 410.2959102 | BB66: 410.2959102
A67: MO+DPL A13 | B67: 332.5 | C67: 339.15 | D67: 345.933 | E67: 352.85166 | F67: 359.9086932 | G67: 367.1068671 | H67: 374.4490044 | V67: 1 | AH67: 332.5 | AI67: 250 | AV67: =F67 -> 359.9086932 | BB67: 359.9086932
A68: MO+DPL A14 | B68: 379.05 | C68: 386.631 | D68: 394.36362 | E68: 402.2508924 | F68: 410.2959102 | G68: 418.5018285 | H68: 426.871865 | W68: 1 | AH68: 379.05 | AI68: 285 | AW68: =F68 -> 410.2959102 | BB68: 410.2959102
A69: MO+DPL A15 | B69: 332.5 | C69: 339.15 | D69: 345.933 | E69: 352.85166 | F69: 359.9086932 | G69: 367.1068671 | H69: 374.4490044 | X69: 1 | AH69: 332.5 | AI69: 250 | AX69: =G69 -> 367.1068671 | BB69: 367.1068671
A70: MO+DPL A16 | B70: 379.05 | C70: 386.631 | D70: 394.36362 | E70: 402.2508924 | F70: 410.2959102 | G70: 418.5018285 | H70: 426.871865 | Y70: 1 | AH70: 379.05 | AI70: 285 | AY70: =G70 -> 418.5018285 | BB70: 418.5018285
A71: MO+DPL A17 | B71: 332.5 | C71: 339.15 | D71: 345.933 | E71: 352.85166 | F71: 359.9086932 | G71: 367.1068671 | H71: 374.4490044 | Z71: 1 | AH71: 332.5 | AI71: 250 | AZ71: =G71 -> 367.1068671 | BB71: 367.1068671
A72: MO+DPL A18 | B72: 379.1 | C72: 386.682 | D72: 394.41564 | E72: 402.3039528 | F72: 410.3500319 | G72: 418.5570325 | H72: 426.9281731 | AA72: 1 | AH72: 379.1 | AI72: 285 | BA72: =H72 -> 426.9281731 | BB72: 426.9281731
A73: F2X035AO | B73: 133 | C73: 135.66 | D73: 138.3732 | E73: 141.140664 | F73: =E73*$W$49 -> 143.9634773 | G73: =F73*$W$49 -> 146.8427468 | H73: =G73*$W$49 -> 149.7796018 | J73: 1 | K73: 1 | L73: 1 | M73: 1 | N73: 1 | O73: 1 | P73: 1 | Q73: 1 | R73: 1 | S73: 1 | T73: 1 | U73: 1 | V73: 1 | W73: 1 | X73: 1 | Y73: 1 | Z73: 1 | AA73: 1 | AH73: 2394 | AJ73: =B73 -> 133 | AK73: =B73 -> 133 | AL73: =B73 -> 133 | AM73: =C73 -> 135.66 | AN73: =C73 -> 135.66 | AO73: =C73 -> 135.66 | AP73: =D73 -> 138.3732 | AQ73: =D73 -> 138.3732 | AR73: =D73 -> 138.3732 | AS73: =E73 -> 141.140664 | AT73: =E73 -> 141.140664 | AU73: =E73 -> 141.140664 | AV73: =F73 -> 143.9634773 | AW73: =F73 -> 143.9634773 | AX73: =F73 -> 143.9634773 | AY73: =G73 -> 146.8427468 | AZ73: =G73 -> 146.8427468 | BA73: =G73 -> 146.8427468 | BB73: 2516.940264
A74: recyclage | B74: 4.5 | C74: 4.59 | D74: 4.6818 | E74: 4.775436 | F74: 4.87094472 | G74: 4.968363614 | H74: 5.067730887 | J74: 1 | K74: 1 | L74: 1 | M74: 1 | N74: 1 | O74: 1 | P74: 1 | Q74: 1 | R74: 1 | S74: 1 | T74: 1 | U74: 1 | V74: 1 | W74: 1 | X74: 1 | Y74: 1 | Z74: 1 | AA74: 1 | AH74: 81 | AI74: 4.5 | AJ74: =B74 -> 4.5 | AK74: =B74 -> 4.5 | AL74: =C74 -> 4.59 | AM74: =C74 -> 4.59 | AN74: =C74 -> 4.59 | AO74: =D74 -> 4.6818 | AP74: =D74 -> 4.6818 | AQ74: =D74 -> 4.6818 | AR74: =E74 -> 4.775436 | AS74: =E74 -> 4.775436 | AT74: =B74 -> 4.5 | AU74: =F74 -> 4.87094472 | AV74: =F74 -> 4.87094472 | AW74: =F74 -> 4.87094472 | AX74: =F74 -> 4.87094472 | AY74: =F74 -> 4.87094472 | AZ74: =F74 -> 4.87094472 | BA74: =H74 -> 5.067730887 | BB74: =SUM(AJ74:BA74) -> 85.15967121
V75: =SUM(AH51:AH74) -> 28423.8 | X75: =V75/6 -> 4737.3 | BC75: =SUM(BB51:BB74) -> 30096.63852
BC76: =BC75/18 -> 1672.035473
AK77: =SUM(AJ51:AJ74) -> 1105.6 | AL77: =SUM(AK51:AK74) -> 1717.75 | AM77: 842.512 | AN77: 2803.113 | AO77: 845.172 | AP77: 2072.6247 | AQ77: 862.07544 | AR77: 2859.17526 | AS77: 876.5494848 | AT77: 2116.844658 | AU77: 879.0415128 | AV77: 2955.872845 | AW77: 896.9032878 | AX77: 2159.181551 | AY77: 911.8646651 | AZ77: 3034.08224 | BA77: 914.7439346 | BB77: 2243.531939 | BC77: =SUM(AK77:BB77) -> 30096.63852
A81: L37-L45RS | B81: PV | U81: evolution du prix %/an | W81: 1.03
A82: Pour8000h/AN | B82: prix2016 | C82: prix2017 | D82: prix2018 | E82: prix2019 | F82: prix2020 | G82: prix2021 | H82: prix2022 | I82: prix2023 | K82: 3 mois | L82: 6 mois | M82: 9 mois | N82: 12 mois | O82: 15 mois | P82: 18 mois | Q82: 21 mois | R82: 24 mois | S82: 27 mois | T82: 30 mois | U82: 33 mois | V82: 36 mois | W82: 39 mois | X82: 42 mois | Y82: 45 mois | Z82: 48 mois | AA82: 51 mois | AB82: 54 mois | AC82: 57 mois | AD82: 60 mois | AE82: 63 mois | AF82: 66 mois | AG82: 69 mois | AH82: 72 mois | AI82: Total Année N | AK82: Total M3 | AL82: Total M6 | AM82: Total M9 | AN82: Total M12 | AO82: Total M15 | AP82: Total M18 | AQ82: Total M21 | AR82: Total M24 | AS82: Total M27 | AT82: Total M30 | AU82: Total M33 | AV82: Total M36 | AW82: Total M39 | AX82: Total M42 | AY82: Total M45 | AZ82: Total M48 | BA82: Total M51 | BB82: Total M54 | BC82: Total M57 | BD82: Total M60 | BE82: Total M63 | BF82: Total M66 | BG82: Total M69 | BH82: Total M72
A83: COM CK2140-2 | D83: 407.1 | E83: =D83*$W$81 -> 419.313 | F83: 431.89239 | G83: 444.8491617 | H83: 458.1946366 | I83: 471.9404756 | K83: 1 | L83: 1 | M83: 1 | N83: 1 | O83: 1 | P83: 1 | Q83: 1 | R83: 1 | S83: 1 | T83: 1 | U83: 1 | V83: 1 | W83: 1 | X83: 1 | Y83: 1 | Z83: 1 | AA83: 1 | AB83: 1 | AC83: 1 | AD83: 1 | AE83: 1 | AF83: 1 | AG83: 1 | AH83: 1 | AI83: =D83*(K83+L83+M83+N83+O83+P83+Q83+R83+S83+T83+U83+V83+W83+X83+Y83+Z83+AA83+AB83+AC83+AD83+AE83+AF83+AG83+AH83) -> 9770.4 | AJ83: 114.4 | AK83: =D83 -> 407.1 | AL83: =D83 -> 407.1 | AM83: =D83 -> 407.1 | AN83: =D83 -> 407.1 | AO83: =E83 -> 419.313 | AP83: =E83 -> 419.313 | AQ83: =E83 -> 419.313 | AR83: =E83 -> 419.313 | AS83: =F83 -> 431.89239 | AT83: =F83 -> 431.89239 | AU83: =F83 -> 431.89239 | AV83: =F83 -> 431.89239 | AW83: =G83 -> 444.8491617 | AX83: =G83 -> 444.8491617 | AY83: =G83 -> 444.8491617 | AZ83: =G83 -> 444.8491617 | BA83: =H83 -> 458.1946366 | BB83: =H83 -> 458.1946366 | BC83: =H83 -> 458.1946366 | BD83: =H83 -> 458.1946366 | BE83: =I83 -> 471.9404756 | BF83: =I83 -> 471.9404756 | BG83: =I83 -> 471.9404756 | BH83: =I83 -> 471.9404756 | BI83: =SUM(AK83:BH83) -> 10533.15866
A84: COM CK4140-2-RS | D84: 625.3 | E84: 644.059 | F84: 663.38077 | G84: 683.2821931 | H84: 703.7806589 | I84: 724.8940787 | L84: 1 | N84: 1 | P84: 1 | R84: 1 | T84: 1 | V84: 1 | W84: 0 | X84: 1 | Y84: 0 | Z84: 1 | AA84: 0 | AB84: 1 | AC84: 0 | AD84: 1 | AE84: 0 | AF84: 1 | AG84: 0 | AH84: 1 | AI84: =D84*(K84+L84+M84+N84+O84+P84+Q84+R84+S84+T84+U84+V84+W84+X84+Y84+Z84+AA84+AB84+AC84+AD84+AE84+AF84+AG84+AH84) -> 7503.6 | AJ84: 270 | AL84: =D84 -> 625.3 | AN84: =D84 -> 625.3 | AP84: =E84 -> 644.059 | AR84: =E84 -> 644.059 | AT84: =F84 -> 663.38077 | AV84: =F84 -> 663.38077 | AX84: =G84 -> 683.2821931 | AZ84: =G84 -> 683.2821931 | BB84: =H84 -> 703.7806589 | BD84: =H84 -> 703.7806589 | BF84: =I84 -> 724.8940787 | BH84: =I84 -> 724.8940787 | BI84: 8089.393401
A85: COM CK8140-1 | D85: 772.3 | E85: 795.469 | F85: 819.33307 | G85: 843.9130621 | H85: 869.230454 | I85: 895.3073676 | N85: 1 | R85: 1 | T85: 0 | V85: 1 | Z85: 1 | AC85: 1 | AG85: 1 | AI85: 4633.8 | AJ85: 239.1 | AN85: 772.3 | AR85: 795.469 | AV85: 819.33307 | AZ85: 843.9130621 | BD85: 869.230454 | BH85: 895.3073676 | BI85: 4995.552954
A86: Anderol 20L | D86: 464.32 | E86: 478.2496 | F86: 492.597088 | G86: 507.3750006 | H86: 522.5962507 | I86: 538.2741382 | K86: 1 | L86: 1 | N86: 2 | P86: 2 | R86: 2 | T86: 2 | V86: 2 | X86: 2 | Z86: 2 | AB86: 2 | AC86: 0 | AD86: 2 | AE86: 0 | AF86: 2 | AG86: 0 | AH86: 2 | AI86: 11143.68 | AJ86: 73.1 | AK86: =D86*K86 -> 464.32 | AL86: =D86*L86 -> 464.32 | AN86: =D86*N86 -> 928.64 | AP86: =E86*P86 -> 956.4992 | AR86: =E86*R86 -> 956.4992 | AT86: =F86*T86 -> 985.194176 | AV86: =F86*V86 -> 985.194176 | AX86: =G86*X86 -> 1014.750001 | AZ86: =G86*Z86 -> 1014.750001 | BB86: =H86*AB86 -> 1045.192501 | BD86: =H86*AD86 -> 1045.192501 | BF86: =I86*AF86 -> 1076.548276 | BH86: =I86*AH86 -> 1076.548276 | BI86: =SUM(AK86:BH86) -> 12013.64831
A87: MO+DPL A1 | B87: 379.05 | C87: =B87*$W$81 -> 390.4215 | D87: 402.134145 | E87: 414.1981694 | F87: 426.6241144 | G87: 439.4228379 | H87: 452.605523 | I87: 466.1836887 | K87: 1 | AI87: =B87*(K87+L87+M87+N87+O87+P87+Q87+R87+S87+T87+U87+V87+W87+X87+Y87+Z87+AA87+AB87) -> 379.05 | AJ87: 250 | AK87: =D87 -> 402.134145 | BI87: 402.134145
A88: MO+DPL A2 | B88: 379.05 | C88: 390.4215 | D88: 402.134145 | E88: 414.1981694 | F88: 426.6241144 | G88: 439.4228379 | H88: 452.605523 | I88: 466.1836887 | L88: 1 | AI88: 379.05 | AJ88: 285 | AL88: 402.134145 | BI88: 402.134145
A89: MO+DPL A3 | B89: 379.05 | C89: 390.4215 | D89: 402.134145 | E89: 414.1981694 | F89: 426.6241144 | G89: 439.4228379 | H89: 452.605523 | I89: 466.1836887 | M89: 1 | AI89: 379.05 | AJ89: 250 | AM89: =D89 -> 402.134145 | BI89: 402.134145
A90: MO+DPL A4 | B90: 379.05 | C90: 390.4215 | D90: 402.134145 | E90: 414.1981694 | F90: 426.6241144 | G90: 439.4228379 | H90: 452.605523 | I90: 466.1836887 | N90: 1 | AI90: 379.05 | AJ90: 285 | AN90: 402.134145 | BI90: 402.134145
A91: MO+DPL A5 | B91: 379.05 | C91: 390.4215 | D91: 402.134145 | E91: 414.1981694 | F91: 426.6241144 | G91: 439.4228379 | H91: 452.605523 | I91: 466.1836887 | O91: 1 | AI91: 379.05 | AJ91: 250 | AO91: =E91 -> 414.1981694 | BI91: 414.1981694
A92: MO+DPL A6 | B92: 379.05 | C92: 390.4215 | D92: 402.134145 | E92: 414.1981694 | F92: 426.6241144 | G92: 439.4228379 | H92: 452.605523 | I92: 466.1836887 | P92: 1 | AI92: 379.05 | AJ92: 285 | AP92: 414.1981694 | BI92: 414.1981694
A93: MO+DPL A7 | B93: 379.05 | C93: 390.4215 | D93: 402.134145 | E93: =D93*$W$81 -> 414.1981694 | F93: 426.6241144 | G93: 439.4228379 | H93: 452.605523 | I93: 466.1836887 | Q93: 1 | AI93: 379.05 | AJ93: 250 | AQ93: =E93 -> 414.1981694 | BI93: 414.1981694
A94: MO+DPL A8 | B94: 379.05 | C94: 390.4215 | D94: 402.134145 | E94: 414.1981694 | F94: 426.6241144 | G94: 439.4228379 | H94: 452.605523 | I94: 466.1836887 | R94: 1 | AI94: 379.05 | AJ94: 285 | AR94: 414.1981694 | BI94: 414.1981694
A95: MO+DPL A9 | B95: 379.05 | C95: 390.4215 | D95: 402.134145 | E95: 414.1981694 | F95: 426.6241144 | G95: 439.4228379 | H95: 452.605523 | I95: 466.1836887 | S95: 1 | AI95: 379.05 | AJ95: 250 | AS95: =F95 -> 426.6241144 | BI95: 426.6241144
A96: MO+DPL A10 | B96: 379.05 | C96: 390.4215 | D96: 402.134145 | E96: 414.1981694 | F96: 426.6241144 | G96: 439.4228379 | H96: 452.605523 | I96: 466.1836887 | T96: 1 | AI96: 379.05 | AJ96: 285 | AT96: 426.6241144 | BI96: 426.6241144
A97: MO+DPL A11 | B97: 379.05 | C97: 390.4215 | D97: 402.134145 | E97: 414.1981694 | F97: 426.6241144 | G97: 439.4228379 | H97: 452.605523 | I97: 466.1836887 | U97: 1 | AI97: 379.05 | AJ97: 250 | AU97: =F97 -> 426.6241144 | BI97: 426.6241144
A98: MO+DPL A12 | B98: 379.05 | C98: 390.4215 | D98: 402.134145 | E98: 414.1981694 | F98: 426.6241144 | G98: 439.4228379 | H98: 452.605523 | I98: 466.1836887 | V98: 1 | AI98: 379.05 | AJ98: 285 | AV98: 426.6241144 | BI98: 426.6241144
A99: MO+DPL A13 | B99: 379.05 | C99: 390.4215 | D99: 402.134145 | E99: 414.1981694 | F99: 426.6241144 | G99: 439.4228379 | H99: 452.605523 | I99: 466.1836887 | W99: 1 | AI99: 379.05 | AJ99: 250 | AW99: =G99 -> 439.4228379 | BI99: 439.4228379
A100: MO+DPL A14 | B100: 379.05 | C100: 390.4215 | D100: 402.134145 | E100: 414.1981694 | F100: 426.6241144 | G100: 439.4228379 | H100: 452.605523 | I100: 466.1836887 | X100: 1 | AI100: 379.05 | AJ100: 285 | AX100: 439.4228379 | BI100: 439.4228379
A101: MO+DPL A15 | B101: 379.05 | C101: 390.4215 | D101: 402.134145 | E101: 414.1981694 | F101: 426.6241144 | G101: 439.4228379 | H101: 452.605523 | I101: 466.1836887 | Y101: 1 | AI101: 379.05 | AJ101: 250 | AY101: =G101 -> 439.4228379 | BI101: 439.4228379
A102: MO+DPL A16 | B102: 379.05 | C102: 390.4215 | D102: 402.134145 | E102: 414.1981694 | F102: 426.6241144 | G102: 439.4228379 | H102: 452.605523 | I102: 466.1836887 | Z102: 1 | AI102: 379.05 | AJ102: 285 | AZ102: 439.4228379 | BI102: 439.4228379
A103: MO+DPL A17 | B103: 379.05 | C103: 390.4215 | D103: 402.134145 | E103: =D103*$W$81 -> 414.1981694 | F103: 426.6241144 | G103: 439.4228379 | H103: 452.605523 | I103: 466.1836887 | AA103: 1 | AI103: 379.05 | AJ103: 250 | BA103: =H103 -> 452.605523 | BI103: 452.605523
A104: MO+DPL A18 | B104: 379.05 | C104: 390.4215 | D104: 402.134145 | E104: 414.1981694 | F104: 426.6241144 | G104: 439.4228379 | H104: 452.605523 | I104: 466.1836887 | AB104: 1 | AI104: 379.05 | AJ104: 285 | BB104: 452.605523 | BI104: 452.605523
A105: MO+DPL A19 | B105: 379.05 | C105: =B105*$W$81 -> 390.4215 | D105: 402.134145 | E105: 414.1981694 | F105: 426.6241144 | G105: 439.4228379 | H105: 452.605523 | I105: =H105*$W$81 -> 466.1836887 | AC105: 1 | AI105: 0 | BC105: =H105 -> 452.605523 | BI105: 452.605523
A106: MO+DPL A20 | B106: 379.05 | C106: 390.4215 | D106: 402.134145 | E106: 414.1981694 | F106: 426.6241144 | G106: 439.4228379 | H106: 452.605523 | I106: =H106*$W$81 -> 466.1836887 | AD106: 1 | AI106: 0 | BD106: 452.605523 | BI106: 452.605523
A107: MO+DPL A21 | B107: 379.05 | C107: 390.4215 | D107: 402.134145 | E107: 414.1981694 | F107: 426.6241144 | G107: 439.4228379 | H107: 452.605523 | I107: =H107*$W$81 -> 466.1836887 | AE107: 1 | AI107: 0 | BE107: =I107 -> 466.1836887 | BI107: 466.1836887
A108: MO+DPL A22 | B108: 379.05 | C108: 390.4215 | D108: 402.134145 | E108: 414.1981694 | F108: 426.6241144 | G108: 439.4228379 | H108: 452.605523 | I108: =H108*$W$81 -> 466.1836887 | AF108: 1 | AI108: 0 | BF108: 466.1836887 | BI108: 466.1836887
A109: MO+DPL A23 | B109: 379.05 | C109: 390.4215 | D109: 402.134145 | E109: 414.1981694 | F109: 426.6241144 | G109: 439.4228379 | H109: 452.605523 | I109: =H109*$W$81 -> 466.1836887 | AG109: 1 | AI109: 0 | BG109: =I109 -> 466.1836887 | BI109: 466.1836887
A110: MO+DPL A24 | B110: 379.05 | C110: 390.4215 | D110: 402.134145 | E110: 414.1981694 | F110: 426.6241144 | G110: 439.4228379 | H110: 452.605523 | I110: =H110*$W$81 -> 466.1836887 | AH110: 1 | AI110: 0 | BH110: 466.1836887 | BI110: 466.1836887
A111: ACC 100008854 | B111: 357.8 | C111: =B111*$W$81 -> 368.534 | D111: =C111*$W$81 -> 379.59002 | E111: 390.9777206 | F111: 402.7070522 | G111: 414.7882638 | H111: 427.2319117 | I111: 440.048869 | N111: 1 | R111: 1 | V111: 1 | Z111: 1 | AD111: 1 | AH111: 1 | AI111: 1431.2 | AN111: 379.59002 | AR111: 390.9777206 | AV111: 402.7070522 | AZ111: 414.7882638 | BD111: 427.2319117 | BH111: 440.048869 | BI111: 2455.343837
AI112: 0 | AK112: 0 | AL112: 0 | AM112: 0 | AN112: 0 | AO112: 0 | AP112: 0 | AQ112: 0 | AR112: 0 | AS112: 0 | AT112: 0 | AU112: 0 | AV112: 0 | AW112: 0 | AX112: 0 | AY112: 0 | AZ112: 0 | BA112: 0 | BB112: 0 | BC112: 0 | BD112: 0 | BE112: 0 | BF112: 0 | BG112: 0 | BH112: 0 | BI112: 0
AI113: 0 | AK113: 0 | AL113: 0 | AM113: 0 | AN113: 0 | AO113: 0 | AP113: 0 | AQ113: 0 | AR113: 0 | AS113: 0 | AT113: 0 | AU113: 0 | AV113: 0 | AW113: 0 | AX113: 0 | AY113: 0 | AZ113: 0 | BA113: 0 | BB113: 0 | BC113: 0 | BD113: 0 | BE113: 0 | BF113: 0 | BG113: 0 | BH113: 0 | BI113: 0
A114: F2X035AA | B114: 133 | C114: =B114*$W$81 -> 136.99 | D114: =C114*$W$81 -> 141.0997 | E114: 145.332691 | F114: 149.6926717 | G114: 154.1834519 | H114: 158.8089554 | I114: 163.5732241 | K114: 1 | L114: 1 | M114: 1 | N114: 1 | O114: 1 | P114: 1 | Q114: 1 | R114: 1 | S114: 1 | T114: 1 | U114: 1 | V114: 1 | W114: 1 | X114: 1 | Y114: 1 | Z114: 1 | AA114: 1 | AB114: 1 | AC114: 1 | AD114: 1 | AE114: 1 | AF114: 1 | AG114: 1 | AH114: 1 | AI114: 2394 | AK114: 141.0997 | AL114: 141.0997 | AM114: 141.0997 | AN114: 141.0997 | AO114: 145.332691 | AP114: 145.332691 | AQ114: 145.332691 | AR114: 145.332691 | AS114: 149.6926717 | AT114: 149.6926717 | AU114: 149.6926717 | AV114: 149.6926717 | AW114: 154.1834519 | AX114: 154.1834519 | AY114: 154.1834519 | AZ114: 154.1834519 | BA114: 158.8089554 | BB114: 158.8089554 | BC114: 158.8089554 | BD114: 158.8089554 | BE114: 163.5732241 | BF114: 163.5732241 | BG114: 163.5732241 | BH114: 163.5732241 | BI114: 3650.762777
A115: F2X035AO | B115: 133 | C115: =B115*$W$81 -> 136.99 | D115: =C115*$W$81 -> 141.0997 | E115: 145.332691 | F115: 149.6926717 | G115: 154.1834519 | H115: 158.8089554 | I115: =H115*$W$81 -> 163.5732241 | K115: 1 | L115: 1 | M115: 1 | N115: 1 | O115: 1 | P115: 1 | Q115: 1 | R115: 1 | S115: 1 | T115: 1 | U115: 1 | V115: 1 | W115: 1 | X115: 1 | Y115: 1 | Z115: 1 | AA115: 1 | AB115: 1 | AC115: 1 | AD115: 1 | AE115: 1 | AF115: 1 | AG115: 1 | AH115: 1 | AI115: 2394 | AK115: 141.0997 | AL115: 141.0997 | AM115: 141.0997 | AN115: 141.0997 | AO115: 145.332691 | AP115: 145.332691 | AQ115: 145.332691 | AR115: 145.332691 | AS115: 149.6926717 | AT115: 149.6926717 | AU115: 149.6926717 | AV115: 149.6926717 | AW115: 154.1834519 | AX115: 154.1834519 | AY115: 154.1834519 | AZ115: 154.1834519 | BA115: 158.8089554 | BB115: 158.8089554 | BC115: 158.8089554 | BD115: 158.8089554 | BE115: 163.5732241 | BF115: 163.5732241 | BG115: 163.5732241 | BH115: 163.5732241 | BI115: 3650.762777
A116: recyclage | B116: 4.5 | C116: =B116*$W$81 -> 4.635 | D116: 4.77405 | E116: 4.9172715 | F116: 5.064789645 | G116: 5.216733334 | H116: 5.373235334 | I116: =H116*$W$81 -> 5.534432394 | K116: 1 | L116: 1 | M116: 1 | N116: 1 | O116: 1 | P116: 1 | Q116: 1 | R116: 1 | S116: 1 | T116: 1 | U116: 1 | V116: 1 | W116: 1 | X116: 1 | Y116: 1 | Z116: 1 | AA116: 1 | AB116: 1 | AC116: 1 | AD116: 1 | AE116: 1 | AF116: 1 | AG116: 1 | AH116: 1 | AI116: =B116*(K116+L116+M116+N116+O116+P116+Q116+R116+S116+T116+U116+V116+W116+X116+Y116+Z116+AA116+AB116) -> 81 | AJ116: 4.5 | AK116: 4.77405 | AL116: 4.77405 | AM116: 4.77405 | AN116: 4.77405 | AO116: 4.9172715 | AP116: 4.9172715 | AQ116: 4.9172715 | AR116: 4.9172715 | AS116: 5.064789645 | AT116: 5.064789645 | AU116: 5.064789645 | AV116: 5.064789645 | AW116: 5.216733334 | AX116: 5.216733334 | AY116: 5.216733334 | AZ116: 5.216733334 | BA116: 5.373235334 | BB116: 5.373235334 | BC116: 5.373235334 | BD116: 5.373235334 | BE116: 5.534432394 | BF116: 5.534432394 | BG116: 5.534432394 | BH116: 5.534432394 | BI116: 123.5220488
A117: Sep de condensat | C117: 457.3 | D117: =C117*$W$81 -> 471.019 | E117: =D117*$W$81 -> 485.14957 | F117: 499.7040571 | G117: 514.6951788 | H117: 530.1360342 | I117: 546.0401152 | K117: 1 | L117: 1 | M117: 1 | N117: 1 | O117: 1 | P117: 1 | Q117: 1 | R117: 1 | S117: 1 | T117: 1 | U117: 1 | V117: 1 | W117: 1 | X117: 1 | Y117: 1 | Z117: 1 | AA117: 1 | AB117: 1 | AC117: 1 | AD117: 1 | AE117: 1 | AF117: 1 | AG117: 1 | AH117: 1 | AI117: =B117*(K117+L117+M117+N117+O117+P117+Q117+R117+S117+T117+U117+V117+W117+X117+Y117+Z117+AA117+AB117) -> 0 | AK117: 471.019 | AL117: 471.019 | AM117: 471.019 | AN117: 471.019 | AO117: 485.14957 | AP117: =E117 -> 485.14957 | AQ117: =E117 -> 485.14957 | AR117: =E117 -> 485.14957 | AS117: =F117 -> 499.7040571 | AT117: =F117 -> 499.7040571 | AU117: =F117 -> 499.7040571 | AV117: =F117 -> 499.7040571 | AW117: =G117 -> 514.6951788 | AX117: =G117 -> 514.6951788 | AY117: =G117 -> 514.6951788 | AZ117: =G117 -> 514.6951788 | BA117: =H117 -> 530.1360342 | BB117: =H117 -> 530.1360342 | BC117: =H117 -> 530.1360342 | BD117: =H117 -> 530.1360342 | BE117: =I117 -> 546.0401152 | BF117: =I117 -> 546.0401152 | BG117: =I117 -> 546.0401152 | BH117: =I117 -> 546.0401152 | BI117: 12186.97582
BI118: =SUM(BI83:BI117) -> 68103.79449
V119: =SUM(AI83:AI116) -> 46174.58 | X119: =V119/6 -> 7695.763333 | BI119: =BI118/24 -> 2837.658104
AK120: =SUM(AK83:AK117) -> 2031.546595 | AL120: =SUM(AL83:AL117) -> 2656.846595 | AM120: 1567.226595 | AN120: 4273.056615 | AO120: 1614.243393 | AP120: 3214.801593 | AQ120: 1614.243393 | AR120: 4401.248313 | AS120: 1662.670695 | AT120: 3311.245641 | AU120: 1662.670695 | AV120: 4533.285763 | AW120: 1712.550815 | AX120: 3410.58301 | AY120: 1712.550815 | AZ120: 4669.284336 | BA120: 1763.92734 | BB120: 3512.9005 | BC120: 1763.92734 | BD120: 4809.362866 | BE120: 1816.84516 | BF120: 3618.287515 | BG120: 1816.84516 | BH120: =SUM(BH83:BH117) -> 4953.643752 | BI120: =SUM(AK120:BH120) -> 68103.79449

Sheet L55-L80
A1: L55-L80
A2: Pour 2000h/AN
B4: PV | N4: evolution du prix 2%/an | P4: 0.02
B5: prix | C5: année 1 | D5: année 2 | E5: année 3 | F5: année 4 | G5: année 5 | H5: année 6 | J5: Total Année N | L5: Total An 1 | M5: Total An 2 | N5: Total An 3 | O5: Total An 4 | P5: Total An 5 | Q5: Total An 6
A6: COM CK2175-1 | B6: 397 | C6: 1 | D6: 1 | E6: 1 | F6: 1 | G6: 1 | H6: 1 | J6: =B6*(C6+D6+E6+F6+G6+H6) -> 2382 | L6: =(B6*P4)+B6 -> 404.94 | M6: =(L6*P4)+L6 -> 413.0388 | N6: =(M6*P4)+M6 -> 421.299576 | O6: =(N6*P4)+N6 -> 429.7255675 | P6: =(O6*P4)+O6 -> 438.3200789 | Q6: =(P6*P4)+P6 -> 447.0864804 | R6: =SUM(L6:Q6) -> 2554.410503
A7: com CK4175-2 | B7: 1282.4 | D7: 1 | F7: 1 | H7: 1 | J7: =B7*(C7+D7+E7+F7+G7+H7) -> 3847.2 | L7: =(B7*P4)+B7 -> 1308.048 | M7: =(L7*P4)+L7 -> 1334.20896 | N7: =(M7*P4)+M7 -> 1360.893139 | O7: =(N7*P4)+N7 -> 1388.111002 | P7: =(O7*P4)+O7 -> 1415.873222 | Q7: =(P7*P4)+P7 -> 1444.190686 | R7: =M7+O7+Q7 -> 4166.510648
A8: COM CK8175-1 | B8: 806.8 | F8: 1 | J8: 806.8 | L8: =(B8*P4)+B8 -> 822.936 | M8: =(L8*P4)+L8 -> 839.39472 | N8: =(M8*P4)+M8 -> 856.1826144 | O8: =(N8*P4)+N8 -> 873.3062667 | P8: =(O8*P4)+O8 -> 890.772392 | Q8: =(P8*P4)+P8 -> 908.5878399 | R8: =SUM(O8) -> 873.3062667
A9: COM SCWO4000-20 | B9: 277 | C9: 0 | D9: 2 | E9: 0 | F9: 2 | G9: 0 | H9: 2 | J9: =B9*(C9+D9+F9+H9) -> 1662 | L9: =(B9*P4)+B9 -> 282.54 | M9: =(L9*P4)+L9*D9 -> 570.7308 | N9: =(M9*P4)+M9 -> 582.145416 | O9: =(N9*P4)+N9 -> 593.7883243 | P9: =(O9*P4)+O9 -> 605.6640908 | Q9: =(P9*P4)+P9 -> 617.7773726 | R9: =SUM(M9,O9,Q9) -> 1782.296497
A10: MO+DPL A1 | B10: 412.3 | C10: 1 | J10: 412.3 | L10: =(B10*P4)+B10 -> 420.546 | M10: =(L10*P4)+L10 -> 428.95692 | N10: =(M10*P4)+M10 -> 437.5360584 | O10: =(N10*P4)+N10 -> 446.2867796 | P10: =(O10*P4)+O10 -> 455.2125152 | Q10: =(P10*P4)+P10 -> 464.3167655 | R10: =SUM(L10) -> 420.546
A11: MO+DPL A2 | B11: 465.5 | D11: 1 | J11: 465.5 | L11: =(B11*P4)+B11 -> 474.81 | M11: =(L11*P4)+L11 -> 484.3062 | N11: =(M11*P4)+M11 -> 493.992324 | O11: =(N11*P4)+N11 -> 503.8721705 | P11: =(O11*P4)+O11 -> 513.9496139 | Q11: =(P11*P4)+P11 -> 524.2286062 | R11: =SUM(M11) -> 484.3062
A12: MO+DPL A3 | B12: 412.3 | E12: 1 | J12: 412.3 | L12: =(B12*P4)+B12 -> 420.546 | M12: =(L12*P4)+L12 -> 428.95692 | N12: =(M12*P4)+M12 -> 437.5360584 | O12: =(N12*P4)+N12 -> 446.2867796 | P12: =(O12*P4)+O12 -> 455.2125152 | Q12: =(P12*P4)+P12 -> 464.3167655 | R12: =SUM(N12) -> 437.5360584
A13: MO+DPL A4 | B13: 465.5 | F13: 1 | J13: 465.5 | L13: =(B13*P4)+B13 -> 474.81 | M13: =(L13*P4)+L13 -> 484.3062 | N13: =(M13*P4)+M13 -> 493.992324 | O13: =(N13*P4)+N13 -> 503.8721705 | P13: =(O13*P4)+O13 -> 513.9496139 | Q13: =(P13*P4)+P13 -> 524.2286062 | R13: =SUM(O13) -> 503.8721705
A14: MO+DPL A5 | B14: 412.3 | G14: 1 | J14: 412.3 | L14: =(B14*P4)+B14 -> 420.546 | M14: =(L14*P4)+L14 -> 428.95692 | N14: =(M14*P4)+M14 -> 437.5360584 | O14: =(N14*P4)+N14 -> 446.2867796 | P14: =(O14*P4)+O14 -> 455.2125152 | Q14: =(P14*P4)+P14 -> 464.3167655 | R14: =SUM(P14) -> 455.2125152
A15: MO+DPL A6 | B15: 465.5 | H15: 1 | J15: 465.5 | L15: =(B15*P4)+B15 -> 474.81 | M15: =(L15*P4)+L15 -> 484.3062 | N15: =(M15*P4)+M15 -> 493.992324 | O15: =(N15*P4)+N15 -> 503.8721705 | P15: =(O15*P4)+O15 -> 513.9496139 | Q15: =(P15*P4)+P15 -> 524.2286062 | R15: =SUM(Q15) -> 524.2286062
L16: =(B16*P4)+B16 -> 0 | M16: =(L16*P4)+L16 -> 0 | N16: =(M16*P4)+M16 -> 0 | O16: =(N16*P4)+N16 -> 0 | P16: =(O16*P4)+O16 -> 0 | Q16: =(P16*P4)+P16 -> 0 | R16: =SUM(M16,O16,Q16) -> 0
A17: recyclage | B17: 4.5 | C17: 1 | D17: 1 | E17: 1 | F17: 1 | G17: 1 | H17: 1 | J17: =SUM(B17)*(C17+D17+E17+F17+G17+H17) -> 27 | L17: =(B17*P4)+B17 -> 4.59 | M17: =(L17*P4)+L17 -> 4.6818 | N17: =(M17*P4)+M17 -> 4.775436 | O17: =(N17*P4)+N17 -> 4.87094472 | P17: =(O17*P4)+O17 -> 4.968363614 | Q17: =(P17*P4)+P17 -> 5.067730887 | R17: =SUM(L17:Q17) -> 28.95427522
J18: =SUM(J6:J17) -> 11358.4 | L18: =J18/6 -> 1893.066667 | R18: =SUM(R6:R17) -> 12231.17974
R19: =R18/6 -> 2038.529957
L20: =SUM(L6,L10,L17) -> 830.076 | M20: =SUM(M6:M7,M9,M11,M17) -> 2806.96656 | N20: =SUM(N6,N12,N17) -> 863.6110704 | O20: =SUM(O6:O9,O13,O17) -> 3793.674276 | P20: =SUM(P6,P14,P17) -> 898.5009576 | Q20: =SUM(Q6:Q7,Q9,Q15,Q17) -> 3038.350877 | R20: =SUM(L20:Q20) -> 12231.17974
A23: L55-L80
A24: Pour4000h/AN | B24: PV | C24: 1 année | E24: 2 année | G24: 3 année | I24: 4 année | K24: 5 année | M24: 6 année | S24: evolution du prix 2%/an | AA24: 0.02
B25: prix | C25: 6 mois | D25: 12 mois | E25: 18 mois | F25: 24 mois | G25: 30 mois | H25: 36 mois | I25: 42 mois | J25: 48 mois | K25: 54 mois | L25: 60 mois | M25: 66 mois | N25: 72 mois | O25: Total Année N | Q25: Total M6 | R25: Total M12 | S25: Total M18 | T25: Total M24 | AA25: Total M30 | AB25: Total M36 | AC25: Total M42 | AD25: Total M48 | AE25: Total M54 | AF25: Total M60 | AG25: Total M66 | AH25: Total M72
A26: COM CK2175-1 | B26: 397 | C26: 1 | D26: 1 | E26: 1 | F26: 1 | G26: 1 | H26: 1 | I26: 1 | J26: 1 | K26: 1 | L26: 1 | M26: 1 | N26: 1 | O26: =B26*(C26+D26+E26+F26+G26+H26+I26+J26+K26+L26+M26+N26) -> 4764 | P26: COM CK2140-1 | Q26: =(B26*AA24)+B26 -> 404.94 | R26: =(B26*AA24)+B26 -> 404.94 | S26: =(R26*AA24)+R26 -> 413.0388 | T26: =(R26*AA24)+R26 -> 413.0388 | AA26: =(T26*AA24)+T26 -> 421.299576 | AB26: =(T26*AA24)+T26 -> 421.299576 | AC26: =(AB26*AA24)+AB26 -> 429.7255675 | AD26: =(AB26*AA24)+AB26 -> 429.7255675 | AE26: =(AD26*AA24)+AD26 -> 438.3200789 | AF26: =(AD26*AA24)+AD26 -> 438.3200789 | AG26: =(AF26*AA24)+AF26 -> 447.0864804 | AH26: =(AG26*AG24)+AG26 -> 447.0864804 | AI26: =SUM(Q26:AH26) -> 5108.821006
A27: com CK4175-2 | B27: 1282.4 | D27: 1 | F27: 1 | H27: 1 | J27: 1 | L27: 1 | N27: 1 | O27: =B27*(C27+D27+E27+F27+G27+H27+I27+J27+K27+L27+M27+N27) -> 7694.4 | P27: COM CK4140-1 | Q27: =(B27*AA24)+B27 -> 1308.048 | R27: =(B27*AA24)+B27 -> 1308.048 | S27: =(R27*AA24)+R27 -> 1334.20896 | T27: =(R27*AA24)+R27 -> 1334.20896 | AA27: =(T27*AA24)+T27 -> 1360.893139 | AB27: =(T27*AA24)+T27 -> 1360.893139 | AC27: =(AB27*AA24)+AB27 -> 1388.111002 | AD27: =(AC27*AG24)+AC27 -> 1388.111002 | AE27: =(AD27*AA24)+AD27 -> 1415.873222 | AF27: =(AE27*AG24)+AE27 -> 1415.873222 | AG27: =(AF27*AA24)+AF27 -> 1444.190686 | AH27: =(AG27*AG24)+AG27 -> 1444.190686 | AI27: =SUM(R27,T27,AB27,AD27,AF27,AH27) -> 8251.32501
A28: COM CK8175-1 | B28: 806.8 | F28: 1 | J28: 1 | L28: 0 | N28: 1 | O28: =B28*(C28+D28+E28+F28+G28+H28+I28+J28+K28+L28+M28+N28) -> 2420.4 | P28: COM CK8140-2 | Q28: =(B28*AA24)+B28 -> 822.936 | R28: =(B28*AA24)+B28 -> 822.936 | S28: =(R28*AA24)+R28 -> 839.39472 | T28: =(R28*AA24)+R28 -> 839.39472 | AA28: =(T28*AA24)+T28 -> 856.1826144 | AB28: =(T28*AA24)+T28 -> 856.1826144 | AC28: =(AB28*AA24)+AB28 -> 873.3062667 | AD28: =(AB28*AA24)+AB28 -> 873.3062667 | AE28: =(AD28*AA24)+AD28 -> 890.772392 | AF28: =(AD28*AA24)+AD28 -> 890.772392 | AG28: =(AF28*AA24)+AF28 -> 908.5878399 | AH28: =(AG28*AG24)+AG28 -> 908.5878399 | AI28: =SUM(T28,AD28,AH28) -> 2621.288827
A29: COM SCWO4000-20 | B29: 277 | C29: 1 | D29: 1 | E29: 1 | F29: 1 | G29: 2 | H29: 1 | I29: 1 | J29: 1 | K29: 2 | L29: 1 | M29: 1 | N29: 1 | O29: =B29*(C29+D29+F29+H29+J29+L29+N29) -> 1939 | P29: COM SCWO4000-20 | Q29: =B29 -> 277 | R29: =((B29*C29)*AA24)+(B29*C29) -> 282.54 | S29: =R29 -> 282.54 | T29: =(S29*AA24)+S29 -> 288.1908 | AA29: =T29*G29 -> 576.3816 | AB29: =(T29*AA24)+T29 -> 293.954616 | AC29: =(T29*AA24)+T29 -> 293.954616 | AD29: =(AC29*AA24)+AC29 -> 299.8337083 | AE29: =AD29*K29 -> 599.6674166 | AF29: =AE29/2 -> 299.8337083 | AG29: =(AF29*AA24)+AF29 -> 305.8303825 | AH29: =(AF29*AA24)+AF29 -> 305.8303825 | AI29: =SUM(Q29:AH29) -> 4105.55723
A30: MO+DPL A1 | B30: 412.3 | C30: 1 | O30: =B30*(C30+D30+E30+F30+G30+H30) -> 412.3 | P30: MO+DPL A1 | Q30: 412.3 | R30: =(B30*AA24)+B30 -> 420.546 | S30: =(R30*AA24)+R30 -> 428.95692 | T30: =(R30*AA24)+R30 -> 428.95692 | AA30: =(T30*AA24)+T30 -> 437.5360584 | AB30: =(T30*AA24)+T30 -> 437.5360584 | AC30: =(AB30*AA24)+AB30 -> 446.2867796 | AD30: =(AC30*AB24)+AC30 -> 446.2867796 | AE30: =(AD30*AA24)+AD30 -> 455.2125152 | AF30: =(AE30*AB24)+AE30 -> 455.2125152 | AG30: =(AF30*AA24)+AF30 -> 464.3167655 | AH30: =(AG30*AB24)+AG30 -> 464.3167655 | AI30: =SUM(Q30) -> 412.3
A31: MO+DPL A2 | B31: 465.5 | D31: 1 | O31: 465.5 | P31: MO+DPL A2 | Q31: 465.5 | R31: =(B31*AA24)+B31 -> 474.81 | S31: =(R31*AA24)+R31 -> 484.3062 | T31: =(R31*AA24)+R31 -> 484.3062 | AA31: =(T31*AA24)+T31 -> 493.992324 | AB31: =(T31*AA24)+T31 -> 493.992324 | AC31: =(AB31*AA24)+AB31 -> 503.8721705 | AD31: =(AB31*AA24)+AB31 -> 503.8721705 | AE31: =(AD31*AA24)+AD31 -> 513.9496139 | AF31: =(AD31*AA24)+AD31 -> 513.9496139 | AG31: =(AF31*AA24)+AF31 -> 524.2286062 | AH31: =(AF31*AA24)+AF31 -> 524.2286062 | AI31: =SUM(R31) -> 474.81
A32: MO+DPL A3 | B32: 412.3 | E32: 1 | O32: 412.3 | P32: MO+DPL A3 | Q32: 412.3 | R32: =(B32*AA24)+B32 -> 420.546 | S32: =(R32*AA24)+R32 -> 428.95692 | T32: =(R32*AA24)+R32 -> 428.95692 | AA32: =(T32*AA24)+T32 -> 437.5360584 | AB32: =(T32*AA24)+T32 -> 437.5360584 | AC32: =(AB32*AA24)+AB32 -> 446.2867796 | AD32: =(AB32*AA24)+AB32 -> 446.2867796 | AE32: =(AD32*AA24)+AD32 -> 455.2125152 | AF32: =(AD32*AA24)+AD32 -> 455.2125152 | AG32: =(AF32*AA24)+AF32 -> 464.3167655 | AH32: =(AF32*AA24)+AF32 -> 464.3167655 | AI32: =SUM(S32) -> 428.95692
A33: MO+DPL A4 | B33: 465.5 | F33: 1 | O33: 465.5 | P33: MO+DPL A4 | Q33: 465.5 | R33: =(B33*AA24)+B33 -> 474.81 | S33: =(R33*AA24)+R33 -> 484.3062 | T33: =(R33*AA24)+R33 -> 484.3062 | AA33: =(T33*AA24)+T33 -> 493.992324 | AB33: =(T33*AA24)+T33 -> 493.992324 | AC33: =(AB33*AA24)+AB33 -> 503.8721705 | AD33: =(AB33*AA24)+AB33 -> 503.8721705 | AE33: =(AD33*AA24)+AD33 -> 513.9496139 | AF33: =(AD33*AA24)+AD33 -> 513.9496139 | AG33: =(AF33*AA24)+AF33 -> 524.2286062 | AH33: =(AF33*AA24)+AF33 -> 524.2286062 | AI33: =SUM(T33) -> 484.3062
A34: MO+DPL A5 | B34: 412.3 | G34: 1 | O34: 412.3 | P34: MO+DPL A5 | Q34: 412.3 | R34: =(B34*AA24)+B34 -> 420.546 | S34: =(R34*AA24)+R34 -> 428.95692 | T34: =(R34*AA24)+R34 -> 428.95692 | AA34: =(T34*AA24)+T34 -> 437.5360584 | AB34: =(T34*AA24)+T34 -> 437.5360584 | AC34: =(AB34*AA24)+AB34 -> 446.2867796 | AD34: =(AB34*AA24)+AB34 -> 446.2867796 | AE34: =(AD34*AA24)+AD34 -> 455.2125152 | AF34: =(AD34*AA24)+AD34 -> 455.2125152 | AG34: =(AF34*AA24)+AF34 -> 464.3167655 | AH34: =(AF34*AA24)+AF34 -> 464.3167655 | AI34: =SUM(AA34) -> 437.5360584
A35: MO+DPL A6 | B35: 465.5 | H35: 1 | O35: 465.5 | P35: MO+DPL A6 | Q35: 465.5 | R35: =(B35*AA24)+B35 -> 474.81 | S35: =(R35*AA24)+R35 -> 484.3062 | T35: =(R35*AA24)+R35 -> 484.3062 | AA35: =(T35*AA24)+T35 -> 493.992324 | AB35: =(T35*AA24)+T35 -> 493.992324 | AC35: =(AB35*AA24)+AB35 -> 503.8721705 | AD35: =(AB35*AA24)+AB35 -> 503.8721705 | AE35: =(AD35*AA24)+AD35 -> 513.9496139 | AF35: =(AD35*AA24)+AD35 -> 513.9496139 | AG35: =(AF35*AA24)+AF35 -> 524.2286062 | AH35: =(AF35*AA24)+AF35 -> 524.2286062 | AI35: =SUM(AB35) -> 493.992324
A36: MO+DPL A7 | B36: 412.3 | I36: 1 | O36: =B36*(C36+D36+E36+F36+G36+H36+I36) -> 412.3 | P36: MO+DPL A7 | Q36: 412.3 | R36: =(B36*AA24)+B36 -> 420.546 | S36: =(R36*AA24)+R36 -> 428.95692 | T36: =(R36*AA24)+R36 -> 428.95692 | AA36: =(T36*AA24)+T36 -> 437.5360584 | AB36: =(T36*AA24)+T36 -> 437.5360584 | AC36: =(AB36*AA24)+AB36 -> 446.2867796 | AD36: =(AB36*AA24)+AB36 -> 446.2867796 | AE36: =(AD36*AA24)+AD36 -> 455.2125152 | AF36: =(AD36*AA24)+AD36 -> 455.2125152 | AG36: =(AF36*AA24)+AF36 -> 464.3167655 | AH36: =(AF36*AA24)+AF36 -> 464.3167655 | AI36: =SUM(AC36) -> 446.2867796
A37: MO+DPL A8 | B37: 465.5 | J37: 1 | O37: =B37*(C37+D37+E37+F37+G37+H37+I37+J37+K37+L37+M37+N37) -> 465.5 | P37: MO+DPL A8 | Q37: 465.5 | R37: =(B37*AA24)+B37 -> 474.81 | S37: =(R37*AA24)+R37 -> 484.3062 | T37: =(R37*AA24)+R37 -> 484.3062 | AA37: =(T37*AA24)+T37 -> 493.992324 | AB37: =(T37*AA24)+T37 -> 493.992324 | AC37: =(AB37*AA24)+AB37 -> 503.8721705 | AD37: =(AB37*AA24)+AB37 -> 503.8721705 | AE37: =(AD37*AA24)+AD37 -> 513.9496139 | AF37: =(AD37*AA24)+AD37 -> 513.9496139 | AG37: =(AF37*AA24)+AF37 -> 524.2286062 | AH37: =(AF37*AA24)+AF37 -> 524.2286062 | AI37: =SUM(AD37) -> 503.8721705
A38: MO+DPL A9 | B38: 412.3 | K38: 1 | O38: =B38*(C38+D38+E38+F38+G38+H38+I38+J38+K38+L38+M38+N38) -> 412.3 | P38: MO+DPL A9 | Q38: 412.3 | R38: =(B38*AA24)+B38 -> 420.546 | S38: =(R38*AA24)+R38 -> 428.95692 | T38: =(R38*AA24)+R38 -> 428.95692 | AA38: =(T38*AA24)+T38 -> 437.5360584 | AB38: =(T38*AA24)+T38 -> 437.5360584 | AC38: =(AB38*AA24)+AB38 -> 446.2867796 | AD38: =(AB38*AA24)+AB38 -> 446.2867796 | AE38: =(AD38*AA24)+AD38 -> 455.2125152 | AF38: =(AD38*AA24)+AD38 -> 455.2125152 | AG38: =(AF38*AA24)+AF38 -> 464.3167655 | AH38: =(AF38*AA24)+AF38 -> 464.3167655 | AI38: =SUM(AE38) -> 455.2125152
A39: MO+DPL A10 | B39: 465.5 | L39: 1 | O39: =B39*(C39+D39+E39+F39+G39+H39+I39+J39+K39+L39+M39+N39) -> 465.5 | P39: MO+DPL A10 | Q39: 465.5 | R39: =(B39*AA24)+B39 -> 474.81 | S39: =(R39*AA24)+R39 -> 484.3062 | T39: =(R39*AA24)+R39 -> 484.3062 | AA39: =(T39*AA24)+T39 -> 493.992324 | AB39: =(T39*AA24)+T39 -> 493.992324 | AC39: =(AB39*AA24)+AB39 -> 503.8721705 | AD39: =(AB39*AA24)+AB39 -> 503.8721705 | AE39: =(AD39*AA24)+AD39 -> 513.9496139 | AF39: =(AD39*AA24)+AD39 -> 513.9496139 | AG39: =(AF39*AA24)+AF39 -> 524.2286062 | AH39: =(AF39*AA24)+AF39 -> 524.2286062 | AI39: =SUM(AF39) -> 513.9496139
A40: MO+DPL A11 | B40: 412.3 | M40: 1 | O40: =B40*(C40+D40+E40+F40+G40+H40+I40+J40+K40+L40+M40+N40) -> 412.3 | P40: MO+DPL A11 | Q40: 412.3 | R40: =(B40*AA24)+B40 -> 420.546 | S40: =(R40*AA24)+R40 -> 428.95692 | T40: =(R40*AA24)+R40 -> 428.95692 | AA40: =(T40*AA24)+T40 -> 437.5360584 | AB40: =(T40*AA24)+T40 -> 437.5360584 | AC40: =(AB40*AA24)+AB40 -> 446.2867796 | AD40: =(AB40*AA24)+AB40 -> 446.2867796 | AE40: =(AD40*AA24)+AD40 -> 455.2125152 | AF40: =(AD40*AA24)+AD40 -> 455.2125152 | AG40: =(AF40*AA24)+AF40 -> 464.3167655 | AH40: =(AF40*AA24)+AF40 -> 464.3167655 | AI40: =SUM(AG40) -> 464.3167655
A41: MO+DPL A12 | B41: 465.5 | N41: 1 | O41: =B41*(C41+D41+E41+F41+G41+H41+I41+J41+K41+L41+M41+N41) -> 465.5 | P41: MO+DPL A12 | Q41: 465.5 | R41: =(B41*AA24)+B41 -> 474.81 | S41: =(R41*AA24)+R41 -> 484.3062 | T41: =(R41*AA24)+R41 -> 484.3062 | AA41: =(T41*AA24)+T41 -> 493.992324 | AB41: =(T41*AA24)+T41 -> 493.992324 | AC41: =(AB41*AA24)+AB41 -> 503.8721705 | AD41: =(AB41*AA24)+AB41 -> 503.8721705 | AE41: =(AD41*AA24)+AD41 -> 513.9496139 | AF41: =(AD41*AA24)+AD41 -> 513.9496139 | AG41: =(AF41*AA24)+AF41 -> 524.2286062 | AH41: =(AF41*AA24)+AF41 -> 524.2286062 | AI41: =SUM(AH41) -> 524.2286062
A43: recyclage | B43: 4.5 | C43: 1 | D43: 1 | E43: 1 | F43: 1 | G43: 1 | H43: 1 | I43: 1 | J43: 1 | K43: 1 | L43: 1 | M43: 1 | N43: 1 | O43: =SUM(B43)*(C43+D43+E43+F43+G43+H43+I43+J43+K43+L43+M43+N43) -> 54 | P43: recyclage | Q43: =(B43*AA24)+B43 -> 4.59 | R43: =(B43*AA24)+B43 -> 4.59 | S43: =(R43*AA24)+R43 -> 4.6818 | T43: =(R43*AA24)+R43 -> 4.6818 | AA43: =(T43*AA24)+T43 -> 4.775436 | AB43: =(T43*AA24)+T43 -> 4.775436 | AC43: =(AB43*AA24)+AB43 -> 4.87094472 | AD43: =(AB43*AA24)+AB43 -> 4.87094472 | AE43: =(AD43*AA24)+AD43 -> 4.968363614 | AF43: =(AD43*AA24)+AD43 -> 4.968363614 | AG43: =(AF43*AA24)+AF43 -> 5.067730887 | AH43: =(AF43*AA24)+AF43 -> 5.067730887 | AI43: =SUM(Q43:AH43) -> 57.90855044
O44: =SUM(O26:O43) -> 22138.6 | Q44: =O44/6 -> 3689.766667 | AI44: =SUM(AI26:AI43) -> 25784.66858
AI45: =AI44/12 -> 2148.722381
O46: =O44/12 -> 1844.883333 | Q46: =SUM(Q26,Q29:Q30,Q43) -> 1098.83 | R46: =SUM(R26:R27,R29,R31,R42:R43) -> 2474.928 | S46: =SUM(S26,S29,S32,S43) -> 1129.21752 | T46: =SUM(T26:T29,T33,T43) -> 3363.82128 | AA46: =SUM(AA26,AA29,AA34,AA43) -> 1439.99267 | AB46: =SUM(AB26:AB27,AB29,AB35,AB43) -> 2574.915091 | AC46: =SUM(AC26,AC29,AC36,AC43) -> 1174.837908 | AD46: =SUM(AD26:AD29,AD37,AD42:AD43) -> 3499.71966 | AE46: =SUM(AE26,AE29,AE38,AE43) -> 1498.168374 | AF46: =SUM(AF26:AF27,AF29,AF39,AF43) -> 2672.944987 | AG46: =SUM(AG26,AG29,AG40,AG43) -> 1222.301359 | AH46: =SUM(AH26:AH29,AH41,AH43) -> 3634.991726 | AI46: =SUM(Q46:AH46) -> 25784.66858
A51: L55-L80
A52: Pour6000h/AN | B52: PV | C52: 1 année | E52: 2 année | G52: 3 année | I52: 4 année | K52: 5 année | M52: 6 année | AB52: evolution du prix 2%/an | AD52: 1.02
B53: prix | C53: Total M4 | D53: Total M8 | E53: Total M12 | F53: Total M16 | G53: Total M20 | H53: Total M24 | I53: Total M28 | J53: Total M32 | K53: Total M36 | L53: Total M40 | M53: Total M44 | N53: Total M48 | O53: Total M52 | P53: Total M56 | Q53: Total M60 | R53: Total M64 | S53: Total M68 | T53: Total M72 | AA53: Total Année N | AC53: Total M4 | AD53: Total M8 | AE53: Total M12 | AF53: Total M16 | AG53: Total M20 | AH53: Total M24 | AI53: Total M28 | AJ53: Total M32 | AK53: Total M36 | AL53: Total M40 | AM53: Total M44 | AN53: Total M48 | AO53: Total M52 | AP53: Total M56 | AQ53: Total M60 | AR53: Total M64 | AS53: Total M68 | AT53: Total M72
A54: COM CK2175-1 | B54: 397 | C54: 1 | D54: 1 | E54: 1 | F54: 1 | G54: 1 | H54: 1 | I54: 1 | J54: 1 | K54: 1 | L54: 1 | M54: 1 | N54: 1 | O54: 1 | P54: 1 | Q54: 1 | R54: 1 | S54: 1 | T54: 1 | AA54: =B54*(C54+D54+E54+F54+G54+H54+I54+J54+K54+L54+M54+T54) -> 4764 | AB54: COM CK2140-1 | AC54: =B54 -> 397 | AD54: =B54 -> 397 | AE54: =B54*$AD$52 -> 404.94 | AF54: =AE54*$AD$52 -> 413.0388 | AG54: =AE54*$AD$52 -> 413.0388 | AH54: =AG54*$AD$52 -> 421.299576 | AI54: =AG54*$AD$52 -> 421.299576 | AJ54: =AG54*$AD$52 -> 421.299576 | AK54: =AJ54*$AD$52 -> 429.7255675 | AL54: =AJ54*$AD$52 -> 429.7255675 | AM54: =AJ54*$AD$52 -> 429.7255675 | AN54: =AM54*$AD$52 -> 438.3200789 | AO54: =AM54*$AD$52 -> 438.3200789 | AP54: =AM54*$AD$52 -> 438.3200789 | AQ54: =AP54*$AD$52 -> 447.0864804 | AR54: =AP54*$AD$52 -> 447.0864804 | AS54: =AP54*$AD$52 -> 447.0864804 | AT54: =AS54*$AD$52 -> 456.0282101 | AU54: =SUM(AC54:AT54) -> 7690.340919
A55: com CK4175-2 | B55: 1282.4 | D55: 1 | F55: 1 | H55: 1 | J55: 1 | L55: 1 | M55: 0 | N55: 1 | O55: 0 | P55: 1 | R55: 1 | S55: 0 | T55: 1 | AA55: =B55*(C55+D55+E55+F55+G55+H55+I55+J55+K55+L55+M55+T55) -> 7694.4 | AB55: COM CK4140-1 | AC55: =B55 -> 1282.4 | AD55: =B55 -> 1282.4 | AE55: 1308.048 | AF55: =AD55*$AD$52 -> 1308.048 | AG55: =AD55*$AD$52 -> 1308.048 | AH55: =AE55*$AD$52 -> 1334.20896 | AI55: 1334.20896 | AJ55: 1334.20896 | AK55: 1360.893139 | AL55: 1360.893139 | AM55: 1360.893139 | AN55: 1388.111002 | AO55: 1388.111002 | AP55: 1388.111002 | AQ55: 1415.873222 | AR55: 1415.873222 | AS55: 1415.873222 | AT55: 1444.190686 | AU55: =SUM(AD55,AF55,AH55,AJ55,AL55,AN55,AP55,AR55,AT55) -> 12256.04497
A56: COM CK8175-1 | B56: 806.8 | F56: 1 | J56: 1 | N56: 1 | Q56: 0 | R56: 1 | S56: 0 | T56: 0 | AA56: =B56*(C56+D56+E56+F56+G56+H56+I56+J56+K56+L56+M56+T56) -> 1613.6 | AB56: COM CK8140-2 | AC56: 806.8 | AD56: 806.8 | AE56: 822.936 | AF56: =AD56*$AD$52 -> 822.936 | AG56: 822.936 | AH56: 839.39472 | AI56: 839.39472 | AJ56: 839.39472 | AK56: 856.1826144 | AL56: 856.1826144 | AM56: 856.1826144 | AN56: 873.3062667 | AO56: 873.3062667 | AP56: 873.3062667 | AQ56: 890.772392 | AR56: 890.772392 | AS56: 890.772392 | AT56: 908.5878399 | AU56: =SUM(AF56,AJ56,AN56,AR56) -> 3426.409379
A57: COM SCWO4000-20 | B57: 277 | C57: 1 | D57: 1 | E57: 0 | F57: 2 | G57: 0 | H57: 2 | I57: 0 | J57: 2 | K57: 0 | L57: 2 | M57: 0 | N57: 2 | P57: 2 | R57: 2 | T57: 2 | AA57: =B57*(C57+D57+F57+H57+J57+L57+N57+P57+R57+T57) -> 4986 | AB57: COM SCWO4000-20 | AC57: 277 | AD57: 277 | AE57: 282.54 | AF57: 282.54 | AG57: 282.54 | AH57: 288.1908 | AI57: 288.1908 | AJ57: 288.1908 | AK57: 293.954616 | AL57: 293.954616 | AM57: 293.954616 | AN57: 299.8337083 | AO57: 299.8337083 | AP57: 299.8337083 | AQ57: 305.8303825 | AR57: 305.8303825 | AS57: 305.8303825 | AT57: 311.9469901 | AU57: =SUM(AT57,AR57,AP57,AN57,AL57,AJ57,AH57,AF57,AD57,AC57) -> 2924.321005
A58: MO+DPL A1 | B58: 412.3 | C58: 1 | AA58: =B58*(C58+D58+E58+F58+G58+H58) -> 412.3 | AB58: MO+DPL A1 | AC58: 412.3 | AD58: 412.3 | AE58: 420.546 | AF58: 420.546 | AG58: 420.546 | AH58: 428.95692 | AI58: 428.95692 | AJ58: 428.95692 | AK58: 437.5360584 | AL58: 437.5360584 | AM58: 437.5360584 | AN58: 446.2867796 | AO58: 446.2867796 | AP58: 446.2867796 | AQ58: 455.2125152 | AR58: 455.2125152 | AS58: 455.2125152 | AT58: 464.3167655 | AU58: =AC58 -> 412.3
A59: MO+DPL A2 | B59: 465.5 | D59: 1 | AA59: 465.5 | AB59: MO+DPL A2 | AC59: 465.5 | AD59: 465.5 | AE59: 474.81 | AF59: 474.81 | AG59: 474.81 | AH59: 484.3062 | AI59: 484.3062 | AJ59: 484.3062 | AK59: 493.992324 | AL59: 493.992324 | AM59: 493.992324 | AN59: 503.8721705 | AO59: 503.8721705 | AP59: 503.8721705 | AQ59: 513.9496139 | AR59: 513.9496139 | AS59: 513.9496139 | AT59: 524.2286062 | AU59: =AD59 -> 465.5
A60: MO+DPL A3 | B60: 412.3 | E60: 1 | AA60: 412.3 | AB60: MO+DPL A3 | AC60: 412.3 | AD60: 412.3 | AE60: =B60*$AD$52 -> 420.546 | AF60: 420.546 | AG60: 420.546 | AH60: 428.95692 | AI60: 428.95692 | AJ60: 428.95692 | AK60: 437.5360584 | AL60: 437.5360584 | AM60: 437.5360584 | AN60: 446.2867796 | AO60: 446.2867796 | AP60: 446.2867796 | AQ60: 455.2125152 | AR60: 455.2125152 | AS60: 455.2125152 | AT60: 464.3167655 | AU60: =AE60 -> 420.546
A61: MO+DPL A4 | B61: 465.5 | F61: 1 | AA61: 465.5 | AB61: MO+DPL A4 | AC61: 465.5 | AD61: 465.5 | AE61: 474.81 | AF61: 474.81 | AG61: 474.81 | AH61: 484.3062 | AI61: 484.3062 | AJ61: 484.3062 | AK61: 493.992324 | AL61: 493.992324 | AM61: 493.992324 | AN61: 503.8721705 | AO61: 503.8721705 | AP61: 503.8721705 | AQ61: 513.9496139 | AR61: 513.9496139 | AS61: 513.9496139 | AT61: 524.2286062 | AU61: =AF61 -> 474.81
A62: MO+DPL A5 | B62: 412.3 | G62: 1 | AA62: 412.3 | AB62: MO+DPL A5 | AC62: 412.3 | AD62: 412.3 | AE62: 420.546 | AF62: 420.546 | AG62: 420.546 | AH62: 428.95692 | AI62: 428.95692 | AJ62: 428.95692 | AK62: 437.5360584 | AL62: 437.5360584 | AM62: 437.5360584 | AN62: 446.2867796 | AO62: 446.2867796 | AP62: 446.2867796 | AQ62: 455.2125152 | AR62: 455.2125152 | AS62: 455.2125152 | AT62: 464.3167655 | AU62: =AG62 -> 420.546
A63: MO+DPL A6 | B63: 465.5 | H63: 1 | AA63: 465.5 | AB63: MO+DPL A6 | AC63: 465.5 | AD63: 465.5 | AE63: 474.81 | AF63: 474.81 | AG63: 474.81 | AH63: 484.3062 | AI63: 484.3062 | AJ63: 484.3062 | AK63: 493.992324 | AL63: 493.992324 | AM63: 493.992324 | AN63: 503.8721705 | AO63: 503.8721705 | AP63: 503.8721705 | AQ63: 513.9496139 | AR63: 513.9496139 | AS63: 513.9496139 | AT63: 524.2286062 | AU63: =AH63 -> 484.3062
A64: MO+DPL A7 | B64: 412.3 | I64: 1 | AA64: =B64*(C64+D64+E64+F64+G64+H64+I64) -> 412.3 | AB64: MO+DPL A7 | AC64: 412.3 | AD64: 412.3 | AE64: 420.546 | AF64: 420.546 | AG64: 420.546 | AH64: 428.95692 | AI64: 428.95692 | AJ64: 428.95692 | AK64: 437.5360584 | AL64: 437.5360584 | AM64: 437.5360584 | AN64: 446.2867796 | AO64: 446.2867796 | AP64: 446.2867796 | AQ64: 455.2125152 | AR64: 455.2125152 | AS64: 455.2125152 | AT64: 464.3167655 | AU64: =AI64 -> 428.95692
A65: MO+DPL A8 | B65: 465.5 | J65: 1 | AA65: =B65*(C65+D65+E65+F65+G65+H65+I65+J65+K65+L65+M65+T65) -> 465.5 | AB65: MO+DPL A8 | AC65: 465.5 | AD65: 465.5 | AE65: 474.81 | AF65: 474.81 | AG65: 474.81 | AH65: 484.3062 | AI65: 484.3062 | AJ65: 484.3062 | AK65: 493.992324 | AL65: 493.992324 | AM65: 493.992324 | AN65: 503.8721705 | AO65: 503.8721705 | AP65: 503.8721705 | AQ65: 513.9496139 | AR65: 513.9496139 | AS65: 513.9496139 | AT65: 524.2286062 | AU65: =AJ65 -> 484.3062
A66: MO+DPL A9 | B66: 412.3 | K66: 1 | AA66: =B66*(C66+D66+E66+F66+G66+H66+I66+J66+K66+L66+M66+T66) -> 412.3 | AB66: MO+DPL A9 | AC66: 412.3 | AD66: 412.3 | AE66: 420.546 | AF66: 420.546 | AG66: 420.546 | AH66: 428.95692 | AI66: 428.95692 | AJ66: 428.95692 | AK66: 437.5360584 | AL66: 437.5360584 | AM66: 437.5360584 | AN66: 446.2867796 | AO66: 446.2867796 | AP66: 446.2867796 | AQ66: 455.2125152 | AR66: 455.2125152 | AS66: 455.2125152 | AT66: 464.3167655 | AU66: =AK66 -> 437.5360584
A67: MO+DPL A10 | B67: 465.5 | L67: 1 | AA67: =B67*(C67+D67+E67+F67+G67+H67+I67+J67+K67+L67+M67+T67) -> 465.5 | AB67: MO+DPL A10 | AC67: 465.5 | AD67: 465.5 | AE67: 474.81 | AF67: 474.81 | AG67: 474.81 | AH67: 484.3062 | AI67: 484.3062 | AJ67: 484.3062 | AK67: 493.992324 | AL67: 493.992324 | AM67: 493.992324 | AN67: 503.8721705 | AO67: 503.8721705 | AP67: 503.8721705 | AQ67: 513.9496139 | AR67: 513.9496139 | AS67: 513.9496139 | AT67: 524.2286062 | AU67: =AL67 -> 493.992324
A68: MO+DPL A11 | B68: 412.3 | M68: 1 | AA68: =B68*(C68+D68+E68+F68+G68+H68+I68+J68+K68+L68+M68+T68) -> 412.3 | AB68: MO+DPL A11 | AC68: 412.3 | AD68: 412.3 | AE68: 420.546 | AF68: 420.546 | AG68: 420.546 | AH68: 428.95692 | AI68: 428.95692 | AJ68: 428.95692 | AK68: 437.5360584 | AL68: 437.5360584 | AM68: 437.5360584 | AN68: 446.2867796 | AO68: 446.2867796 | AP68: 446.2867796 | AQ68: 455.2125152 | AR68: 455.2125152 | AS68: 455.2125152 | AT68: 464.3167655 | AU68: =AM68 -> 437.5360584
A69: MO+DPL A12 | B69: 465.5 | N69: 1 | AA69: =SUM(C69:T69)*B69 -> 465.5 | AB69: MO+DPL A12 | AC69: 465.5 | AD69: 465.5 | AE69: 474.81 | AF69: 474.81 | AG69: 474.81 | AH69: 484.3062 | AI69: 484.3062 | AJ69: 484.3062 | AK69: 493.992324 | AL69: 493.992324 | AM69: 493.992324 | AN69: 503.8721705 | AO69: 503.8721705 | AP69: 503.8721705 | AQ69: 513.9496139 | AR69: 513.9496139 | AS69: 513.9496139 | AT69: 524.2286062 | AU69: =AN69 -> 503.8721705
A70: MO+DPL A13 | B70: 412.3 | O70: 1 | AA70: 412.3 | AB70: MO+DPL A13 | AC70: 412.3 | AD70: 412.3 | AE70: =B70*$AD$52 -> 420.546 | AF70: 420.546 | AG70: 420.546 | AH70: 428.95692 | AI70: 428.95692 | AJ70: 428.95692 | AK70: 437.5360584 | AL70: 437.5360584 | AM70: 437.5360584 | AN70: 446.2867796 | AO70: 446.2867796 | AP70: 446.2867796 | AQ70: 455.2125152 | AR70: 455.2125152 | AS70: 455.2125152 | AT70: 464.3167655 | AU70: =AO70 -> 446.2867796
A71: MO+DPL A14 | B71: 465.5 | P71: 1 | AA71: 465.5 | AB71: MO+DPL A14 | AC71: 465.5 | AD71: 465.5 | AE71: 474.81 | AF71: 474.81 | AG71: 474.81 | AH71: =AE71*$AD$52 -> 484.3062 | AI71: 484.3062 | AJ71: 484.3062 | AK71: 493.992324 | AL71: 493.992324 | AM71: 493.992324 | AN71: 503.8721705 | AO71: 503.8721705 | AP71: 503.8721705 | AQ71: 513.9496139 | AR71: 513.9496139 | AS71: 513.9496139 | AT71: 524.2286062 | AU71: =AP71 -> 503.8721705
A72: MO+DPL A15 | B72: 412.3 | Q72: 1 | AA72: 412.3 | AB72: MO+DPL A15 | AC72: 412.3 | AD72: 412.3 | AE72: 420.546 | AF72: 420.546 | AG72: 420.546 | AH72: 428.95692 | AI72: 428.95692 | AJ72: 428.95692 | AK72: 437.5360584 | AL72: 437.5360584 | AM72: 437.5360584 | AN72: 446.2867796 | AO72: 446.2867796 | AP72: 446.2867796 | AQ72: 455.2125152 | AR72: 455.2125152 | AS72: 455.2125152 | AT72: 464.3167655 | AU72: =AQ72 -> 455.2125152
A73: MO+DPL A16 | B73: 465.5 | R73: 1 | AA73: 465.5 | AB73: MO+DPL A16 | AC73: 465.5 | AD73: 465.5 | AE73: 474.81 | AF73: 474.81 | AG73: 474.81 | AH73: 484.3062 | AI73: 484.3062 | AJ73: 484.3062 | AK73: 493.992324 | AL73: 493.992324 | AM73: 493.992324 | AN73: 503.8721705 | AO73: 503.8721705 | AP73: 503.8721705 | AQ73: 513.9496139 | AR73: 513.9496139 | AS73: 513.9496139 | AT73: 524.2286062 | AU73: =AR73 -> 513.9496139
A74: MO+DPL A17 | B74: 412.3 | S74: 1 | AA74: 412.3 | AB74: MO+DPL A17 | AC74: 412.3 | AD74: 412.3 | AE74: 420.546 | AF74: 420.546 | AG74: 420.546 | AH74: 428.95692 | AI74: 428.95692 | AJ74: 428.95692 | AK74: 437.5360584 | AL74: 437.5360584 | AM74: 437.5360584 | AN74: 446.2867796 | AO74: 446.2867796 | AP74: 446.2867796 | AQ74: 455.2125152 | AR74: 455.2125152 | AS74: 455.2125152 | AT74: 464.3167655 | AU74: =AS74 -> 455.2125152
A75: MO+DPL A18 | B75: 465.5 | T75: 1 | AA75: 465.5 | AB75: MO+DPL A18 | AC75: 465.5 | AD75: 465.5 | AE75: 474.81 | AF75: 474.81 | AG75: 474.81 | AH75: 484.3062 | AI75: 484.3062 | AJ75: 484.3062 | AK75: 493.992324 | AL75: 493.992324 | AM75: 493.992324 | AN75: 503.8721705 | AO75: 503.8721705 | AP75: 503.8721705 | AQ75: 513.9496139 | AR75: 513.9496139 | AS75: 513.9496139 | AT75: 524.2286062 | AU75: =SUM(AT75) -> 524.2286062
A76: recyclage | B76: 4.5 | C76: 1 | D76: 1 | E76: 1 | F76: 1 | G76: 1 | H76: 1 | I76: 1 | J76: 1 | K76: 1 | L76: 1 | M76: 1 | N76: 1 | O76: 1 | P76: 1 | Q76: 1 | R76: 1 | S76: 1 | T76: 1 | AA76: =SUM(C76:T76)*B76 -> 81 | AB76: recyclage | AC76: =B76 -> 4.5 | AD76: 4.5 | AE76: 4.59 | AF76: 4.59 | AG76: 4.59 | AH76: 4.6818 | AI76: 4.6818 | AJ76: 4.6818 | AK76: 4.775436 | AL76: 4.775436 | AM76: 4.775436 | AN76: 4.87094472 | AO76: 4.87094472 | AP76: 4.87094472 | AQ76: 4.968363614 | AR76: 4.968363614 | AS76: 4.968363614 | AT76: 5.067730887 | AU76: =SUM(AC76:AT76) -> 85.72736389
O77: =SUM(AA54:AA76) -> 27039.2 | Q77: =O77/6 -> 4506.533333 | R77: =P77/6 -> 0 | S77: =Q77/6 -> 751.0888889 | AU77: =SUM(AU54:AU76) -> 34745.81377
AU78: =AU77/18 -> 1930.322987
O79: =O77/12 -> 2253.266667 | AC79: =SUM(AC54,AC57:AC58,AC76) -> 1090.8 | AD79: =SUM(AD54:AD55,AD57,AD59,AD76) -> 2426.4 | AE79: =SUM(AE54,AE60,AE76) -> 830.076 | AF79: =SUM(AF54:AF57,AF61,AF76) -> 3305.9628 | AG79: =SUM(AG54,AG62,AG76) -> 838.1748 | AH79: =SUM(AH54:AH55,AH57,AH63,AH76) -> 2532.687336 | AI79: =SUM(AI54,AI64,AI76) -> 854.938296 | AJ79: =SUM(AJ54:AJ57,AJ65,AJ76) -> 3372.082056 | AK79: =SUM(AK54,AK66,AK76) -> 872.0370619 | AL79: =SUM(AL54:AL55,AL57,AL67,AL76) -> 2583.341083 | AM79: =SUM(AM54,AM68,AM76) -> 872.0370619 | AN79: =SUM(AN54:AN57,AN69,AN76) -> 3508.314171 | AO79: =SUM(AO54,AO70,AO76) -> 889.4778032 | AP79: =SUM(AP54:AP55,AP57,AP71,AP76) -> 2635.007904 | AQ79: =SUM(AQ54,AQ72,AQ76) -> 907.2673592 | AR79: =SUM(AR54:AR57,AR73,AR76) -> 3578.480454 | AS79: =SUM(AS54,AS74,AS76) -> 907.2673592 | AT79: =SUM(AT54:AT55,AT57,AT75:AT76) -> 2741.462224 | AU79: =SUM(AC79:AT79) -> 34745.81377
A84: L55-L80
A85: Pour8000h/AN | B85: PV | C85: 1 année | E85: 2 année | G85: 3 année | I85: 4 année | K85: 5 année | M85: 6 année | AB85: evolution du prix 2%/an | AD85: 1.02
B86: prix | C86: Total M3 | D86: Total M6 | E86: Total M9 | F86: Total M12 | G86: Total M20 | H86: Total M24 | I86: Total M28 | J86: Total M32 | K86: Total M36 | L86: Total M40 | M86: Total M44 | N86: Total M48 | O86: Total M52 | P86: Total M56 | Q86: Total M60 | R86: Total M64 | S86: Total M68 | T86: Total M72 | AA86: Total Année N | AC86: Total M4 | AD86: Total M8 | AE86: Total M12 | AF86: Total M16 | AG86: Total M20 | AH86: Total M24 | AI86: Total M28 | AJ86: Total M32 | AK86: Total M36 | AL86: Total M40 | AM86: Total M44 | AN86: Total M48 | AO86: Total M52 | AP86: Total M56 | AQ86: Total M60 | AR86: Total M64 | AS86: Total M68 | AT86: Total M72
A87: COM CK2175-1 | B87: 397 | C87: 1 | D87: 1 | E87: 1 | F87: 1 | G87: 1 | H87: 1 | I87: 1 | J87: 1 | K87: 1 | L87: 1 | M87: 1 | N87: 1 | O87: 1 | P87: 1 | Q87: 1 | R87: 1 | S87: 1 | T87: 1 | AA87: =B87*(C87+D87+E87+F87+G87+H87+I87+J87+K87+L87+M87+T87) -> 4764 | AB87: COM CK2140-1 | AC87: =B87 -> 397 | AD87: =B87 -> 397 | AE87: =B87*$AD$52 -> 404.94 | AF87: =AE87*$AD$52 -> 413.0388 | AG87: =AE87*$AD$52 -> 413.0388 | AH87: =AG87*$AD$52 -> 421.299576 | AI87: =AG87*$AD$52 -> 421.299576 | AJ87: =AG87*$AD$52 -> 421.299576 | AK87: =AJ87*$AD$52 -> 429.7255675 | AL87: =AJ87*$AD$52 -> 429.7255675 | AM87: =AJ87*$AD$52 -> 429.7255675 | AN87: =AM87*$AD$52 -> 438.3200789 | AO87: =AM87*$AD$52 -> 438.3200789 | AP87: =AM87*$AD$52 -> 438.3200789 | AQ87: =AP87*$AD$52 -> 447.0864804 | AR87: =AP87*$AD$52 -> 447.0864804 | AS87: =AP87*$AD$52 -> 447.0864804 | AT87: =AS87*$AD$52 -> 456.0282101 | AU87: =SUM(AC87:AT87) -> 7690.340919
A88: com CK4175-2-RS | B88: 1282.4 | D88: 1 | F88: 1 | H88: 1 | J88: 1 | L88: 1 | M88: 0 | N88: 1 | O88: 0 | P88: 1 | R88: 1 | S88: 0 | T88: 1 | AA88: =B88*(C88+D88+E88+F88+G88+H88+I88+J88+K88+L88+M88+T88) -> 7694.4 | AB88: COM CK4140-1 | AC88: =B88 -> 1282.4 | AD88: =B88 -> 1282.4 | AE88: 1308.048 | AF88: =AD88*$AD$52 -> 1308.048 | AG88: =AD88*$AD$52 -> 1308.048 | AH88: =AE88*$AD$52 -> 1334.20896 | AI88: =AF88*$AD$52 -> 1334.20896 | AJ88: =AG88*$AD$52 -> 1334.20896 | AK88: =AH88*$AD$52 -> 1360.893139 | AL88: =AI88*$AD$52 -> 1360.893139 | AM88: =AJ88*$AD$52 -> 1360.893139 | AN88: =AK88*$AD$52 -> 1388.111002 | AO88: =AL88*$AD$52 -> 1388.111002 | AP88: =AM88*$AD$52 -> 1388.111002 | AQ88: =AN88*$AD$52 -> 1415.873222 | AR88: =AO88*$AD$52 -> 1415.873222 | AS88: =AP88*$AD$52 -> 1415.873222 | AT88: =AQ88*$AD$52 -> 1444.190686 | AU88: =SUM(AD88,AF88,AH88,AJ88,AL88,AN88,AP88,AR88,AT88) -> 12256.04497
A89: COM CK8175-1 | B89: 806.8 | F89: 1 | J89: 1 | N89: 1 | Q89: 0 | R89: 1 | S89: 0 | T89: 0 | AA89: =B89*(C89+D89+E89+F89+G89+H89+I89+J89+K89+L89+M89+T89) -> 1613.6 | AB89: COM CK8140-2 | AC89: 806.8 | AD89: 806.8 | AE89: 822.936 | AF89: =AD89*$AD$52 -> 822.936 | AG89: 822.936 | AH89: 839.39472 | AI89: 839.39472 | AJ89: 839.39472 | AK89: 856.1826144 | AL89: 856.1826144 | AM89: 856.1826144 | AN89: 873.3062667 | AO89: 873.3062667 | AP89: 873.3062667 | AQ89: 890.772392 | AR89: 890.772392 | AS89: 890.772392 | AT89: 908.5878399 | AU89: =SUM(AF89,AJ89,AN89,AR89) -> 3426.409379
A90: COM SCWO4000-20 | B90: 277 | C90: 1 | D90: 1 | E90: 0 | F90: 2 | G90: 0 | H90: 2 | I90: 0 | J90: 2 | K90: 0 | L90: 2 | M90: 0 | N90: 2 | P90: 2 | R90: 2 | T90: 2 | AA90: =B90*(C90+D90+F90+H90+J90+L90+N90+P90+R90+T90) -> 4986 | AB90: COM SCWO4000-20 | AC90: 277 | AD90: 277 | AE90: 282.54 | AF90: 282.54 | AG90: 282.54 | AH90: 288.1908 | AI90: 288.1908 | AJ90: 288.1908 | AK90: 293.954616 | AL90: 293.954616 | AM90: 293.954616 | AN90: 299.8337083 | AO90: 299.8337083 | AP90: 299.8337083 | AQ90: 305.8303825 | AR90: 305.8303825 | AS90: 305.8303825 | AT90: 311.9469901 | AU90: =SUM(AT90,AR90,AP90,AN90,AL90,AJ90,AH90,AF90,AD90,AC90) -> 2924.321005
A91: MO+DPL A1 | B91: 412.3 | C91: 1 | AA91: =B91*(C91+D91+E91+F91+G91+H91) -> 412.3 | AB91: MO+DPL A1 | AC91: 412.3 | AD91: 412.3 | AE91: 420.546 | AF91: 420.546 | AG91: 420.546 | AH91: 428.95692 | AI91: 428.95692 | AJ91: 428.95692 | AK91: 437.5360584 | AL91: 437.5360584 | AM91: 437.5360584 | AN91: 446.2867796 | AO91: 446.2867796 | AP91: 446.2867796 | AQ91: 455.2125152 | AR91: 455.2125152 | AS91: 455.2125152 | AT91: 464.3167655 | AU91: =AC91 -> 412.3
A92: MO+DPL A2 | B92: 465.5 | D92: 1 | AA92: 465.5 | AB92: MO+DPL A2 | AC92: 465.5 | AD92: 465.5 | AE92: 474.81 | AF92: 474.81 | AG92: 474.81 | AH92: 484.3062 | AI92: 484.3062 | AJ92: 484.3062 | AK92: 493.992324 | AL92: 493.992324 | AM92: 493.992324 | AN92: 503.8721705 | AO92: 503.8721705 | AP92: 503.8721705 | AQ92: 513.9496139 | AR92: 513.9496139 | AS92: 513.9496139 | AT92: 524.2286062 | AU92: =AD92 -> 465.5
A93: MO+DPL A3 | B93: 412.3 | E93: 1 | AA93: 412.3 | AB93: MO+DPL A3 | AC93: 412.3 | AD93: 412.3 | AE93: =B93*$AD$52 -> 420.546 | AF93: 420.546 | AG93: 420.546 | AH93: 428.95692 | AI93: 428.95692 | AJ93: 428.95692 | AK93: 437.5360584 | AL93: 437.5360584 | AM93: 437.5360584 | AN93: 446.2867796 | AO93: 446.2867796 | AP93: 446.2867796 | AQ93: 455.2125152 | AR93: 455.2125152 | AS93: 455.2125152 | AT93: 464.3167655 | AU93: =AE93 -> 420.546
A94: MO+DPL A4 | B94: 465.5 | F94: 1 | AA94: 465.5 | AB94: MO+DPL A4 | AC94: 465.5 | AD94: 465.5 | AE94: =B94*$AD$52 -> 474.81 | AF94: 474.81 | AG94: 474.81 | AH94: 484.3062 | AI94: 484.3062 | AJ94: 484.3062 | AK94: 493.992324 | AL94: 493.992324 | AM94: 493.992324 | AN94: 503.8721705 | AO94: 503.8721705 | AP94: 503.8721705 | AQ94: 513.9496139 | AR94: 513.9496139 | AS94: 513.9496139 | AT94: 524.2286062 | AU94: =AF94 -> 474.81
A95: MO+DPL A5 | B95: 412.3 | G95: 1 | AA95: 412.3 | AB95: MO+DPL A5 | AC95: 412.3 | AD95: 412.3 | AE95: 420.546 | AF95: 420.546 | AG95: 420.546 | AH95: 428.95692 | AI95: 428.95692 | AJ95: 428.95692 | AK95: 437.5360584 | AL95: 437.5360584 | AM95: 437.5360584 | AN95: 446.2867796 | AO95: 446.2867796 | AP95: 446.2867796 | AQ95: 455.2125152 | AR95: 455.2125152 | AS95: 455.2125152 | AT95: 464.3167655 | AU95: =AG95 -> 420.546
A96: MO+DPL A6 | B96: 465.5 | H96: 1 | AA96: 465.5 | AB96: MO+DPL A6 | AC96: 465.5 | AD96: 465.5 | AE96: 474.81 | AF96: 474.81 | AG96: 474.81 | AH96: 484.3062 | AI96: 484.3062 | AJ96: 484.3062 | AK96: 493.992324 | AL96: 493.992324 | AM96: 493.992324 | AN96: 503.8721705 | AO96: 503.8721705 | AP96: 503.8721705 | AQ96: 513.9496139 | AR96: 513.9496139 | AS96: 513.9496139 | AT96: 524.2286062 | AU96: =AH96 -> 484.3062
A97: MO+DPL A7 | B97: 412.3 | I97: 1 | AA97: =B97*(C97+D97+E97+F97+G97+H97+I97) -> 412.3 | AB97: MO+DPL A7 | AC97: 412.3 | AD97: 412.3 | AE97: 420.546 | AF97: 420.546 | AG97: 420.546 | AH97: 428.95692 | AI97: 428.95692 | AJ97: 428.95692 | AK97: 437.5360584 | AL97: 437.5360584 | AM97: 437.5360584 | AN97: 446.2867796 | AO97: 446.2867796 | AP97: 446.2867796 | AQ97: 455.2125152 | AR97: 455.2125152 | AS97: 455.2125152 | AT97: 464.3167655 | AU97: =AI97 -> 428.95692
A98: MO+DPL A8 | B98: 465.5 | J98: 1 | AA98: =B98*(C98+D98+E98+F98+G98+H98+I98+J98+K98+L98+M98+T98) -> 465.5 | AB98: MO+DPL A8 | AC98: 465.5 | AD98: 465.5 | AE98: 474.81 | AF98: 474.81 | AG98: 474.81 | AH98: 484.3062 | AI98: 484.3062 | AJ98: 484.3062 | AK98: 493.992324 | AL98: 493.992324 | AM98: 493.992324 | AN98: 503.8721705 | AO98: 503.8721705 | AP98: 503.8721705 | AQ98: 513.9496139 | AR98: 513.9496139 | AS98: 513.9496139 | AT98: 524.2286062 | AU98: =AJ98 -> 484.3062
A99: MO+DPL A9 | B99: 412.3 | K99: 1 | AA99: =B99*(C99+D99+E99+F99+G99+H99+I99+J99+K99+L99+M99+T99) -> 412.3 | AB99: MO+DPL A9 | AC99: 412.3 | AD99: 412.3 | AE99: 420.546 | AF99: 420.546 | AG99: 420.546 | AH99: 428.95692 | AI99: 428.95692 | AJ99: 428.95692 | AK99: 437.5360584 | AL99: 437.5360584 | AM99: 437.5360584 | AN99: 446.2867796 | AO99: 446.2867796 | AP99: 446.2867796 | AQ99: 455.2125152 | AR99: 455.2125152 | AS99: 455.2125152 | AT99: 464.3167655 | AU99: =AK99 -> 437.5360584
A100: MO+DPL A10 | B100: 465.5 | L100: 1 | AA100: =B100*(C100+D100+E100+F100+G100+H100+I100+J100+K100+L100+M100+T100) -> 465.5 | AB100: MO+DPL A10 | AC100: 465.5 | AD100: 465.5 | AE100: 474.81 | AF100: 474.81 | AG100: 474.81 | AH100: 484.3062 | AI100: 484.3062 | AJ100: 484.3062 | AK100: 493.992324 | AL100: 493.992324 | AM100: 493.992324 | AN100: 503.8721705 | AO100: 503.8721705 | AP100: 503.8721705 | AQ100: 513.9496139 | AR100: 513.9496139 | AS100: 513.9496139 | AT100: 524.2286062 | AU100: =AL100 -> 493.992324
A101: MO+DPL A11 | B101: 412.3 | M101: 1 | AA101: =B101*(C101+D101+E101+F101+G101+H101+I101+J101+K101+L101+M101+T101) -> 412.3 | AB101: MO+DPL A11 | AC101: 412.3 | AD101: 412.3 | AE101: 420.546 | AF101: 420.546 | AG101: 420.546 | AH101: 428.95692 | AI101: 428.95692 | AJ101: 428.95692 | AK101: 437.5360584 | AL101: 437.5360584 | AM101: 437.5360584 | AN101: 446.2867796 | AO101: 446.2867796 | AP101: 446.2867796 | AQ101: 455.2125152 | AR101: 455.2125152 | AS101: 455.2125152 | AT101: 464.3167655 | AU101: =AM101 -> 437.5360584
A102: MO+DPL A12 | B102: 465.5 | N102: 1 | AA102: =SUM(C102:T102)*B102 -> 465.5 | AB102: MO+DPL A12 | AC102: 465.5 | AD102: 465.5 | AE102: 474.81 | AF102: 474.81 | AG102: 474.81 | AH102: 484.3062 | AI102: 484.3062 | AJ102: 484.3062 | AK102: 493.992324 | AL102: 493.992324 | AM102: 493.992324 | AN102: 503.8721705 | AO102: 503.8721705 | AP102: 503.8721705 | AQ102: 513.9496139 | AR102: 513.9496139 | AS102: 513.9496139 | AT102: 524.2286062 | AU102: =AN102 -> 503.8721705
A103: MO+DPL A13 | B103: 412.3 | O103: 1 | AA103: 412.3 | AB103: MO+DPL A13 | AC103: 412.3 | AD103: 412.3 | AE103: 420.546 | AF103: 420.546 | AG103: 420.546 | AH103: 428.95692 | AI103: 428.95692 | AJ103: 428.95692 | AK103: 437.5360584 | AL103: 437.5360584 | AM103: 437.5360584 | AN103: 446.2867796 | AO103: 446.2867796 | AP103: 446.2867796 | AQ103: 455.2125152 | AR103: 455.2125152 | AS103: 455.2125152 | AT103: 464.3167655 | AU103: =AO103 -> 446.2867796
A104: MO+DPL A14 | B104: 465.5 | P104: 1 | AA104: 465.5 | AB104: MO+DPL A14 | AC104: 465.5 | AD104: 465.5 | AE104: 474.81 | AF104: 474.81 | AG104: 474.81 | AH104: 484.3062 | AI104: 484.3062 | AJ104: 484.3062 | AK104: 493.992324 | AL104: 493.992324 | AM104: 493.992324 | AN104: 503.8721705 | AO104: 503.8721705 | AP104: 503.8721705 | AQ104: 513.9496139 | AR104: 513.9496139 | AS104: 513.9496139 | AT104: 524.2286062 | AU104: =AP104 -> 503.8721705
A105: MO+DPL A15 | B105: 412.3 | Q105: 1 | AA105: 412.3 | AB105: MO+DPL A15 | AC105: 412.3 | AD105: 412.3 | AE105: 420.546 | AF105: 420.546 | AG105: 420.546 | AH105: 428.95692 | AI105: 428.95692 | AJ105: 428.95692 | AK105: 437.5360584 | AL105: 437.5360584 | AM105: 437.5360584 | AN105: 446.2867796 | AO105: 446.2867796 | AP105: 446.2867796 | AQ105: 455.2125152 | AR105: 455.2125152 | AS105: 455.2125152 | AT105: 464.3167655 | AU105: =AQ105 -> 455.2125152
A106: MO+DPL A16 | B106: 465.5 | R106: 1 | AA106: 465.5 | AB106: MO+DPL A16 | AC106: 465.5 | AD106: 465.5 | AE106: 474.81 | AF106: 474.81 | AG106: 474.81 | AH106: 484.3062 | AI106: 484.3062 | AJ106: 484.3062 | AK106: 493.992324 | AL106: 493.992324 | AM106: 493.992324 | AN106: 503.8721705 | AO106: 503.8721705 | AP106: 503.8721705 | AQ106: 513.9496139 | AR106: 513.9496139 | AS106: 513.9496139 | AT106: 524.2286062 | AU106: =AR106 -> 513.9496139
A107: MO+DPL A17 | B107: 412.3 | S107: 1 | AA107: 412.3 | AB107: MO+DPL A17 | AC107: 412.3 | AD107: 412.3 | AE107: 420.546 | AF107: 420.546 | AG107: 420.546 | AH107: 428.95692 | AI107: 428.95692 | AJ107: 428.95692 | AK107: 437.5360584 | AL107: 437.5360584 | AM107: 437.5360584 | AN107: 446.2867796 | AO107: 446.2867796 | AP107: 446.2867796 | AQ107: 455.2125152 | AR107: 455.2125152 | AS107: 455.2125152 | AT107: 464.3167655 | AU107: =AS107 -> 455.2125152
A108: MO+DPL A18 | B108: 465.5 | T108: 1 | AA108: 465.5 | AB108: MO+DPL A18 | AC108: 465.5 | AD108: 465.5 | AE108: 474.81 | AF108: 474.81 | AG108: 474.81 | AH108: 484.3062 | AI108: 484.3062 | AJ108: 484.3062 | AK108: 493.992324 | AL108: 493.992324 | AM108: 493.992324 | AN108: 503.8721705 | AO108: 503.8721705 | AP108: 503.8721705 | AQ108: 513.9496139 | AR108: 513.9496139 | AS108: 513.9496139 | AT108: 524.2286062 | AU108: =SUM(AT108) -> 524.2286062
A109: MO+DPL A19 | B109: 466.5
A110: MO+DPL A20 | B110: 467.5
A111: MO+DPL A21 | B111: 468.5
A112: MO+DPL A22 | B112: 469.5
A113: MO+DPL A23 | B113: 470.5
A114: MO+DPL A24 | B114: 471.5
A115: recyclage | B115: 4.5 | C115: 1 | D115: 1 | E115: 1 | F115: 1 | G115: 1 | H115: 1 | I115: 1 | J115: 1 | K115: 1 | L115: 1 | M115: 1 | N115: 1 | O115: 1 | P115: 1 | Q115: 1 | R115: 1 | S115: 1 | T115: 1 | AA115: =SUM(C115:T115)*B115 -> 81 | AB115: recyclage | AC115: =B115 -> 4.5 | AD115: 4.5 | AE115: 4.59 | AF115: 4.59 | AG115: 4.59 | AH115: 4.6818 | AI115: 4.6818 | AJ115: 4.6818 | AK115: 4.775436 | AL115: 4.775436 | AM115: 4.775436 | AN115: 4.87094472 | AO115: 4.87094472 | AP115: 4.87094472 | AQ115: 4.968363614 | AR115: 4.968363614 | AS115: 4.968363614 | AT115: 5.067730887 | AU115: =SUM(AC115:AT115) -> 85.72736389
O116: =SUM(AA87:AA115) -> 27039.2 | Q116: =O116/6 -> 4506.533333 | R116: =P116/6 -> 0 | S116: =Q116/6 -> 751.0888889 | AU116: =SUM(AU87:AU115) -> 34745.81377
AU117: =AU116/18 -> 1930.322987
O118: =O116/12 -> 2253.266667 | AC118: =SUM(AC87,AC90:AC91,AC115) -> 1090.8 | AD118: =SUM(AD87:AD88,AD90,AD92,AD115) -> 2426.4 | AE118: =SUM(AE87,AE93,AE115) -> 830.076 | AF118: =SUM(AF87:AF90,AF94,AF115) -> 3305.9628 | AG118: =SUM(AG87,AG95,AG115) -> 838.1748 | AH118: =SUM(AH87:AH88,AH90,AH96,AH115) -> 2532.687336 | AI118: =SUM(AI87,AI97,AI115) -> 854.938296 | AJ118: =SUM(AJ87:AJ90,AJ98,AJ115) -> 3372.082056 | AK118: =SUM(AK87,AK99,AK115) -> 872.0370619 | AL118: =SUM(AL87:AL88,AL90,AL100,AL115) -> 2583.341083 | AM118: =SUM(AM87,AM101,AM115) -> 872.0370619 | AN118: =SUM(AN87:AN90,AN102,AN115) -> 3508.314171 | AO118: =SUM(AO87,AO103,AO115) -> 889.4778032 | AP118: =SUM(AP87:AP88,AP90,AP104,AP115) -> 2635.007904 | AQ118: =SUM(AQ87,AQ105,AQ115) -> 907.2673592 | AR118: =SUM(AR87:AR90,AR106,AR115) -> 3578.480454 | AS118: =SUM(AS87,AS107,AS115) -> 907.2673592 | AT118: =SUM(AT87:AT88,AT90,AT108:AT115) -> 2741.462224 | AU118: =SUM(AC118:AT118) -> 34745.81377
A124: L55-L80
A125: Pour10000h/AN | B125: PV | C125: 1 année | G125: 2eme annee | K125: 3eme année | O125: 4eme année | S125: 5eme annee | W125: 6eme année | AB125: evolution du prix 2%/an | AD125: 1.05
B126: prix | C126: Total M3 | D126: Total M6 | E126: Total M9 | F126: Total M12 | G126: Total M15 | H126: Total M18 | I126: Total M21 | J126: Total M24 | K126: Total M27 | L126: Total M30 | M126: Total M33 | N126: Total M36 | O126: Total M39 | P126: Total M42 | Q126: Total M45 | R126: Total M48 | S126: Total M51 | T126: Total M52 | U126: Total M55 | V126: Total M58 | W126: Total M61 | X126: Total M64 | Y126: Total M67 | Z126: Total M70 | AA126: Total Année N | AC126: Total M3 | AD126: Total M6 | AE126: Total M9 | AF126: Total M12 | AG126: Total M15 | AH126: Total M18 | AI126: Total M21 | AJ126: Total M24 | AK126: Total M27 | AL126: Total M30 | AM126: Total M33 | AN126: Total M36 | AO126: Total M39 | AP126: Total M42 | AQ126: Total M45 | AR126: Total M48 | AS126: Total M51 | AT126: Total M54 | AU126: Total M57 | AV126: Total M60 | AW126: Total M63 | AX126: Total M66 | AY126: Total M69 | AZ126: Total M72
A127: COM CK2175-1 | B127: 407.8 | C127: 1 | D127: 1 | E127: 1 | F127: 1 | G127: 1 | H127: 1 | I127: 1 | J127: 1 | K127: 1 | L127: 1 | M127: 1 | N127: 1 | O127: 1 | P127: 1 | Q127: 1 | R127: 1 | S127: 1 | T127: 1 | U127: 1 | V127: 1 | W127: 1 | X127: 1 | Y127: 1 | Z127: 1 | AA127: =B127*(C127+D127+E127+F127+G127+H127+I127+J127+K127+L127+M127+T127) -> 4893.6 | AB127: COM CK2175-1 | AC127: =B127 -> 407.8 | AD127: =B127 -> 407.8 | AE127: =B127*$AD$52 -> 415.956 | AF127: =AE127*$AD125 -> 436.7538 | AG127: =AE127*$AD125 -> 436.7538 | AH127: =AG127*$AD125 -> 458.59149 | AI127: =AG127*$AD125 -> 458.59149 | AJ127: =AG127*$AD125 -> 458.59149 | AK127: =AJ127*$AD125 -> 481.5210645 | AL127: =AJ127*$AD125 -> 481.5210645 | AM127: =AJ127*$AD125 -> 481.5210645 | AN127: =AM127*$AD125 -> 505.5971177 | AO127: =AM127*$AD125 -> 505.5971177 | AP127: =AM127*$AD125 -> 505.5971177 | AQ127: =AP127*$AD125 -> 530.8769736 | AR127: =AP127*$AD125 -> 530.8769736 | AS127: =AP127*$AD125 -> 530.8769736 | AT127: =AS127*$AD125 -> 557.4208223 | AU127: 585.2918634 | AV127: 614.5564566 | AW127: 645.2842794 | AX127: 677.5484934 | AY127: 711.425918 | AZ127: 746.9972139 | BA127: =SUM(AC127:AZ127) -> 12573.34858
A128: com CK4175-2-RS | B128: 1317.1 | D128: 1 | F128: 1 | H128: 1 | J128: 1 | L128: 1 | M128: 0 | N128: 1 | O128: 0 | P128: 1 | R128: 1 | S128: 0 | T128: 1 | V128: 1 | X128: 1 | Z128: 1 | AA128: =B128*(C128+D128+E128+F128+G128+H128+I128+J128+K128+L128+M128+T128) -> 7902.6 | AB128: COM CK4175-2-rs | AC128: =B128 -> 1317.1 | AD128: =B128 -> 1317.1 | AE128: 1343.442 | AF128: =AD128*$AD125 -> 1382.955 | AG128: =AD128*$AD125 -> 1382.955 | AH128: 1410.6141 | AI128: 1452.10275 | AJ128: 1452.10275 | AK128: 1481.144805 | AL128: 1524.707887 | AM128: 1524.707887 | AN128: 1555.202045 | AO128: 1600.943282 | AP128: 1600.943282 | AQ128: 1632.962148 | AR128: 1680.990446 | AS128: 1680.990446 | AT128: 1714.610255 | AU128: 1765.039968 | AV128: 1765.039968 | AW128: 1800.340768 | AX128: 1853.291967 | AY128: 1853.291967 | AZ128: 1890.357806 | BA128: =SUM(AJ128,AL128,AN128,AP128,AR128,AT128,AV128,AX128,AZ128,AH128,AF128,AD128) -> 19147.91551
A129: COM CK8175-1 | B129: 828.6 | F129: 1 | J129: 1 | N129: 1 | Q129: 0 | R129: 1 | S129: 0 | T129: 0 | V129: 1 | Z129: 1 | AA129: =B129*(C129+D129+E129+F129+G129+H129+I129+J129+K129+L129+M129+T129) -> 1657.2 | AB129: COM CK8175-1 | AC129: 828.6 | AD129: 828.6 | AE129: 845.172 | AF129: =AD129*$AD125 -> 870.03 | AG129: =AD129*$AD125 -> 870.03 | AH129: 887.4306 | AI129: 913.5315 | AJ129: 913.5315 | AK129: 931.80213 | AL129: 959.208075 | AM129: 959.208075 | AN129: 978.3922365 | AO129: 1007.168479 | AP129: 1007.168479 | AQ129: 1027.311848 | AR129: 1057.526903 | AS129: 1057.526903 | AT129: 1078.677441 | AU129: 1110.403248 | AV129: 1110.403248 | AW129: 1132.611313 | AX129: 1165.92341 | AY129: 1165.92341 | AZ129: 1189.241878 | BA129: =SUM(AZ129,AV129,AR129,AN129,AJ129,AF129) -> 6119.125765
A130: COM SCWO4000-20 | B130: 299 | C130: 1 | D130: 1 | E130: 0 | F130: 2 | G130: 0 | H130: 2 | I130: 0 | J130: 2 | K130: 0 | L130: 2 | M130: 0 | N130: 2 | P130: 2 | R130: 2 | T130: 2 | V130: 2 | X130: 2 | Z130: 2 | AA130: =B130*(C130+D130+F130+H130+J130+L130+N130+P130+R130+T130) -> 5382 | AB130: COM SCWO4000-20 | AC130: 299 | AD130: 299 | AE130: 304.98 | AF130: =AD130*$AD125 -> 313.95 | AG130: =AD130*$AD125 -> 313.95 | AH130: 320.229 | AI130: 329.6475 | AJ130: 329.6475 | AK130: 336.24045 | AL130: 346.129875 | AM130: 346.129875 | AN130: 353.0524725 | AO130: 363.4363687 | AP130: 363.4363687 | AQ130: 370.7050961 | AR130: 381.6081872 | AS130: 381.6081872 | AT130: 389.2403509 | AU130: 400.6885965 | AV130: 400.6885965 | AW130: 408.7023685 | AX130: 420.7230264 | AY130: 420.7230264 | AZ130: 429.1374869 | BA130: =SUM(AZ130,AX130,AV130,AT130,AR130,AP130,AN130,AL130,AJ130,AH130,AC130,AD130,AF130) -> 4645.842864
A131: BEACART700RA | B131: 200.33 | C131: 1 | D131: 1 | E131: 1 | F131: 1 | G131: 1 | H131: 1 | I131: 1 | J131: 1 | K131: 1 | L131: 1 | M131: 1 | N131: 1 | O131: 1 | P131: 1 | Q131: 1 | R131: 1 | S131: 1 | T131: 1 | U131: 1 | V131: 1 | W131: 1 | X131: 1 | Y131: 1 | Z131: 1 | AA131: =B131*(C131+D131+F131+H131+J131+L131+N131+P131+R131+T131) -> 2003.3 | AB131: BEACART700RA | AC131: 200.33 | AD131: 200.33 | AE131: 204.3366 | AF131: =AD131*$AD125 -> 210.3465 | AG131: =AD131*$AD125 -> 210.3465 | AH131: 214.55343 | AI131: 220.863825 | AJ131: 220.863825 | AK131: 225.2811015 | AL131: 231.9070163 | AM131: 231.9070163 | AN131: 236.5451566 | AO131: 243.5023671 | AP131: 243.5023671 | AQ131: 248.3724144 | AR131: 255.6774854 | AS131: 255.6774854 | AT131: 260.7910351 | AU131: 268.4613597 | AV131: 268.4613597 | AW131: 273.8305869 | AX131: 281.8844277 | AY131: 281.8844277 | AZ131: 287.5221162 | BA131: =SUM(AC131:AZ131) -> 5777.178403
A132: BEACART700RB | B132: 200.33 | C132: 1 | D132: 1 | E132: 1 | F132: 1 | G132: 1 | H132: 1 | I132: 1 | J132: 1 | K132: 1 | L132: 1 | M132: 1 | N132: 1 | O132: 1 | P132: 1 | Q132: 1 | R132: 1 | S132: 1 | T132: 1 | U132: 1 | V132: 1 | W132: 1 | X132: 1 | Y132: 1 | Z132: 1 | AA132: 2003.3 | AB132: BEACART700RB | AC132: 200.33 | AD132: 200.33 | AE132: 204.3366 | AF132: =AD132*$AD125 -> 210.3465 | AG132: =AD132*$AD125 -> 210.3465 | AH132: 214.55343 | AI132: 220.863825 | AJ132: 220.863825 | AK132: 225.2811015 | AL132: 231.9070163 | AM132: 231.9070163 | AN132: 236.5451566 | AO132: 243.5023671 | AP132: 243.5023671 | AQ132: 248.3724144 | AR132: 255.6774854 | AS132: 255.6774854 | AT132: 260.7910351 | AU132: 268.4613597 | AV132: 268.4613597 | AW132: 273.8305869 | AX132: 281.8844277 | AY132: 281.8844277 | AZ132: 287.5221162 | BA132: =SUM(AC132:AZ132) -> 5777.178403
A133: XVKT14CF | B133: 233.6 | C133: 0 | D133: 1 | E133: 0 | F133: 1 | G133: 0 | H133: 1 | I133: 0 | J133: 1 | K133: 0 | L133: 1 | M133: 0 | N133: 1 | O133: 0 | P133: 1 | Q133: 0 | R133: 1 | S133: 0 | T133: 1 | U133: 0 | V133: 1 | W133: 0 | X133: 1 | Y133: 0 | Z133: 1 | AA133: 2102.4 | AB133: xvkt14cf1 | AC133: 233.6 | AD133: 233.6 | AE133: 238.272 | AF133: =AD133*$AD125 -> 245.28 | AG133: =AD133*$AD125 -> 245.28 | AH133: 250.1856 | AI133: 257.544 | AJ133: 257.544 | AK133: 262.69488 | AL133: 270.4212 | AM133: 270.4212 | AN133: 275.829624 | AO133: 283.94226 | AP133: 283.94226 | AQ133: 289.6211052 | AR133: 298.139373 | AS133: 298.139373 | AT133: 304.1021605 | AU133: 313.0463417 | AV133: 313.0463417 | AW133: 319.3072685 | AX133: 328.6986587 | AY133: 328.6986587 | AZ133: 335.2726319 | BA133: =SUM(AZ133,AX133,AV133,AT133,AR133,AP133,AN133,AL133,AJ133,AH133,AF133,AD133) -> 3396.06185
A134: MO+DPL A1 | B134: 643.72 | C134: 1 | AA134: =B134*(C134+D134+E134+F134+G134+H134) -> 643.72 | AB134: MO+DPL A1 | AC134: 643.72 | AD134: 643.72 | AE134: 656.5944 | AF134: =AD134*$AD125 -> 675.906 | AG134: =AD134*$AD125 -> 675.906 | AH134: 689.42412 | AI134: 709.7013 | AJ134: 709.7013 | AK134: 723.895326 | AL134: 745.186365 | AM134: 745.186365 | AN134: 760.0900923 | AO134: 782.4456833 | AP134: 782.4456833 | AQ134: 798.0945969 | AR134: 821.5679674 | AS134: 821.5679674 | AT134: 837.9993268 | AU134: 862.6463658 | AV134: 862.6463658 | AW134: 879.8992931 | AX134: 905.7786841 | AY134: 905.7786841 | AZ134: 923.8942578 | BA134: =AC134 -> 643.72
A135: MO+DPL A2 | B135: 793.72 | D135: 1 | AA135: 793.72 | AB135: MO+DPL A2 | AC135: 793.72 | AD135: 793.72 | AE135: 809.5944 | AF135: =AD135*$AD125 -> 833.406 | AG135: =AD135*$AD125 -> 833.406 | AH135: 850.07412 | AI135: 875.0763 | AJ135: 875.0763 | AK135: 892.577826 | AL135: 918.830115 | AM135: 918.830115 | AN135: 937.2067173 | AO135: 964.7716208 | AP135: 964.7716208 | AQ135: 984.0670532 | AR135: 1013.010202 | AS135: 1013.010202 | AT135: 1033.270406 | AU135: 1063.660712 | AV135: 1063.660712 | AW135: 1084.933926 | AX135: 1116.843747 | AY135: 1116.843747 | AZ135: 1139.180622 | BA135: =AD135 -> 793.72
A136: MO+DPL A3 | B136: 643.72 | E136: 1 | AA136: 643.72 | AB136: MO+DPL A3 | AC136: 643.72 | AD136: 643.72 | AE136: =B136*$AD$52 -> 656.5944 | AF136: =AD136*$AD125 -> 675.906 | AG136: =AD136*$AD125 -> 675.906 | AH136: 689.42412 | AI136: 709.7013 | AJ136: 709.7013 | AK136: 723.895326 | AL136: 745.186365 | AM136: 745.186365 | AN136: 760.0900923 | AO136: 782.4456833 | AP136: 782.4456833 | AQ136: 798.0945969 | AR136: 821.5679674 | AS136: 821.5679674 | AT136: 837.9993268 | AU136: 862.6463658 | AV136: 862.6463658 | AW136: 879.8992931 | AX136: 905.7786841 | AY136: 905.7786841 | AZ136: 923.8942578 | BA136: =AE136 -> 656.5944
A137: MO+DPL A4 | B137: 793.72 | F137: 1 | AA137: 793.72 | AB137: MO+DPL A4 | AC137: 793.72 | AD137: 793.72 | AE137: =B137*$AD$52 -> 809.5944 | AF137: =AD137*$AD125 -> 833.406 | AG137: =AD137*$AD125 -> 833.406 | AH137: 850.07412 | AI137: 875.0763 | AJ137: 875.0763 | AK137: 892.577826 | AL137: 918.830115 | AM137: 918.830115 | AN137: 937.2067173 | AO137: 964.7716208 | AP137: 964.7716208 | AQ137: 984.0670532 | AR137: 1013.010202 | AS137: 1013.010202 | AT137: 1033.270406 | AU137: 1063.660712 | AV137: 1063.660712 | AW137: 1084.933926 | AX137: 1116.843747 | AY137: 1116.843747 | AZ137: 1139.180622 | BA137: =AF137 -> 833.406
A138: MO+DPL A5 | B138: 643.72 | G138: 1 | AA138: 643.72 | AB138: MO+DPL A5 | AC138: 643.72 | AD138: 643.72 | AE138: 656.5944 | AF138: =AD138*$AD125 -> 675.906 | AG138: =AD138*$AD125 -> 675.906 | AH138: 689.42412 | AI138: 709.7013 | AJ138: 709.7013 | AK138: 723.895326 | AL138: 745.186365 | AM138: 745.186365 | AN138: 760.0900923 | AO138: 782.4456833 | AP138: 782.4456833 | AQ138: 798.0945969 | AR138: 821.5679674 | AS138: 821.5679674 | AT138: 837.9993268 | AU138: 862.6463658 | AV138: 862.6463658 | AW138: 879.8992931 | AX138: 905.7786841 | AY138: 905.7786841 | AZ138: 923.8942578 | BA138: =AG138 -> 675.906
A139: MO+DPL A6 | B139: 793.72 | H139: 1 | AA139: 793.72 | AB139: MO+DPL A6 | AC139: 793.72 | AD139: 793.72 | AE139: 809.5944 | AF139: =AD139*$AD125 -> 833.406 | AG139: =AD139*$AD125 -> 833.406 | AH139: 850.07412 | AI139: 875.0763 | AJ139: 875.0763 | AK139: 892.577826 | AL139: 918.830115 | AM139: 918.830115 | AN139: 937.2067173 | AO139: 964.7716208 | AP139: 964.7716208 | AQ139: 984.0670532 | AR139: 1013.010202 | AS139: 1013.010202 | AT139: 1033.270406 | AU139: 1063.660712 | AV139: 1063.660712 | AW139: 1084.933926 | AX139: 1116.843747 | AY139: 1116.843747 | AZ139: 1139.180622 | BA139: =AH139 -> 850.07412
A140: MO+DPL A7 | B140: 643.72 | I140: 1 | AA140: =B140*(C140+D140+E140+F140+G140+H140+I140) -> 643.72 | AB140: MO+DPL A7 | AC140: 643.72 | AD140: 643.72 | AE140: 656.5944 | AF140: =AD140*$AD125 -> 675.906 | AG140: =AD140*$AD125 -> 675.906 | AH140: 689.42412 | AI140: 709.7013 | AJ140: 709.7013 | AK140: 723.895326 | AL140: 745.186365 | AM140: 745.186365 | AN140: 760.0900923 | AO140: 782.4456833 | AP140: 782.4456833 | AQ140: 798.0945969 | AR140: 821.5679674 | AS140: 821.5679674 | AT140: 837.9993268 | AU140: 862.6463658 | AV140: 862.6463658 | AW140: 879.8992931 | AX140: 905.7786841 | AY140: 905.7786841 | AZ140: 923.8942578 | BA140: =AI140 -> 709.7013
A141: MO+DPL A8 | B141: 793.72 | J141: 1 | AA141: =B141*(C141+D141+E141+F141+G141+H141+I141+J141+K141+L141+M141+T141) -> 793.72 | AB141: MO+DPL A8 | AC141: 793.72 | AD141: 793.72 | AE141: 809.5944 | AF141: =AD141*$AD125 -> 833.406 | AG141: =AD141*$AD125 -> 833.406 | AH141: 850.07412 | AI141: 875.0763 | AJ141: 875.0763 | AK141: 892.577826 | AL141: 918.830115 | AM141: 918.830115 | AN141: 937.2067173 | AO141: 964.7716208 | AP141: 964.7716208 | AQ141: 984.0670532 | AR141: 1013.010202 | AS141: 1013.010202 | AT141: 1033.270406 | AU141: 1063.660712 | AV141: 1063.660712 | AW141: 1084.933926 | AX141: 1116.843747 | AY141: 1116.843747 | AZ141: 1139.180622 | BA141: =AJ141 -> 875.0763
A142: MO+DPL A9 | B142: 643.72 | K142: 1 | AA142: =B142*(C142+D142+E142+F142+G142+H142+I142+J142+K142+L142+M142+T142) -> 643.72 | AB142: MO+DPL A9 | AC142: 643.72 | AD142: 643.72 | AE142: 656.5944 | AF142: =AD142*$AD125 -> 675.906 | AG142: =AD142*$AD125 -> 675.906 | AH142: 689.42412 | AI142: 709.7013 | AJ142: 709.7013 | AK142: 723.895326 | AL142: 745.186365 | AM142: 745.186365 | AN142: 760.0900923 | AO142: 782.4456833 | AP142: 782.4456833 | AQ142: 798.0945969 | AR142: 821.5679674 | AS142: 821.5679674 | AT142: 837.9993268 | AU142: 862.6463658 | AV142: 862.6463658 | AW142: 879.8992931 | AX142: 905.7786841 | AY142: 905.7786841 | AZ142: 923.8942578 | BA142: =AK142 -> 723.895326
A143: MO+DPL A10 | B143: 793.72 | L143: 1 | AA143: =B143*(C143+D143+E143+F143+G143+H143+I143+J143+K143+L143+M143+T143) -> 793.72 | AB143: MO+DPL A10 | AC143: 793.72 | AD143: 793.72 | AE143: 809.5944 | AF143: =AD143*$AD125 -> 833.406 | AG143: =AD143*$AD125 -> 833.406 | AH143: 850.07412 | AI143: 875.0763 | AJ143: 875.0763 | AK143: 892.577826 | AL143: 918.830115 | AM143: 918.830115 | AN143: 937.2067173 | AO143: 964.7716208 | AP143: 964.7716208 | AQ143: 984.0670532 | AR143: 1013.010202 | AS143: 1013.010202 | AT143: 1033.270406 | AU143: 1063.660712 | AV143: 1063.660712 | AW143: 1084.933926 | AX143: 1116.843747 | AY143: 1116.843747 | AZ143: 1139.180622 | BA143: =AL143 -> 918.830115
A144: MO+DPL A11 | B144: 643.72 | M144: 1 | AA144: =B144*(C144+D144+E144+F144+G144+H144+I144+J144+K144+L144+M144+T144) -> 643.72 | AB144: MO+DPL A11 | AC144: 643.72 | AD144: 643.72 | AE144: 656.5944 | AF144: =AD144*$AD125 -> 675.906 | AG144: =AD144*$AD125 -> 675.906 | AH144: 689.42412 | AI144: 709.7013 | AJ144: 709.7013 | AK144: 723.895326 | AL144: 745.186365 | AM144: 745.186365 | AN144: 760.0900923 | AO144: 782.4456833 | AP144: 782.4456833 | AQ144: 798.0945969 | AR144: 821.5679674 | AS144: 821.5679674 | AT144: 837.9993268 | AU144: 862.6463658 | AV144: 862.6463658 | AW144: 879.8992931 | AX144: 905.7786841 | AY144: 905.7786841 | AZ144: 923.8942578 | BA144: =AM144 -> 745.186365
A145: MO+DPL A12 | B145: 793.72 | N145: 1 | AA145: =SUM(C145:T145)*B145 -> 793.72 | AB145: MO+DPL A12 | AC145: 793.72 | AD145: 793.72 | AE145: 809.5944 | AF145: =AD145*$AD125 -> 833.406 | AG145: =AD145*$AD125 -> 833.406 | AH145: 850.07412 | AI145: 875.0763 | AJ145: 875.0763 | AK145: 892.577826 | AL145: 918.830115 | AM145: 918.830115 | AN145: 937.2067173 | AO145: 964.7716208 | AP145: 964.7716208 | AQ145: 984.0670532 | AR145: 1013.010202 | AS145: 1013.010202 | AT145: 1033.270406 | AU145: 1063.660712 | AV145: 1063.660712 | AW145: 1084.933926 | AX145: 1116.843747 | AY145: 1116.843747 | AZ145: 1139.180622 | BA145: =AN145 -> 937.2067173
A146: MO+DPL A13 | B146: 643.72 | O146: 1 | AA146: 643.72 | AB146: MO+DPL A13 | AC146: 643.72 | AD146: 643.72 | AE146: 656.5944 | AF146: =AD146*$AD125 -> 675.906 | AG146: =AD146*$AD125 -> 675.906 | AH146: 689.42412 | AI146: 709.7013 | AJ146: 709.7013 | AK146: 723.895326 | AL146: 745.186365 | AM146: 745.186365 | AN146: 760.0900923 | AO146: 782.4456833 | AP146: 782.4456833 | AQ146: 798.0945969 | AR146: 821.5679674 | AS146: 821.5679674 | AT146: 837.9993268 | AU146: 862.6463658 | AV146: 862.6463658 | AW146: 879.8992931 | AX146: 905.7786841 | AY146: 905.7786841 | AZ146: 923.8942578 | BA146: =AO146 -> 782.4456833
A147: MO+DPL A14 | B147: 793.72 | P147: 1 | AA147: 793.72 | AB147: MO+DPL A14 | AC147: 793.72 | AD147: 793.72 | AE147: 809.5944 | AF147: =AD147*$AD125 -> 833.406 | AG147: =AD147*$AD125 -> 833.406 | AH147: 850.07412 | AI147: 875.0763 | AJ147: 875.0763 | AK147: 892.577826 | AL147: 918.830115 | AM147: 918.830115 | AN147: 937.2067173 | AO147: 964.7716208 | AP147: 964.7716208 | AQ147: 984.0670532 | AR147: 1013.010202 | AS147: 1013.010202 | AT147: 1033.270406 | AU147: 1063.660712 | AV147: 1063.660712 | AW147: 1084.933926 | AX147: 1116.843747 | AY147: 1116.843747 | AZ147: 1139.180622 | BA147: =AP147 -> 964.7716208
A148: MO+DPL A15 | B148: 643.72 | Q148: 1 | AA148: 643.72 | AB148: MO+DPL A15 | AC148: 643.72 | AD148: 643.72 | AE148: 656.5944 | AF148: =AD148*$AD125 -> 675.906 | AG148: =AD148*$AD125 -> 675.906 | AH148: 689.42412 | AI148: 709.7013 | AJ148: 709.7013 | AK148: 723.895326 | AL148: 745.186365 | AM148: 745.186365 | AN148: 760.0900923 | AO148: 782.4456833 | AP148: 782.4456833 | AQ148: 798.0945969 | AR148: 821.5679674 | AS148: 821.5679674 | AT148: 837.9993268 | AU148: 862.6463658 | AV148: 862.6463658 | AW148: 879.8992931 | AX148: 905.7786841 | AY148: 905.7786841 | AZ148: 923.8942578 | BA148: =AQ148 -> 798.0945969
A149: MO+DPL A16 | B149: 793.72 | R149: 1 | AA149: 793.72 | AB149: MO+DPL A16 | AC149: 793.72 | AD149: 793.72 | AE149: 809.5944 | AF149: =AD149*$AD125 -> 833.406 | AG149: =AD149*$AD125 -> 833.406 | AH149: 850.07412 | AI149: 875.0763 | AJ149: 875.0763 | AK149: 892.577826 | AL149: 918.830115 | AM149: 918.830115 | AN149: 937.2067173 | AO149: 964.7716208 | AP149: 964.7716208 | AQ149: 984.0670532 | AR149: 1013.010202 | AS149: 1013.010202 | AT149: 1033.270406 | AU149: 1063.660712 | AV149: 1063.660712 | AW149: 1084.933926 | AX149: 1116.843747 | AY149: 1116.843747 | AZ149: 1139.180622 | BA149: =AR149 -> 1013.010202
A150: MO+DPL A17 | B150: 643.72 | S150: 1 | AA150: 643.72 | AB150: MO+DPL A17 | AC150: 643.72 | AD150: 643.72 | AE150: 656.5944 | AF150: =AD150*$AD125 -> 675.906 | AG150: =AD150*$AD125 -> 675.906 | AH150: 689.42412 | AI150: 709.7013 | AJ150: 709.7013 | AK150: 723.895326 | AL150: 745.186365 | AM150: 745.186365 | AN150: 760.0900923 | AO150: 782.4456833 | AP150: 782.4456833 | AQ150: 798.0945969 | AR150: 821.5679674 | AS150: 821.5679674 | AT150: 837.9993268 | AU150: 862.6463658 | AV150: 862.6463658 | AW150: 879.8992931 | AX150: 905.7786841 | AY150: 905.7786841 | AZ150: 923.8942578 | BA150: =AS150 -> 821.5679674
A151: MO+DPL A18 | B151: 793.72 | T151: 1 | AA151: 793.72 | AB151: MO+DPL A18 | AC151: 793.72 | AD151: 793.72 | AE151: 809.5944 | AF151: =AD151*$AD125 -> 833.406 | AG151: =AD151*$AD125 -> 833.406 | AH151: 850.07412 | AI151: 875.0763 | AJ151: 875.0763 | AK151: 892.577826 | AL151: 918.830115 | AM151: 918.830115 | AN151: 937.2067173 | AO151: 964.7716208 | AP151: 964.7716208 | AQ151: 984.0670532 | AR151: 1013.010202 | AS151: 1013.010202 | AT151: 1033.270406 | AU151: 1063.660712 | AV151: 1063.660712 | AW151: 1084.933926 | AX151: 1116.843747 | AY151: 1116.843747 | AZ151: 1139.180622 | BA151: =AT151 -> 1033.270406
A152: MO+DPL A19 | B152: 643.72 | U152: 1 | AA152: =SUM(C152:U152)*B152 -> 643.72 | AB152: MO+DPL A19 | AC152: 643.72 | AD152: 643.72 | AE152: 656.5944 | AF152: =AD152*$AD125 -> 675.906 | AG152: =AD152*$AD125 -> 675.906 | AH152: 689.42412 | AI152: 709.7013 | AJ152: 709.7013 | AK152: 723.895326 | AL152: 745.186365 | AM152: 745.186365 | AN152: 760.0900923 | AO152: 782.4456833 | AP152: 782.4456833 | AQ152: 798.0945969 | AR152: 821.5679674 | AS152: 821.5679674 | AT152: 837.9993268 | AU152: 862.6463658 | AV152: 862.6463658 | AW152: 879.8992931 | AX152: 905.7786841 | AY152: 905.7786841 | AZ152: 923.8942578 | BA152: =AU152 -> 862.6463658
A153: MO+DPL A20 | B153: 793.72 | V153: 1 | AA153: =SUM(C153:V153)*B153 -> 793.72 | AB153: MO+DPL A20 | AC153: 793.72 | AD153: 793.72 | AE153: 809.5944 | AF153: =AD153*$AD125 -> 833.406 | AG153: =AD153*$AD125 -> 833.406 | AH153: 850.07412 | AI153: 875.0763 | AJ153: 875.0763 | AK153: 892.577826 | AL153: 918.830115 | AM153: 918.830115 | AN153: 937.2067173 | AO153: 964.7716208 | AP153: 964.7716208 | AQ153: 984.0670532 | AR153: 1013.010202 | AS153: 1013.010202 | AT153: 1033.270406 | AU153: 1063.660712 | AV153: 1063.660712 | AW153: 1084.933926 | AX153: 1116.843747 | AY153: 1116.843747 | AZ153: 1139.180622 | BA153: =AV153 -> 1063.660712
A154: MO+DPL A21 | B154: 643.72 | W154: 1 | AA154: =SUM(F154:W154)*B154 -> 643.72 | AB154: MO+DPL A21 | AC154: 643.72 | AD154: 643.72 | AE154: 656.5944 | AF154: =AD154*$AD125 -> 675.906 | AG154: =AD154*$AD125 -> 675.906 | AH154: 689.42412 | AI154: 709.7013 | AJ154: 709.7013 | AK154: 723.895326 | AL154: 745.186365 | AM154: 745.186365 | AN154: 760.0900923 | AO154: 782.4456833 | AP154: 782.4456833 | AQ154: 798.0945969 | AR154: 821.5679674 | AS154: 821.5679674 | AT154: 837.9993268 | AU154: 862.6463658 | AV154: 862.6463658 | AW154: 879.8992931 | AX154: 905.7786841 | AY154: 905.7786841 | AZ154: 923.8942578 | BA154: =AW154 -> 879.8992931
A155: MO+DPL A22 | B155: 793.72 | X155: 1 | AA155: =SUM(C155:X155)*B155 -> 793.72 | AB155: MO+DPL A22 | AC155: 793.72 | AD155: 793.72 | AE155: 809.5944 | AF155: =AD155*$AD125 -> 833.406 | AG155: =AD155*$AD125 -> 833.406 | AH155: 850.07412 | AI155: 875.0763 | AJ155: 875.0763 | AK155: 892.577826 | AL155: 918.830115 | AM155: 918.830115 | AN155: 937.2067173 | AO155: 964.7716208 | AP155: 964.7716208 | AQ155: 984.0670532 | AR155: 1013.010202 | AS155: 1013.010202 | AT155: 1033.270406 | AU155: 1063.660712 | AV155: 1063.660712 | AW155: 1084.933926 | AX155: 1116.843747 | AY155: 1116.843747 | AZ155: 1139.180622 | BA155: =AX155 -> 1116.843747
A156: MO+DPL A23 | B156: 643.72 | Y156: 1 | AA156: =SUM(C156:Y156)*B156 -> 643.72 | AB156: MO+DPL A23 | AC156: 643.72 | AD156: 643.72 | AE156: 656.5944 | AF156: =AD156*$AD125 -> 675.906 | AG156: =AD156*$AD125 -> 675.906 | AH156: 689.42412 | AI156: 709.7013 | AJ156: 709.7013 | AK156: 723.895326 | AL156: 745.186365 | AM156: 745.186365 | AN156: 760.0900923 | AO156: 782.4456833 | AP156: 782.4456833 | AQ156: 798.0945969 | AR156: 821.5679674 | AS156: 821.5679674 | AT156: 837.9993268 | AU156: 862.6463658 | AV156: 862.6463658 | AW156: 879.8992931 | AX156: 905.7786841 | AY156: 905.7786841 | AZ156: 923.8942578 | BA156: =AY156 -> 905.7786841
A157: MO+DPL A24 | B157: 793.72 | Z157: 1 | AA157: =SUM(C157:Z157)*B157 -> 793.72 | AB157: MO+DPL A24 | AC157: 793.72 | AD157: 793.72 | AE157: 809.5944 | AF157: =AD157*$AD125 -> 833.406 | AG157: =AD157*$AD125 -> 833.406 | AH157: 850.07412 | AI157: 875.0763 | AJ157: 875.0763 | AK157: 892.577826 | AL157: 918.830115 | AM157: 918.830115 | AN157: 937.2067173 | AO157: 964.7716208 | AP157: 964.7716208 | AQ157: 984.0670532 | AR157: 1013.010202 | AS157: 1013.010202 | AT157: 1033.270406 | AU157: 1063.660712 | AV157: 1063.660712 | AW157: 1084.933926 | AX157: 1116.843747 | AY157: 1116.843747 | AZ157: 1139.180622 | BA157: =AZ157 -> 1139.180622
A158: recyclage | B158: 7 | C158: 1 | D158: 1 | E158: 1 | F158: 1 | G158: 1 | H158: 1 | I158: 1 | J158: 1 | K158: 1 | L158: 1 | M158: 1 | N158: 1 | O158: 1 | P158: 1 | Q158: 1 | R158: 1 | S158: 1 | T158: 1 | U158: 1 | V158: 1 | W158: 1 | X158: 1 | Y158: 1 | Z158: 1 | AA158: =SUM(C158:Z158)*B158 -> 168 | AB158: recyclage | AC158: =B158 -> 7 | AD158: =B158 -> 7 | AE158: =B158*$AD$52 -> 7.14 | AF158: =AD158*$AD125 -> 7.35 | AG158: =AD158*$AD125 -> 7.35 | AH158: 7.497 | AI158: 7.7175 | AJ158: 7.7175 | AK158: 7.87185 | AL158: 8.103375 | AM158: 8.103375 | AN158: 8.2654425 | AO158: 8.50854375 | AP158: 8.50854375 | AQ158: 8.678714625 | AR158: 8.933970938 | AS158: 8.933970938 | AT158: 9.112650356 | AU158: 9.380669484 | AV158: 9.380669484 | AW158: 9.568282874 | AX158: 9.849702959 | AY158: 9.849702959 | AZ158: 10.04669702 | BA158: =SUM(AC158:AZ158) -> 201.8681616
A159: piece captive | B159: 500 | F159: 1 | J159: 1 | N159: 1 | R159: 1 | AA159: =SUM(AA127:AA158) -> 43361.68 | AC159: =B159 -> 500 | AD159: 500 | AE159: 510 | BA159: =SUM(BA127:BA158) -> 78383.00608
BA160: =AN160 -> 0
AC161: =SUM(AC127,AC130:AC132,AC158,AC134) -> 1758.18 | AD161: =SUM(AD127:AD128,AD130:AD133,AD135,AD158) -> 3458.88 | AE161: =SUM(AE127,AE136,AE158,AE131:AE132) -> 1488.3636 | AF161: =SUM(AF127:AF133,AF137,AF158) -> 4510.4178 | AG161: =SUM(AG127,AG131:AG132,AG158,AG138) -> 1540.7028 | AH161: =SUM(AH127:AH128,AH130:AH133,AH139,AH158) -> 3726.29817 | AI161: =SUM(AI127,AI140,AI158,AI131:AI132) -> 1617.73794 | AJ161: =SUM(AJ127:AJ133,AJ141,AJ158) -> 4735.93869 | AK161: =SUM(AK127,AK131:AK132,AK158,AK142) -> 1663.850444 | AL161: =SUM(AL127:AL128,AL130:AL133,AL143,AL158) -> 4013.52755 | AM161: =SUM(AM127,AM144,AM158,AM131:AM132) -> 1698.624837 | AN161: =SUM(AN127:AN133,AN145,AN158) -> 5086.635969 | AO161: =SUM(AO127,AO131:AO132,AO158,AO146) -> 1783.556079 | AP161: =SUM(AP127:AP128,AP130:AP133,AP147,AP158) -> 4214.203927 | AQ161: =SUM(AQ127,AQ148,AQ158,AQ131:AQ132) -> 1834.395114 | AR161: =SUM(AR127:AR133,AR149,AR158) -> 5482.441026 | AS161: =SUM(AS127,AS131:AS132,AS158,AS150) -> 1872.733883 | AT161: =SUM(AT127:AT128,AT130:AT133,AT151,AT158) -> 4529.338715 | AU161: =SUM(AU127,AU152,AU158,AU131:AU132) -> 1994.241618 | AV161: =SUM(AV127:AV133,AV153,AV158) -> 5813.698712 | AW161: =SUM(AW127,AW131:AW132,AW158,AW154) -> 2082.413029 | AX161: =SUM(AX127:AX128,AX130:AX133,AX155,AX158) -> 4970.724451 | AY161: =SUM(AY127,AY156,AY158,AY131:AY132) -> 2190.82316 | AZ161: =SUM(AZ127:AZ133,AZ157,AZ158) -> 6315.278569 | BA161: =SUM(AC161:AZ161) -> 78383.00608

Sheet L75 RS
A1: L75 RS
A2: Pour 2000h/AN
B4: PV | N4: evolution du prix 2%/an | P4: 0.02
B5: prix | C5: année 1 | D5: année 2 | E5: année 3 | F5: année 4 | G5: année 5 | H5: année 6 | J5: Total Année N | L5: Total An 1 | M5: Total An 2 | N5: Total An 3 | O5: Total An 4 | P5: Total An 5 | Q5: Total An 6
A6: COM CK2175-1 | B6: 397 | C6: 1 | D6: 1 | E6: 1 | F6: 1 | G6: 1 | H6: 1 | J6: =B6*(C6+D6+E6+F6+G6+H6) -> 2382 | L6: =(B6*P4)+B6 -> 404.94 | M6: =(L6*P4)+L6 -> 413.0388 | N6: =(M6*P4)+M6 -> 421.299576 | O6: =(N6*P4)+N6 -> 429.7255675 | P6: =(O6*P4)+O6 -> 438.3200789 | Q6: =(P6*P4)+P6 -> 447.0864804 | R6: =SUM(L6:Q6) -> 2554.410503
A7: COM CK4175-2-RS | B7: 1325.2 | D7: 1 | F7: 1 | H7: 1 | J7: =B7*(C7+D7+E7+F7+G7+H7) -> 3975.6 | L7: =(B7*P4)+B7 -> 1351.704 | M7: =(L7*P4)+L7 -> 1378.73808 | N7: =(M7*P4)+M7 -> 1406.312842 | O7: =(N7*P4)+N7 -> 1434.439098 | P7: =(O7*P4)+O7 -> 1463.12788 | Q7: =(P7*P4)+P7 -> 1492.390438 | R7: =M7+O7+Q7 -> 4305.567616
A8: COM CK8175-1 | B8: 806.8 | F8: 1 | J8: 806.8 | L8: =(B8*P4)+B8 -> 822.936 | M8: =(L8*P4)+L8 -> 839.39472 | N8: =(M8*P4)+M8 -> 856.1826144 | O8: =(N8*P4)+N8 -> 873.3062667 | P8: =(O8*P4)+O8 -> 890.772392 | Q8: =(P8*P4)+P8 -> 908.5878399 | R8: =SUM(O8) -> 873.3062667
A9: COM SCWO4000-20 | B9: 277 | C9: 0 | D9: 2 | E9: 0 | F9: 2 | G9: 0 | H9: 2 | J9: =B9*(C9+D9+F9+H9) -> 1662 | L9: =(B9*P4)+B9 -> 282.54 | M9: =(L9*P4)+L9*D9 -> 570.7308 | N9: =(M9*P4)+M9 -> 582.145416 | O9: =(N9*P4)+N9 -> 593.7883243 | P9: =(O9*P4)+O9 -> 605.6640908 | Q9: =(P9*P4)+P9 -> 617.7773726 | R9: =SUM(M9,O9,Q9) -> 1782.296497
A10: MO+DPL A1 | B10: 310 | C10: 1 | J10: 310 | L10: =(B10*P4)+B10 -> 316.2 | M10: =(L10*P4)+L10 -> 322.524 | N10: =(M10*P4)+M10 -> 328.97448 | O10: =(N10*P4)+N10 -> 335.5539696 | P10: =(O10*P4)+O10 -> 342.265049 | Q10: =(P10*P4)+P10 -> 349.11035 | R10: =SUM(L10) -> 316.2
A11: MO+DPL A2 | B11: 380 | D11: 1 | J11: 380 | L11: =(B11*P4)+B11 -> 387.6 | M11: =(L11*P4)+L11 -> 395.352 | N11: =(M11*P4)+M11 -> 403.25904 | O11: =(N11*P4)+N11 -> 411.3242208 | P11: =(O11*P4)+O11 -> 419.5507052 | Q11: =(P11*P4)+P11 -> 427.9417193 | R11: =SUM(M11) -> 395.352
A12: MO+DPL A3 | B12: 310 | E12: 1 | J12: 310 | L12: =(B12*P4)+B12 -> 316.2 | M12: =(L12*P4)+L12 -> 322.524 | N12: =(M12*P4)+M12 -> 328.97448 | O12: =(N12*P4)+N12 -> 335.5539696 | P12: =(O12*P4)+O12 -> 342.265049 | Q12: =(P12*P4)+P12 -> 349.11035 | R12: =SUM(N12) -> 328.97448
A13: MO+DPL A4 | B13: 380 | F13: 1 | J13: 380 | L13: =(B13*P4)+B13 -> 387.6 | M13: =(L13*P4)+L13 -> 395.352 | N13: =(M13*P4)+M13 -> 403.25904 | O13: =(N13*P4)+N13 -> 411.3242208 | P13: =(O13*P4)+O13 -> 419.5507052 | Q13: =(P13*P4)+P13 -> 427.9417193 | R13: =SUM(O13) -> 411.3242208
A14: MO+DPL A5 | B14: 310 | G14: 1 | J14: 310 | L14: =(B14*P4)+B14 -> 316.2 | M14: =(L14*P4)+L14 -> 322.524 | N14: =(M14*P4)+M14 -> 328.97448 | O14: =(N14*P4)+N14 -> 335.5539696 | P14: =(O14*P4)+O14 -> 342.265049 | Q14: =(P14*P4)+P14 -> 349.11035 | R14: =SUM(P14) -> 342.265049
A15: MO+DPL A6 | B15: 380 | H15: 1 | J15: 380 | L15: =(B15*P4)+B15 -> 387.6 | M15: =(L15*P4)+L15 -> 395.352 | N15: =(M15*P4)+M15 -> 403.25904 | O15: =(N15*P4)+N15 -> 411.3242208 | P15: =(O15*P4)+O15 -> 419.5507052 | Q15: =(P15*P4)+P15 -> 427.9417193 | R15: =SUM(Q15) -> 427.9417193
L16: =(B16*P4)+B16 -> 0 | M16: =(L16*P4)+L16 -> 0 | N16: =(M16*P4)+M16 -> 0 | O16: =(N16*P4)+N16 -> 0 | P16: =(O16*P4)+O16 -> 0 | Q16: =(P16*P4)+P16 -> 0 | R16: =SUM(M16,O16,Q16) -> 0
A17: recyclage | B17: 4.5 | C17: 1 | D17: 1 | E17: 1 | F17: 1 | G17: 1 | H17: 1 | J17: =SUM(B17)*(C17+D17+E17+F17+G17+H17) -> 27 | L17: =(B17*P4)+B17 -> 4.59 | M17: =(L17*P4)+L17 -> 4.6818 | N17: =(M17*P4)+M17 -> 4.775436 | O17: =(N17*P4)+N17 -> 4.87094472 | P17: =(O17*P4)+O17 -> 4.968363614 | Q17: =(P17*P4)+P17 -> 5.067730887 | R17: =SUM(L17:Q17) -> 28.95427522
J18: =SUM(J6:J17) -> 10923.4 | L18: =J18/6 -> 1820.566667 | R18: =SUM(R6:R17) -> 11766.59263
R19: =R18/6 -> 1961.098771
L20: =SUM(L6,L10,L17) -> 725.73 | M20: =SUM(M6:M7,M9,M11,M17) -> 2762.54148 | N20: =SUM(N6,N12,N17) -> 755.049492 | O20: =SUM(O6:O9,O13,O17) -> 3747.454422 | P20: =SUM(P6,P14,P17) -> 785.5534915 | Q20: =SUM(Q6:Q7,Q9,Q15,Q17) -> 2990.263741 | R20: =SUM(L20:Q20) -> 11766.59263
A22: L75 RS
A23: Pour4000h/AN | B23: PV | C23: 1 année | E23: 2 année | G23: 3 année | I23: 4 année | K23: 5 année | M23: 6 année | S23: evolution du prix 2%/an | U23: 0.02
B24: prix | C24: 6 mois | D24: 12 mois | E24: 18 mois | F24: 24 mois | G24: 30 mois | H24: 36 mois | I24: 42 mois | J24: 48 mois | K24: 54 mois | L24: 60 mois | M24: 66 mois | N24: 72 mois | O24: Total Année N | Q24: Total M6 | R24: Total M12 | S24: Total M18 | T24: Total M24 | U24: Total M30 | V24: Total M36 | W24: Total M42 | X24: Total M48 | Y24: Total M54 | Z24: Total M60 | AA24: Total M66 | AB24: Total M72
A25: COM CK2175-1 | B25: 397 | C25: 1 | D25: 1 | E25: 1 | F25: 1 | G25: 1 | H25: 1 | I25: 1 | J25: 1 | K25: 1 | L25: 1 | M25: 1 | N25: 1 | O25: =B25*(C25+D25+E25+F25+G25+H25+I25+J25+K25+L25+M25+N25) -> 4764 | P25: COM CK2140-1 | Q25: =(B25*U23)+B25 -> 404.94 | R25: =(B25*U23)+B25 -> 404.94 | S25: =(R25*U23)+R25 -> 413.0388 | T25: =(R25*U23)+R25 -> 413.0388 | U25: =(T25*U23)+T25 -> 421.299576 | V25: =(T25*U23)+T25 -> 421.299576 | W25: =(V25*U23)+V25 -> 429.7255675 | X25: =(V25*U23)+V25 -> 429.7255675 | Y25: =(X25*U23)+X25 -> 438.3200789 | Z25: =(X25*U23)+X25 -> 438.3200789 | AA25: =(Z25*U23)+Z25 -> 447.0864804 | AB25: =(AA25*AA23)+AA25 -> 447.0864804 | AC25: =SUM(Q25:AB25) -> 5108.821006
A26: COM CK4175-2-RS | B26: 1325.2 | D26: 1 | F26: 1 | H26: 1 | J26: 1 | L26: 1 | N26: 1 | O26: =B26*(C26+D26+E26+F26+G26+H26+I26+J26+K26+L26+M26+N26) -> 7951.2 | P26: COM CK4140-1 | Q26: =(B26*U23)+B26 -> 1351.704 | R26: =(B26*U23)+B26 -> 1351.704 | S26: =(R26*U23)+R26 -> 1378.73808 | T26: =(R26*U23)+R26 -> 1378.73808 | U26: =(T26*U23)+T26 -> 1406.312842 | V26: =(T26*U23)+T26 -> 1406.312842 | W26: =(V26*U23)+V26 -> 1434.439098 | X26: =(W26*AA23)+W26 -> 1434.439098 | Y26: =(X26*U23)+X26 -> 1463.12788 | Z26: =(Y26*AA23)+Y26 -> 1463.12788 | AA26: =(Z26*U23)+Z26 -> 1492.390438 | AB26: =(AA26*AA23)+AA26 -> 1492.390438 | AC26: =SUM(R26,T26,V26,X26,Z26,AB26) -> 8526.712338
A27: COM CK8175-1 | B27: 806.8 | F27: 1 | J27: 1 | L27: 0 | N27: 1 | O27: =B27*(C27+D27+E27+F27+G27+H27+I27+J27+K27+L27+M27+N27) -> 2420.4 | P27: COM CK8140-2 | Q27: =(B27*U23)+B27 -> 822.936 | R27: =(B27*U23)+B27 -> 822.936 | S27: =(R27*U23)+R27 -> 839.39472 | T27: =(R27*U23)+R27 -> 839.39472 | U27: =(T27*U23)+T27 -> 856.1826144 | V27: =(T27*U23)+T27 -> 856.1826144 | W27: =(V27*U23)+V27 -> 873.3062667 | X27: =(V27*U23)+V27 -> 873.3062667 | Y27: =(X27*U23)+X27 -> 890.772392 | Z27: =(X27*U23)+X27 -> 890.772392 | AA27: =(Z27*U23)+Z27 -> 908.5878399 | AB27: =(AA27*AA23)+AA27 -> 908.5878399 | AC27: =SUM(T27,X27,AB27) -> 2621.288827
A28: COM SCWO4000-20 | B28: 277 | C28: 1 | D28: 1 | E28: 1 | F28: 1 | G28: 2 | H28: 1 | I28: 1 | J28: 1 | K28: 2 | L28: 1 | M28: 1 | N28: 1 | O28: =B28*(C28+D28+F28+H28+J28+L28+N28) -> 1939 | P28: COM SCWO4000-20 | Q28: =B28 -> 277 | R28: =((B28*C28)*U23)+(B28*C28) -> 282.54 | S28: =R28 -> 282.54 | T28: =(S28*U23)+S28 -> 288.1908 | U28: =T28*G28 -> 576.3816 | V28: =(T28*U23)+T28 -> 293.954616 | W28: =(T28*U23)+T28 -> 293.954616 | X28: =(W28*U23)+W28 -> 299.8337083 | Y28: =X28*K28 -> 599.6674166 | Z28: =Y28/2 -> 299.8337083 | AA28: =(Z28*U23)+Z28 -> 305.8303825 | AB28: =(Z28*U23)+Z28 -> 305.8303825 | AC28: =SUM(Q28:AB28) -> 4105.55723
A29: MO+DPL A1 | B29: 310 | C29: 1 | O29: =B29*(C29+D29+E29+F29+G29+H29) -> 310 | P29: MO+DPL A1 | Q29: 310 | R29: =(B29*U23)+B29 -> 316.2 | S29: =(R29*U23)+R29 -> 322.524 | T29: =(R29*U23)+R29 -> 322.524 | U29: =(T29*U23)+T29 -> 328.97448 | V29: =(T29*U23)+T29 -> 328.97448 | W29: =(V29*U23)+V29 -> 335.5539696 | X29: =(W29*V23)+W29 -> 335.5539696 | Y29: =(X29*U23)+X29 -> 342.265049 | Z29: =(Y29*V23)+Y29 -> 342.265049 | AA29: =(Z29*U23)+Z29 -> 349.11035 | AB29: =(AA29*V23)+AA29 -> 349.11035 | AC29: =SUM(Q29) -> 310
A30: MO+DPL A2 | B30: 380 | D30: 1 | O30: 380 | P30: MO+DPL A2 | Q30: 380 | R30: =(B30*U23)+B30 -> 387.6 | S30: =(R30*U23)+R30 -> 395.352 | T30: =(R30*U23)+R30 -> 395.352 | U30: =(T30*U23)+T30 -> 403.25904 | V30: =(T30*U23)+T30 -> 403.25904 | W30: =(V30*U23)+V30 -> 411.3242208 | X30: =(V30*U23)+V30 -> 411.3242208 | Y30: =(X30*U23)+X30 -> 419.5507052 | Z30: =(X30*U23)+X30 -> 419.5507052 | AA30: =(Z30*U23)+Z30 -> 427.9417193 | AB30: =(Z30*U23)+Z30 -> 427.9417193 | AC30: =SUM(R30) -> 387.6
A31: MO+DPL A3 | B31: 310 | E31: 1 | O31: 310 | P31: MO+DPL A3 | Q31: 310 | R31: =(B31*U23)+B31 -> 316.2 | S31: =(R31*U23)+R31 -> 322.524 | T31: =(R31*U23)+R31 -> 322.524 | U31: =(T31*U23)+T31 -> 328.97448 | V31: =(T31*U23)+T31 -> 328.97448 | W31: =(V31*U23)+V31 -> 335.5539696 | X31: =(V31*U23)+V31 -> 335.5539696 | Y31: =(X31*U23)+X31 -> 342.265049 | Z31: =(X31*U23)+X31 -> 342.265049 | AA31: =(Z31*U23)+Z31 -> 349.11035 | AB31: =(Z31*U23)+Z31 -> 349.11035 | AC31: =SUM(S31) -> 322.524
